Workbook

Sheet Inputs
B1: WisDOT Work Zone Delay | E1: Weekly Tool
B2: Beta Version 4.2 User: | Q2: Beta Version 4.2
B3: Released: 05-05-2020 Date: | Q3: Last Updated | R3: Change Log
Q4: 2019-12-13 | R4: First iteration of beta tool
B5: Project Inputs | E5: Notes: | Q5: 2020-01-09 | R5: Updated released date
B6: Region | C6: Southeast | Q6: 2020-01-13 | R6: Updated volume import of SQL output to reference Sheets(1) on SQL output sheet rather than referencing sheet name, which will change
B7: County | C7: Milwaukee | Q7: 2020-03-19 | R7: Added "Adjusted Volumes" table to "Weekly Charts Tab"
B8: Construction ID | C8: 0000-00-00 | R8: Updated "Growth Factor" to be a positive percentage added to raw volumes
B9: Highway | C9: I-894 | R9: Updated "Diversion Factor" to be a negative percentage subtracted from raw volumes
B10: Direction | C10: NB/SB | R10: Updated "Volume Import" tab where if user cancels file selection dialog box, volumes will revert to previous state before clicking import button
B11: Area Type | C11: Urban | R11: Removed error notification if user types in highway not in list. Useful if user wants to type in combined highway (e.g. I-43/894)
B12: Normal Posted Speed Limit (mph) | C12: 70 | R12: Added cost calculation for diverted traffic; changed "Queue Costs" chart to "Total Costs"
B13: Auto Cost/Hour of Delay | C13: 21.57 | E13: WisDOT Work Zone Capacity Equation | R13: Fixed issue where overnight Saturday closure wasn't showing up as closed in Sunday morning hours.
B14: HV Cost/Hour of Delay | C14: 35.95 | Q14: 2020-03-23 | R14: Updated highways list for each county
B15: Capacity During Non-Work Hours (pce/hr/ln) | C15: =IF(OR(C12=70,C12=65),2400,IF(C12=60,2350,IF(C12=55,2300,2250))) -> 2400 | Q15: 2020-05-05 | R15: Fixed bug in free flow capacity/WZ QDR equations on calcs tab (columns P/AF)
Q16: 2021-04-15 | R16: Updated RUC Dollar Values
B17: Closure Inputs | C17: Closure #1 | D17: Closure #2 | E17: Closure #3 | F17: Closure #4 | N17: =LEFT($C$10,2) -> NB | O17: =RIGHT($C$10,2) -> SB | Q17: 2022-02-01 | R17: Updated RUC Values and updated macros to work with SQL.
B18: Lane Closure Type | C18: 4 to 3 | M18: Loc. Adj. Factor | N18: ='Volume Import'!$H$14 -> 1 | O18: ='Volume Import'!$I$14 -> 1
B19: Barrier Type | C19: Soft | M19: Growth Adj. Factor | N19: ='Volume Import'!$H$15 -> 0 | O19: ='Volume Import'!$I$15 -> 0
B20: Construction Intensity | C20: Low | M20: Diversion % | N20: ='Volume Import'!$H$16 -> 0 | O20: ='Volume Import'!$I$16 -> 0
B22: Results | C22: Closure #1 | D22: Closure #2 | E22: Closure #3 | F22: Closure #4 | H22: Lane Closure Type (fLCSI) | K22: Vehicles/PCE Conversion Tool*
B23: Base Value (1,866 default) | C23: 1866 | D23: =IF(D18="","",$C$23) ->  | E23: =IF(E18="","",$C$23) ->  | F23: =IF(F18="","",$C$23) ->  | H23: 4 to 1 | I23: 4 | K23: Vehicles | L23: 1500
B24: Lane Closure Type (fLCSI) | C24: =IF(C18="","",-40*INDEX(Lists!$J$3:$J$10,MATCH(Inputs!C18,Lists!$I$3:$I$10,0))) -> -17.6 | D24: =IF(D18="","",-40*INDEX(Lists!$J$3:$J$10,MATCH(Inputs!D18,Lists!$I$3:$I$10,0))) ->  | E24: =IF(E18="","",-40*INDEX(Lists!$J$3:$J$10,MATCH(Inputs!E18,Lists!$I$3:$I$10,0))) ->  | F24: =IF(F18="","",-40*INDEX(Lists!$J$3:$J$10,MATCH(Inputs!F18,Lists!$I$3:$I$10,0))) ->  | H24: 3 to 1 | I24: 3 | K24: HV % | L24: 0.05
B25: Barrier Type (fbarrier) | C25: =IF(C19="","",IF(C19="Soft",-132,0)) -> -132 | D25: =IF(D19="","",IF(D19="Soft",-132,0)) ->  | E25: =IF(E19="","",IF(E19="Soft",-132,0)) ->  | F25: =IF(F19="","",IF(F19="Soft",-132,0)) ->  | H25: 2 to 1 | I25: 2 | K25: =IF(K23="Vehicles","PCEs",IF(K23="PCEs","Vehicles","")) -> PCEs | L25: =IF(K25="PCEs",MROUND(L23/(1/(1+L24*(2-1))),1),IF(K25="Vehicles",MROUND(L23*(1/(1+L24*(2-1))),1),"")) -> 1575
B26: Area Type (farea) | C26: =IF(C18="","",IF($C$11="Rural",-205,0)) -> 0 | D26: =IF(D18="","",IF($C$11="Rural",-205,0)) ->  | E26: =IF(E18="","",IF($C$11="Rural",-205,0)) ->  | F26: =IF(F18="","",IF($C$11="Rural",-205,0)) ->  | H26: 4 to 2 | I26: 1 | K26: * for reference only
B27: Construction Intensity (fCI) | C27: =IF(C20="","",IF(C20="High",-207,0)) -> 0 | D27: =IF(D20="","",IF(D20="High",-207,0)) ->  | E27: =IF(E20="","",IF(E20="High",-207,0)) ->  | F27: =IF(F20="","",IF(F20="High",-207,0)) ->  | H27: 3 to 2 | I27: 0.75
B28: Regional (fregional) | C28: =IF(C18="","",IF(OR($C$6="North Central",$C$6="Northeast",$C$6="Northwest"),-47,0)) -> 0 | D28: =IF(D18="","",IF(OR($C$6="North Central",$C$6="Northeast",$C$6="Northwest"),-47,0)) ->  | E28: =IF(E18="","",IF(OR($C$6="North Central",$C$6="Northeast",$C$6="Northwest"),-47,0)) ->  | F28: =IF(F18="","",IF(OR($C$6="North Central",$C$6="Northeast",$C$6="Northwest"),-47,0)) ->  | H28: 2 to 2 | I28: 0.5
B29: Manual Adjustment | C29: 0 | H29: 4 to 3 | I29: 0.44
B30: Estimated QDR Daytime (pce/hr/ln) | C30: =IF(SUM(C23:C29)=0,"",SUM(C23:C29)) -> 1716.4 | D30: =IF(SUM(D23:D29)=0,"",SUM(D23:D29)) ->  | H30: 3 to 3 | I30: 0.33
B31: Estimated Pre-Breakdown Capacity Daytime (pce/hr/ln) | C31: =IF(C30="","",MROUND(C30/(1-0.134),1)) -> 1982 | D31: =IF(D30="","",MROUND(D30/(1-0.134),1)) -> 
B32: Estimated QDR Nighttime* (pce/hr/ln) | C32: =IF(C30="","",C30-101) -> 1615.4 | D32: =IF(D30="","",D30-101) -> 
B33: Estimated Pre-Breakdown Capacity Nighttime (pce/hr/ln) | C33: =IF(C30="","",MROUND(C32/(1-0.134),1)) -> 1865 | D33: =IF(D30="","",MROUND(D32/(1-0.134),1)) -> 
B34: Estimated Daytime PCE Headway (ft/pce) | C34: =IF(C30="","",(3.1495)*(($C$12+5)/2)*(1-SQRT(1-((C30*RIGHT(C18,1))/($C$15*LEFT(C18,1)))))+27.789) -> 65.4766879 | D34: =IF(D30="","",(3.1495)*(($C$12+5)/2)*(1-SQRT(1-((D30*RIGHT(D18,1))/($C$15*LEFT(D18,1)))))+27.789) -> 
B35: Estimated Nighttime PCE Headway (ft/pce) | C35: =IF(C32="","",(3.1495)*(($C$12+5)/2)*(1-SQRT(1-((C32*RIGHT(C18,1))/($C$15*LEFT(C18,1)))))+27.789) -> 62.78440133 | D35: =IF(D32="","",(3.1495)*(($C$12+5)/2)*(1-SQRT(1-((D32*RIGHT(D18,1))/($C$15*LEFT(D18,1)))))+27.789) -> 
B36: *6pm to 6am considered nighttime in calculations
B37: Duration Inputs | C37: OVERLAP DETECTED! PLEASE REVIEW CLOSURE TIMES!
B38: Closure #1 | C38: Monday | D38: Tuesday | E38: Wednesday | F38: Thursday | G38: Friday | H38: Saturday | I38: Sunday
B39: All Day?
B40: Start of Closure | C40: 09:00:00 | D40: 09:00:00 | E40: 09:00:00 | F40: 09:00:00 | G40: 09:00:00
B41: End of Closure | C41: 14:00:00 | D41: 14:00:00 | E41: 14:00:00 | F41: 14:00:00 | G41: 14:00:00
B42: Overlap? | C42: =IF(AND(AND(C40="",C41=""),AND(C50="",C51=""),AND(C60="",C61=""),AND(C70="",C71=""),NOT(C47)),"", IF(AND(OR(AND(C45>=I45,C45<=I46),AND(C46>=D45,C46<=D46)),AND(C45<>"",C46<>"")),"OVERLAP!", IF(AND(OR(AND(C55>=I55,C55<=I56),AND(C56>=D55,C56<=D56)),AND(C55<>"",C56<>"")),"OVERLAP!", IF(AND(OR(AND(C65>=I65,C65<=I66),AND(C66>=D65,C66<=D66)),AND(C65<>"",C66<>"")),"OVERLAP!", IF(AND(OR(AND(C75>=I75,C75<=I76),AND(C76>=D75,C76<=D76)),AND(C75<>"",C76<>"")),"OVERLAP!", IF(COUNTIFS($B$86:$B$253,C38,$I$86:$I$253,">1")>0,"OVERLAP!", IF(AND(IF(COUNTIFS($B$86:$B$253,C38,$I$86:$I$253,">1")>0,"OVERLAP!","OK!")="OVERLAP!",C47),"OK!",IF(COUNTIFS($B$86:$B$253,C38,$I$86:$I$253,">1")>0,"OVERLAP!","OK!")))))))) -> OK! | D42: =IF(AND(AND(D40="",D41=""),AND(D50="",D51=""),AND(D60="",D61=""),AND(D70="",D71=""),NOT(D47)),"", IF(AND(OR(AND(D45>=C45,D45<=C46),AND(D46>=E45,D46<=E46)),AND(D45<>"",D46<>"")),"OVERLAP!", IF(AND(OR(AND(D55>=C55,D55<=C56),AND(D56>=E55,D56<=E56)),AND(D55<>"",D56<>"")),"OVERLAP!", IF(AND(OR(AND(D65>=C65,D65<=C66),AND(D66>=E65,D66<=E66)),AND(D65<>"",D66<>"")),"OVERLAP!", IF(AND(OR(AND(D75>=C75,D75<=C76),AND(D76>=E75,D76<=E76)),AND(D75<>"",D76<>"")),"OVERLAP!", IF(COUNTIFS($B$86:$B$253,D38,$I$86:$I$253,">1")>0,"OVERLAP!", IF(AND(IF(COUNTIFS($B$86:$B$253,D38,$I$86:$I$253,">1")>0,"OVERLAP!","OK!")="OVERLAP!",D47),"OK!",IF(COUNTIFS($B$86:$B$253,D38,$I$86:$I$253,">1")>0,"OVERLAP!","OK!")))))))) -> OK! | E42: =IF(AND(AND(E40="",E41=""),AND(E50="",E51=""),AND(E60="",E61=""),AND(E70="",E71=""),NOT(E47)),"", IF(AND(OR(AND(E45>=D45,E45<=D46),AND(E46>=F45,E46<=F46)),AND(E45<>"",E46<>"")),"OVERLAP!", IF(AND(OR(AND(E55>=D55,E55<=D56),AND(E56>=F55,E56<=F56)),AND(E55<>"",E56<>"")),"OVERLAP!", IF(AND(OR(AND(E65>=D65,E65<=D66),AND(E66>=F65,E66<=F66)),AND(E65<>"",E66<>"")),"OVERLAP!", IF(AND(OR(AND(E75>=D75,E75<=D76),AND(E76>=F75,E76<=F76)),AND(E75<>"",E76<>"")),"OVERLAP!", IF(COUNTIFS($B$86:$B$253,E38,$I$86:$I$253,">1")>0,"OVERLAP!", IF(AND(IF(COUNTIFS($B$86:$B$253,E38,$I$86:$I$253,">1")>0,"OVERLAP!","OK!")="OVERLAP!",E47),"OK!",IF(COUNTIFS($B$86:$B$253,E38,$I$86:$I$253,">1")>0,"OVERLAP!","OK!")))))))) -> OK! | F42: =IF(AND(AND(F40="",F41=""),AND(F50="",F51=""),AND(F60="",F61=""),AND(F70="",F71=""),NOT(F47)),"", IF(AND(OR(AND(F45>=E45,F45<=E46),AND(F46>=G45,F46<=G46)),AND(F45<>"",F46<>"")),"OVERLAP!", IF(AND(OR(AND(F55>=E55,F55<=E56),AND(F56>=G55,F56<=G56)),AND(F55<>"",F56<>"")),"OVERLAP!", IF(AND(OR(AND(F65>=E65,F65<=E66),AND(F66>=G65,F66<=G66)),AND(F65<>"",F66<>"")),"OVERLAP!", IF(AND(OR(AND(F75>=E75,F75<=E76),AND(F76>=G75,F76<=G76)),AND(F75<>"",F76<>"")),"OVERLAP!", IF(COUNTIFS($B$86:$B$253,F38,$I$86:$I$253,">1")>0,"OVERLAP!", IF(AND(IF(COUNTIFS($B$86:$B$253,F38,$I$86:$I$253,">1")>0,"OVERLAP!","OK!")="OVERLAP!",F47),"OK!",IF(COUNTIFS($B$86:$B$253,F38,$I$86:$I$253,">1")>0,"OVERLAP!","OK!")))))))) -> OK! | G42: =IF(AND(AND(G40="",G41=""),AND(G50="",G51=""),AND(G60="",G61=""),AND(G70="",G71=""),NOT(G47)),"", IF(AND(OR(AND(G45>=F45,G45<=F46),AND(G46>=H45,G46<=H46)),AND(G45<>"",G46<>"")),"OVERLAP!", IF(AND(OR(AND(G55>=F55,G55<=F56),AND(G56>=H55,G56<=H56)),AND(G55<>"",G56<>"")),"OVERLAP!", IF(AND(OR(AND(G65>=F65,G65<=F66),AND(G66>=H65,G66<=H66)),AND(G65<>"",G66<>"")),"OVERLAP!", IF(AND(OR(AND(G75>=F75,G75<=F76),AND(G76>=H75,G76<=H76)),AND(G75<>"",G76<>"")),"OVERLAP!", IF(COUNTIFS($B$86:$B$253,G38,$I$86:$I$253,">1")>0,"OVERLAP!", IF(AND(IF(COUNTIFS($B$86:$B$253,G38,$I$86:$I$253,">1")>0,"OVERLAP!","OK!")="OVERLAP!",G47),"OK!",IF(COUNTIFS($B$86:$B$253,G38,$I$86:$I$253,">1")>0,"OVERLAP!","OK!")))))))) -> OK! | H42: =IF(AND(AND(H40="",H41=""),AND(H50="",H51=""),AND(H60="",H61=""),AND(H70="",H71=""),NOT(H47)),"", IF(AND(OR(AND(H45>=G45,H45<=G46),IFERROR(AND(H46>=I45+168,H46<=I46+168),FALSE)),AND(H45<>"",H46<>"")),"OVERLAP!", IF(AND(OR(AND(H55>=G55,H55<=G56),IFERROR(AND(H56>=I55+168,H56<=I56+168),FALSE)),AND(H55<>"",H56<>"")),"OVERLAP!", IF(AND(OR(AND(H65>=G65,H65<=G66),IFERROR(AND(H66>=I65+168,H66<=I66+168),FALSE)),AND(H65<>"",H66<>"")),"OVERLAP!", IF(AND(OR(AND(H75>=G75,H75<=G76),IFERROR(AND(H76>=I75+168,H76<=I76+168),FALSE)),AND(H75<>"",H76<>"")),"OVERLAP!", IF(COUNTIFS($B$86:$B$253,H38,$I$86:$I$253,">1")>0,"OVERLAP!", IF(AND(IF(COUNTIFS($B$86:$B$253,H38,$I$86:$I$253,">1")>0,"OVERLAP!","OK!")="OVERLAP!",H47),"OK!",IF(COUNTIFS($B$86:$B$253,H38,$I$86:$I$253,">1")>0,"OVERLAP!","OK!")))))))) ->  | I42: =IF(AND(AND(I40="",I41=""),AND(I50="",I51=""),AND(I60="",I61=""),AND(I70="",I71=""),NOT(I47)),"", IF(AND(OR(IFERROR(AND(I45+168>=H45,I45+168<=H46),FALSE),AND(I46>=C45,I46<=C46)),AND(I45<>"",I46<>"")),"OVERLAP!", IF(AND(OR(IFERROR(AND(I55+168>=H55,I55+168<=H56),FALSE),AND(I56>=C55,I56<=C56)),AND(I55<>"",I56<>"")),"OVERLAP!", IF(AND(OR(IFERROR(AND(I65+168>=H65,I65+168<=H66),FALSE),AND(I66>=C65,I66<=C66)),AND(I65<>"",I66<>"")),"OVERLAP!", IF(AND(OR(IFERROR(AND(I75+168>=H75,I75+168<=H76),FALSE),AND(I76>=C75,I76<=C76)),AND(I75<>"",I76<>"")),"OVERLAP!", IF(COUNTIFS($B$86:$B$253,I38,$I$86:$I$253,">1")>0,"OVERLAP!", IF(AND(IF(COUNTIFS($B$86:$B$253,I38,$I$86:$I$253,">1")>0,"OVERLAP!","OK!")="OVERLAP!",I47),"OK!",IF(COUNTIFS($B$86:$B$253,I38,$I$86:$I$253,">1")>0,"OVERLAP!","OK!")))))))) -> 
C44: 2 | D44: 3 | E44: 4 | F44: 5 | G44: 6 | H44: 7 | I44: 1
B45: Start of Closure | C45: =IF(C47,(C44*24-24),IF(OR(C40="",C41=""),"",HOUR(C40)+(C44*24-24))) -> 33 | D45: =IF(D47,(D44*24-24),IF(OR(D40="",D41=""),"",HOUR(D40)+(D44*24-24))) -> 57 | E45: =IF(E47,(E44*24-24),IF(OR(E40="",E41=""),"",HOUR(E40)+(E44*24-24))) -> 81 | F45: 105 | G45: 129
B46: End of Closure | C46: =IF(C47,(C44*24-1),IF(OR(C40="",C41=""),"",IF(C41>C40,HOUR(C41)+(C44*24-24)-1,HOUR(C41)+((C44+1)*24-24)-1))) -> 37 | D46: =IF(D47,(D44*24-1),IF(ISBLANK(D41),"",IF(D41>D40,HOUR(D41)+(D44*24-24)-1,HOUR(D41)+((D44+1)*24-24)-1))) -> 61 | E46: =IF(E47,(E44*24-1),IF(ISBLANK(E41),"",IF(E41>E40,HOUR(E41)+(E44*24-24)-1,HOUR(E41)+((E44+1)*24-24)-1))) -> 85 | F46: 109 | G46: 133 | I46: =IF(I47,(I44*24-1),IF(ISBLANK(I41),"",IF(I41>I40,HOUR(I41)+(I44*24-24)-1,HOUR(I41)+((I44+1)*24-24)-1))) -> 
C47: FALSE | D47: FALSE | E47: FALSE | F47: FALSE | G47: FALSE | H47: FALSE | I47: FALSE
B49: Closure #2 | C49: Monday | D49: Tuesday | E49: Wednesday | F49: Thursday | G49: Friday | H49: Saturday | I49: Sunday
B50: Start of Closure
B51: End of Closure
C54: 2 | D54: 3 | E54: 4 | F54: 5 | G54: 6 | H54: 7 | I54: 1
B55: Start of Closure | C55: =IF(OR(C50="",C51=""),"",HOUR(C50)+(C54*24-24)) ->  | D55: =IF(OR(D50="",D51=""),"",HOUR(D50)+(D54*24-24)) -> 
B56: End of Closure | C56: =IF(OR(C50="",C51=""),"",IF(C51>C50,HOUR(C51)+(C54*24-24)-1,HOUR(C51)+((C54+1)*24-24)-1)) ->  | D56: =IF(OR(D50="",D51=""),"",IF(D51>D50,HOUR(D51)+(D54*24-24)-1,HOUR(D51)+((D54+1)*24-24)-1)) -> 
B59: Closure #3 | C59: Monday | D59: Tuesday | E59: Wednesday | F59: Thursday | G59: Friday | H59: Saturday | I59: Sunday
B60: Start of Closure
B61: End of Closure
C64: 2 | D64: 3 | E64: 4 | F64: 5 | G64: 6 | H64: 7 | I64: 1
B65: Start of Closure | C65: =IF(OR(C60="",C61=""),"",HOUR(C60)+(C64*24-24)) ->  | D65: =IF(OR(D60="",D61=""),"",HOUR(D60)+(D64*24-24)) -> 
B66: End of Closure | C66: =IF(OR(C60="",C61=""),"",IF(C61>C60,HOUR(C61)+(C64*24-24)-1,HOUR(C61)+((C64+1)*24-24)-1)) ->  | D66: =IF(OR(D60="",D61=""),"",IF(D61>D60,HOUR(D61)+(D64*24-24)-1,HOUR(D61)+((D64+1)*24-24)-1)) -> 
B69: Closure #4 | C69: Monday | D69: Tuesday | E69: Wednesday | F69: Thursday | G69: Friday | H69: Saturday | I69: Sunday
B70: Start of Closure
B71: End of Closure
C74: 2 | D74: 3 | E74: 4 | F74: 5 | G74: 6 | H74: 7 | I74: 1
B75: Start of Closure | C75: =IF(OR(C70="",C71=""),"",HOUR(C70)+(C74*24-24)) ->  | D75: =IF(OR(D70="",D71=""),"",HOUR(D70)+(D74*24-24)) -> 
B76: End of Closure | C76: =IF(OR(C70="",C71=""),"",IF(C71>C70,HOUR(C71)+(C74*24-24)-1,HOUR(C71)+((C74+1)*24-24)-1)) ->  | D76: =IF(OR(D70="",D71=""),"",IF(D71>D70,HOUR(D71)+(D74*24-24)-1,HOUR(D71)+((D74+1)*24-24)-1)) ->  | H76: =IF(OR(H70="",H71=""),"",IF(H71>H70,HOUR(H71)+(H74*24-24)-1,HOUR(H71)+((H74+1)*24-24)-1)) -> 
B79: Heavy Vehicle Percentages - Daily Average
C80: Monday | D80: Tuesday | E80: Wednesday | F80: Thursday | G80: Friday | H80: Saturday | I80: Sunday
B81: =IF(SUM('Volume Import'!$D$2:$D$169)=0,"HV% From Manual Table", "HV% From Jackalope SQL Import") -> HV% From Manual Table | C81: =IFERROR((SUMPRODUCT(--(Calculations!$C$11:$C$178=Inputs!C$80),Calculations!$I$11:$I$178,Calculations!$J$11:$J$178)+SUMPRODUCT(--(Calculations!$C$11:$C$178=Inputs!C$80),Calculations!$L$11:$L$178,Calculations!$M$11:$M$178))/(SUMIF(Calculations!$C$11:$C$178,Inputs!C$80,Calculations!$I$11:$I$178)+SUMIF(Calculations!$C$11:$C$178,Inputs!C$80,Calculations!$L$11:$L$178)),"No Volume Data") -> 0.1 | D81: =IFERROR((SUMPRODUCT(--(Calculations!$C$11:$C$178=Inputs!D$80),Calculations!$I$11:$I$178,Calculations!$J$11:$J$178)+SUMPRODUCT(--(Calculations!$C$11:$C$178=Inputs!D$80),Calculations!$L$11:$L$178,Calculations!$M$11:$M$178))/(SUMIF(Calculations!$C$11:$C$178,Inputs!D$80,Calculations!$I$11:$I$178)+SUMIF(Calculations!$C$11:$C$178,Inputs!D$80,Calculations!$L$11:$L$178)),"No Volume Data") -> 0.1 | E81: =IFERROR((SUMPRODUCT(--(Calculations!$C$11:$C$178=Inputs!E$80),Calculations!$I$11:$I$178,Calculations!$J$11:$J$178)+SUMPRODUCT(--(Calculations!$C$11:$C$178=Inputs!E$80),Calculations!$L$11:$L$178,Calculations!$M$11:$M$178))/(SUMIF(Calculations!$C$11:$C$178,Inputs!E$80,Calculations!$I$11:$I$178)+SUMIF(Calculations!$C$11:$C$178,Inputs!E$80,Calculations!$L$11:$L$178)),"No Volume Data") -> 0.1 | F81: =IFERROR((SUMPRODUCT(--(Calculations!$C$11:$C$178=Inputs!F$80),Calculations!$I$11:$I$178,Calculations!$J$11:$J$178)+SUMPRODUCT(--(Calculations!$C$11:$C$178=Inputs!F$80),Calculations!$L$11:$L$178,Calculations!$M$11:$M$178))/(SUMIF(Calculations!$C$11:$C$178,Inputs!F$80,Calculations!$I$11:$I$178)+SUMIF(Calculations!$C$11:$C$178,Inputs!F$80,Calculations!$L$11:$L$178)),"No Volume Data") -> 0.1 | G81: =IFERROR((SUMPRODUCT(--(Calculations!$C$11:$C$178=Inputs!G$80),Calculations!$I$11:$I$178,Calculations!$J$11:$J$178)+SUMPRODUCT(--(Calculations!$C$11:$C$178=Inputs!G$80),Calculations!$L$11:$L$178,Calculations!$M$11:$M$178))/(SUMIF(Calculations!$C$11:$C$178,Inputs!G$80,Calculations!$I$11:$I$178)+SUMIF(Calculations!$C$11:$C$178,Inputs!G$80,Calculations!$L$11:$L$178)),"No Volume Data") -> 0.1 | H81: =IFERROR((SUMPRODUCT(--(Calculations!$C$11:$C$178=Inputs!H$80),Calculations!$I$11:$I$178,Calculations!$J$11:$J$178)+SUMPRODUCT(--(Calculations!$C$11:$C$178=Inputs!H$80),Calculations!$L$11:$L$178,Calculations!$M$11:$M$178))/(SUMIF(Calculations!$C$11:$C$178,Inputs!H$80,Calculations!$I$11:$I$178)+SUMIF(Calculations!$C$11:$C$178,Inputs!H$80,Calculations!$L$11:$L$178)),"No Volume Data") -> 0.1 | I81: =IFERROR((SUMPRODUCT(--(Calculations!$C$11:$C$178=Inputs!I$80),Calculations!$I$11:$I$178,Calculations!$J$11:$J$178)+SUMPRODUCT(--(Calculations!$C$11:$C$178=Inputs!I$80),Calculations!$L$11:$L$178,Calculations!$M$11:$M$178))/(SUMIF(Calculations!$C$11:$C$178,Inputs!I$80,Calculations!$I$11:$I$178)+SUMIF(Calculations!$C$11:$C$178,Inputs!I$80,Calculations!$L$11:$L$178)),"No Volume Data") -> 0.1
B84: Table for Overlap Notification
D85: Week Hour | E85: Closure 1 | F85: Closure 2 | G85: Closure 3 | H85: Closure 4 | I85: True Count 1,2,3,4 | J85: True Count 2,3,4
B86: Sunday | C86: 00:00:00 | D86: 0 | E86: =OR(AND(D86>=Inputs!$I$45,D86<=Inputs!$I$46),AND(D86>=Inputs!$C$45,D86<=Inputs!$C$46),AND(D86>=Inputs!$D$45,D86<=Inputs!$D$46),AND(D86>=Inputs!$E$45,D86<=Inputs!$E$46),AND(D86>=Inputs!$F$45,D86<=Inputs!$F$46),AND(D86>=Inputs!$G$45,D86<=Inputs!$G$46),AND(D86>=Inputs!$H$45,D86<=Inputs!$H$46),IFERROR(AND(D86>=0,D86<=Inputs!$H$46-168),FALSE)) -> FALSE | F86: =OR(AND(D86>=Inputs!$I$55,D86<=Inputs!$I$56),AND(D86>=Inputs!$C$55,D86<=Inputs!$C$56),AND(D86>=Inputs!$D$55,D86<=Inputs!$D$56),AND(D86>=Inputs!$E$55,D86<=Inputs!$E$56),AND(D86>=Inputs!$F$55,D86<=Inputs!$F$56),AND(D86>=Inputs!$G$55,D86<=Inputs!$G$56),AND(D86>=Inputs!$H$55,D86<=Inputs!$H$56),IFERROR(AND(D86>=0,D86<=Inputs!$H$56-168),FALSE)) -> FALSE | G86: =OR(AND(D86>=Inputs!$I$65,D86<=Inputs!$I$66),AND(D86>=Inputs!$C$65,D86<=Inputs!$C$66),AND(D86>=Inputs!$D$65,D86<=Inputs!$D$66),AND(D86>=Inputs!$E$65,D86<=Inputs!$E$66),AND(D86>=Inputs!$F$65,D86<=Inputs!$F$66),AND(D86>=Inputs!$G$65,D86<=Inputs!$G$66),AND(D86>=Inputs!$H$65,D86<=Inputs!$H$66),IFERROR(AND(D86>=0,D86<=Inputs!$H$66-168),FALSE)) -> FALSE | H86: =OR(AND(D86>=Inputs!$I$75,D86<=Inputs!$I$76),AND(D86>=Inputs!$C$75,D86<=Inputs!$C$76),AND(D86>=Inputs!$D$75,D86<=Inputs!$D$76),AND(D86>=Inputs!$E$75,D86<=Inputs!$E$76),AND(D86>=Inputs!$F$75,D86<=Inputs!$F$76),AND(D86>=Inputs!$G$75,D86<=Inputs!$G$76),AND(D86>=Inputs!$H$75,D86<=Inputs!$H$76),IFERROR(AND(D86>=0,D86<=Inputs!$H$76-168),FALSE)) -> FALSE | I86: =COUNTIF(E86:H86,"TRUE") -> 0 | J86: =COUNTIF(F86:H86,"TRUE") -> 0
B87: Sunday | C87: 01:00:00 | D87: 1 | E87: =OR(AND(D87>=Inputs!$I$45,D87<=Inputs!$I$46),AND(D87>=Inputs!$C$45,D87<=Inputs!$C$46),AND(D87>=Inputs!$D$45,D87<=Inputs!$D$46),AND(D87>=Inputs!$E$45,D87<=Inputs!$E$46),AND(D87>=Inputs!$F$45,D87<=Inputs!$F$46),AND(D87>=Inputs!$G$45,D87<=Inputs!$G$46),AND(D87>=Inputs!$H$45,D87<=Inputs!$H$46),IFERROR(AND(D87>=0,D87<=Inputs!$H$46-168),FALSE)) -> FALSE | F87: =OR(AND(D87>=Inputs!$I$55,D87<=Inputs!$I$56),AND(D87>=Inputs!$C$55,D87<=Inputs!$C$56),AND(D87>=Inputs!$D$55,D87<=Inputs!$D$56),AND(D87>=Inputs!$E$55,D87<=Inputs!$E$56),AND(D87>=Inputs!$F$55,D87<=Inputs!$F$56),AND(D87>=Inputs!$G$55,D87<=Inputs!$G$56),AND(D87>=Inputs!$H$55,D87<=Inputs!$H$56),IFERROR(AND(D87>=0,D87<=Inputs!$H$56-168),FALSE)) -> FALSE | G87: =OR(AND(D87>=Inputs!$I$65,D87<=Inputs!$I$66),AND(D87>=Inputs!$C$65,D87<=Inputs!$C$66),AND(D87>=Inputs!$D$65,D87<=Inputs!$D$66),AND(D87>=Inputs!$E$65,D87<=Inputs!$E$66),AND(D87>=Inputs!$F$65,D87<=Inputs!$F$66),AND(D87>=Inputs!$G$65,D87<=Inputs!$G$66),AND(D87>=Inputs!$H$65,D87<=Inputs!$H$66),IFERROR(AND(D87>=0,D87<=Inputs!$H$66-168),FALSE)) -> FALSE | H87: =OR(AND(D87>=Inputs!$I$75,D87<=Inputs!$I$76),AND(D87>=Inputs!$C$75,D87<=Inputs!$C$76),AND(D87>=Inputs!$D$75,D87<=Inputs!$D$76),AND(D87>=Inputs!$E$75,D87<=Inputs!$E$76),AND(D87>=Inputs!$F$75,D87<=Inputs!$F$76),AND(D87>=Inputs!$G$75,D87<=Inputs!$G$76),AND(D87>=Inputs!$H$75,D87<=Inputs!$H$76),IFERROR(AND(D87>=0,D87<=Inputs!$H$76-168),FALSE)) -> FALSE | I87: =COUNTIF(E87:H87,"TRUE") -> 0 | J87: =COUNTIF(F87:H87,"TRUE") -> 0
B88: Sunday | C88: 02:00:00 | D88: 2 | E88: =OR(AND(D88>=Inputs!$I$45,D88<=Inputs!$I$46),AND(D88>=Inputs!$C$45,D88<=Inputs!$C$46),AND(D88>=Inputs!$D$45,D88<=Inputs!$D$46),AND(D88>=Inputs!$E$45,D88<=Inputs!$E$46),AND(D88>=Inputs!$F$45,D88<=Inputs!$F$46),AND(D88>=Inputs!$G$45,D88<=Inputs!$G$46),AND(D88>=Inputs!$H$45,D88<=Inputs!$H$46),IFERROR(AND(D88>=0,D88<=Inputs!$H$46-168),FALSE)) -> FALSE | F88: =OR(AND(D88>=Inputs!$I$55,D88<=Inputs!$I$56),AND(D88>=Inputs!$C$55,D88<=Inputs!$C$56),AND(D88>=Inputs!$D$55,D88<=Inputs!$D$56),AND(D88>=Inputs!$E$55,D88<=Inputs!$E$56),AND(D88>=Inputs!$F$55,D88<=Inputs!$F$56),AND(D88>=Inputs!$G$55,D88<=Inputs!$G$56),AND(D88>=Inputs!$H$55,D88<=Inputs!$H$56),IFERROR(AND(D88>=0,D88<=Inputs!$H$56-168),FALSE)) -> FALSE | G88: =OR(AND(D88>=Inputs!$I$65,D88<=Inputs!$I$66),AND(D88>=Inputs!$C$65,D88<=Inputs!$C$66),AND(D88>=Inputs!$D$65,D88<=Inputs!$D$66),AND(D88>=Inputs!$E$65,D88<=Inputs!$E$66),AND(D88>=Inputs!$F$65,D88<=Inputs!$F$66),AND(D88>=Inputs!$G$65,D88<=Inputs!$G$66),AND(D88>=Inputs!$H$65,D88<=Inputs!$H$66),IFERROR(AND(D88>=0,D88<=Inputs!$H$66-168),FALSE)) -> FALSE | H88: =OR(AND(D88>=Inputs!$I$75,D88<=Inputs!$I$76),AND(D88>=Inputs!$C$75,D88<=Inputs!$C$76),AND(D88>=Inputs!$D$75,D88<=Inputs!$D$76),AND(D88>=Inputs!$E$75,D88<=Inputs!$E$76),AND(D88>=Inputs!$F$75,D88<=Inputs!$F$76),AND(D88>=Inputs!$G$75,D88<=Inputs!$G$76),AND(D88>=Inputs!$H$75,D88<=Inputs!$H$76),IFERROR(AND(D88>=0,D88<=Inputs!$H$76-168),FALSE)) -> FALSE | I88: 0 | J88: 0
B89: Sunday | C89: 03:00:00 | D89: 3 | E89: =OR(AND(D89>=Inputs!$I$45,D89<=Inputs!$I$46),AND(D89>=Inputs!$C$45,D89<=Inputs!$C$46),AND(D89>=Inputs!$D$45,D89<=Inputs!$D$46),AND(D89>=Inputs!$E$45,D89<=Inputs!$E$46),AND(D89>=Inputs!$F$45,D89<=Inputs!$F$46),AND(D89>=Inputs!$G$45,D89<=Inputs!$G$46),AND(D89>=Inputs!$H$45,D89<=Inputs!$H$46),IFERROR(AND(D89>=0,D89<=Inputs!$H$46-168),FALSE)) -> FALSE | F89: =OR(AND(D89>=Inputs!$I$55,D89<=Inputs!$I$56),AND(D89>=Inputs!$C$55,D89<=Inputs!$C$56),AND(D89>=Inputs!$D$55,D89<=Inputs!$D$56),AND(D89>=Inputs!$E$55,D89<=Inputs!$E$56),AND(D89>=Inputs!$F$55,D89<=Inputs!$F$56),AND(D89>=Inputs!$G$55,D89<=Inputs!$G$56),AND(D89>=Inputs!$H$55,D89<=Inputs!$H$56),IFERROR(AND(D89>=0,D89<=Inputs!$H$56-168),FALSE)) -> FALSE | G89: =OR(AND(D89>=Inputs!$I$65,D89<=Inputs!$I$66),AND(D89>=Inputs!$C$65,D89<=Inputs!$C$66),AND(D89>=Inputs!$D$65,D89<=Inputs!$D$66),AND(D89>=Inputs!$E$65,D89<=Inputs!$E$66),AND(D89>=Inputs!$F$65,D89<=Inputs!$F$66),AND(D89>=Inputs!$G$65,D89<=Inputs!$G$66),AND(D89>=Inputs!$H$65,D89<=Inputs!$H$66),IFERROR(AND(D89>=0,D89<=Inputs!$H$66-168),FALSE)) -> FALSE | H89: =OR(AND(D89>=Inputs!$I$75,D89<=Inputs!$I$76),AND(D89>=Inputs!$C$75,D89<=Inputs!$C$76),AND(D89>=Inputs!$D$75,D89<=Inputs!$D$76),AND(D89>=Inputs!$E$75,D89<=Inputs!$E$76),AND(D89>=Inputs!$F$75,D89<=Inputs!$F$76),AND(D89>=Inputs!$G$75,D89<=Inputs!$G$76),AND(D89>=Inputs!$H$75,D89<=Inputs!$H$76),IFERROR(AND(D89>=0,D89<=Inputs!$H$76-168),FALSE)) -> FALSE | I89: 0 | J89: 0
B90: Sunday | C90: 04:00:00 | D90: 4 | E90: =OR(AND(D90>=Inputs!$I$45,D90<=Inputs!$I$46),AND(D90>=Inputs!$C$45,D90<=Inputs!$C$46),AND(D90>=Inputs!$D$45,D90<=Inputs!$D$46),AND(D90>=Inputs!$E$45,D90<=Inputs!$E$46),AND(D90>=Inputs!$F$45,D90<=Inputs!$F$46),AND(D90>=Inputs!$G$45,D90<=Inputs!$G$46),AND(D90>=Inputs!$H$45,D90<=Inputs!$H$46),IFERROR(AND(D90>=0,D90<=Inputs!$H$46-168),FALSE)) -> FALSE | F90: =OR(AND(D90>=Inputs!$I$55,D90<=Inputs!$I$56),AND(D90>=Inputs!$C$55,D90<=Inputs!$C$56),AND(D90>=Inputs!$D$55,D90<=Inputs!$D$56),AND(D90>=Inputs!$E$55,D90<=Inputs!$E$56),AND(D90>=Inputs!$F$55,D90<=Inputs!$F$56),AND(D90>=Inputs!$G$55,D90<=Inputs!$G$56),AND(D90>=Inputs!$H$55,D90<=Inputs!$H$56),IFERROR(AND(D90>=0,D90<=Inputs!$H$56-168),FALSE)) -> FALSE | G90: =OR(AND(D90>=Inputs!$I$65,D90<=Inputs!$I$66),AND(D90>=Inputs!$C$65,D90<=Inputs!$C$66),AND(D90>=Inputs!$D$65,D90<=Inputs!$D$66),AND(D90>=Inputs!$E$65,D90<=Inputs!$E$66),AND(D90>=Inputs!$F$65,D90<=Inputs!$F$66),AND(D90>=Inputs!$G$65,D90<=Inputs!$G$66),AND(D90>=Inputs!$H$65,D90<=Inputs!$H$66),IFERROR(AND(D90>=0,D90<=Inputs!$H$66-168),FALSE)) -> FALSE | H90: =OR(AND(D90>=Inputs!$I$75,D90<=Inputs!$I$76),AND(D90>=Inputs!$C$75,D90<=Inputs!$C$76),AND(D90>=Inputs!$D$75,D90<=Inputs!$D$76),AND(D90>=Inputs!$E$75,D90<=Inputs!$E$76),AND(D90>=Inputs!$F$75,D90<=Inputs!$F$76),AND(D90>=Inputs!$G$75,D90<=Inputs!$G$76),AND(D90>=Inputs!$H$75,D90<=Inputs!$H$76),IFERROR(AND(D90>=0,D90<=Inputs!$H$76-168),FALSE)) -> FALSE | I90: 0 | J90: 0
B91: Sunday | C91: 05:00:00 | D91: 5 | E91: =OR(AND(D91>=Inputs!$I$45,D91<=Inputs!$I$46),AND(D91>=Inputs!$C$45,D91<=Inputs!$C$46),AND(D91>=Inputs!$D$45,D91<=Inputs!$D$46),AND(D91>=Inputs!$E$45,D91<=Inputs!$E$46),AND(D91>=Inputs!$F$45,D91<=Inputs!$F$46),AND(D91>=Inputs!$G$45,D91<=Inputs!$G$46),AND(D91>=Inputs!$H$45,D91<=Inputs!$H$46),IFERROR(AND(D91>=0,D91<=Inputs!$H$46-168),FALSE)) -> FALSE | F91: =OR(AND(D91>=Inputs!$I$55,D91<=Inputs!$I$56),AND(D91>=Inputs!$C$55,D91<=Inputs!$C$56),AND(D91>=Inputs!$D$55,D91<=Inputs!$D$56),AND(D91>=Inputs!$E$55,D91<=Inputs!$E$56),AND(D91>=Inputs!$F$55,D91<=Inputs!$F$56),AND(D91>=Inputs!$G$55,D91<=Inputs!$G$56),AND(D91>=Inputs!$H$55,D91<=Inputs!$H$56),IFERROR(AND(D91>=0,D91<=Inputs!$H$56-168),FALSE)) -> FALSE | G91: =OR(AND(D91>=Inputs!$I$65,D91<=Inputs!$I$66),AND(D91>=Inputs!$C$65,D91<=Inputs!$C$66),AND(D91>=Inputs!$D$65,D91<=Inputs!$D$66),AND(D91>=Inputs!$E$65,D91<=Inputs!$E$66),AND(D91>=Inputs!$F$65,D91<=Inputs!$F$66),AND(D91>=Inputs!$G$65,D91<=Inputs!$G$66),AND(D91>=Inputs!$H$65,D91<=Inputs!$H$66),IFERROR(AND(D91>=0,D91<=Inputs!$H$66-168),FALSE)) -> FALSE | H91: =OR(AND(D91>=Inputs!$I$75,D91<=Inputs!$I$76),AND(D91>=Inputs!$C$75,D91<=Inputs!$C$76),AND(D91>=Inputs!$D$75,D91<=Inputs!$D$76),AND(D91>=Inputs!$E$75,D91<=Inputs!$E$76),AND(D91>=Inputs!$F$75,D91<=Inputs!$F$76),AND(D91>=Inputs!$G$75,D91<=Inputs!$G$76),AND(D91>=Inputs!$H$75,D91<=Inputs!$H$76),IFERROR(AND(D91>=0,D91<=Inputs!$H$76-168),FALSE)) -> FALSE | I91: 0 | J91: 0
B92: Sunday | C92: 06:00:00 | D92: 6 | E92: =OR(AND(D92>=Inputs!$I$45,D92<=Inputs!$I$46),AND(D92>=Inputs!$C$45,D92<=Inputs!$C$46),AND(D92>=Inputs!$D$45,D92<=Inputs!$D$46),AND(D92>=Inputs!$E$45,D92<=Inputs!$E$46),AND(D92>=Inputs!$F$45,D92<=Inputs!$F$46),AND(D92>=Inputs!$G$45,D92<=Inputs!$G$46),AND(D92>=Inputs!$H$45,D92<=Inputs!$H$46),IFERROR(AND(D92>=0,D92<=Inputs!$H$46-168),FALSE)) -> FALSE | F92: =OR(AND(D92>=Inputs!$I$55,D92<=Inputs!$I$56),AND(D92>=Inputs!$C$55,D92<=Inputs!$C$56),AND(D92>=Inputs!$D$55,D92<=Inputs!$D$56),AND(D92>=Inputs!$E$55,D92<=Inputs!$E$56),AND(D92>=Inputs!$F$55,D92<=Inputs!$F$56),AND(D92>=Inputs!$G$55,D92<=Inputs!$G$56),AND(D92>=Inputs!$H$55,D92<=Inputs!$H$56),IFERROR(AND(D92>=0,D92<=Inputs!$H$56-168),FALSE)) -> FALSE | G92: =OR(AND(D92>=Inputs!$I$65,D92<=Inputs!$I$66),AND(D92>=Inputs!$C$65,D92<=Inputs!$C$66),AND(D92>=Inputs!$D$65,D92<=Inputs!$D$66),AND(D92>=Inputs!$E$65,D92<=Inputs!$E$66),AND(D92>=Inputs!$F$65,D92<=Inputs!$F$66),AND(D92>=Inputs!$G$65,D92<=Inputs!$G$66),AND(D92>=Inputs!$H$65,D92<=Inputs!$H$66),IFERROR(AND(D92>=0,D92<=Inputs!$H$66-168),FALSE)) -> FALSE | H92: =OR(AND(D92>=Inputs!$I$75,D92<=Inputs!$I$76),AND(D92>=Inputs!$C$75,D92<=Inputs!$C$76),AND(D92>=Inputs!$D$75,D92<=Inputs!$D$76),AND(D92>=Inputs!$E$75,D92<=Inputs!$E$76),AND(D92>=Inputs!$F$75,D92<=Inputs!$F$76),AND(D92>=Inputs!$G$75,D92<=Inputs!$G$76),AND(D92>=Inputs!$H$75,D92<=Inputs!$H$76),IFERROR(AND(D92>=0,D92<=Inputs!$H$76-168),FALSE)) -> FALSE | I92: 0 | J92: 0
B93: Sunday | C93: 07:00:00 | D93: 7 | E93: =OR(AND(D93>=Inputs!$I$45,D93<=Inputs!$I$46),AND(D93>=Inputs!$C$45,D93<=Inputs!$C$46),AND(D93>=Inputs!$D$45,D93<=Inputs!$D$46),AND(D93>=Inputs!$E$45,D93<=Inputs!$E$46),AND(D93>=Inputs!$F$45,D93<=Inputs!$F$46),AND(D93>=Inputs!$G$45,D93<=Inputs!$G$46),AND(D93>=Inputs!$H$45,D93<=Inputs!$H$46),IFERROR(AND(D93>=0,D93<=Inputs!$H$46-168),FALSE)) -> FALSE | F93: =OR(AND(D93>=Inputs!$I$55,D93<=Inputs!$I$56),AND(D93>=Inputs!$C$55,D93<=Inputs!$C$56),AND(D93>=Inputs!$D$55,D93<=Inputs!$D$56),AND(D93>=Inputs!$E$55,D93<=Inputs!$E$56),AND(D93>=Inputs!$F$55,D93<=Inputs!$F$56),AND(D93>=Inputs!$G$55,D93<=Inputs!$G$56),AND(D93>=Inputs!$H$55,D93<=Inputs!$H$56),IFERROR(AND(D93>=0,D93<=Inputs!$H$56-168),FALSE)) -> FALSE | G93: =OR(AND(D93>=Inputs!$I$65,D93<=Inputs!$I$66),AND(D93>=Inputs!$C$65,D93<=Inputs!$C$66),AND(D93>=Inputs!$D$65,D93<=Inputs!$D$66),AND(D93>=Inputs!$E$65,D93<=Inputs!$E$66),AND(D93>=Inputs!$F$65,D93<=Inputs!$F$66),AND(D93>=Inputs!$G$65,D93<=Inputs!$G$66),AND(D93>=Inputs!$H$65,D93<=Inputs!$H$66),IFERROR(AND(D93>=0,D93<=Inputs!$H$66-168),FALSE)) -> FALSE | H93: =OR(AND(D93>=Inputs!$I$75,D93<=Inputs!$I$76),AND(D93>=Inputs!$C$75,D93<=Inputs!$C$76),AND(D93>=Inputs!$D$75,D93<=Inputs!$D$76),AND(D93>=Inputs!$E$75,D93<=Inputs!$E$76),AND(D93>=Inputs!$F$75,D93<=Inputs!$F$76),AND(D93>=Inputs!$G$75,D93<=Inputs!$G$76),AND(D93>=Inputs!$H$75,D93<=Inputs!$H$76),IFERROR(AND(D93>=0,D93<=Inputs!$H$76-168),FALSE)) -> FALSE | I93: 0 | J93: 0
B94: Sunday | C94: 08:00:00 | D94: 8 | E94: =OR(AND(D94>=Inputs!$I$45,D94<=Inputs!$I$46),AND(D94>=Inputs!$C$45,D94<=Inputs!$C$46),AND(D94>=Inputs!$D$45,D94<=Inputs!$D$46),AND(D94>=Inputs!$E$45,D94<=Inputs!$E$46),AND(D94>=Inputs!$F$45,D94<=Inputs!$F$46),AND(D94>=Inputs!$G$45,D94<=Inputs!$G$46),AND(D94>=Inputs!$H$45,D94<=Inputs!$H$46),IFERROR(AND(D94>=0,D94<=Inputs!$H$46-168),FALSE)) -> FALSE | F94: =OR(AND(D94>=Inputs!$I$55,D94<=Inputs!$I$56),AND(D94>=Inputs!$C$55,D94<=Inputs!$C$56),AND(D94>=Inputs!$D$55,D94<=Inputs!$D$56),AND(D94>=Inputs!$E$55,D94<=Inputs!$E$56),AND(D94>=Inputs!$F$55,D94<=Inputs!$F$56),AND(D94>=Inputs!$G$55,D94<=Inputs!$G$56),AND(D94>=Inputs!$H$55,D94<=Inputs!$H$56),IFERROR(AND(D94>=0,D94<=Inputs!$H$56-168),FALSE)) -> FALSE | G94: =OR(AND(D94>=Inputs!$I$65,D94<=Inputs!$I$66),AND(D94>=Inputs!$C$65,D94<=Inputs!$C$66),AND(D94>=Inputs!$D$65,D94<=Inputs!$D$66),AND(D94>=Inputs!$E$65,D94<=Inputs!$E$66),AND(D94>=Inputs!$F$65,D94<=Inputs!$F$66),AND(D94>=Inputs!$G$65,D94<=Inputs!$G$66),AND(D94>=Inputs!$H$65,D94<=Inputs!$H$66),IFERROR(AND(D94>=0,D94<=Inputs!$H$66-168),FALSE)) -> FALSE | H94: =OR(AND(D94>=Inputs!$I$75,D94<=Inputs!$I$76),AND(D94>=Inputs!$C$75,D94<=Inputs!$C$76),AND(D94>=Inputs!$D$75,D94<=Inputs!$D$76),AND(D94>=Inputs!$E$75,D94<=Inputs!$E$76),AND(D94>=Inputs!$F$75,D94<=Inputs!$F$76),AND(D94>=Inputs!$G$75,D94<=Inputs!$G$76),AND(D94>=Inputs!$H$75,D94<=Inputs!$H$76),IFERROR(AND(D94>=0,D94<=Inputs!$H$76-168),FALSE)) -> FALSE | I94: 0 | J94: 0
B95: Sunday | C95: 09:00:00 | D95: 9 | E95: =OR(AND(D95>=Inputs!$I$45,D95<=Inputs!$I$46),AND(D95>=Inputs!$C$45,D95<=Inputs!$C$46),AND(D95>=Inputs!$D$45,D95<=Inputs!$D$46),AND(D95>=Inputs!$E$45,D95<=Inputs!$E$46),AND(D95>=Inputs!$F$45,D95<=Inputs!$F$46),AND(D95>=Inputs!$G$45,D95<=Inputs!$G$46),AND(D95>=Inputs!$H$45,D95<=Inputs!$H$46),IFERROR(AND(D95>=0,D95<=Inputs!$H$46-168),FALSE)) -> FALSE | F95: =OR(AND(D95>=Inputs!$I$55,D95<=Inputs!$I$56),AND(D95>=Inputs!$C$55,D95<=Inputs!$C$56),AND(D95>=Inputs!$D$55,D95<=Inputs!$D$56),AND(D95>=Inputs!$E$55,D95<=Inputs!$E$56),AND(D95>=Inputs!$F$55,D95<=Inputs!$F$56),AND(D95>=Inputs!$G$55,D95<=Inputs!$G$56),AND(D95>=Inputs!$H$55,D95<=Inputs!$H$56),IFERROR(AND(D95>=0,D95<=Inputs!$H$56-168),FALSE)) -> FALSE | G95: =OR(AND(D95>=Inputs!$I$65,D95<=Inputs!$I$66),AND(D95>=Inputs!$C$65,D95<=Inputs!$C$66),AND(D95>=Inputs!$D$65,D95<=Inputs!$D$66),AND(D95>=Inputs!$E$65,D95<=Inputs!$E$66),AND(D95>=Inputs!$F$65,D95<=Inputs!$F$66),AND(D95>=Inputs!$G$65,D95<=Inputs!$G$66),AND(D95>=Inputs!$H$65,D95<=Inputs!$H$66),IFERROR(AND(D95>=0,D95<=Inputs!$H$66-168),FALSE)) -> FALSE | H95: =OR(AND(D95>=Inputs!$I$75,D95<=Inputs!$I$76),AND(D95>=Inputs!$C$75,D95<=Inputs!$C$76),AND(D95>=Inputs!$D$75,D95<=Inputs!$D$76),AND(D95>=Inputs!$E$75,D95<=Inputs!$E$76),AND(D95>=Inputs!$F$75,D95<=Inputs!$F$76),AND(D95>=Inputs!$G$75,D95<=Inputs!$G$76),AND(D95>=Inputs!$H$75,D95<=Inputs!$H$76),IFERROR(AND(D95>=0,D95<=Inputs!$H$76-168),FALSE)) -> FALSE | I95: 0 | J95: 0
B96: Sunday | C96: 10:00:00 | D96: 10 | E96: =OR(AND(D96>=Inputs!$I$45,D96<=Inputs!$I$46),AND(D96>=Inputs!$C$45,D96<=Inputs!$C$46),AND(D96>=Inputs!$D$45,D96<=Inputs!$D$46),AND(D96>=Inputs!$E$45,D96<=Inputs!$E$46),AND(D96>=Inputs!$F$45,D96<=Inputs!$F$46),AND(D96>=Inputs!$G$45,D96<=Inputs!$G$46),AND(D96>=Inputs!$H$45,D96<=Inputs!$H$46),IFERROR(AND(D96>=0,D96<=Inputs!$H$46-168),FALSE)) -> FALSE | F96: =OR(AND(D96>=Inputs!$I$55,D96<=Inputs!$I$56),AND(D96>=Inputs!$C$55,D96<=Inputs!$C$56),AND(D96>=Inputs!$D$55,D96<=Inputs!$D$56),AND(D96>=Inputs!$E$55,D96<=Inputs!$E$56),AND(D96>=Inputs!$F$55,D96<=Inputs!$F$56),AND(D96>=Inputs!$G$55,D96<=Inputs!$G$56),AND(D96>=Inputs!$H$55,D96<=Inputs!$H$56),IFERROR(AND(D96>=0,D96<=Inputs!$H$56-168),FALSE)) -> FALSE | G96: =OR(AND(D96>=Inputs!$I$65,D96<=Inputs!$I$66),AND(D96>=Inputs!$C$65,D96<=Inputs!$C$66),AND(D96>=Inputs!$D$65,D96<=Inputs!$D$66),AND(D96>=Inputs!$E$65,D96<=Inputs!$E$66),AND(D96>=Inputs!$F$65,D96<=Inputs!$F$66),AND(D96>=Inputs!$G$65,D96<=Inputs!$G$66),AND(D96>=Inputs!$H$65,D96<=Inputs!$H$66),IFERROR(AND(D96>=0,D96<=Inputs!$H$66-168),FALSE)) -> FALSE | H96: =OR(AND(D96>=Inputs!$I$75,D96<=Inputs!$I$76),AND(D96>=Inputs!$C$75,D96<=Inputs!$C$76),AND(D96>=Inputs!$D$75,D96<=Inputs!$D$76),AND(D96>=Inputs!$E$75,D96<=Inputs!$E$76),AND(D96>=Inputs!$F$75,D96<=Inputs!$F$76),AND(D96>=Inputs!$G$75,D96<=Inputs!$G$76),AND(D96>=Inputs!$H$75,D96<=Inputs!$H$76),IFERROR(AND(D96>=0,D96<=Inputs!$H$76-168),FALSE)) -> FALSE | I96: 0 | J96: 0
B97: Sunday | C97: 11:00:00 | D97: 11 | E97: =OR(AND(D97>=Inputs!$I$45,D97<=Inputs!$I$46),AND(D97>=Inputs!$C$45,D97<=Inputs!$C$46),AND(D97>=Inputs!$D$45,D97<=Inputs!$D$46),AND(D97>=Inputs!$E$45,D97<=Inputs!$E$46),AND(D97>=Inputs!$F$45,D97<=Inputs!$F$46),AND(D97>=Inputs!$G$45,D97<=Inputs!$G$46),AND(D97>=Inputs!$H$45,D97<=Inputs!$H$46),IFERROR(AND(D97>=0,D97<=Inputs!$H$46-168),FALSE)) -> FALSE | F97: =OR(AND(D97>=Inputs!$I$55,D97<=Inputs!$I$56),AND(D97>=Inputs!$C$55,D97<=Inputs!$C$56),AND(D97>=Inputs!$D$55,D97<=Inputs!$D$56),AND(D97>=Inputs!$E$55,D97<=Inputs!$E$56),AND(D97>=Inputs!$F$55,D97<=Inputs!$F$56),AND(D97>=Inputs!$G$55,D97<=Inputs!$G$56),AND(D97>=Inputs!$H$55,D97<=Inputs!$H$56),IFERROR(AND(D97>=0,D97<=Inputs!$H$56-168),FALSE)) -> FALSE | G97: =OR(AND(D97>=Inputs!$I$65,D97<=Inputs!$I$66),AND(D97>=Inputs!$C$65,D97<=Inputs!$C$66),AND(D97>=Inputs!$D$65,D97<=Inputs!$D$66),AND(D97>=Inputs!$E$65,D97<=Inputs!$E$66),AND(D97>=Inputs!$F$65,D97<=Inputs!$F$66),AND(D97>=Inputs!$G$65,D97<=Inputs!$G$66),AND(D97>=Inputs!$H$65,D97<=Inputs!$H$66),IFERROR(AND(D97>=0,D97<=Inputs!$H$66-168),FALSE)) -> FALSE | H97: =OR(AND(D97>=Inputs!$I$75,D97<=Inputs!$I$76),AND(D97>=Inputs!$C$75,D97<=Inputs!$C$76),AND(D97>=Inputs!$D$75,D97<=Inputs!$D$76),AND(D97>=Inputs!$E$75,D97<=Inputs!$E$76),AND(D97>=Inputs!$F$75,D97<=Inputs!$F$76),AND(D97>=Inputs!$G$75,D97<=Inputs!$G$76),AND(D97>=Inputs!$H$75,D97<=Inputs!$H$76),IFERROR(AND(D97>=0,D97<=Inputs!$H$76-168),FALSE)) -> FALSE | I97: 0 | J97: 0
B98: Sunday | C98: 12:00:00 | D98: 12 | E98: =OR(AND(D98>=Inputs!$I$45,D98<=Inputs!$I$46),AND(D98>=Inputs!$C$45,D98<=Inputs!$C$46),AND(D98>=Inputs!$D$45,D98<=Inputs!$D$46),AND(D98>=Inputs!$E$45,D98<=Inputs!$E$46),AND(D98>=Inputs!$F$45,D98<=Inputs!$F$46),AND(D98>=Inputs!$G$45,D98<=Inputs!$G$46),AND(D98>=Inputs!$H$45,D98<=Inputs!$H$46),IFERROR(AND(D98>=0,D98<=Inputs!$H$46-168),FALSE)) -> FALSE | F98: =OR(AND(D98>=Inputs!$I$55,D98<=Inputs!$I$56),AND(D98>=Inputs!$C$55,D98<=Inputs!$C$56),AND(D98>=Inputs!$D$55,D98<=Inputs!$D$56),AND(D98>=Inputs!$E$55,D98<=Inputs!$E$56),AND(D98>=Inputs!$F$55,D98<=Inputs!$F$56),AND(D98>=Inputs!$G$55,D98<=Inputs!$G$56),AND(D98>=Inputs!$H$55,D98<=Inputs!$H$56),IFERROR(AND(D98>=0,D98<=Inputs!$H$56-168),FALSE)) -> FALSE | G98: =OR(AND(D98>=Inputs!$I$65,D98<=Inputs!$I$66),AND(D98>=Inputs!$C$65,D98<=Inputs!$C$66),AND(D98>=Inputs!$D$65,D98<=Inputs!$D$66),AND(D98>=Inputs!$E$65,D98<=Inputs!$E$66),AND(D98>=Inputs!$F$65,D98<=Inputs!$F$66),AND(D98>=Inputs!$G$65,D98<=Inputs!$G$66),AND(D98>=Inputs!$H$65,D98<=Inputs!$H$66),IFERROR(AND(D98>=0,D98<=Inputs!$H$66-168),FALSE)) -> FALSE | H98: =OR(AND(D98>=Inputs!$I$75,D98<=Inputs!$I$76),AND(D98>=Inputs!$C$75,D98<=Inputs!$C$76),AND(D98>=Inputs!$D$75,D98<=Inputs!$D$76),AND(D98>=Inputs!$E$75,D98<=Inputs!$E$76),AND(D98>=Inputs!$F$75,D98<=Inputs!$F$76),AND(D98>=Inputs!$G$75,D98<=Inputs!$G$76),AND(D98>=Inputs!$H$75,D98<=Inputs!$H$76),IFERROR(AND(D98>=0,D98<=Inputs!$H$76-168),FALSE)) -> FALSE | I98: 0 | J98: 0
B99: Sunday | C99: 13:00:00 | D99: 13 | E99: =OR(AND(D99>=Inputs!$I$45,D99<=Inputs!$I$46),AND(D99>=Inputs!$C$45,D99<=Inputs!$C$46),AND(D99>=Inputs!$D$45,D99<=Inputs!$D$46),AND(D99>=Inputs!$E$45,D99<=Inputs!$E$46),AND(D99>=Inputs!$F$45,D99<=Inputs!$F$46),AND(D99>=Inputs!$G$45,D99<=Inputs!$G$46),AND(D99>=Inputs!$H$45,D99<=Inputs!$H$46),IFERROR(AND(D99>=0,D99<=Inputs!$H$46-168),FALSE)) -> FALSE | F99: =OR(AND(D99>=Inputs!$I$55,D99<=Inputs!$I$56),AND(D99>=Inputs!$C$55,D99<=Inputs!$C$56),AND(D99>=Inputs!$D$55,D99<=Inputs!$D$56),AND(D99>=Inputs!$E$55,D99<=Inputs!$E$56),AND(D99>=Inputs!$F$55,D99<=Inputs!$F$56),AND(D99>=Inputs!$G$55,D99<=Inputs!$G$56),AND(D99>=Inputs!$H$55,D99<=Inputs!$H$56),IFERROR(AND(D99>=0,D99<=Inputs!$H$56-168),FALSE)) -> FALSE | G99: =OR(AND(D99>=Inputs!$I$65,D99<=Inputs!$I$66),AND(D99>=Inputs!$C$65,D99<=Inputs!$C$66),AND(D99>=Inputs!$D$65,D99<=Inputs!$D$66),AND(D99>=Inputs!$E$65,D99<=Inputs!$E$66),AND(D99>=Inputs!$F$65,D99<=Inputs!$F$66),AND(D99>=Inputs!$G$65,D99<=Inputs!$G$66),AND(D99>=Inputs!$H$65,D99<=Inputs!$H$66),IFERROR(AND(D99>=0,D99<=Inputs!$H$66-168),FALSE)) -> FALSE | H99: =OR(AND(D99>=Inputs!$I$75,D99<=Inputs!$I$76),AND(D99>=Inputs!$C$75,D99<=Inputs!$C$76),AND(D99>=Inputs!$D$75,D99<=Inputs!$D$76),AND(D99>=Inputs!$E$75,D99<=Inputs!$E$76),AND(D99>=Inputs!$F$75,D99<=Inputs!$F$76),AND(D99>=Inputs!$G$75,D99<=Inputs!$G$76),AND(D99>=Inputs!$H$75,D99<=Inputs!$H$76),IFERROR(AND(D99>=0,D99<=Inputs!$H$76-168),FALSE)) -> FALSE | I99: 0 | J99: 0
B100: Sunday | C100: 14:00:00 | D100: 14 | E100: =OR(AND(D100>=Inputs!$I$45,D100<=Inputs!$I$46),AND(D100>=Inputs!$C$45,D100<=Inputs!$C$46),AND(D100>=Inputs!$D$45,D100<=Inputs!$D$46),AND(D100>=Inputs!$E$45,D100<=Inputs!$E$46),AND(D100>=Inputs!$F$45,D100<=Inputs!$F$46),AND(D100>=Inputs!$G$45,D100<=Inputs!$G$46),AND(D100>=Inputs!$H$45,D100<=Inputs!$H$46),IFERROR(AND(D100>=0,D100<=Inputs!$H$46-168),FALSE)) -> FALSE | F100: =OR(AND(D100>=Inputs!$I$55,D100<=Inputs!$I$56),AND(D100>=Inputs!$C$55,D100<=Inputs!$C$56),AND(D100>=Inputs!$D$55,D100<=Inputs!$D$56),AND(D100>=Inputs!$E$55,D100<=Inputs!$E$56),AND(D100>=Inputs!$F$55,D100<=Inputs!$F$56),AND(D100>=Inputs!$G$55,D100<=Inputs!$G$56),AND(D100>=Inputs!$H$55,D100<=Inputs!$H$56),IFERROR(AND(D100>=0,D100<=Inputs!$H$56-168),FALSE)) -> FALSE | G100: =OR(AND(D100>=Inputs!$I$65,D100<=Inputs!$I$66),AND(D100>=Inputs!$C$65,D100<=Inputs!$C$66),AND(D100>=Inputs!$D$65,D100<=Inputs!$D$66),AND(D100>=Inputs!$E$65,D100<=Inputs!$E$66),AND(D100>=Inputs!$F$65,D100<=Inputs!$F$66),AND(D100>=Inputs!$G$65,D100<=Inputs!$G$66),AND(D100>=Inputs!$H$65,D100<=Inputs!$H$66),IFERROR(AND(D100>=0,D100<=Inputs!$H$66-168),FALSE)) -> FALSE | H100: =OR(AND(D100>=Inputs!$I$75,D100<=Inputs!$I$76),AND(D100>=Inputs!$C$75,D100<=Inputs!$C$76),AND(D100>=Inputs!$D$75,D100<=Inputs!$D$76),AND(D100>=Inputs!$E$75,D100<=Inputs!$E$76),AND(D100>=Inputs!$F$75,D100<=Inputs!$F$76),AND(D100>=Inputs!$G$75,D100<=Inputs!$G$76),AND(D100>=Inputs!$H$75,D100<=Inputs!$H$76),IFERROR(AND(D100>=0,D100<=Inputs!$H$76-168),FALSE)) -> FALSE | I100: 0 | J100: 0
B101: Sunday | C101: 15:00:00 | D101: 15 | E101: =OR(AND(D101>=Inputs!$I$45,D101<=Inputs!$I$46),AND(D101>=Inputs!$C$45,D101<=Inputs!$C$46),AND(D101>=Inputs!$D$45,D101<=Inputs!$D$46),AND(D101>=Inputs!$E$45,D101<=Inputs!$E$46),AND(D101>=Inputs!$F$45,D101<=Inputs!$F$46),AND(D101>=Inputs!$G$45,D101<=Inputs!$G$46),AND(D101>=Inputs!$H$45,D101<=Inputs!$H$46),IFERROR(AND(D101>=0,D101<=Inputs!$H$46-168),FALSE)) -> FALSE | F101: =OR(AND(D101>=Inputs!$I$55,D101<=Inputs!$I$56),AND(D101>=Inputs!$C$55,D101<=Inputs!$C$56),AND(D101>=Inputs!$D$55,D101<=Inputs!$D$56),AND(D101>=Inputs!$E$55,D101<=Inputs!$E$56),AND(D101>=Inputs!$F$55,D101<=Inputs!$F$56),AND(D101>=Inputs!$G$55,D101<=Inputs!$G$56),AND(D101>=Inputs!$H$55,D101<=Inputs!$H$56),IFERROR(AND(D101>=0,D101<=Inputs!$H$56-168),FALSE)) -> FALSE | G101: =OR(AND(D101>=Inputs!$I$65,D101<=Inputs!$I$66),AND(D101>=Inputs!$C$65,D101<=Inputs!$C$66),AND(D101>=Inputs!$D$65,D101<=Inputs!$D$66),AND(D101>=Inputs!$E$65,D101<=Inputs!$E$66),AND(D101>=Inputs!$F$65,D101<=Inputs!$F$66),AND(D101>=Inputs!$G$65,D101<=Inputs!$G$66),AND(D101>=Inputs!$H$65,D101<=Inputs!$H$66),IFERROR(AND(D101>=0,D101<=Inputs!$H$66-168),FALSE)) -> FALSE | H101: =OR(AND(D101>=Inputs!$I$75,D101<=Inputs!$I$76),AND(D101>=Inputs!$C$75,D101<=Inputs!$C$76),AND(D101>=Inputs!$D$75,D101<=Inputs!$D$76),AND(D101>=Inputs!$E$75,D101<=Inputs!$E$76),AND(D101>=Inputs!$F$75,D101<=Inputs!$F$76),AND(D101>=Inputs!$G$75,D101<=Inputs!$G$76),AND(D101>=Inputs!$H$75,D101<=Inputs!$H$76),IFERROR(AND(D101>=0,D101<=Inputs!$H$76-168),FALSE)) -> FALSE | I101: 0 | J101: 0
B102: Sunday | C102: 16:00:00 | D102: 16 | E102: =OR(AND(D102>=Inputs!$I$45,D102<=Inputs!$I$46),AND(D102>=Inputs!$C$45,D102<=Inputs!$C$46),AND(D102>=Inputs!$D$45,D102<=Inputs!$D$46),AND(D102>=Inputs!$E$45,D102<=Inputs!$E$46),AND(D102>=Inputs!$F$45,D102<=Inputs!$F$46),AND(D102>=Inputs!$G$45,D102<=Inputs!$G$46),AND(D102>=Inputs!$H$45,D102<=Inputs!$H$46),IFERROR(AND(D102>=0,D102<=Inputs!$H$46-168),FALSE)) -> FALSE | F102: =OR(AND(D102>=Inputs!$I$55,D102<=Inputs!$I$56),AND(D102>=Inputs!$C$55,D102<=Inputs!$C$56),AND(D102>=Inputs!$D$55,D102<=Inputs!$D$56),AND(D102>=Inputs!$E$55,D102<=Inputs!$E$56),AND(D102>=Inputs!$F$55,D102<=Inputs!$F$56),AND(D102>=Inputs!$G$55,D102<=Inputs!$G$56),AND(D102>=Inputs!$H$55,D102<=Inputs!$H$56),IFERROR(AND(D102>=0,D102<=Inputs!$H$56-168),FALSE)) -> FALSE | G102: =OR(AND(D102>=Inputs!$I$65,D102<=Inputs!$I$66),AND(D102>=Inputs!$C$65,D102<=Inputs!$C$66),AND(D102>=Inputs!$D$65,D102<=Inputs!$D$66),AND(D102>=Inputs!$E$65,D102<=Inputs!$E$66),AND(D102>=Inputs!$F$65,D102<=Inputs!$F$66),AND(D102>=Inputs!$G$65,D102<=Inputs!$G$66),AND(D102>=Inputs!$H$65,D102<=Inputs!$H$66),IFERROR(AND(D102>=0,D102<=Inputs!$H$66-168),FALSE)) -> FALSE | H102: =OR(AND(D102>=Inputs!$I$75,D102<=Inputs!$I$76),AND(D102>=Inputs!$C$75,D102<=Inputs!$C$76),AND(D102>=Inputs!$D$75,D102<=Inputs!$D$76),AND(D102>=Inputs!$E$75,D102<=Inputs!$E$76),AND(D102>=Inputs!$F$75,D102<=Inputs!$F$76),AND(D102>=Inputs!$G$75,D102<=Inputs!$G$76),AND(D102>=Inputs!$H$75,D102<=Inputs!$H$76),IFERROR(AND(D102>=0,D102<=Inputs!$H$76-168),FALSE)) -> FALSE | I102: 0 | J102: 0
B103: Sunday | C103: 17:00:00 | D103: 17 | E103: =OR(AND(D103>=Inputs!$I$45,D103<=Inputs!$I$46),AND(D103>=Inputs!$C$45,D103<=Inputs!$C$46),AND(D103>=Inputs!$D$45,D103<=Inputs!$D$46),AND(D103>=Inputs!$E$45,D103<=Inputs!$E$46),AND(D103>=Inputs!$F$45,D103<=Inputs!$F$46),AND(D103>=Inputs!$G$45,D103<=Inputs!$G$46),AND(D103>=Inputs!$H$45,D103<=Inputs!$H$46),IFERROR(AND(D103>=0,D103<=Inputs!$H$46-168),FALSE)) -> FALSE | F103: =OR(AND(D103>=Inputs!$I$55,D103<=Inputs!$I$56),AND(D103>=Inputs!$C$55,D103<=Inputs!$C$56),AND(D103>=Inputs!$D$55,D103<=Inputs!$D$56),AND(D103>=Inputs!$E$55,D103<=Inputs!$E$56),AND(D103>=Inputs!$F$55,D103<=Inputs!$F$56),AND(D103>=Inputs!$G$55,D103<=Inputs!$G$56),AND(D103>=Inputs!$H$55,D103<=Inputs!$H$56),IFERROR(AND(D103>=0,D103<=Inputs!$H$56-168),FALSE)) -> FALSE | G103: =OR(AND(D103>=Inputs!$I$65,D103<=Inputs!$I$66),AND(D103>=Inputs!$C$65,D103<=Inputs!$C$66),AND(D103>=Inputs!$D$65,D103<=Inputs!$D$66),AND(D103>=Inputs!$E$65,D103<=Inputs!$E$66),AND(D103>=Inputs!$F$65,D103<=Inputs!$F$66),AND(D103>=Inputs!$G$65,D103<=Inputs!$G$66),AND(D103>=Inputs!$H$65,D103<=Inputs!$H$66),IFERROR(AND(D103>=0,D103<=Inputs!$H$66-168),FALSE)) -> FALSE | H103: =OR(AND(D103>=Inputs!$I$75,D103<=Inputs!$I$76),AND(D103>=Inputs!$C$75,D103<=Inputs!$C$76),AND(D103>=Inputs!$D$75,D103<=Inputs!$D$76),AND(D103>=Inputs!$E$75,D103<=Inputs!$E$76),AND(D103>=Inputs!$F$75,D103<=Inputs!$F$76),AND(D103>=Inputs!$G$75,D103<=Inputs!$G$76),AND(D103>=Inputs!$H$75,D103<=Inputs!$H$76),IFERROR(AND(D103>=0,D103<=Inputs!$H$76-168),FALSE)) -> FALSE | I103: 0 | J103: 0
B104: Sunday | C104: 18:00:00 | D104: 18 | E104: =OR(AND(D104>=Inputs!$I$45,D104<=Inputs!$I$46),AND(D104>=Inputs!$C$45,D104<=Inputs!$C$46),AND(D104>=Inputs!$D$45,D104<=Inputs!$D$46),AND(D104>=Inputs!$E$45,D104<=Inputs!$E$46),AND(D104>=Inputs!$F$45,D104<=Inputs!$F$46),AND(D104>=Inputs!$G$45,D104<=Inputs!$G$46),AND(D104>=Inputs!$H$45,D104<=Inputs!$H$46),IFERROR(AND(D104>=0,D104<=Inputs!$H$46-168),FALSE)) -> FALSE | F104: =OR(AND(D104>=Inputs!$I$55,D104<=Inputs!$I$56),AND(D104>=Inputs!$C$55,D104<=Inputs!$C$56),AND(D104>=Inputs!$D$55,D104<=Inputs!$D$56),AND(D104>=Inputs!$E$55,D104<=Inputs!$E$56),AND(D104>=Inputs!$F$55,D104<=Inputs!$F$56),AND(D104>=Inputs!$G$55,D104<=Inputs!$G$56),AND(D104>=Inputs!$H$55,D104<=Inputs!$H$56),IFERROR(AND(D104>=0,D104<=Inputs!$H$56-168),FALSE)) -> FALSE | G104: =OR(AND(D104>=Inputs!$I$65,D104<=Inputs!$I$66),AND(D104>=Inputs!$C$65,D104<=Inputs!$C$66),AND(D104>=Inputs!$D$65,D104<=Inputs!$D$66),AND(D104>=Inputs!$E$65,D104<=Inputs!$E$66),AND(D104>=Inputs!$F$65,D104<=Inputs!$F$66),AND(D104>=Inputs!$G$65,D104<=Inputs!$G$66),AND(D104>=Inputs!$H$65,D104<=Inputs!$H$66),IFERROR(AND(D104>=0,D104<=Inputs!$H$66-168),FALSE)) -> FALSE | H104: =OR(AND(D104>=Inputs!$I$75,D104<=Inputs!$I$76),AND(D104>=Inputs!$C$75,D104<=Inputs!$C$76),AND(D104>=Inputs!$D$75,D104<=Inputs!$D$76),AND(D104>=Inputs!$E$75,D104<=Inputs!$E$76),AND(D104>=Inputs!$F$75,D104<=Inputs!$F$76),AND(D104>=Inputs!$G$75,D104<=Inputs!$G$76),AND(D104>=Inputs!$H$75,D104<=Inputs!$H$76),IFERROR(AND(D104>=0,D104<=Inputs!$H$76-168),FALSE)) -> FALSE | I104: 0 | J104: 0
B105: Sunday | C105: 19:00:00 | D105: 19 | E105: =OR(AND(D105>=Inputs!$I$45,D105<=Inputs!$I$46),AND(D105>=Inputs!$C$45,D105<=Inputs!$C$46),AND(D105>=Inputs!$D$45,D105<=Inputs!$D$46),AND(D105>=Inputs!$E$45,D105<=Inputs!$E$46),AND(D105>=Inputs!$F$45,D105<=Inputs!$F$46),AND(D105>=Inputs!$G$45,D105<=Inputs!$G$46),AND(D105>=Inputs!$H$45,D105<=Inputs!$H$46),IFERROR(AND(D105>=0,D105<=Inputs!$H$46-168),FALSE)) -> FALSE | F105: =OR(AND(D105>=Inputs!$I$55,D105<=Inputs!$I$56),AND(D105>=Inputs!$C$55,D105<=Inputs!$C$56),AND(D105>=Inputs!$D$55,D105<=Inputs!$D$56),AND(D105>=Inputs!$E$55,D105<=Inputs!$E$56),AND(D105>=Inputs!$F$55,D105<=Inputs!$F$56),AND(D105>=Inputs!$G$55,D105<=Inputs!$G$56),AND(D105>=Inputs!$H$55,D105<=Inputs!$H$56),IFERROR(AND(D105>=0,D105<=Inputs!$H$56-168),FALSE)) -> FALSE | G105: =OR(AND(D105>=Inputs!$I$65,D105<=Inputs!$I$66),AND(D105>=Inputs!$C$65,D105<=Inputs!$C$66),AND(D105>=Inputs!$D$65,D105<=Inputs!$D$66),AND(D105>=Inputs!$E$65,D105<=Inputs!$E$66),AND(D105>=Inputs!$F$65,D105<=Inputs!$F$66),AND(D105>=Inputs!$G$65,D105<=Inputs!$G$66),AND(D105>=Inputs!$H$65,D105<=Inputs!$H$66),IFERROR(AND(D105>=0,D105<=Inputs!$H$66-168),FALSE)) -> FALSE | H105: =OR(AND(D105>=Inputs!$I$75,D105<=Inputs!$I$76),AND(D105>=Inputs!$C$75,D105<=Inputs!$C$76),AND(D105>=Inputs!$D$75,D105<=Inputs!$D$76),AND(D105>=Inputs!$E$75,D105<=Inputs!$E$76),AND(D105>=Inputs!$F$75,D105<=Inputs!$F$76),AND(D105>=Inputs!$G$75,D105<=Inputs!$G$76),AND(D105>=Inputs!$H$75,D105<=Inputs!$H$76),IFERROR(AND(D105>=0,D105<=Inputs!$H$76-168),FALSE)) -> FALSE | I105: 0 | J105: 0
B106: Sunday | C106: 20:00:00 | D106: 20 | E106: =OR(AND(D106>=Inputs!$I$45,D106<=Inputs!$I$46),AND(D106>=Inputs!$C$45,D106<=Inputs!$C$46),AND(D106>=Inputs!$D$45,D106<=Inputs!$D$46),AND(D106>=Inputs!$E$45,D106<=Inputs!$E$46),AND(D106>=Inputs!$F$45,D106<=Inputs!$F$46),AND(D106>=Inputs!$G$45,D106<=Inputs!$G$46),AND(D106>=Inputs!$H$45,D106<=Inputs!$H$46),IFERROR(AND(D106>=0,D106<=Inputs!$H$46-168),FALSE)) -> FALSE | F106: =OR(AND(D106>=Inputs!$I$55,D106<=Inputs!$I$56),AND(D106>=Inputs!$C$55,D106<=Inputs!$C$56),AND(D106>=Inputs!$D$55,D106<=Inputs!$D$56),AND(D106>=Inputs!$E$55,D106<=Inputs!$E$56),AND(D106>=Inputs!$F$55,D106<=Inputs!$F$56),AND(D106>=Inputs!$G$55,D106<=Inputs!$G$56),AND(D106>=Inputs!$H$55,D106<=Inputs!$H$56),IFERROR(AND(D106>=0,D106<=Inputs!$H$56-168),FALSE)) -> FALSE | G106: =OR(AND(D106>=Inputs!$I$65,D106<=Inputs!$I$66),AND(D106>=Inputs!$C$65,D106<=Inputs!$C$66),AND(D106>=Inputs!$D$65,D106<=Inputs!$D$66),AND(D106>=Inputs!$E$65,D106<=Inputs!$E$66),AND(D106>=Inputs!$F$65,D106<=Inputs!$F$66),AND(D106>=Inputs!$G$65,D106<=Inputs!$G$66),AND(D106>=Inputs!$H$65,D106<=Inputs!$H$66),IFERROR(AND(D106>=0,D106<=Inputs!$H$66-168),FALSE)) -> FALSE | H106: =OR(AND(D106>=Inputs!$I$75,D106<=Inputs!$I$76),AND(D106>=Inputs!$C$75,D106<=Inputs!$C$76),AND(D106>=Inputs!$D$75,D106<=Inputs!$D$76),AND(D106>=Inputs!$E$75,D106<=Inputs!$E$76),AND(D106>=Inputs!$F$75,D106<=Inputs!$F$76),AND(D106>=Inputs!$G$75,D106<=Inputs!$G$76),AND(D106>=Inputs!$H$75,D106<=Inputs!$H$76),IFERROR(AND(D106>=0,D106<=Inputs!$H$76-168),FALSE)) -> FALSE | I106: 0 | J106: 0
B107: Sunday | C107: 21:00:00 | D107: 21 | E107: =OR(AND(D107>=Inputs!$I$45,D107<=Inputs!$I$46),AND(D107>=Inputs!$C$45,D107<=Inputs!$C$46),AND(D107>=Inputs!$D$45,D107<=Inputs!$D$46),AND(D107>=Inputs!$E$45,D107<=Inputs!$E$46),AND(D107>=Inputs!$F$45,D107<=Inputs!$F$46),AND(D107>=Inputs!$G$45,D107<=Inputs!$G$46),AND(D107>=Inputs!$H$45,D107<=Inputs!$H$46),IFERROR(AND(D107>=0,D107<=Inputs!$H$46-168),FALSE)) -> FALSE | F107: =OR(AND(D107>=Inputs!$I$55,D107<=Inputs!$I$56),AND(D107>=Inputs!$C$55,D107<=Inputs!$C$56),AND(D107>=Inputs!$D$55,D107<=Inputs!$D$56),AND(D107>=Inputs!$E$55,D107<=Inputs!$E$56),AND(D107>=Inputs!$F$55,D107<=Inputs!$F$56),AND(D107>=Inputs!$G$55,D107<=Inputs!$G$56),AND(D107>=Inputs!$H$55,D107<=Inputs!$H$56),IFERROR(AND(D107>=0,D107<=Inputs!$H$56-168),FALSE)) -> FALSE | G107: =OR(AND(D107>=Inputs!$I$65,D107<=Inputs!$I$66),AND(D107>=Inputs!$C$65,D107<=Inputs!$C$66),AND(D107>=Inputs!$D$65,D107<=Inputs!$D$66),AND(D107>=Inputs!$E$65,D107<=Inputs!$E$66),AND(D107>=Inputs!$F$65,D107<=Inputs!$F$66),AND(D107>=Inputs!$G$65,D107<=Inputs!$G$66),AND(D107>=Inputs!$H$65,D107<=Inputs!$H$66),IFERROR(AND(D107>=0,D107<=Inputs!$H$66-168),FALSE)) -> FALSE | H107: =OR(AND(D107>=Inputs!$I$75,D107<=Inputs!$I$76),AND(D107>=Inputs!$C$75,D107<=Inputs!$C$76),AND(D107>=Inputs!$D$75,D107<=Inputs!$D$76),AND(D107>=Inputs!$E$75,D107<=Inputs!$E$76),AND(D107>=Inputs!$F$75,D107<=Inputs!$F$76),AND(D107>=Inputs!$G$75,D107<=Inputs!$G$76),AND(D107>=Inputs!$H$75,D107<=Inputs!$H$76),IFERROR(AND(D107>=0,D107<=Inputs!$H$76-168),FALSE)) -> FALSE | I107: 0 | J107: 0
B108: Sunday | C108: 22:00:00 | D108: 22 | E108: =OR(AND(D108>=Inputs!$I$45,D108<=Inputs!$I$46),AND(D108>=Inputs!$C$45,D108<=Inputs!$C$46),AND(D108>=Inputs!$D$45,D108<=Inputs!$D$46),AND(D108>=Inputs!$E$45,D108<=Inputs!$E$46),AND(D108>=Inputs!$F$45,D108<=Inputs!$F$46),AND(D108>=Inputs!$G$45,D108<=Inputs!$G$46),AND(D108>=Inputs!$H$45,D108<=Inputs!$H$46),IFERROR(AND(D108>=0,D108<=Inputs!$H$46-168),FALSE)) -> FALSE | F108: =OR(AND(D108>=Inputs!$I$55,D108<=Inputs!$I$56),AND(D108>=Inputs!$C$55,D108<=Inputs!$C$56),AND(D108>=Inputs!$D$55,D108<=Inputs!$D$56),AND(D108>=Inputs!$E$55,D108<=Inputs!$E$56),AND(D108>=Inputs!$F$55,D108<=Inputs!$F$56),AND(D108>=Inputs!$G$55,D108<=Inputs!$G$56),AND(D108>=Inputs!$H$55,D108<=Inputs!$H$56),IFERROR(AND(D108>=0,D108<=Inputs!$H$56-168),FALSE)) -> FALSE | G108: =OR(AND(D108>=Inputs!$I$65,D108<=Inputs!$I$66),AND(D108>=Inputs!$C$65,D108<=Inputs!$C$66),AND(D108>=Inputs!$D$65,D108<=Inputs!$D$66),AND(D108>=Inputs!$E$65,D108<=Inputs!$E$66),AND(D108>=Inputs!$F$65,D108<=Inputs!$F$66),AND(D108>=Inputs!$G$65,D108<=Inputs!$G$66),AND(D108>=Inputs!$H$65,D108<=Inputs!$H$66),IFERROR(AND(D108>=0,D108<=Inputs!$H$66-168),FALSE)) -> FALSE | H108: =OR(AND(D108>=Inputs!$I$75,D108<=Inputs!$I$76),AND(D108>=Inputs!$C$75,D108<=Inputs!$C$76),AND(D108>=Inputs!$D$75,D108<=Inputs!$D$76),AND(D108>=Inputs!$E$75,D108<=Inputs!$E$76),AND(D108>=Inputs!$F$75,D108<=Inputs!$F$76),AND(D108>=Inputs!$G$75,D108<=Inputs!$G$76),AND(D108>=Inputs!$H$75,D108<=Inputs!$H$76),IFERROR(AND(D108>=0,D108<=Inputs!$H$76-168),FALSE)) -> FALSE | I108: 0 | J108: 0
B109: Sunday | C109: 23:00:00 | D109: 23 | E109: =OR(AND(D109>=Inputs!$I$45,D109<=Inputs!$I$46),AND(D109>=Inputs!$C$45,D109<=Inputs!$C$46),AND(D109>=Inputs!$D$45,D109<=Inputs!$D$46),AND(D109>=Inputs!$E$45,D109<=Inputs!$E$46),AND(D109>=Inputs!$F$45,D109<=Inputs!$F$46),AND(D109>=Inputs!$G$45,D109<=Inputs!$G$46),AND(D109>=Inputs!$H$45,D109<=Inputs!$H$46),IFERROR(AND(D109>=0,D109<=Inputs!$H$46-168),FALSE)) -> FALSE | F109: =OR(AND(D109>=Inputs!$I$55,D109<=Inputs!$I$56),AND(D109>=Inputs!$C$55,D109<=Inputs!$C$56),AND(D109>=Inputs!$D$55,D109<=Inputs!$D$56),AND(D109>=Inputs!$E$55,D109<=Inputs!$E$56),AND(D109>=Inputs!$F$55,D109<=Inputs!$F$56),AND(D109>=Inputs!$G$55,D109<=Inputs!$G$56),AND(D109>=Inputs!$H$55,D109<=Inputs!$H$56),IFERROR(AND(D109>=0,D109<=Inputs!$H$56-168),FALSE)) -> FALSE | G109: =OR(AND(D109>=Inputs!$I$65,D109<=Inputs!$I$66),AND(D109>=Inputs!$C$65,D109<=Inputs!$C$66),AND(D109>=Inputs!$D$65,D109<=Inputs!$D$66),AND(D109>=Inputs!$E$65,D109<=Inputs!$E$66),AND(D109>=Inputs!$F$65,D109<=Inputs!$F$66),AND(D109>=Inputs!$G$65,D109<=Inputs!$G$66),AND(D109>=Inputs!$H$65,D109<=Inputs!$H$66),IFERROR(AND(D109>=0,D109<=Inputs!$H$66-168),FALSE)) -> FALSE | H109: =OR(AND(D109>=Inputs!$I$75,D109<=Inputs!$I$76),AND(D109>=Inputs!$C$75,D109<=Inputs!$C$76),AND(D109>=Inputs!$D$75,D109<=Inputs!$D$76),AND(D109>=Inputs!$E$75,D109<=Inputs!$E$76),AND(D109>=Inputs!$F$75,D109<=Inputs!$F$76),AND(D109>=Inputs!$G$75,D109<=Inputs!$G$76),AND(D109>=Inputs!$H$75,D109<=Inputs!$H$76),IFERROR(AND(D109>=0,D109<=Inputs!$H$76-168),FALSE)) -> FALSE | I109: 0 | J109: 0
B110: Monday | C110: 00:00:00 | D110: 24 | E110: =OR(AND(D110>=Inputs!$I$45,D110<=Inputs!$I$46),AND(D110>=Inputs!$C$45,D110<=Inputs!$C$46),AND(D110>=Inputs!$D$45,D110<=Inputs!$D$46),AND(D110>=Inputs!$E$45,D110<=Inputs!$E$46),AND(D110>=Inputs!$F$45,D110<=Inputs!$F$46),AND(D110>=Inputs!$G$45,D110<=Inputs!$G$46),AND(D110>=Inputs!$H$45,D110<=Inputs!$H$46),IFERROR(AND(D110>=0,D110<=Inputs!$H$46-168),FALSE)) -> FALSE | F110: =OR(AND(D110>=Inputs!$I$55,D110<=Inputs!$I$56),AND(D110>=Inputs!$C$55,D110<=Inputs!$C$56),AND(D110>=Inputs!$D$55,D110<=Inputs!$D$56),AND(D110>=Inputs!$E$55,D110<=Inputs!$E$56),AND(D110>=Inputs!$F$55,D110<=Inputs!$F$56),AND(D110>=Inputs!$G$55,D110<=Inputs!$G$56),AND(D110>=Inputs!$H$55,D110<=Inputs!$H$56),IFERROR(AND(D110>=0,D110<=Inputs!$H$56-168),FALSE)) -> FALSE | G110: =OR(AND(D110>=Inputs!$I$65,D110<=Inputs!$I$66),AND(D110>=Inputs!$C$65,D110<=Inputs!$C$66),AND(D110>=Inputs!$D$65,D110<=Inputs!$D$66),AND(D110>=Inputs!$E$65,D110<=Inputs!$E$66),AND(D110>=Inputs!$F$65,D110<=Inputs!$F$66),AND(D110>=Inputs!$G$65,D110<=Inputs!$G$66),AND(D110>=Inputs!$H$65,D110<=Inputs!$H$66),IFERROR(AND(D110>=0,D110<=Inputs!$H$66-168),FALSE)) -> FALSE | H110: =OR(AND(D110>=Inputs!$I$75,D110<=Inputs!$I$76),AND(D110>=Inputs!$C$75,D110<=Inputs!$C$76),AND(D110>=Inputs!$D$75,D110<=Inputs!$D$76),AND(D110>=Inputs!$E$75,D110<=Inputs!$E$76),AND(D110>=Inputs!$F$75,D110<=Inputs!$F$76),AND(D110>=Inputs!$G$75,D110<=Inputs!$G$76),AND(D110>=Inputs!$H$75,D110<=Inputs!$H$76),IFERROR(AND(D110>=0,D110<=Inputs!$H$76-168),FALSE)) -> FALSE | I110: 0 | J110: 0
B111: Monday | C111: 01:00:00 | D111: 25 | E111: =OR(AND(D111>=Inputs!$I$45,D111<=Inputs!$I$46),AND(D111>=Inputs!$C$45,D111<=Inputs!$C$46),AND(D111>=Inputs!$D$45,D111<=Inputs!$D$46),AND(D111>=Inputs!$E$45,D111<=Inputs!$E$46),AND(D111>=Inputs!$F$45,D111<=Inputs!$F$46),AND(D111>=Inputs!$G$45,D111<=Inputs!$G$46),AND(D111>=Inputs!$H$45,D111<=Inputs!$H$46),IFERROR(AND(D111>=0,D111<=Inputs!$H$46-168),FALSE)) -> FALSE | F111: =OR(AND(D111>=Inputs!$I$55,D111<=Inputs!$I$56),AND(D111>=Inputs!$C$55,D111<=Inputs!$C$56),AND(D111>=Inputs!$D$55,D111<=Inputs!$D$56),AND(D111>=Inputs!$E$55,D111<=Inputs!$E$56),AND(D111>=Inputs!$F$55,D111<=Inputs!$F$56),AND(D111>=Inputs!$G$55,D111<=Inputs!$G$56),AND(D111>=Inputs!$H$55,D111<=Inputs!$H$56),IFERROR(AND(D111>=0,D111<=Inputs!$H$56-168),FALSE)) -> FALSE | G111: =OR(AND(D111>=Inputs!$I$65,D111<=Inputs!$I$66),AND(D111>=Inputs!$C$65,D111<=Inputs!$C$66),AND(D111>=Inputs!$D$65,D111<=Inputs!$D$66),AND(D111>=Inputs!$E$65,D111<=Inputs!$E$66),AND(D111>=Inputs!$F$65,D111<=Inputs!$F$66),AND(D111>=Inputs!$G$65,D111<=Inputs!$G$66),AND(D111>=Inputs!$H$65,D111<=Inputs!$H$66),IFERROR(AND(D111>=0,D111<=Inputs!$H$66-168),FALSE)) -> FALSE | H111: =OR(AND(D111>=Inputs!$I$75,D111<=Inputs!$I$76),AND(D111>=Inputs!$C$75,D111<=Inputs!$C$76),AND(D111>=Inputs!$D$75,D111<=Inputs!$D$76),AND(D111>=Inputs!$E$75,D111<=Inputs!$E$76),AND(D111>=Inputs!$F$75,D111<=Inputs!$F$76),AND(D111>=Inputs!$G$75,D111<=Inputs!$G$76),AND(D111>=Inputs!$H$75,D111<=Inputs!$H$76),IFERROR(AND(D111>=0,D111<=Inputs!$H$76-168),FALSE)) -> FALSE | I111: 0 | J111: 0
B112: Monday | C112: 02:00:00 | D112: 26 | E112: =OR(AND(D112>=Inputs!$I$45,D112<=Inputs!$I$46),AND(D112>=Inputs!$C$45,D112<=Inputs!$C$46),AND(D112>=Inputs!$D$45,D112<=Inputs!$D$46),AND(D112>=Inputs!$E$45,D112<=Inputs!$E$46),AND(D112>=Inputs!$F$45,D112<=Inputs!$F$46),AND(D112>=Inputs!$G$45,D112<=Inputs!$G$46),AND(D112>=Inputs!$H$45,D112<=Inputs!$H$46),IFERROR(AND(D112>=0,D112<=Inputs!$H$46-168),FALSE)) -> FALSE | F112: =OR(AND(D112>=Inputs!$I$55,D112<=Inputs!$I$56),AND(D112>=Inputs!$C$55,D112<=Inputs!$C$56),AND(D112>=Inputs!$D$55,D112<=Inputs!$D$56),AND(D112>=Inputs!$E$55,D112<=Inputs!$E$56),AND(D112>=Inputs!$F$55,D112<=Inputs!$F$56),AND(D112>=Inputs!$G$55,D112<=Inputs!$G$56),AND(D112>=Inputs!$H$55,D112<=Inputs!$H$56),IFERROR(AND(D112>=0,D112<=Inputs!$H$56-168),FALSE)) -> FALSE | G112: =OR(AND(D112>=Inputs!$I$65,D112<=Inputs!$I$66),AND(D112>=Inputs!$C$65,D112<=Inputs!$C$66),AND(D112>=Inputs!$D$65,D112<=Inputs!$D$66),AND(D112>=Inputs!$E$65,D112<=Inputs!$E$66),AND(D112>=Inputs!$F$65,D112<=Inputs!$F$66),AND(D112>=Inputs!$G$65,D112<=Inputs!$G$66),AND(D112>=Inputs!$H$65,D112<=Inputs!$H$66),IFERROR(AND(D112>=0,D112<=Inputs!$H$66-168),FALSE)) -> FALSE | H112: =OR(AND(D112>=Inputs!$I$75,D112<=Inputs!$I$76),AND(D112>=Inputs!$C$75,D112<=Inputs!$C$76),AND(D112>=Inputs!$D$75,D112<=Inputs!$D$76),AND(D112>=Inputs!$E$75,D112<=Inputs!$E$76),AND(D112>=Inputs!$F$75,D112<=Inputs!$F$76),AND(D112>=Inputs!$G$75,D112<=Inputs!$G$76),AND(D112>=Inputs!$H$75,D112<=Inputs!$H$76),IFERROR(AND(D112>=0,D112<=Inputs!$H$76-168),FALSE)) -> FALSE | I112: 0 | J112: 0
B113: Monday | C113: 03:00:00 | D113: 27 | E113: =OR(AND(D113>=Inputs!$I$45,D113<=Inputs!$I$46),AND(D113>=Inputs!$C$45,D113<=Inputs!$C$46),AND(D113>=Inputs!$D$45,D113<=Inputs!$D$46),AND(D113>=Inputs!$E$45,D113<=Inputs!$E$46),AND(D113>=Inputs!$F$45,D113<=Inputs!$F$46),AND(D113>=Inputs!$G$45,D113<=Inputs!$G$46),AND(D113>=Inputs!$H$45,D113<=Inputs!$H$46),IFERROR(AND(D113>=0,D113<=Inputs!$H$46-168),FALSE)) -> FALSE | F113: =OR(AND(D113>=Inputs!$I$55,D113<=Inputs!$I$56),AND(D113>=Inputs!$C$55,D113<=Inputs!$C$56),AND(D113>=Inputs!$D$55,D113<=Inputs!$D$56),AND(D113>=Inputs!$E$55,D113<=Inputs!$E$56),AND(D113>=Inputs!$F$55,D113<=Inputs!$F$56),AND(D113>=Inputs!$G$55,D113<=Inputs!$G$56),AND(D113>=Inputs!$H$55,D113<=Inputs!$H$56),IFERROR(AND(D113>=0,D113<=Inputs!$H$56-168),FALSE)) -> FALSE | G113: =OR(AND(D113>=Inputs!$I$65,D113<=Inputs!$I$66),AND(D113>=Inputs!$C$65,D113<=Inputs!$C$66),AND(D113>=Inputs!$D$65,D113<=Inputs!$D$66),AND(D113>=Inputs!$E$65,D113<=Inputs!$E$66),AND(D113>=Inputs!$F$65,D113<=Inputs!$F$66),AND(D113>=Inputs!$G$65,D113<=Inputs!$G$66),AND(D113>=Inputs!$H$65,D113<=Inputs!$H$66),IFERROR(AND(D113>=0,D113<=Inputs!$H$66-168),FALSE)) -> FALSE | H113: =OR(AND(D113>=Inputs!$I$75,D113<=Inputs!$I$76),AND(D113>=Inputs!$C$75,D113<=Inputs!$C$76),AND(D113>=Inputs!$D$75,D113<=Inputs!$D$76),AND(D113>=Inputs!$E$75,D113<=Inputs!$E$76),AND(D113>=Inputs!$F$75,D113<=Inputs!$F$76),AND(D113>=Inputs!$G$75,D113<=Inputs!$G$76),AND(D113>=Inputs!$H$75,D113<=Inputs!$H$76),IFERROR(AND(D113>=0,D113<=Inputs!$H$76-168),FALSE)) -> FALSE | I113: 0 | J113: 0
B114: Monday | C114: 04:00:00 | D114: 28 | E114: =OR(AND(D114>=Inputs!$I$45,D114<=Inputs!$I$46),AND(D114>=Inputs!$C$45,D114<=Inputs!$C$46),AND(D114>=Inputs!$D$45,D114<=Inputs!$D$46),AND(D114>=Inputs!$E$45,D114<=Inputs!$E$46),AND(D114>=Inputs!$F$45,D114<=Inputs!$F$46),AND(D114>=Inputs!$G$45,D114<=Inputs!$G$46),AND(D114>=Inputs!$H$45,D114<=Inputs!$H$46),IFERROR(AND(D114>=0,D114<=Inputs!$H$46-168),FALSE)) -> FALSE | F114: =OR(AND(D114>=Inputs!$I$55,D114<=Inputs!$I$56),AND(D114>=Inputs!$C$55,D114<=Inputs!$C$56),AND(D114>=Inputs!$D$55,D114<=Inputs!$D$56),AND(D114>=Inputs!$E$55,D114<=Inputs!$E$56),AND(D114>=Inputs!$F$55,D114<=Inputs!$F$56),AND(D114>=Inputs!$G$55,D114<=Inputs!$G$56),AND(D114>=Inputs!$H$55,D114<=Inputs!$H$56),IFERROR(AND(D114>=0,D114<=Inputs!$H$56-168),FALSE)) -> FALSE | G114: =OR(AND(D114>=Inputs!$I$65,D114<=Inputs!$I$66),AND(D114>=Inputs!$C$65,D114<=Inputs!$C$66),AND(D114>=Inputs!$D$65,D114<=Inputs!$D$66),AND(D114>=Inputs!$E$65,D114<=Inputs!$E$66),AND(D114>=Inputs!$F$65,D114<=Inputs!$F$66),AND(D114>=Inputs!$G$65,D114<=Inputs!$G$66),AND(D114>=Inputs!$H$65,D114<=Inputs!$H$66),IFERROR(AND(D114>=0,D114<=Inputs!$H$66-168),FALSE)) -> FALSE | H114: =OR(AND(D114>=Inputs!$I$75,D114<=Inputs!$I$76),AND(D114>=Inputs!$C$75,D114<=Inputs!$C$76),AND(D114>=Inputs!$D$75,D114<=Inputs!$D$76),AND(D114>=Inputs!$E$75,D114<=Inputs!$E$76),AND(D114>=Inputs!$F$75,D114<=Inputs!$F$76),AND(D114>=Inputs!$G$75,D114<=Inputs!$G$76),AND(D114>=Inputs!$H$75,D114<=Inputs!$H$76),IFERROR(AND(D114>=0,D114<=Inputs!$H$76-168),FALSE)) -> FALSE | I114: 0 | J114: 0
B115: Monday | C115: 05:00:00 | D115: 29 | E115: =OR(AND(D115>=Inputs!$I$45,D115<=Inputs!$I$46),AND(D115>=Inputs!$C$45,D115<=Inputs!$C$46),AND(D115>=Inputs!$D$45,D115<=Inputs!$D$46),AND(D115>=Inputs!$E$45,D115<=Inputs!$E$46),AND(D115>=Inputs!$F$45,D115<=Inputs!$F$46),AND(D115>=Inputs!$G$45,D115<=Inputs!$G$46),AND(D115>=Inputs!$H$45,D115<=Inputs!$H$46),IFERROR(AND(D115>=0,D115<=Inputs!$H$46-168),FALSE)) -> FALSE | F115: =OR(AND(D115>=Inputs!$I$55,D115<=Inputs!$I$56),AND(D115>=Inputs!$C$55,D115<=Inputs!$C$56),AND(D115>=Inputs!$D$55,D115<=Inputs!$D$56),AND(D115>=Inputs!$E$55,D115<=Inputs!$E$56),AND(D115>=Inputs!$F$55,D115<=Inputs!$F$56),AND(D115>=Inputs!$G$55,D115<=Inputs!$G$56),AND(D115>=Inputs!$H$55,D115<=Inputs!$H$56),IFERROR(AND(D115>=0,D115<=Inputs!$H$56-168),FALSE)) -> FALSE | G115: =OR(AND(D115>=Inputs!$I$65,D115<=Inputs!$I$66),AND(D115>=Inputs!$C$65,D115<=Inputs!$C$66),AND(D115>=Inputs!$D$65,D115<=Inputs!$D$66),AND(D115>=Inputs!$E$65,D115<=Inputs!$E$66),AND(D115>=Inputs!$F$65,D115<=Inputs!$F$66),AND(D115>=Inputs!$G$65,D115<=Inputs!$G$66),AND(D115>=Inputs!$H$65,D115<=Inputs!$H$66),IFERROR(AND(D115>=0,D115<=Inputs!$H$66-168),FALSE)) -> FALSE | H115: =OR(AND(D115>=Inputs!$I$75,D115<=Inputs!$I$76),AND(D115>=Inputs!$C$75,D115<=Inputs!$C$76),AND(D115>=Inputs!$D$75,D115<=Inputs!$D$76),AND(D115>=Inputs!$E$75,D115<=Inputs!$E$76),AND(D115>=Inputs!$F$75,D115<=Inputs!$F$76),AND(D115>=Inputs!$G$75,D115<=Inputs!$G$76),AND(D115>=Inputs!$H$75,D115<=Inputs!$H$76),IFERROR(AND(D115>=0,D115<=Inputs!$H$76-168),FALSE)) -> FALSE | I115: 0 | J115: 0
B116: Monday | C116: 06:00:00 | D116: 30 | E116: =OR(AND(D116>=Inputs!$I$45,D116<=Inputs!$I$46),AND(D116>=Inputs!$C$45,D116<=Inputs!$C$46),AND(D116>=Inputs!$D$45,D116<=Inputs!$D$46),AND(D116>=Inputs!$E$45,D116<=Inputs!$E$46),AND(D116>=Inputs!$F$45,D116<=Inputs!$F$46),AND(D116>=Inputs!$G$45,D116<=Inputs!$G$46),AND(D116>=Inputs!$H$45,D116<=Inputs!$H$46),IFERROR(AND(D116>=0,D116<=Inputs!$H$46-168),FALSE)) -> FALSE | F116: =OR(AND(D116>=Inputs!$I$55,D116<=Inputs!$I$56),AND(D116>=Inputs!$C$55,D116<=Inputs!$C$56),AND(D116>=Inputs!$D$55,D116<=Inputs!$D$56),AND(D116>=Inputs!$E$55,D116<=Inputs!$E$56),AND(D116>=Inputs!$F$55,D116<=Inputs!$F$56),AND(D116>=Inputs!$G$55,D116<=Inputs!$G$56),AND(D116>=Inputs!$H$55,D116<=Inputs!$H$56),IFERROR(AND(D116>=0,D116<=Inputs!$H$56-168),FALSE)) -> FALSE | G116: =OR(AND(D116>=Inputs!$I$65,D116<=Inputs!$I$66),AND(D116>=Inputs!$C$65,D116<=Inputs!$C$66),AND(D116>=Inputs!$D$65,D116<=Inputs!$D$66),AND(D116>=Inputs!$E$65,D116<=Inputs!$E$66),AND(D116>=Inputs!$F$65,D116<=Inputs!$F$66),AND(D116>=Inputs!$G$65,D116<=Inputs!$G$66),AND(D116>=Inputs!$H$65,D116<=Inputs!$H$66),IFERROR(AND(D116>=0,D116<=Inputs!$H$66-168),FALSE)) -> FALSE | H116: =OR(AND(D116>=Inputs!$I$75,D116<=Inputs!$I$76),AND(D116>=Inputs!$C$75,D116<=Inputs!$C$76),AND(D116>=Inputs!$D$75,D116<=Inputs!$D$76),AND(D116>=Inputs!$E$75,D116<=Inputs!$E$76),AND(D116>=Inputs!$F$75,D116<=Inputs!$F$76),AND(D116>=Inputs!$G$75,D116<=Inputs!$G$76),AND(D116>=Inputs!$H$75,D116<=Inputs!$H$76),IFERROR(AND(D116>=0,D116<=Inputs!$H$76-168),FALSE)) -> FALSE | I116: 0 | J116: 0
B117: Monday | C117: 07:00:00 | D117: 31 | E117: =OR(AND(D117>=Inputs!$I$45,D117<=Inputs!$I$46),AND(D117>=Inputs!$C$45,D117<=Inputs!$C$46),AND(D117>=Inputs!$D$45,D117<=Inputs!$D$46),AND(D117>=Inputs!$E$45,D117<=Inputs!$E$46),AND(D117>=Inputs!$F$45,D117<=Inputs!$F$46),AND(D117>=Inputs!$G$45,D117<=Inputs!$G$46),AND(D117>=Inputs!$H$45,D117<=Inputs!$H$46),IFERROR(AND(D117>=0,D117<=Inputs!$H$46-168),FALSE)) -> FALSE | F117: =OR(AND(D117>=Inputs!$I$55,D117<=Inputs!$I$56),AND(D117>=Inputs!$C$55,D117<=Inputs!$C$56),AND(D117>=Inputs!$D$55,D117<=Inputs!$D$56),AND(D117>=Inputs!$E$55,D117<=Inputs!$E$56),AND(D117>=Inputs!$F$55,D117<=Inputs!$F$56),AND(D117>=Inputs!$G$55,D117<=Inputs!$G$56),AND(D117>=Inputs!$H$55,D117<=Inputs!$H$56),IFERROR(AND(D117>=0,D117<=Inputs!$H$56-168),FALSE)) -> FALSE | G117: =OR(AND(D117>=Inputs!$I$65,D117<=Inputs!$I$66),AND(D117>=Inputs!$C$65,D117<=Inputs!$C$66),AND(D117>=Inputs!$D$65,D117<=Inputs!$D$66),AND(D117>=Inputs!$E$65,D117<=Inputs!$E$66),AND(D117>=Inputs!$F$65,D117<=Inputs!$F$66),AND(D117>=Inputs!$G$65,D117<=Inputs!$G$66),AND(D117>=Inputs!$H$65,D117<=Inputs!$H$66),IFERROR(AND(D117>=0,D117<=Inputs!$H$66-168),FALSE)) -> FALSE | H117: =OR(AND(D117>=Inputs!$I$75,D117<=Inputs!$I$76),AND(D117>=Inputs!$C$75,D117<=Inputs!$C$76),AND(D117>=Inputs!$D$75,D117<=Inputs!$D$76),AND(D117>=Inputs!$E$75,D117<=Inputs!$E$76),AND(D117>=Inputs!$F$75,D117<=Inputs!$F$76),AND(D117>=Inputs!$G$75,D117<=Inputs!$G$76),AND(D117>=Inputs!$H$75,D117<=Inputs!$H$76),IFERROR(AND(D117>=0,D117<=Inputs!$H$76-168),FALSE)) -> FALSE | I117: 0 | J117: 0
B118: Monday | C118: 08:00:00 | D118: 32 | E118: =OR(AND(D118>=Inputs!$I$45,D118<=Inputs!$I$46),AND(D118>=Inputs!$C$45,D118<=Inputs!$C$46),AND(D118>=Inputs!$D$45,D118<=Inputs!$D$46),AND(D118>=Inputs!$E$45,D118<=Inputs!$E$46),AND(D118>=Inputs!$F$45,D118<=Inputs!$F$46),AND(D118>=Inputs!$G$45,D118<=Inputs!$G$46),AND(D118>=Inputs!$H$45,D118<=Inputs!$H$46),IFERROR(AND(D118>=0,D118<=Inputs!$H$46-168),FALSE)) -> FALSE | F118: =OR(AND(D118>=Inputs!$I$55,D118<=Inputs!$I$56),AND(D118>=Inputs!$C$55,D118<=Inputs!$C$56),AND(D118>=Inputs!$D$55,D118<=Inputs!$D$56),AND(D118>=Inputs!$E$55,D118<=Inputs!$E$56),AND(D118>=Inputs!$F$55,D118<=Inputs!$F$56),AND(D118>=Inputs!$G$55,D118<=Inputs!$G$56),AND(D118>=Inputs!$H$55,D118<=Inputs!$H$56),IFERROR(AND(D118>=0,D118<=Inputs!$H$56-168),FALSE)) -> FALSE | G118: =OR(AND(D118>=Inputs!$I$65,D118<=Inputs!$I$66),AND(D118>=Inputs!$C$65,D118<=Inputs!$C$66),AND(D118>=Inputs!$D$65,D118<=Inputs!$D$66),AND(D118>=Inputs!$E$65,D118<=Inputs!$E$66),AND(D118>=Inputs!$F$65,D118<=Inputs!$F$66),AND(D118>=Inputs!$G$65,D118<=Inputs!$G$66),AND(D118>=Inputs!$H$65,D118<=Inputs!$H$66),IFERROR(AND(D118>=0,D118<=Inputs!$H$66-168),FALSE)) -> FALSE | H118: =OR(AND(D118>=Inputs!$I$75,D118<=Inputs!$I$76),AND(D118>=Inputs!$C$75,D118<=Inputs!$C$76),AND(D118>=Inputs!$D$75,D118<=Inputs!$D$76),AND(D118>=Inputs!$E$75,D118<=Inputs!$E$76),AND(D118>=Inputs!$F$75,D118<=Inputs!$F$76),AND(D118>=Inputs!$G$75,D118<=Inputs!$G$76),AND(D118>=Inputs!$H$75,D118<=Inputs!$H$76),IFERROR(AND(D118>=0,D118<=Inputs!$H$76-168),FALSE)) -> FALSE | I118: 0 | J118: 0
B119: Monday | C119: 09:00:00 | D119: 33 | E119: =OR(AND(D119>=Inputs!$I$45,D119<=Inputs!$I$46),AND(D119>=Inputs!$C$45,D119<=Inputs!$C$46),AND(D119>=Inputs!$D$45,D119<=Inputs!$D$46),AND(D119>=Inputs!$E$45,D119<=Inputs!$E$46),AND(D119>=Inputs!$F$45,D119<=Inputs!$F$46),AND(D119>=Inputs!$G$45,D119<=Inputs!$G$46),AND(D119>=Inputs!$H$45,D119<=Inputs!$H$46),IFERROR(AND(D119>=0,D119<=Inputs!$H$46-168),FALSE)) -> TRUE | F119: =OR(AND(D119>=Inputs!$I$55,D119<=Inputs!$I$56),AND(D119>=Inputs!$C$55,D119<=Inputs!$C$56),AND(D119>=Inputs!$D$55,D119<=Inputs!$D$56),AND(D119>=Inputs!$E$55,D119<=Inputs!$E$56),AND(D119>=Inputs!$F$55,D119<=Inputs!$F$56),AND(D119>=Inputs!$G$55,D119<=Inputs!$G$56),AND(D119>=Inputs!$H$55,D119<=Inputs!$H$56),IFERROR(AND(D119>=0,D119<=Inputs!$H$56-168),FALSE)) -> FALSE | G119: =OR(AND(D119>=Inputs!$I$65,D119<=Inputs!$I$66),AND(D119>=Inputs!$C$65,D119<=Inputs!$C$66),AND(D119>=Inputs!$D$65,D119<=Inputs!$D$66),AND(D119>=Inputs!$E$65,D119<=Inputs!$E$66),AND(D119>=Inputs!$F$65,D119<=Inputs!$F$66),AND(D119>=Inputs!$G$65,D119<=Inputs!$G$66),AND(D119>=Inputs!$H$65,D119<=Inputs!$H$66),IFERROR(AND(D119>=0,D119<=Inputs!$H$66-168),FALSE)) -> FALSE | H119: =OR(AND(D119>=Inputs!$I$75,D119<=Inputs!$I$76),AND(D119>=Inputs!$C$75,D119<=Inputs!$C$76),AND(D119>=Inputs!$D$75,D119<=Inputs!$D$76),AND(D119>=Inputs!$E$75,D119<=Inputs!$E$76),AND(D119>=Inputs!$F$75,D119<=Inputs!$F$76),AND(D119>=Inputs!$G$75,D119<=Inputs!$G$76),AND(D119>=Inputs!$H$75,D119<=Inputs!$H$76),IFERROR(AND(D119>=0,D119<=Inputs!$H$76-168),FALSE)) -> FALSE | I119: 1 | J119: 0
B120: Monday | C120: 10:00:00 | D120: 34 | E120: =OR(AND(D120>=Inputs!$I$45,D120<=Inputs!$I$46),AND(D120>=Inputs!$C$45,D120<=Inputs!$C$46),AND(D120>=Inputs!$D$45,D120<=Inputs!$D$46),AND(D120>=Inputs!$E$45,D120<=Inputs!$E$46),AND(D120>=Inputs!$F$45,D120<=Inputs!$F$46),AND(D120>=Inputs!$G$45,D120<=Inputs!$G$46),AND(D120>=Inputs!$H$45,D120<=Inputs!$H$46),IFERROR(AND(D120>=0,D120<=Inputs!$H$46-168),FALSE)) -> TRUE | F120: =OR(AND(D120>=Inputs!$I$55,D120<=Inputs!$I$56),AND(D120>=Inputs!$C$55,D120<=Inputs!$C$56),AND(D120>=Inputs!$D$55,D120<=Inputs!$D$56),AND(D120>=Inputs!$E$55,D120<=Inputs!$E$56),AND(D120>=Inputs!$F$55,D120<=Inputs!$F$56),AND(D120>=Inputs!$G$55,D120<=Inputs!$G$56),AND(D120>=Inputs!$H$55,D120<=Inputs!$H$56),IFERROR(AND(D120>=0,D120<=Inputs!$H$56-168),FALSE)) -> FALSE | G120: =OR(AND(D120>=Inputs!$I$65,D120<=Inputs!$I$66),AND(D120>=Inputs!$C$65,D120<=Inputs!$C$66),AND(D120>=Inputs!$D$65,D120<=Inputs!$D$66),AND(D120>=Inputs!$E$65,D120<=Inputs!$E$66),AND(D120>=Inputs!$F$65,D120<=Inputs!$F$66),AND(D120>=Inputs!$G$65,D120<=Inputs!$G$66),AND(D120>=Inputs!$H$65,D120<=Inputs!$H$66),IFERROR(AND(D120>=0,D120<=Inputs!$H$66-168),FALSE)) -> FALSE | H120: =OR(AND(D120>=Inputs!$I$75,D120<=Inputs!$I$76),AND(D120>=Inputs!$C$75,D120<=Inputs!$C$76),AND(D120>=Inputs!$D$75,D120<=Inputs!$D$76),AND(D120>=Inputs!$E$75,D120<=Inputs!$E$76),AND(D120>=Inputs!$F$75,D120<=Inputs!$F$76),AND(D120>=Inputs!$G$75,D120<=Inputs!$G$76),AND(D120>=Inputs!$H$75,D120<=Inputs!$H$76),IFERROR(AND(D120>=0,D120<=Inputs!$H$76-168),FALSE)) -> FALSE | I120: 1 | J120: 0
B121: Monday | C121: 11:00:00 | D121: 35 | E121: =OR(AND(D121>=Inputs!$I$45,D121<=Inputs!$I$46),AND(D121>=Inputs!$C$45,D121<=Inputs!$C$46),AND(D121>=Inputs!$D$45,D121<=Inputs!$D$46),AND(D121>=Inputs!$E$45,D121<=Inputs!$E$46),AND(D121>=Inputs!$F$45,D121<=Inputs!$F$46),AND(D121>=Inputs!$G$45,D121<=Inputs!$G$46),AND(D121>=Inputs!$H$45,D121<=Inputs!$H$46),IFERROR(AND(D121>=0,D121<=Inputs!$H$46-168),FALSE)) -> TRUE | F121: =OR(AND(D121>=Inputs!$I$55,D121<=Inputs!$I$56),AND(D121>=Inputs!$C$55,D121<=Inputs!$C$56),AND(D121>=Inputs!$D$55,D121<=Inputs!$D$56),AND(D121>=Inputs!$E$55,D121<=Inputs!$E$56),AND(D121>=Inputs!$F$55,D121<=Inputs!$F$56),AND(D121>=Inputs!$G$55,D121<=Inputs!$G$56),AND(D121>=Inputs!$H$55,D121<=Inputs!$H$56),IFERROR(AND(D121>=0,D121<=Inputs!$H$56-168),FALSE)) -> FALSE | G121: =OR(AND(D121>=Inputs!$I$65,D121<=Inputs!$I$66),AND(D121>=Inputs!$C$65,D121<=Inputs!$C$66),AND(D121>=Inputs!$D$65,D121<=Inputs!$D$66),AND(D121>=Inputs!$E$65,D121<=Inputs!$E$66),AND(D121>=Inputs!$F$65,D121<=Inputs!$F$66),AND(D121>=Inputs!$G$65,D121<=Inputs!$G$66),AND(D121>=Inputs!$H$65,D121<=Inputs!$H$66),IFERROR(AND(D121>=0,D121<=Inputs!$H$66-168),FALSE)) -> FALSE | H121: =OR(AND(D121>=Inputs!$I$75,D121<=Inputs!$I$76),AND(D121>=Inputs!$C$75,D121<=Inputs!$C$76),AND(D121>=Inputs!$D$75,D121<=Inputs!$D$76),AND(D121>=Inputs!$E$75,D121<=Inputs!$E$76),AND(D121>=Inputs!$F$75,D121<=Inputs!$F$76),AND(D121>=Inputs!$G$75,D121<=Inputs!$G$76),AND(D121>=Inputs!$H$75,D121<=Inputs!$H$76),IFERROR(AND(D121>=0,D121<=Inputs!$H$76-168),FALSE)) -> FALSE | I121: 1 | J121: 0
B122: Monday | C122: 12:00:00 | D122: 36 | E122: =OR(AND(D122>=Inputs!$I$45,D122<=Inputs!$I$46),AND(D122>=Inputs!$C$45,D122<=Inputs!$C$46),AND(D122>=Inputs!$D$45,D122<=Inputs!$D$46),AND(D122>=Inputs!$E$45,D122<=Inputs!$E$46),AND(D122>=Inputs!$F$45,D122<=Inputs!$F$46),AND(D122>=Inputs!$G$45,D122<=Inputs!$G$46),AND(D122>=Inputs!$H$45,D122<=Inputs!$H$46),IFERROR(AND(D122>=0,D122<=Inputs!$H$46-168),FALSE)) -> TRUE | F122: =OR(AND(D122>=Inputs!$I$55,D122<=Inputs!$I$56),AND(D122>=Inputs!$C$55,D122<=Inputs!$C$56),AND(D122>=Inputs!$D$55,D122<=Inputs!$D$56),AND(D122>=Inputs!$E$55,D122<=Inputs!$E$56),AND(D122>=Inputs!$F$55,D122<=Inputs!$F$56),AND(D122>=Inputs!$G$55,D122<=Inputs!$G$56),AND(D122>=Inputs!$H$55,D122<=Inputs!$H$56),IFERROR(AND(D122>=0,D122<=Inputs!$H$56-168),FALSE)) -> FALSE | G122: =OR(AND(D122>=Inputs!$I$65,D122<=Inputs!$I$66),AND(D122>=Inputs!$C$65,D122<=Inputs!$C$66),AND(D122>=Inputs!$D$65,D122<=Inputs!$D$66),AND(D122>=Inputs!$E$65,D122<=Inputs!$E$66),AND(D122>=Inputs!$F$65,D122<=Inputs!$F$66),AND(D122>=Inputs!$G$65,D122<=Inputs!$G$66),AND(D122>=Inputs!$H$65,D122<=Inputs!$H$66),IFERROR(AND(D122>=0,D122<=Inputs!$H$66-168),FALSE)) -> FALSE | H122: =OR(AND(D122>=Inputs!$I$75,D122<=Inputs!$I$76),AND(D122>=Inputs!$C$75,D122<=Inputs!$C$76),AND(D122>=Inputs!$D$75,D122<=Inputs!$D$76),AND(D122>=Inputs!$E$75,D122<=Inputs!$E$76),AND(D122>=Inputs!$F$75,D122<=Inputs!$F$76),AND(D122>=Inputs!$G$75,D122<=Inputs!$G$76),AND(D122>=Inputs!$H$75,D122<=Inputs!$H$76),IFERROR(AND(D122>=0,D122<=Inputs!$H$76-168),FALSE)) -> FALSE | I122: 1 | J122: 0
B123: Monday | C123: 13:00:00 | D123: 37 | E123: =OR(AND(D123>=Inputs!$I$45,D123<=Inputs!$I$46),AND(D123>=Inputs!$C$45,D123<=Inputs!$C$46),AND(D123>=Inputs!$D$45,D123<=Inputs!$D$46),AND(D123>=Inputs!$E$45,D123<=Inputs!$E$46),AND(D123>=Inputs!$F$45,D123<=Inputs!$F$46),AND(D123>=Inputs!$G$45,D123<=Inputs!$G$46),AND(D123>=Inputs!$H$45,D123<=Inputs!$H$46),IFERROR(AND(D123>=0,D123<=Inputs!$H$46-168),FALSE)) -> TRUE | F123: =OR(AND(D123>=Inputs!$I$55,D123<=Inputs!$I$56),AND(D123>=Inputs!$C$55,D123<=Inputs!$C$56),AND(D123>=Inputs!$D$55,D123<=Inputs!$D$56),AND(D123>=Inputs!$E$55,D123<=Inputs!$E$56),AND(D123>=Inputs!$F$55,D123<=Inputs!$F$56),AND(D123>=Inputs!$G$55,D123<=Inputs!$G$56),AND(D123>=Inputs!$H$55,D123<=Inputs!$H$56),IFERROR(AND(D123>=0,D123<=Inputs!$H$56-168),FALSE)) -> FALSE | G123: =OR(AND(D123>=Inputs!$I$65,D123<=Inputs!$I$66),AND(D123>=Inputs!$C$65,D123<=Inputs!$C$66),AND(D123>=Inputs!$D$65,D123<=Inputs!$D$66),AND(D123>=Inputs!$E$65,D123<=Inputs!$E$66),AND(D123>=Inputs!$F$65,D123<=Inputs!$F$66),AND(D123>=Inputs!$G$65,D123<=Inputs!$G$66),AND(D123>=Inputs!$H$65,D123<=Inputs!$H$66),IFERROR(AND(D123>=0,D123<=Inputs!$H$66-168),FALSE)) -> FALSE | H123: =OR(AND(D123>=Inputs!$I$75,D123<=Inputs!$I$76),AND(D123>=Inputs!$C$75,D123<=Inputs!$C$76),AND(D123>=Inputs!$D$75,D123<=Inputs!$D$76),AND(D123>=Inputs!$E$75,D123<=Inputs!$E$76),AND(D123>=Inputs!$F$75,D123<=Inputs!$F$76),AND(D123>=Inputs!$G$75,D123<=Inputs!$G$76),AND(D123>=Inputs!$H$75,D123<=Inputs!$H$76),IFERROR(AND(D123>=0,D123<=Inputs!$H$76-168),FALSE)) -> FALSE | I123: 1 | J123: 0
B124: Monday | C124: 14:00:00 | D124: 38 | E124: =OR(AND(D124>=Inputs!$I$45,D124<=Inputs!$I$46),AND(D124>=Inputs!$C$45,D124<=Inputs!$C$46),AND(D124>=Inputs!$D$45,D124<=Inputs!$D$46),AND(D124>=Inputs!$E$45,D124<=Inputs!$E$46),AND(D124>=Inputs!$F$45,D124<=Inputs!$F$46),AND(D124>=Inputs!$G$45,D124<=Inputs!$G$46),AND(D124>=Inputs!$H$45,D124<=Inputs!$H$46),IFERROR(AND(D124>=0,D124<=Inputs!$H$46-168),FALSE)) -> FALSE | F124: =OR(AND(D124>=Inputs!$I$55,D124<=Inputs!$I$56),AND(D124>=Inputs!$C$55,D124<=Inputs!$C$56),AND(D124>=Inputs!$D$55,D124<=Inputs!$D$56),AND(D124>=Inputs!$E$55,D124<=Inputs!$E$56),AND(D124>=Inputs!$F$55,D124<=Inputs!$F$56),AND(D124>=Inputs!$G$55,D124<=Inputs!$G$56),AND(D124>=Inputs!$H$55,D124<=Inputs!$H$56),IFERROR(AND(D124>=0,D124<=Inputs!$H$56-168),FALSE)) -> FALSE | G124: =OR(AND(D124>=Inputs!$I$65,D124<=Inputs!$I$66),AND(D124>=Inputs!$C$65,D124<=Inputs!$C$66),AND(D124>=Inputs!$D$65,D124<=Inputs!$D$66),AND(D124>=Inputs!$E$65,D124<=Inputs!$E$66),AND(D124>=Inputs!$F$65,D124<=Inputs!$F$66),AND(D124>=Inputs!$G$65,D124<=Inputs!$G$66),AND(D124>=Inputs!$H$65,D124<=Inputs!$H$66),IFERROR(AND(D124>=0,D124<=Inputs!$H$66-168),FALSE)) -> FALSE | H124: =OR(AND(D124>=Inputs!$I$75,D124<=Inputs!$I$76),AND(D124>=Inputs!$C$75,D124<=Inputs!$C$76),AND(D124>=Inputs!$D$75,D124<=Inputs!$D$76),AND(D124>=Inputs!$E$75,D124<=Inputs!$E$76),AND(D124>=Inputs!$F$75,D124<=Inputs!$F$76),AND(D124>=Inputs!$G$75,D124<=Inputs!$G$76),AND(D124>=Inputs!$H$75,D124<=Inputs!$H$76),IFERROR(AND(D124>=0,D124<=Inputs!$H$76-168),FALSE)) -> FALSE | I124: 0 | J124: 0
B125: Monday | C125: 15:00:00 | D125: 39 | E125: =OR(AND(D125>=Inputs!$I$45,D125<=Inputs!$I$46),AND(D125>=Inputs!$C$45,D125<=Inputs!$C$46),AND(D125>=Inputs!$D$45,D125<=Inputs!$D$46),AND(D125>=Inputs!$E$45,D125<=Inputs!$E$46),AND(D125>=Inputs!$F$45,D125<=Inputs!$F$46),AND(D125>=Inputs!$G$45,D125<=Inputs!$G$46),AND(D125>=Inputs!$H$45,D125<=Inputs!$H$46),IFERROR(AND(D125>=0,D125<=Inputs!$H$46-168),FALSE)) -> FALSE | F125: =OR(AND(D125>=Inputs!$I$55,D125<=Inputs!$I$56),AND(D125>=Inputs!$C$55,D125<=Inputs!$C$56),AND(D125>=Inputs!$D$55,D125<=Inputs!$D$56),AND(D125>=Inputs!$E$55,D125<=Inputs!$E$56),AND(D125>=Inputs!$F$55,D125<=Inputs!$F$56),AND(D125>=Inputs!$G$55,D125<=Inputs!$G$56),AND(D125>=Inputs!$H$55,D125<=Inputs!$H$56),IFERROR(AND(D125>=0,D125<=Inputs!$H$56-168),FALSE)) -> FALSE | G125: =OR(AND(D125>=Inputs!$I$65,D125<=Inputs!$I$66),AND(D125>=Inputs!$C$65,D125<=Inputs!$C$66),AND(D125>=Inputs!$D$65,D125<=Inputs!$D$66),AND(D125>=Inputs!$E$65,D125<=Inputs!$E$66),AND(D125>=Inputs!$F$65,D125<=Inputs!$F$66),AND(D125>=Inputs!$G$65,D125<=Inputs!$G$66),AND(D125>=Inputs!$H$65,D125<=Inputs!$H$66),IFERROR(AND(D125>=0,D125<=Inputs!$H$66-168),FALSE)) -> FALSE | H125: =OR(AND(D125>=Inputs!$I$75,D125<=Inputs!$I$76),AND(D125>=Inputs!$C$75,D125<=Inputs!$C$76),AND(D125>=Inputs!$D$75,D125<=Inputs!$D$76),AND(D125>=Inputs!$E$75,D125<=Inputs!$E$76),AND(D125>=Inputs!$F$75,D125<=Inputs!$F$76),AND(D125>=Inputs!$G$75,D125<=Inputs!$G$76),AND(D125>=Inputs!$H$75,D125<=Inputs!$H$76),IFERROR(AND(D125>=0,D125<=Inputs!$H$76-168),FALSE)) -> FALSE | I125: 0 | J125: 0
B126: Monday | C126: 16:00:00 | D126: 40 | E126: =OR(AND(D126>=Inputs!$I$45,D126<=Inputs!$I$46),AND(D126>=Inputs!$C$45,D126<=Inputs!$C$46),AND(D126>=Inputs!$D$45,D126<=Inputs!$D$46),AND(D126>=Inputs!$E$45,D126<=Inputs!$E$46),AND(D126>=Inputs!$F$45,D126<=Inputs!$F$46),AND(D126>=Inputs!$G$45,D126<=Inputs!$G$46),AND(D126>=Inputs!$H$45,D126<=Inputs!$H$46),IFERROR(AND(D126>=0,D126<=Inputs!$H$46-168),FALSE)) -> FALSE | F126: =OR(AND(D126>=Inputs!$I$55,D126<=Inputs!$I$56),AND(D126>=Inputs!$C$55,D126<=Inputs!$C$56),AND(D126>=Inputs!$D$55,D126<=Inputs!$D$56),AND(D126>=Inputs!$E$55,D126<=Inputs!$E$56),AND(D126>=Inputs!$F$55,D126<=Inputs!$F$56),AND(D126>=Inputs!$G$55,D126<=Inputs!$G$56),AND(D126>=Inputs!$H$55,D126<=Inputs!$H$56),IFERROR(AND(D126>=0,D126<=Inputs!$H$56-168),FALSE)) -> FALSE | G126: =OR(AND(D126>=Inputs!$I$65,D126<=Inputs!$I$66),AND(D126>=Inputs!$C$65,D126<=Inputs!$C$66),AND(D126>=Inputs!$D$65,D126<=Inputs!$D$66),AND(D126>=Inputs!$E$65,D126<=Inputs!$E$66),AND(D126>=Inputs!$F$65,D126<=Inputs!$F$66),AND(D126>=Inputs!$G$65,D126<=Inputs!$G$66),AND(D126>=Inputs!$H$65,D126<=Inputs!$H$66),IFERROR(AND(D126>=0,D126<=Inputs!$H$66-168),FALSE)) -> FALSE | H126: =OR(AND(D126>=Inputs!$I$75,D126<=Inputs!$I$76),AND(D126>=Inputs!$C$75,D126<=Inputs!$C$76),AND(D126>=Inputs!$D$75,D126<=Inputs!$D$76),AND(D126>=Inputs!$E$75,D126<=Inputs!$E$76),AND(D126>=Inputs!$F$75,D126<=Inputs!$F$76),AND(D126>=Inputs!$G$75,D126<=Inputs!$G$76),AND(D126>=Inputs!$H$75,D126<=Inputs!$H$76),IFERROR(AND(D126>=0,D126<=Inputs!$H$76-168),FALSE)) -> FALSE | I126: 0 | J126: 0
B127: Monday | C127: 17:00:00 | D127: 41 | E127: =OR(AND(D127>=Inputs!$I$45,D127<=Inputs!$I$46),AND(D127>=Inputs!$C$45,D127<=Inputs!$C$46),AND(D127>=Inputs!$D$45,D127<=Inputs!$D$46),AND(D127>=Inputs!$E$45,D127<=Inputs!$E$46),AND(D127>=Inputs!$F$45,D127<=Inputs!$F$46),AND(D127>=Inputs!$G$45,D127<=Inputs!$G$46),AND(D127>=Inputs!$H$45,D127<=Inputs!$H$46),IFERROR(AND(D127>=0,D127<=Inputs!$H$46-168),FALSE)) -> FALSE | F127: =OR(AND(D127>=Inputs!$I$55,D127<=Inputs!$I$56),AND(D127>=Inputs!$C$55,D127<=Inputs!$C$56),AND(D127>=Inputs!$D$55,D127<=Inputs!$D$56),AND(D127>=Inputs!$E$55,D127<=Inputs!$E$56),AND(D127>=Inputs!$F$55,D127<=Inputs!$F$56),AND(D127>=Inputs!$G$55,D127<=Inputs!$G$56),AND(D127>=Inputs!$H$55,D127<=Inputs!$H$56),IFERROR(AND(D127>=0,D127<=Inputs!$H$56-168),FALSE)) -> FALSE | G127: =OR(AND(D127>=Inputs!$I$65,D127<=Inputs!$I$66),AND(D127>=Inputs!$C$65,D127<=Inputs!$C$66),AND(D127>=Inputs!$D$65,D127<=Inputs!$D$66),AND(D127>=Inputs!$E$65,D127<=Inputs!$E$66),AND(D127>=Inputs!$F$65,D127<=Inputs!$F$66),AND(D127>=Inputs!$G$65,D127<=Inputs!$G$66),AND(D127>=Inputs!$H$65,D127<=Inputs!$H$66),IFERROR(AND(D127>=0,D127<=Inputs!$H$66-168),FALSE)) -> FALSE | H127: =OR(AND(D127>=Inputs!$I$75,D127<=Inputs!$I$76),AND(D127>=Inputs!$C$75,D127<=Inputs!$C$76),AND(D127>=Inputs!$D$75,D127<=Inputs!$D$76),AND(D127>=Inputs!$E$75,D127<=Inputs!$E$76),AND(D127>=Inputs!$F$75,D127<=Inputs!$F$76),AND(D127>=Inputs!$G$75,D127<=Inputs!$G$76),AND(D127>=Inputs!$H$75,D127<=Inputs!$H$76),IFERROR(AND(D127>=0,D127<=Inputs!$H$76-168),FALSE)) -> FALSE | I127: 0 | J127: 0
B128: Monday | C128: 18:00:00 | D128: 42 | E128: =OR(AND(D128>=Inputs!$I$45,D128<=Inputs!$I$46),AND(D128>=Inputs!$C$45,D128<=Inputs!$C$46),AND(D128>=Inputs!$D$45,D128<=Inputs!$D$46),AND(D128>=Inputs!$E$45,D128<=Inputs!$E$46),AND(D128>=Inputs!$F$45,D128<=Inputs!$F$46),AND(D128>=Inputs!$G$45,D128<=Inputs!$G$46),AND(D128>=Inputs!$H$45,D128<=Inputs!$H$46),IFERROR(AND(D128>=0,D128<=Inputs!$H$46-168),FALSE)) -> FALSE | F128: =OR(AND(D128>=Inputs!$I$55,D128<=Inputs!$I$56),AND(D128>=Inputs!$C$55,D128<=Inputs!$C$56),AND(D128>=Inputs!$D$55,D128<=Inputs!$D$56),AND(D128>=Inputs!$E$55,D128<=Inputs!$E$56),AND(D128>=Inputs!$F$55,D128<=Inputs!$F$56),AND(D128>=Inputs!$G$55,D128<=Inputs!$G$56),AND(D128>=Inputs!$H$55,D128<=Inputs!$H$56),IFERROR(AND(D128>=0,D128<=Inputs!$H$56-168),FALSE)) -> FALSE | G128: =OR(AND(D128>=Inputs!$I$65,D128<=Inputs!$I$66),AND(D128>=Inputs!$C$65,D128<=Inputs!$C$66),AND(D128>=Inputs!$D$65,D128<=Inputs!$D$66),AND(D128>=Inputs!$E$65,D128<=Inputs!$E$66),AND(D128>=Inputs!$F$65,D128<=Inputs!$F$66),AND(D128>=Inputs!$G$65,D128<=Inputs!$G$66),AND(D128>=Inputs!$H$65,D128<=Inputs!$H$66),IFERROR(AND(D128>=0,D128<=Inputs!$H$66-168),FALSE)) -> FALSE | H128: =OR(AND(D128>=Inputs!$I$75,D128<=Inputs!$I$76),AND(D128>=Inputs!$C$75,D128<=Inputs!$C$76),AND(D128>=Inputs!$D$75,D128<=Inputs!$D$76),AND(D128>=Inputs!$E$75,D128<=Inputs!$E$76),AND(D128>=Inputs!$F$75,D128<=Inputs!$F$76),AND(D128>=Inputs!$G$75,D128<=Inputs!$G$76),AND(D128>=Inputs!$H$75,D128<=Inputs!$H$76),IFERROR(AND(D128>=0,D128<=Inputs!$H$76-168),FALSE)) -> FALSE | I128: 0 | J128: 0
B129: Monday | C129: 19:00:00 | D129: 43 | E129: =OR(AND(D129>=Inputs!$I$45,D129<=Inputs!$I$46),AND(D129>=Inputs!$C$45,D129<=Inputs!$C$46),AND(D129>=Inputs!$D$45,D129<=Inputs!$D$46),AND(D129>=Inputs!$E$45,D129<=Inputs!$E$46),AND(D129>=Inputs!$F$45,D129<=Inputs!$F$46),AND(D129>=Inputs!$G$45,D129<=Inputs!$G$46),AND(D129>=Inputs!$H$45,D129<=Inputs!$H$46),IFERROR(AND(D129>=0,D129<=Inputs!$H$46-168),FALSE)) -> FALSE | F129: =OR(AND(D129>=Inputs!$I$55,D129<=Inputs!$I$56),AND(D129>=Inputs!$C$55,D129<=Inputs!$C$56),AND(D129>=Inputs!$D$55,D129<=Inputs!$D$56),AND(D129>=Inputs!$E$55,D129<=Inputs!$E$56),AND(D129>=Inputs!$F$55,D129<=Inputs!$F$56),AND(D129>=Inputs!$G$55,D129<=Inputs!$G$56),AND(D129>=Inputs!$H$55,D129<=Inputs!$H$56),IFERROR(AND(D129>=0,D129<=Inputs!$H$56-168),FALSE)) -> FALSE | G129: =OR(AND(D129>=Inputs!$I$65,D129<=Inputs!$I$66),AND(D129>=Inputs!$C$65,D129<=Inputs!$C$66),AND(D129>=Inputs!$D$65,D129<=Inputs!$D$66),AND(D129>=Inputs!$E$65,D129<=Inputs!$E$66),AND(D129>=Inputs!$F$65,D129<=Inputs!$F$66),AND(D129>=Inputs!$G$65,D129<=Inputs!$G$66),AND(D129>=Inputs!$H$65,D129<=Inputs!$H$66),IFERROR(AND(D129>=0,D129<=Inputs!$H$66-168),FALSE)) -> FALSE | H129: =OR(AND(D129>=Inputs!$I$75,D129<=Inputs!$I$76),AND(D129>=Inputs!$C$75,D129<=Inputs!$C$76),AND(D129>=Inputs!$D$75,D129<=Inputs!$D$76),AND(D129>=Inputs!$E$75,D129<=Inputs!$E$76),AND(D129>=Inputs!$F$75,D129<=Inputs!$F$76),AND(D129>=Inputs!$G$75,D129<=Inputs!$G$76),AND(D129>=Inputs!$H$75,D129<=Inputs!$H$76),IFERROR(AND(D129>=0,D129<=Inputs!$H$76-168),FALSE)) -> FALSE | I129: 0 | J129: 0
B130: Monday | C130: 20:00:00 | D130: 44 | E130: =OR(AND(D130>=Inputs!$I$45,D130<=Inputs!$I$46),AND(D130>=Inputs!$C$45,D130<=Inputs!$C$46),AND(D130>=Inputs!$D$45,D130<=Inputs!$D$46),AND(D130>=Inputs!$E$45,D130<=Inputs!$E$46),AND(D130>=Inputs!$F$45,D130<=Inputs!$F$46),AND(D130>=Inputs!$G$45,D130<=Inputs!$G$46),AND(D130>=Inputs!$H$45,D130<=Inputs!$H$46),IFERROR(AND(D130>=0,D130<=Inputs!$H$46-168),FALSE)) -> FALSE | F130: =OR(AND(D130>=Inputs!$I$55,D130<=Inputs!$I$56),AND(D130>=Inputs!$C$55,D130<=Inputs!$C$56),AND(D130>=Inputs!$D$55,D130<=Inputs!$D$56),AND(D130>=Inputs!$E$55,D130<=Inputs!$E$56),AND(D130>=Inputs!$F$55,D130<=Inputs!$F$56),AND(D130>=Inputs!$G$55,D130<=Inputs!$G$56),AND(D130>=Inputs!$H$55,D130<=Inputs!$H$56),IFERROR(AND(D130>=0,D130<=Inputs!$H$56-168),FALSE)) -> FALSE | G130: =OR(AND(D130>=Inputs!$I$65,D130<=Inputs!$I$66),AND(D130>=Inputs!$C$65,D130<=Inputs!$C$66),AND(D130>=Inputs!$D$65,D130<=Inputs!$D$66),AND(D130>=Inputs!$E$65,D130<=Inputs!$E$66),AND(D130>=Inputs!$F$65,D130<=Inputs!$F$66),AND(D130>=Inputs!$G$65,D130<=Inputs!$G$66),AND(D130>=Inputs!$H$65,D130<=Inputs!$H$66),IFERROR(AND(D130>=0,D130<=Inputs!$H$66-168),FALSE)) -> FALSE | H130: =OR(AND(D130>=Inputs!$I$75,D130<=Inputs!$I$76),AND(D130>=Inputs!$C$75,D130<=Inputs!$C$76),AND(D130>=Inputs!$D$75,D130<=Inputs!$D$76),AND(D130>=Inputs!$E$75,D130<=Inputs!$E$76),AND(D130>=Inputs!$F$75,D130<=Inputs!$F$76),AND(D130>=Inputs!$G$75,D130<=Inputs!$G$76),AND(D130>=Inputs!$H$75,D130<=Inputs!$H$76),IFERROR(AND(D130>=0,D130<=Inputs!$H$76-168),FALSE)) -> FALSE | I130: 0 | J130: 0
B131: Monday | C131: 21:00:00 | D131: 45 | E131: =OR(AND(D131>=Inputs!$I$45,D131<=Inputs!$I$46),AND(D131>=Inputs!$C$45,D131<=Inputs!$C$46),AND(D131>=Inputs!$D$45,D131<=Inputs!$D$46),AND(D131>=Inputs!$E$45,D131<=Inputs!$E$46),AND(D131>=Inputs!$F$45,D131<=Inputs!$F$46),AND(D131>=Inputs!$G$45,D131<=Inputs!$G$46),AND(D131>=Inputs!$H$45,D131<=Inputs!$H$46),IFERROR(AND(D131>=0,D131<=Inputs!$H$46-168),FALSE)) -> FALSE | F131: =OR(AND(D131>=Inputs!$I$55,D131<=Inputs!$I$56),AND(D131>=Inputs!$C$55,D131<=Inputs!$C$56),AND(D131>=Inputs!$D$55,D131<=Inputs!$D$56),AND(D131>=Inputs!$E$55,D131<=Inputs!$E$56),AND(D131>=Inputs!$F$55,D131<=Inputs!$F$56),AND(D131>=Inputs!$G$55,D131<=Inputs!$G$56),AND(D131>=Inputs!$H$55,D131<=Inputs!$H$56),IFERROR(AND(D131>=0,D131<=Inputs!$H$56-168),FALSE)) -> FALSE | G131: =OR(AND(D131>=Inputs!$I$65,D131<=Inputs!$I$66),AND(D131>=Inputs!$C$65,D131<=Inputs!$C$66),AND(D131>=Inputs!$D$65,D131<=Inputs!$D$66),AND(D131>=Inputs!$E$65,D131<=Inputs!$E$66),AND(D131>=Inputs!$F$65,D131<=Inputs!$F$66),AND(D131>=Inputs!$G$65,D131<=Inputs!$G$66),AND(D131>=Inputs!$H$65,D131<=Inputs!$H$66),IFERROR(AND(D131>=0,D131<=Inputs!$H$66-168),FALSE)) -> FALSE | H131: =OR(AND(D131>=Inputs!$I$75,D131<=Inputs!$I$76),AND(D131>=Inputs!$C$75,D131<=Inputs!$C$76),AND(D131>=Inputs!$D$75,D131<=Inputs!$D$76),AND(D131>=Inputs!$E$75,D131<=Inputs!$E$76),AND(D131>=Inputs!$F$75,D131<=Inputs!$F$76),AND(D131>=Inputs!$G$75,D131<=Inputs!$G$76),AND(D131>=Inputs!$H$75,D131<=Inputs!$H$76),IFERROR(AND(D131>=0,D131<=Inputs!$H$76-168),FALSE)) -> FALSE | I131: 0 | J131: 0
B132: Monday | C132: 22:00:00 | D132: 46 | E132: =OR(AND(D132>=Inputs!$I$45,D132<=Inputs!$I$46),AND(D132>=Inputs!$C$45,D132<=Inputs!$C$46),AND(D132>=Inputs!$D$45,D132<=Inputs!$D$46),AND(D132>=Inputs!$E$45,D132<=Inputs!$E$46),AND(D132>=Inputs!$F$45,D132<=Inputs!$F$46),AND(D132>=Inputs!$G$45,D132<=Inputs!$G$46),AND(D132>=Inputs!$H$45,D132<=Inputs!$H$46),IFERROR(AND(D132>=0,D132<=Inputs!$H$46-168),FALSE)) -> FALSE | F132: =OR(AND(D132>=Inputs!$I$55,D132<=Inputs!$I$56),AND(D132>=Inputs!$C$55,D132<=Inputs!$C$56),AND(D132>=Inputs!$D$55,D132<=Inputs!$D$56),AND(D132>=Inputs!$E$55,D132<=Inputs!$E$56),AND(D132>=Inputs!$F$55,D132<=Inputs!$F$56),AND(D132>=Inputs!$G$55,D132<=Inputs!$G$56),AND(D132>=Inputs!$H$55,D132<=Inputs!$H$56),IFERROR(AND(D132>=0,D132<=Inputs!$H$56-168),FALSE)) -> FALSE | G132: =OR(AND(D132>=Inputs!$I$65,D132<=Inputs!$I$66),AND(D132>=Inputs!$C$65,D132<=Inputs!$C$66),AND(D132>=Inputs!$D$65,D132<=Inputs!$D$66),AND(D132>=Inputs!$E$65,D132<=Inputs!$E$66),AND(D132>=Inputs!$F$65,D132<=Inputs!$F$66),AND(D132>=Inputs!$G$65,D132<=Inputs!$G$66),AND(D132>=Inputs!$H$65,D132<=Inputs!$H$66),IFERROR(AND(D132>=0,D132<=Inputs!$H$66-168),FALSE)) -> FALSE | H132: =OR(AND(D132>=Inputs!$I$75,D132<=Inputs!$I$76),AND(D132>=Inputs!$C$75,D132<=Inputs!$C$76),AND(D132>=Inputs!$D$75,D132<=Inputs!$D$76),AND(D132>=Inputs!$E$75,D132<=Inputs!$E$76),AND(D132>=Inputs!$F$75,D132<=Inputs!$F$76),AND(D132>=Inputs!$G$75,D132<=Inputs!$G$76),AND(D132>=Inputs!$H$75,D132<=Inputs!$H$76),IFERROR(AND(D132>=0,D132<=Inputs!$H$76-168),FALSE)) -> FALSE | I132: 0 | J132: 0
B133: Monday | C133: 23:00:00 | D133: 47 | E133: =OR(AND(D133>=Inputs!$I$45,D133<=Inputs!$I$46),AND(D133>=Inputs!$C$45,D133<=Inputs!$C$46),AND(D133>=Inputs!$D$45,D133<=Inputs!$D$46),AND(D133>=Inputs!$E$45,D133<=Inputs!$E$46),AND(D133>=Inputs!$F$45,D133<=Inputs!$F$46),AND(D133>=Inputs!$G$45,D133<=Inputs!$G$46),AND(D133>=Inputs!$H$45,D133<=Inputs!$H$46),IFERROR(AND(D133>=0,D133<=Inputs!$H$46-168),FALSE)) -> FALSE | F133: =OR(AND(D133>=Inputs!$I$55,D133<=Inputs!$I$56),AND(D133>=Inputs!$C$55,D133<=Inputs!$C$56),AND(D133>=Inputs!$D$55,D133<=Inputs!$D$56),AND(D133>=Inputs!$E$55,D133<=Inputs!$E$56),AND(D133>=Inputs!$F$55,D133<=Inputs!$F$56),AND(D133>=Inputs!$G$55,D133<=Inputs!$G$56),AND(D133>=Inputs!$H$55,D133<=Inputs!$H$56),IFERROR(AND(D133>=0,D133<=Inputs!$H$56-168),FALSE)) -> FALSE | G133: =OR(AND(D133>=Inputs!$I$65,D133<=Inputs!$I$66),AND(D133>=Inputs!$C$65,D133<=Inputs!$C$66),AND(D133>=Inputs!$D$65,D133<=Inputs!$D$66),AND(D133>=Inputs!$E$65,D133<=Inputs!$E$66),AND(D133>=Inputs!$F$65,D133<=Inputs!$F$66),AND(D133>=Inputs!$G$65,D133<=Inputs!$G$66),AND(D133>=Inputs!$H$65,D133<=Inputs!$H$66),IFERROR(AND(D133>=0,D133<=Inputs!$H$66-168),FALSE)) -> FALSE | H133: =OR(AND(D133>=Inputs!$I$75,D133<=Inputs!$I$76),AND(D133>=Inputs!$C$75,D133<=Inputs!$C$76),AND(D133>=Inputs!$D$75,D133<=Inputs!$D$76),AND(D133>=Inputs!$E$75,D133<=Inputs!$E$76),AND(D133>=Inputs!$F$75,D133<=Inputs!$F$76),AND(D133>=Inputs!$G$75,D133<=Inputs!$G$76),AND(D133>=Inputs!$H$75,D133<=Inputs!$H$76),IFERROR(AND(D133>=0,D133<=Inputs!$H$76-168),FALSE)) -> FALSE | I133: 0 | J133: 0
B134: Tuesday | C134: 00:00:00 | D134: 48 | E134: =OR(AND(D134>=Inputs!$I$45,D134<=Inputs!$I$46),AND(D134>=Inputs!$C$45,D134<=Inputs!$C$46),AND(D134>=Inputs!$D$45,D134<=Inputs!$D$46),AND(D134>=Inputs!$E$45,D134<=Inputs!$E$46),AND(D134>=Inputs!$F$45,D134<=Inputs!$F$46),AND(D134>=Inputs!$G$45,D134<=Inputs!$G$46),AND(D134>=Inputs!$H$45,D134<=Inputs!$H$46),IFERROR(AND(D134>=0,D134<=Inputs!$H$46-168),FALSE)) -> FALSE | F134: =OR(AND(D134>=Inputs!$I$55,D134<=Inputs!$I$56),AND(D134>=Inputs!$C$55,D134<=Inputs!$C$56),AND(D134>=Inputs!$D$55,D134<=Inputs!$D$56),AND(D134>=Inputs!$E$55,D134<=Inputs!$E$56),AND(D134>=Inputs!$F$55,D134<=Inputs!$F$56),AND(D134>=Inputs!$G$55,D134<=Inputs!$G$56),AND(D134>=Inputs!$H$55,D134<=Inputs!$H$56),IFERROR(AND(D134>=0,D134<=Inputs!$H$56-168),FALSE)) -> FALSE | G134: =OR(AND(D134>=Inputs!$I$65,D134<=Inputs!$I$66),AND(D134>=Inputs!$C$65,D134<=Inputs!$C$66),AND(D134>=Inputs!$D$65,D134<=Inputs!$D$66),AND(D134>=Inputs!$E$65,D134<=Inputs!$E$66),AND(D134>=Inputs!$F$65,D134<=Inputs!$F$66),AND(D134>=Inputs!$G$65,D134<=Inputs!$G$66),AND(D134>=Inputs!$H$65,D134<=Inputs!$H$66),IFERROR(AND(D134>=0,D134<=Inputs!$H$66-168),FALSE)) -> FALSE | H134: =OR(AND(D134>=Inputs!$I$75,D134<=Inputs!$I$76),AND(D134>=Inputs!$C$75,D134<=Inputs!$C$76),AND(D134>=Inputs!$D$75,D134<=Inputs!$D$76),AND(D134>=Inputs!$E$75,D134<=Inputs!$E$76),AND(D134>=Inputs!$F$75,D134<=Inputs!$F$76),AND(D134>=Inputs!$G$75,D134<=Inputs!$G$76),AND(D134>=Inputs!$H$75,D134<=Inputs!$H$76),IFERROR(AND(D134>=0,D134<=Inputs!$H$76-168),FALSE)) -> FALSE | I134: 0 | J134: 0
B135: Tuesday | C135: 01:00:00 | D135: 49 | E135: =OR(AND(D135>=Inputs!$I$45,D135<=Inputs!$I$46),AND(D135>=Inputs!$C$45,D135<=Inputs!$C$46),AND(D135>=Inputs!$D$45,D135<=Inputs!$D$46),AND(D135>=Inputs!$E$45,D135<=Inputs!$E$46),AND(D135>=Inputs!$F$45,D135<=Inputs!$F$46),AND(D135>=Inputs!$G$45,D135<=Inputs!$G$46),AND(D135>=Inputs!$H$45,D135<=Inputs!$H$46),IFERROR(AND(D135>=0,D135<=Inputs!$H$46-168),FALSE)) -> FALSE | F135: =OR(AND(D135>=Inputs!$I$55,D135<=Inputs!$I$56),AND(D135>=Inputs!$C$55,D135<=Inputs!$C$56),AND(D135>=Inputs!$D$55,D135<=Inputs!$D$56),AND(D135>=Inputs!$E$55,D135<=Inputs!$E$56),AND(D135>=Inputs!$F$55,D135<=Inputs!$F$56),AND(D135>=Inputs!$G$55,D135<=Inputs!$G$56),AND(D135>=Inputs!$H$55,D135<=Inputs!$H$56),IFERROR(AND(D135>=0,D135<=Inputs!$H$56-168),FALSE)) -> FALSE | G135: =OR(AND(D135>=Inputs!$I$65,D135<=Inputs!$I$66),AND(D135>=Inputs!$C$65,D135<=Inputs!$C$66),AND(D135>=Inputs!$D$65,D135<=Inputs!$D$66),AND(D135>=Inputs!$E$65,D135<=Inputs!$E$66),AND(D135>=Inputs!$F$65,D135<=Inputs!$F$66),AND(D135>=Inputs!$G$65,D135<=Inputs!$G$66),AND(D135>=Inputs!$H$65,D135<=Inputs!$H$66),IFERROR(AND(D135>=0,D135<=Inputs!$H$66-168),FALSE)) -> FALSE | H135: =OR(AND(D135>=Inputs!$I$75,D135<=Inputs!$I$76),AND(D135>=Inputs!$C$75,D135<=Inputs!$C$76),AND(D135>=Inputs!$D$75,D135<=Inputs!$D$76),AND(D135>=Inputs!$E$75,D135<=Inputs!$E$76),AND(D135>=Inputs!$F$75,D135<=Inputs!$F$76),AND(D135>=Inputs!$G$75,D135<=Inputs!$G$76),AND(D135>=Inputs!$H$75,D135<=Inputs!$H$76),IFERROR(AND(D135>=0,D135<=Inputs!$H$76-168),FALSE)) -> FALSE | I135: 0 | J135: 0
B136: Tuesday | C136: 02:00:00 | D136: 50 | E136: =OR(AND(D136>=Inputs!$I$45,D136<=Inputs!$I$46),AND(D136>=Inputs!$C$45,D136<=Inputs!$C$46),AND(D136>=Inputs!$D$45,D136<=Inputs!$D$46),AND(D136>=Inputs!$E$45,D136<=Inputs!$E$46),AND(D136>=Inputs!$F$45,D136<=Inputs!$F$46),AND(D136>=Inputs!$G$45,D136<=Inputs!$G$46),AND(D136>=Inputs!$H$45,D136<=Inputs!$H$46),IFERROR(AND(D136>=0,D136<=Inputs!$H$46-168),FALSE)) -> FALSE | F136: =OR(AND(D136>=Inputs!$I$55,D136<=Inputs!$I$56),AND(D136>=Inputs!$C$55,D136<=Inputs!$C$56),AND(D136>=Inputs!$D$55,D136<=Inputs!$D$56),AND(D136>=Inputs!$E$55,D136<=Inputs!$E$56),AND(D136>=Inputs!$F$55,D136<=Inputs!$F$56),AND(D136>=Inputs!$G$55,D136<=Inputs!$G$56),AND(D136>=Inputs!$H$55,D136<=Inputs!$H$56),IFERROR(AND(D136>=0,D136<=Inputs!$H$56-168),FALSE)) -> FALSE | G136: =OR(AND(D136>=Inputs!$I$65,D136<=Inputs!$I$66),AND(D136>=Inputs!$C$65,D136<=Inputs!$C$66),AND(D136>=Inputs!$D$65,D136<=Inputs!$D$66),AND(D136>=Inputs!$E$65,D136<=Inputs!$E$66),AND(D136>=Inputs!$F$65,D136<=Inputs!$F$66),AND(D136>=Inputs!$G$65,D136<=Inputs!$G$66),AND(D136>=Inputs!$H$65,D136<=Inputs!$H$66),IFERROR(AND(D136>=0,D136<=Inputs!$H$66-168),FALSE)) -> FALSE | H136: =OR(AND(D136>=Inputs!$I$75,D136<=Inputs!$I$76),AND(D136>=Inputs!$C$75,D136<=Inputs!$C$76),AND(D136>=Inputs!$D$75,D136<=Inputs!$D$76),AND(D136>=Inputs!$E$75,D136<=Inputs!$E$76),AND(D136>=Inputs!$F$75,D136<=Inputs!$F$76),AND(D136>=Inputs!$G$75,D136<=Inputs!$G$76),AND(D136>=Inputs!$H$75,D136<=Inputs!$H$76),IFERROR(AND(D136>=0,D136<=Inputs!$H$76-168),FALSE)) -> FALSE | I136: 0 | J136: 0
B137: Tuesday | C137: 03:00:00 | D137: 51 | E137: =OR(AND(D137>=Inputs!$I$45,D137<=Inputs!$I$46),AND(D137>=Inputs!$C$45,D137<=Inputs!$C$46),AND(D137>=Inputs!$D$45,D137<=Inputs!$D$46),AND(D137>=Inputs!$E$45,D137<=Inputs!$E$46),AND(D137>=Inputs!$F$45,D137<=Inputs!$F$46),AND(D137>=Inputs!$G$45,D137<=Inputs!$G$46),AND(D137>=Inputs!$H$45,D137<=Inputs!$H$46),IFERROR(AND(D137>=0,D137<=Inputs!$H$46-168),FALSE)) -> FALSE | F137: =OR(AND(D137>=Inputs!$I$55,D137<=Inputs!$I$56),AND(D137>=Inputs!$C$55,D137<=Inputs!$C$56),AND(D137>=Inputs!$D$55,D137<=Inputs!$D$56),AND(D137>=Inputs!$E$55,D137<=Inputs!$E$56),AND(D137>=Inputs!$F$55,D137<=Inputs!$F$56),AND(D137>=Inputs!$G$55,D137<=Inputs!$G$56),AND(D137>=Inputs!$H$55,D137<=Inputs!$H$56),IFERROR(AND(D137>=0,D137<=Inputs!$H$56-168),FALSE)) -> FALSE | G137: =OR(AND(D137>=Inputs!$I$65,D137<=Inputs!$I$66),AND(D137>=Inputs!$C$65,D137<=Inputs!$C$66),AND(D137>=Inputs!$D$65,D137<=Inputs!$D$66),AND(D137>=Inputs!$E$65,D137<=Inputs!$E$66),AND(D137>=Inputs!$F$65,D137<=Inputs!$F$66),AND(D137>=Inputs!$G$65,D137<=Inputs!$G$66),AND(D137>=Inputs!$H$65,D137<=Inputs!$H$66),IFERROR(AND(D137>=0,D137<=Inputs!$H$66-168),FALSE)) -> FALSE | H137: =OR(AND(D137>=Inputs!$I$75,D137<=Inputs!$I$76),AND(D137>=Inputs!$C$75,D137<=Inputs!$C$76),AND(D137>=Inputs!$D$75,D137<=Inputs!$D$76),AND(D137>=Inputs!$E$75,D137<=Inputs!$E$76),AND(D137>=Inputs!$F$75,D137<=Inputs!$F$76),AND(D137>=Inputs!$G$75,D137<=Inputs!$G$76),AND(D137>=Inputs!$H$75,D137<=Inputs!$H$76),IFERROR(AND(D137>=0,D137<=Inputs!$H$76-168),FALSE)) -> FALSE | I137: 0 | J137: 0
B138: Tuesday | C138: 04:00:00 | D138: 52 | E138: =OR(AND(D138>=Inputs!$I$45,D138<=Inputs!$I$46),AND(D138>=Inputs!$C$45,D138<=Inputs!$C$46),AND(D138>=Inputs!$D$45,D138<=Inputs!$D$46),AND(D138>=Inputs!$E$45,D138<=Inputs!$E$46),AND(D138>=Inputs!$F$45,D138<=Inputs!$F$46),AND(D138>=Inputs!$G$45,D138<=Inputs!$G$46),AND(D138>=Inputs!$H$45,D138<=Inputs!$H$46),IFERROR(AND(D138>=0,D138<=Inputs!$H$46-168),FALSE)) -> FALSE | F138: =OR(AND(D138>=Inputs!$I$55,D138<=Inputs!$I$56),AND(D138>=Inputs!$C$55,D138<=Inputs!$C$56),AND(D138>=Inputs!$D$55,D138<=Inputs!$D$56),AND(D138>=Inputs!$E$55,D138<=Inputs!$E$56),AND(D138>=Inputs!$F$55,D138<=Inputs!$F$56),AND(D138>=Inputs!$G$55,D138<=Inputs!$G$56),AND(D138>=Inputs!$H$55,D138<=Inputs!$H$56),IFERROR(AND(D138>=0,D138<=Inputs!$H$56-168),FALSE)) -> FALSE | G138: =OR(AND(D138>=Inputs!$I$65,D138<=Inputs!$I$66),AND(D138>=Inputs!$C$65,D138<=Inputs!$C$66),AND(D138>=Inputs!$D$65,D138<=Inputs!$D$66),AND(D138>=Inputs!$E$65,D138<=Inputs!$E$66),AND(D138>=Inputs!$F$65,D138<=Inputs!$F$66),AND(D138>=Inputs!$G$65,D138<=Inputs!$G$66),AND(D138>=Inputs!$H$65,D138<=Inputs!$H$66),IFERROR(AND(D138>=0,D138<=Inputs!$H$66-168),FALSE)) -> FALSE | H138: =OR(AND(D138>=Inputs!$I$75,D138<=Inputs!$I$76),AND(D138>=Inputs!$C$75,D138<=Inputs!$C$76),AND(D138>=Inputs!$D$75,D138<=Inputs!$D$76),AND(D138>=Inputs!$E$75,D138<=Inputs!$E$76),AND(D138>=Inputs!$F$75,D138<=Inputs!$F$76),AND(D138>=Inputs!$G$75,D138<=Inputs!$G$76),AND(D138>=Inputs!$H$75,D138<=Inputs!$H$76),IFERROR(AND(D138>=0,D138<=Inputs!$H$76-168),FALSE)) -> FALSE | I138: 0 | J138: 0
B139: Tuesday | C139: 05:00:00 | D139: 53 | E139: =OR(AND(D139>=Inputs!$I$45,D139<=Inputs!$I$46),AND(D139>=Inputs!$C$45,D139<=Inputs!$C$46),AND(D139>=Inputs!$D$45,D139<=Inputs!$D$46),AND(D139>=Inputs!$E$45,D139<=Inputs!$E$46),AND(D139>=Inputs!$F$45,D139<=Inputs!$F$46),AND(D139>=Inputs!$G$45,D139<=Inputs!$G$46),AND(D139>=Inputs!$H$45,D139<=Inputs!$H$46),IFERROR(AND(D139>=0,D139<=Inputs!$H$46-168),FALSE)) -> FALSE | F139: =OR(AND(D139>=Inputs!$I$55,D139<=Inputs!$I$56),AND(D139>=Inputs!$C$55,D139<=Inputs!$C$56),AND(D139>=Inputs!$D$55,D139<=Inputs!$D$56),AND(D139>=Inputs!$E$55,D139<=Inputs!$E$56),AND(D139>=Inputs!$F$55,D139<=Inputs!$F$56),AND(D139>=Inputs!$G$55,D139<=Inputs!$G$56),AND(D139>=Inputs!$H$55,D139<=Inputs!$H$56),IFERROR(AND(D139>=0,D139<=Inputs!$H$56-168),FALSE)) -> FALSE | G139: =OR(AND(D139>=Inputs!$I$65,D139<=Inputs!$I$66),AND(D139>=Inputs!$C$65,D139<=Inputs!$C$66),AND(D139>=Inputs!$D$65,D139<=Inputs!$D$66),AND(D139>=Inputs!$E$65,D139<=Inputs!$E$66),AND(D139>=Inputs!$F$65,D139<=Inputs!$F$66),AND(D139>=Inputs!$G$65,D139<=Inputs!$G$66),AND(D139>=Inputs!$H$65,D139<=Inputs!$H$66),IFERROR(AND(D139>=0,D139<=Inputs!$H$66-168),FALSE)) -> FALSE | H139: =OR(AND(D139>=Inputs!$I$75,D139<=Inputs!$I$76),AND(D139>=Inputs!$C$75,D139<=Inputs!$C$76),AND(D139>=Inputs!$D$75,D139<=Inputs!$D$76),AND(D139>=Inputs!$E$75,D139<=Inputs!$E$76),AND(D139>=Inputs!$F$75,D139<=Inputs!$F$76),AND(D139>=Inputs!$G$75,D139<=Inputs!$G$76),AND(D139>=Inputs!$H$75,D139<=Inputs!$H$76),IFERROR(AND(D139>=0,D139<=Inputs!$H$76-168),FALSE)) -> FALSE | I139: 0 | J139: 0
B140: Tuesday | C140: 06:00:00 | D140: 54 | E140: =OR(AND(D140>=Inputs!$I$45,D140<=Inputs!$I$46),AND(D140>=Inputs!$C$45,D140<=Inputs!$C$46),AND(D140>=Inputs!$D$45,D140<=Inputs!$D$46),AND(D140>=Inputs!$E$45,D140<=Inputs!$E$46),AND(D140>=Inputs!$F$45,D140<=Inputs!$F$46),AND(D140>=Inputs!$G$45,D140<=Inputs!$G$46),AND(D140>=Inputs!$H$45,D140<=Inputs!$H$46),IFERROR(AND(D140>=0,D140<=Inputs!$H$46-168),FALSE)) -> FALSE | F140: =OR(AND(D140>=Inputs!$I$55,D140<=Inputs!$I$56),AND(D140>=Inputs!$C$55,D140<=Inputs!$C$56),AND(D140>=Inputs!$D$55,D140<=Inputs!$D$56),AND(D140>=Inputs!$E$55,D140<=Inputs!$E$56),AND(D140>=Inputs!$F$55,D140<=Inputs!$F$56),AND(D140>=Inputs!$G$55,D140<=Inputs!$G$56),AND(D140>=Inputs!$H$55,D140<=Inputs!$H$56),IFERROR(AND(D140>=0,D140<=Inputs!$H$56-168),FALSE)) -> FALSE | G140: =OR(AND(D140>=Inputs!$I$65,D140<=Inputs!$I$66),AND(D140>=Inputs!$C$65,D140<=Inputs!$C$66),AND(D140>=Inputs!$D$65,D140<=Inputs!$D$66),AND(D140>=Inputs!$E$65,D140<=Inputs!$E$66),AND(D140>=Inputs!$F$65,D140<=Inputs!$F$66),AND(D140>=Inputs!$G$65,D140<=Inputs!$G$66),AND(D140>=Inputs!$H$65,D140<=Inputs!$H$66),IFERROR(AND(D140>=0,D140<=Inputs!$H$66-168),FALSE)) -> FALSE | H140: =OR(AND(D140>=Inputs!$I$75,D140<=Inputs!$I$76),AND(D140>=Inputs!$C$75,D140<=Inputs!$C$76),AND(D140>=Inputs!$D$75,D140<=Inputs!$D$76),AND(D140>=Inputs!$E$75,D140<=Inputs!$E$76),AND(D140>=Inputs!$F$75,D140<=Inputs!$F$76),AND(D140>=Inputs!$G$75,D140<=Inputs!$G$76),AND(D140>=Inputs!$H$75,D140<=Inputs!$H$76),IFERROR(AND(D140>=0,D140<=Inputs!$H$76-168),FALSE)) -> FALSE | I140: 0 | J140: 0
B141: Tuesday | C141: 07:00:00 | D141: 55 | E141: =OR(AND(D141>=Inputs!$I$45,D141<=Inputs!$I$46),AND(D141>=Inputs!$C$45,D141<=Inputs!$C$46),AND(D141>=Inputs!$D$45,D141<=Inputs!$D$46),AND(D141>=Inputs!$E$45,D141<=Inputs!$E$46),AND(D141>=Inputs!$F$45,D141<=Inputs!$F$46),AND(D141>=Inputs!$G$45,D141<=Inputs!$G$46),AND(D141>=Inputs!$H$45,D141<=Inputs!$H$46),IFERROR(AND(D141>=0,D141<=Inputs!$H$46-168),FALSE)) -> FALSE | F141: =OR(AND(D141>=Inputs!$I$55,D141<=Inputs!$I$56),AND(D141>=Inputs!$C$55,D141<=Inputs!$C$56),AND(D141>=Inputs!$D$55,D141<=Inputs!$D$56),AND(D141>=Inputs!$E$55,D141<=Inputs!$E$56),AND(D141>=Inputs!$F$55,D141<=Inputs!$F$56),AND(D141>=Inputs!$G$55,D141<=Inputs!$G$56),AND(D141>=Inputs!$H$55,D141<=Inputs!$H$56),IFERROR(AND(D141>=0,D141<=Inputs!$H$56-168),FALSE)) -> FALSE | G141: =OR(AND(D141>=Inputs!$I$65,D141<=Inputs!$I$66),AND(D141>=Inputs!$C$65,D141<=Inputs!$C$66),AND(D141>=Inputs!$D$65,D141<=Inputs!$D$66),AND(D141>=Inputs!$E$65,D141<=Inputs!$E$66),AND(D141>=Inputs!$F$65,D141<=Inputs!$F$66),AND(D141>=Inputs!$G$65,D141<=Inputs!$G$66),AND(D141>=Inputs!$H$65,D141<=Inputs!$H$66),IFERROR(AND(D141>=0,D141<=Inputs!$H$66-168),FALSE)) -> FALSE | H141: =OR(AND(D141>=Inputs!$I$75,D141<=Inputs!$I$76),AND(D141>=Inputs!$C$75,D141<=Inputs!$C$76),AND(D141>=Inputs!$D$75,D141<=Inputs!$D$76),AND(D141>=Inputs!$E$75,D141<=Inputs!$E$76),AND(D141>=Inputs!$F$75,D141<=Inputs!$F$76),AND(D141>=Inputs!$G$75,D141<=Inputs!$G$76),AND(D141>=Inputs!$H$75,D141<=Inputs!$H$76),IFERROR(AND(D141>=0,D141<=Inputs!$H$76-168),FALSE)) -> FALSE | I141: 0 | J141: 0
B142: Tuesday | C142: 08:00:00 | D142: 56 | E142: =OR(AND(D142>=Inputs!$I$45,D142<=Inputs!$I$46),AND(D142>=Inputs!$C$45,D142<=Inputs!$C$46),AND(D142>=Inputs!$D$45,D142<=Inputs!$D$46),AND(D142>=Inputs!$E$45,D142<=Inputs!$E$46),AND(D142>=Inputs!$F$45,D142<=Inputs!$F$46),AND(D142>=Inputs!$G$45,D142<=Inputs!$G$46),AND(D142>=Inputs!$H$45,D142<=Inputs!$H$46),IFERROR(AND(D142>=0,D142<=Inputs!$H$46-168),FALSE)) -> FALSE | F142: =OR(AND(D142>=Inputs!$I$55,D142<=Inputs!$I$56),AND(D142>=Inputs!$C$55,D142<=Inputs!$C$56),AND(D142>=Inputs!$D$55,D142<=Inputs!$D$56),AND(D142>=Inputs!$E$55,D142<=Inputs!$E$56),AND(D142>=Inputs!$F$55,D142<=Inputs!$F$56),AND(D142>=Inputs!$G$55,D142<=Inputs!$G$56),AND(D142>=Inputs!$H$55,D142<=Inputs!$H$56),IFERROR(AND(D142>=0,D142<=Inputs!$H$56-168),FALSE)) -> FALSE | G142: =OR(AND(D142>=Inputs!$I$65,D142<=Inputs!$I$66),AND(D142>=Inputs!$C$65,D142<=Inputs!$C$66),AND(D142>=Inputs!$D$65,D142<=Inputs!$D$66),AND(D142>=Inputs!$E$65,D142<=Inputs!$E$66),AND(D142>=Inputs!$F$65,D142<=Inputs!$F$66),AND(D142>=Inputs!$G$65,D142<=Inputs!$G$66),AND(D142>=Inputs!$H$65,D142<=Inputs!$H$66),IFERROR(AND(D142>=0,D142<=Inputs!$H$66-168),FALSE)) -> FALSE | H142: =OR(AND(D142>=Inputs!$I$75,D142<=Inputs!$I$76),AND(D142>=Inputs!$C$75,D142<=Inputs!$C$76),AND(D142>=Inputs!$D$75,D142<=Inputs!$D$76),AND(D142>=Inputs!$E$75,D142<=Inputs!$E$76),AND(D142>=Inputs!$F$75,D142<=Inputs!$F$76),AND(D142>=Inputs!$G$75,D142<=Inputs!$G$76),AND(D142>=Inputs!$H$75,D142<=Inputs!$H$76),IFERROR(AND(D142>=0,D142<=Inputs!$H$76-168),FALSE)) -> FALSE | I142: 0 | J142: 0
B143: Tuesday | C143: 09:00:00 | D143: 57 | E143: =OR(AND(D143>=Inputs!$I$45,D143<=Inputs!$I$46),AND(D143>=Inputs!$C$45,D143<=Inputs!$C$46),AND(D143>=Inputs!$D$45,D143<=Inputs!$D$46),AND(D143>=Inputs!$E$45,D143<=Inputs!$E$46),AND(D143>=Inputs!$F$45,D143<=Inputs!$F$46),AND(D143>=Inputs!$G$45,D143<=Inputs!$G$46),AND(D143>=Inputs!$H$45,D143<=Inputs!$H$46),IFERROR(AND(D143>=0,D143<=Inputs!$H$46-168),FALSE)) -> TRUE | F143: =OR(AND(D143>=Inputs!$I$55,D143<=Inputs!$I$56),AND(D143>=Inputs!$C$55,D143<=Inputs!$C$56),AND(D143>=Inputs!$D$55,D143<=Inputs!$D$56),AND(D143>=Inputs!$E$55,D143<=Inputs!$E$56),AND(D143>=Inputs!$F$55,D143<=Inputs!$F$56),AND(D143>=Inputs!$G$55,D143<=Inputs!$G$56),AND(D143>=Inputs!$H$55,D143<=Inputs!$H$56),IFERROR(AND(D143>=0,D143<=Inputs!$H$56-168),FALSE)) -> FALSE | G143: =OR(AND(D143>=Inputs!$I$65,D143<=Inputs!$I$66),AND(D143>=Inputs!$C$65,D143<=Inputs!$C$66),AND(D143>=Inputs!$D$65,D143<=Inputs!$D$66),AND(D143>=Inputs!$E$65,D143<=Inputs!$E$66),AND(D143>=Inputs!$F$65,D143<=Inputs!$F$66),AND(D143>=Inputs!$G$65,D143<=Inputs!$G$66),AND(D143>=Inputs!$H$65,D143<=Inputs!$H$66),IFERROR(AND(D143>=0,D143<=Inputs!$H$66-168),FALSE)) -> FALSE | H143: =OR(AND(D143>=Inputs!$I$75,D143<=Inputs!$I$76),AND(D143>=Inputs!$C$75,D143<=Inputs!$C$76),AND(D143>=Inputs!$D$75,D143<=Inputs!$D$76),AND(D143>=Inputs!$E$75,D143<=Inputs!$E$76),AND(D143>=Inputs!$F$75,D143<=Inputs!$F$76),AND(D143>=Inputs!$G$75,D143<=Inputs!$G$76),AND(D143>=Inputs!$H$75,D143<=Inputs!$H$76),IFERROR(AND(D143>=0,D143<=Inputs!$H$76-168),FALSE)) -> FALSE | I143: 1 | J143: 0
B144: Tuesday | C144: 10:00:00 | D144: 58 | E144: =OR(AND(D144>=Inputs!$I$45,D144<=Inputs!$I$46),AND(D144>=Inputs!$C$45,D144<=Inputs!$C$46),AND(D144>=Inputs!$D$45,D144<=Inputs!$D$46),AND(D144>=Inputs!$E$45,D144<=Inputs!$E$46),AND(D144>=Inputs!$F$45,D144<=Inputs!$F$46),AND(D144>=Inputs!$G$45,D144<=Inputs!$G$46),AND(D144>=Inputs!$H$45,D144<=Inputs!$H$46),IFERROR(AND(D144>=0,D144<=Inputs!$H$46-168),FALSE)) -> TRUE | F144: =OR(AND(D144>=Inputs!$I$55,D144<=Inputs!$I$56),AND(D144>=Inputs!$C$55,D144<=Inputs!$C$56),AND(D144>=Inputs!$D$55,D144<=Inputs!$D$56),AND(D144>=Inputs!$E$55,D144<=Inputs!$E$56),AND(D144>=Inputs!$F$55,D144<=Inputs!$F$56),AND(D144>=Inputs!$G$55,D144<=Inputs!$G$56),AND(D144>=Inputs!$H$55,D144<=Inputs!$H$56),IFERROR(AND(D144>=0,D144<=Inputs!$H$56-168),FALSE)) -> FALSE | G144: =OR(AND(D144>=Inputs!$I$65,D144<=Inputs!$I$66),AND(D144>=Inputs!$C$65,D144<=Inputs!$C$66),AND(D144>=Inputs!$D$65,D144<=Inputs!$D$66),AND(D144>=Inputs!$E$65,D144<=Inputs!$E$66),AND(D144>=Inputs!$F$65,D144<=Inputs!$F$66),AND(D144>=Inputs!$G$65,D144<=Inputs!$G$66),AND(D144>=Inputs!$H$65,D144<=Inputs!$H$66),IFERROR(AND(D144>=0,D144<=Inputs!$H$66-168),FALSE)) -> FALSE | H144: =OR(AND(D144>=Inputs!$I$75,D144<=Inputs!$I$76),AND(D144>=Inputs!$C$75,D144<=Inputs!$C$76),AND(D144>=Inputs!$D$75,D144<=Inputs!$D$76),AND(D144>=Inputs!$E$75,D144<=Inputs!$E$76),AND(D144>=Inputs!$F$75,D144<=Inputs!$F$76),AND(D144>=Inputs!$G$75,D144<=Inputs!$G$76),AND(D144>=Inputs!$H$75,D144<=Inputs!$H$76),IFERROR(AND(D144>=0,D144<=Inputs!$H$76-168),FALSE)) -> FALSE | I144: 1 | J144: 0
B145: Tuesday | C145: 11:00:00 | D145: 59 | E145: =OR(AND(D145>=Inputs!$I$45,D145<=Inputs!$I$46),AND(D145>=Inputs!$C$45,D145<=Inputs!$C$46),AND(D145>=Inputs!$D$45,D145<=Inputs!$D$46),AND(D145>=Inputs!$E$45,D145<=Inputs!$E$46),AND(D145>=Inputs!$F$45,D145<=Inputs!$F$46),AND(D145>=Inputs!$G$45,D145<=Inputs!$G$46),AND(D145>=Inputs!$H$45,D145<=Inputs!$H$46),IFERROR(AND(D145>=0,D145<=Inputs!$H$46-168),FALSE)) -> TRUE | F145: =OR(AND(D145>=Inputs!$I$55,D145<=Inputs!$I$56),AND(D145>=Inputs!$C$55,D145<=Inputs!$C$56),AND(D145>=Inputs!$D$55,D145<=Inputs!$D$56),AND(D145>=Inputs!$E$55,D145<=Inputs!$E$56),AND(D145>=Inputs!$F$55,D145<=Inputs!$F$56),AND(D145>=Inputs!$G$55,D145<=Inputs!$G$56),AND(D145>=Inputs!$H$55,D145<=Inputs!$H$56),IFERROR(AND(D145>=0,D145<=Inputs!$H$56-168),FALSE)) -> FALSE | G145: =OR(AND(D145>=Inputs!$I$65,D145<=Inputs!$I$66),AND(D145>=Inputs!$C$65,D145<=Inputs!$C$66),AND(D145>=Inputs!$D$65,D145<=Inputs!$D$66),AND(D145>=Inputs!$E$65,D145<=Inputs!$E$66),AND(D145>=Inputs!$F$65,D145<=Inputs!$F$66),AND(D145>=Inputs!$G$65,D145<=Inputs!$G$66),AND(D145>=Inputs!$H$65,D145<=Inputs!$H$66),IFERROR(AND(D145>=0,D145<=Inputs!$H$66-168),FALSE)) -> FALSE | H145: =OR(AND(D145>=Inputs!$I$75,D145<=Inputs!$I$76),AND(D145>=Inputs!$C$75,D145<=Inputs!$C$76),AND(D145>=Inputs!$D$75,D145<=Inputs!$D$76),AND(D145>=Inputs!$E$75,D145<=Inputs!$E$76),AND(D145>=Inputs!$F$75,D145<=Inputs!$F$76),AND(D145>=Inputs!$G$75,D145<=Inputs!$G$76),AND(D145>=Inputs!$H$75,D145<=Inputs!$H$76),IFERROR(AND(D145>=0,D145<=Inputs!$H$76-168),FALSE)) -> FALSE | I145: 1 | J145: 0
B146: Tuesday | C146: 12:00:00 | D146: 60 | E146: =OR(AND(D146>=Inputs!$I$45,D146<=Inputs!$I$46),AND(D146>=Inputs!$C$45,D146<=Inputs!$C$46),AND(D146>=Inputs!$D$45,D146<=Inputs!$D$46),AND(D146>=Inputs!$E$45,D146<=Inputs!$E$46),AND(D146>=Inputs!$F$45,D146<=Inputs!$F$46),AND(D146>=Inputs!$G$45,D146<=Inputs!$G$46),AND(D146>=Inputs!$H$45,D146<=Inputs!$H$46),IFERROR(AND(D146>=0,D146<=Inputs!$H$46-168),FALSE)) -> TRUE | F146: =OR(AND(D146>=Inputs!$I$55,D146<=Inputs!$I$56),AND(D146>=Inputs!$C$55,D146<=Inputs!$C$56),AND(D146>=Inputs!$D$55,D146<=Inputs!$D$56),AND(D146>=Inputs!$E$55,D146<=Inputs!$E$56),AND(D146>=Inputs!$F$55,D146<=Inputs!$F$56),AND(D146>=Inputs!$G$55,D146<=Inputs!$G$56),AND(D146>=Inputs!$H$55,D146<=Inputs!$H$56),IFERROR(AND(D146>=0,D146<=Inputs!$H$56-168),FALSE)) -> FALSE | G146: =OR(AND(D146>=Inputs!$I$65,D146<=Inputs!$I$66),AND(D146>=Inputs!$C$65,D146<=Inputs!$C$66),AND(D146>=Inputs!$D$65,D146<=Inputs!$D$66),AND(D146>=Inputs!$E$65,D146<=Inputs!$E$66),AND(D146>=Inputs!$F$65,D146<=Inputs!$F$66),AND(D146>=Inputs!$G$65,D146<=Inputs!$G$66),AND(D146>=Inputs!$H$65,D146<=Inputs!$H$66),IFERROR(AND(D146>=0,D146<=Inputs!$H$66-168),FALSE)) -> FALSE | H146: =OR(AND(D146>=Inputs!$I$75,D146<=Inputs!$I$76),AND(D146>=Inputs!$C$75,D146<=Inputs!$C$76),AND(D146>=Inputs!$D$75,D146<=Inputs!$D$76),AND(D146>=Inputs!$E$75,D146<=Inputs!$E$76),AND(D146>=Inputs!$F$75,D146<=Inputs!$F$76),AND(D146>=Inputs!$G$75,D146<=Inputs!$G$76),AND(D146>=Inputs!$H$75,D146<=Inputs!$H$76),IFERROR(AND(D146>=0,D146<=Inputs!$H$76-168),FALSE)) -> FALSE | I146: 1 | J146: 0
B147: Tuesday | C147: 13:00:00 | D147: 61 | E147: =OR(AND(D147>=Inputs!$I$45,D147<=Inputs!$I$46),AND(D147>=Inputs!$C$45,D147<=Inputs!$C$46),AND(D147>=Inputs!$D$45,D147<=Inputs!$D$46),AND(D147>=Inputs!$E$45,D147<=Inputs!$E$46),AND(D147>=Inputs!$F$45,D147<=Inputs!$F$46),AND(D147>=Inputs!$G$45,D147<=Inputs!$G$46),AND(D147>=Inputs!$H$45,D147<=Inputs!$H$46),IFERROR(AND(D147>=0,D147<=Inputs!$H$46-168),FALSE)) -> TRUE | F147: =OR(AND(D147>=Inputs!$I$55,D147<=Inputs!$I$56),AND(D147>=Inputs!$C$55,D147<=Inputs!$C$56),AND(D147>=Inputs!$D$55,D147<=Inputs!$D$56),AND(D147>=Inputs!$E$55,D147<=Inputs!$E$56),AND(D147>=Inputs!$F$55,D147<=Inputs!$F$56),AND(D147>=Inputs!$G$55,D147<=Inputs!$G$56),AND(D147>=Inputs!$H$55,D147<=Inputs!$H$56),IFERROR(AND(D147>=0,D147<=Inputs!$H$56-168),FALSE)) -> FALSE | G147: =OR(AND(D147>=Inputs!$I$65,D147<=Inputs!$I$66),AND(D147>=Inputs!$C$65,D147<=Inputs!$C$66),AND(D147>=Inputs!$D$65,D147<=Inputs!$D$66),AND(D147>=Inputs!$E$65,D147<=Inputs!$E$66),AND(D147>=Inputs!$F$65,D147<=Inputs!$F$66),AND(D147>=Inputs!$G$65,D147<=Inputs!$G$66),AND(D147>=Inputs!$H$65,D147<=Inputs!$H$66),IFERROR(AND(D147>=0,D147<=Inputs!$H$66-168),FALSE)) -> FALSE | H147: =OR(AND(D147>=Inputs!$I$75,D147<=Inputs!$I$76),AND(D147>=Inputs!$C$75,D147<=Inputs!$C$76),AND(D147>=Inputs!$D$75,D147<=Inputs!$D$76),AND(D147>=Inputs!$E$75,D147<=Inputs!$E$76),AND(D147>=Inputs!$F$75,D147<=Inputs!$F$76),AND(D147>=Inputs!$G$75,D147<=Inputs!$G$76),AND(D147>=Inputs!$H$75,D147<=Inputs!$H$76),IFERROR(AND(D147>=0,D147<=Inputs!$H$76-168),FALSE)) -> FALSE | I147: 1 | J147: 0
B148: Tuesday | C148: 14:00:00 | D148: 62 | E148: =OR(AND(D148>=Inputs!$I$45,D148<=Inputs!$I$46),AND(D148>=Inputs!$C$45,D148<=Inputs!$C$46),AND(D148>=Inputs!$D$45,D148<=Inputs!$D$46),AND(D148>=Inputs!$E$45,D148<=Inputs!$E$46),AND(D148>=Inputs!$F$45,D148<=Inputs!$F$46),AND(D148>=Inputs!$G$45,D148<=Inputs!$G$46),AND(D148>=Inputs!$H$45,D148<=Inputs!$H$46),IFERROR(AND(D148>=0,D148<=Inputs!$H$46-168),FALSE)) -> FALSE | F148: =OR(AND(D148>=Inputs!$I$55,D148<=Inputs!$I$56),AND(D148>=Inputs!$C$55,D148<=Inputs!$C$56),AND(D148>=Inputs!$D$55,D148<=Inputs!$D$56),AND(D148>=Inputs!$E$55,D148<=Inputs!$E$56),AND(D148>=Inputs!$F$55,D148<=Inputs!$F$56),AND(D148>=Inputs!$G$55,D148<=Inputs!$G$56),AND(D148>=Inputs!$H$55,D148<=Inputs!$H$56),IFERROR(AND(D148>=0,D148<=Inputs!$H$56-168),FALSE)) -> FALSE | G148: =OR(AND(D148>=Inputs!$I$65,D148<=Inputs!$I$66),AND(D148>=Inputs!$C$65,D148<=Inputs!$C$66),AND(D148>=Inputs!$D$65,D148<=Inputs!$D$66),AND(D148>=Inputs!$E$65,D148<=Inputs!$E$66),AND(D148>=Inputs!$F$65,D148<=Inputs!$F$66),AND(D148>=Inputs!$G$65,D148<=Inputs!$G$66),AND(D148>=Inputs!$H$65,D148<=Inputs!$H$66),IFERROR(AND(D148>=0,D148<=Inputs!$H$66-168),FALSE)) -> FALSE | H148: =OR(AND(D148>=Inputs!$I$75,D148<=Inputs!$I$76),AND(D148>=Inputs!$C$75,D148<=Inputs!$C$76),AND(D148>=Inputs!$D$75,D148<=Inputs!$D$76),AND(D148>=Inputs!$E$75,D148<=Inputs!$E$76),AND(D148>=Inputs!$F$75,D148<=Inputs!$F$76),AND(D148>=Inputs!$G$75,D148<=Inputs!$G$76),AND(D148>=Inputs!$H$75,D148<=Inputs!$H$76),IFERROR(AND(D148>=0,D148<=Inputs!$H$76-168),FALSE)) -> FALSE | I148: 0 | J148: 0
B149: Tuesday | C149: 15:00:00 | D149: 63 | E149: =OR(AND(D149>=Inputs!$I$45,D149<=Inputs!$I$46),AND(D149>=Inputs!$C$45,D149<=Inputs!$C$46),AND(D149>=Inputs!$D$45,D149<=Inputs!$D$46),AND(D149>=Inputs!$E$45,D149<=Inputs!$E$46),AND(D149>=Inputs!$F$45,D149<=Inputs!$F$46),AND(D149>=Inputs!$G$45,D149<=Inputs!$G$46),AND(D149>=Inputs!$H$45,D149<=Inputs!$H$46),IFERROR(AND(D149>=0,D149<=Inputs!$H$46-168),FALSE)) -> FALSE | F149: =OR(AND(D149>=Inputs!$I$55,D149<=Inputs!$I$56),AND(D149>=Inputs!$C$55,D149<=Inputs!$C$56),AND(D149>=Inputs!$D$55,D149<=Inputs!$D$56),AND(D149>=Inputs!$E$55,D149<=Inputs!$E$56),AND(D149>=Inputs!$F$55,D149<=Inputs!$F$56),AND(D149>=Inputs!$G$55,D149<=Inputs!$G$56),AND(D149>=Inputs!$H$55,D149<=Inputs!$H$56),IFERROR(AND(D149>=0,D149<=Inputs!$H$56-168),FALSE)) -> FALSE | G149: =OR(AND(D149>=Inputs!$I$65,D149<=Inputs!$I$66),AND(D149>=Inputs!$C$65,D149<=Inputs!$C$66),AND(D149>=Inputs!$D$65,D149<=Inputs!$D$66),AND(D149>=Inputs!$E$65,D149<=Inputs!$E$66),AND(D149>=Inputs!$F$65,D149<=Inputs!$F$66),AND(D149>=Inputs!$G$65,D149<=Inputs!$G$66),AND(D149>=Inputs!$H$65,D149<=Inputs!$H$66),IFERROR(AND(D149>=0,D149<=Inputs!$H$66-168),FALSE)) -> FALSE | H149: =OR(AND(D149>=Inputs!$I$75,D149<=Inputs!$I$76),AND(D149>=Inputs!$C$75,D149<=Inputs!$C$76),AND(D149>=Inputs!$D$75,D149<=Inputs!$D$76),AND(D149>=Inputs!$E$75,D149<=Inputs!$E$76),AND(D149>=Inputs!$F$75,D149<=Inputs!$F$76),AND(D149>=Inputs!$G$75,D149<=Inputs!$G$76),AND(D149>=Inputs!$H$75,D149<=Inputs!$H$76),IFERROR(AND(D149>=0,D149<=Inputs!$H$76-168),FALSE)) -> FALSE | I149: 0 | J149: 0
B150: Tuesday | C150: 16:00:00 | D150: 64 | E150: =OR(AND(D150>=Inputs!$I$45,D150<=Inputs!$I$46),AND(D150>=Inputs!$C$45,D150<=Inputs!$C$46),AND(D150>=Inputs!$D$45,D150<=Inputs!$D$46),AND(D150>=Inputs!$E$45,D150<=Inputs!$E$46),AND(D150>=Inputs!$F$45,D150<=Inputs!$F$46),AND(D150>=Inputs!$G$45,D150<=Inputs!$G$46),AND(D150>=Inputs!$H$45,D150<=Inputs!$H$46),IFERROR(AND(D150>=0,D150<=Inputs!$H$46-168),FALSE)) -> FALSE | F150: =OR(AND(D150>=Inputs!$I$55,D150<=Inputs!$I$56),AND(D150>=Inputs!$C$55,D150<=Inputs!$C$56),AND(D150>=Inputs!$D$55,D150<=Inputs!$D$56),AND(D150>=Inputs!$E$55,D150<=Inputs!$E$56),AND(D150>=Inputs!$F$55,D150<=Inputs!$F$56),AND(D150>=Inputs!$G$55,D150<=Inputs!$G$56),AND(D150>=Inputs!$H$55,D150<=Inputs!$H$56),IFERROR(AND(D150>=0,D150<=Inputs!$H$56-168),FALSE)) -> FALSE | G150: =OR(AND(D150>=Inputs!$I$65,D150<=Inputs!$I$66),AND(D150>=Inputs!$C$65,D150<=Inputs!$C$66),AND(D150>=Inputs!$D$65,D150<=Inputs!$D$66),AND(D150>=Inputs!$E$65,D150<=Inputs!$E$66),AND(D150>=Inputs!$F$65,D150<=Inputs!$F$66),AND(D150>=Inputs!$G$65,D150<=Inputs!$G$66),AND(D150>=Inputs!$H$65,D150<=Inputs!$H$66),IFERROR(AND(D150>=0,D150<=Inputs!$H$66-168),FALSE)) -> FALSE | H150: =OR(AND(D150>=Inputs!$I$75,D150<=Inputs!$I$76),AND(D150>=Inputs!$C$75,D150<=Inputs!$C$76),AND(D150>=Inputs!$D$75,D150<=Inputs!$D$76),AND(D150>=Inputs!$E$75,D150<=Inputs!$E$76),AND(D150>=Inputs!$F$75,D150<=Inputs!$F$76),AND(D150>=Inputs!$G$75,D150<=Inputs!$G$76),AND(D150>=Inputs!$H$75,D150<=Inputs!$H$76),IFERROR(AND(D150>=0,D150<=Inputs!$H$76-168),FALSE)) -> FALSE | I150: 0 | J150: 0
B151: Tuesday | C151: 17:00:00 | D151: 65 | E151: =OR(AND(D151>=Inputs!$I$45,D151<=Inputs!$I$46),AND(D151>=Inputs!$C$45,D151<=Inputs!$C$46),AND(D151>=Inputs!$D$45,D151<=Inputs!$D$46),AND(D151>=Inputs!$E$45,D151<=Inputs!$E$46),AND(D151>=Inputs!$F$45,D151<=Inputs!$F$46),AND(D151>=Inputs!$G$45,D151<=Inputs!$G$46),AND(D151>=Inputs!$H$45,D151<=Inputs!$H$46),IFERROR(AND(D151>=0,D151<=Inputs!$H$46-168),FALSE)) -> FALSE | F151: =OR(AND(D151>=Inputs!$I$55,D151<=Inputs!$I$56),AND(D151>=Inputs!$C$55,D151<=Inputs!$C$56),AND(D151>=Inputs!$D$55,D151<=Inputs!$D$56),AND(D151>=Inputs!$E$55,D151<=Inputs!$E$56),AND(D151>=Inputs!$F$55,D151<=Inputs!$F$56),AND(D151>=Inputs!$G$55,D151<=Inputs!$G$56),AND(D151>=Inputs!$H$55,D151<=Inputs!$H$56),IFERROR(AND(D151>=0,D151<=Inputs!$H$56-168),FALSE)) -> FALSE | G151: =OR(AND(D151>=Inputs!$I$65,D151<=Inputs!$I$66),AND(D151>=Inputs!$C$65,D151<=Inputs!$C$66),AND(D151>=Inputs!$D$65,D151<=Inputs!$D$66),AND(D151>=Inputs!$E$65,D151<=Inputs!$E$66),AND(D151>=Inputs!$F$65,D151<=Inputs!$F$66),AND(D151>=Inputs!$G$65,D151<=Inputs!$G$66),AND(D151>=Inputs!$H$65,D151<=Inputs!$H$66),IFERROR(AND(D151>=0,D151<=Inputs!$H$66-168),FALSE)) -> FALSE | H151: =OR(AND(D151>=Inputs!$I$75,D151<=Inputs!$I$76),AND(D151>=Inputs!$C$75,D151<=Inputs!$C$76),AND(D151>=Inputs!$D$75,D151<=Inputs!$D$76),AND(D151>=Inputs!$E$75,D151<=Inputs!$E$76),AND(D151>=Inputs!$F$75,D151<=Inputs!$F$76),AND(D151>=Inputs!$G$75,D151<=Inputs!$G$76),AND(D151>=Inputs!$H$75,D151<=Inputs!$H$76),IFERROR(AND(D151>=0,D151<=Inputs!$H$76-168),FALSE)) -> FALSE | I151: =COUNTIF(E151:H151,"TRUE") -> 0 | J151: =COUNTIF(F151:H151,"TRUE") -> 0
B152: Tuesday | C152: 18:00:00 | D152: 66 | E152: =OR(AND(D152>=Inputs!$I$45,D152<=Inputs!$I$46),AND(D152>=Inputs!$C$45,D152<=Inputs!$C$46),AND(D152>=Inputs!$D$45,D152<=Inputs!$D$46),AND(D152>=Inputs!$E$45,D152<=Inputs!$E$46),AND(D152>=Inputs!$F$45,D152<=Inputs!$F$46),AND(D152>=Inputs!$G$45,D152<=Inputs!$G$46),AND(D152>=Inputs!$H$45,D152<=Inputs!$H$46),IFERROR(AND(D152>=0,D152<=Inputs!$H$46-168),FALSE)) -> FALSE | F152: =OR(AND(D152>=Inputs!$I$55,D152<=Inputs!$I$56),AND(D152>=Inputs!$C$55,D152<=Inputs!$C$56),AND(D152>=Inputs!$D$55,D152<=Inputs!$D$56),AND(D152>=Inputs!$E$55,D152<=Inputs!$E$56),AND(D152>=Inputs!$F$55,D152<=Inputs!$F$56),AND(D152>=Inputs!$G$55,D152<=Inputs!$G$56),AND(D152>=Inputs!$H$55,D152<=Inputs!$H$56),IFERROR(AND(D152>=0,D152<=Inputs!$H$56-168),FALSE)) -> FALSE | G152: =OR(AND(D152>=Inputs!$I$65,D152<=Inputs!$I$66),AND(D152>=Inputs!$C$65,D152<=Inputs!$C$66),AND(D152>=Inputs!$D$65,D152<=Inputs!$D$66),AND(D152>=Inputs!$E$65,D152<=Inputs!$E$66),AND(D152>=Inputs!$F$65,D152<=Inputs!$F$66),AND(D152>=Inputs!$G$65,D152<=Inputs!$G$66),AND(D152>=Inputs!$H$65,D152<=Inputs!$H$66),IFERROR(AND(D152>=0,D152<=Inputs!$H$66-168),FALSE)) -> FALSE | H152: =OR(AND(D152>=Inputs!$I$75,D152<=Inputs!$I$76),AND(D152>=Inputs!$C$75,D152<=Inputs!$C$76),AND(D152>=Inputs!$D$75,D152<=Inputs!$D$76),AND(D152>=Inputs!$E$75,D152<=Inputs!$E$76),AND(D152>=Inputs!$F$75,D152<=Inputs!$F$76),AND(D152>=Inputs!$G$75,D152<=Inputs!$G$76),AND(D152>=Inputs!$H$75,D152<=Inputs!$H$76),IFERROR(AND(D152>=0,D152<=Inputs!$H$76-168),FALSE)) -> FALSE | I152: 0 | J152: 0
B153: Tuesday | C153: 19:00:00 | D153: 67 | E153: =OR(AND(D153>=Inputs!$I$45,D153<=Inputs!$I$46),AND(D153>=Inputs!$C$45,D153<=Inputs!$C$46),AND(D153>=Inputs!$D$45,D153<=Inputs!$D$46),AND(D153>=Inputs!$E$45,D153<=Inputs!$E$46),AND(D153>=Inputs!$F$45,D153<=Inputs!$F$46),AND(D153>=Inputs!$G$45,D153<=Inputs!$G$46),AND(D153>=Inputs!$H$45,D153<=Inputs!$H$46),IFERROR(AND(D153>=0,D153<=Inputs!$H$46-168),FALSE)) -> FALSE | F153: =OR(AND(D153>=Inputs!$I$55,D153<=Inputs!$I$56),AND(D153>=Inputs!$C$55,D153<=Inputs!$C$56),AND(D153>=Inputs!$D$55,D153<=Inputs!$D$56),AND(D153>=Inputs!$E$55,D153<=Inputs!$E$56),AND(D153>=Inputs!$F$55,D153<=Inputs!$F$56),AND(D153>=Inputs!$G$55,D153<=Inputs!$G$56),AND(D153>=Inputs!$H$55,D153<=Inputs!$H$56),IFERROR(AND(D153>=0,D153<=Inputs!$H$56-168),FALSE)) -> FALSE | G153: =OR(AND(D153>=Inputs!$I$65,D153<=Inputs!$I$66),AND(D153>=Inputs!$C$65,D153<=Inputs!$C$66),AND(D153>=Inputs!$D$65,D153<=Inputs!$D$66),AND(D153>=Inputs!$E$65,D153<=Inputs!$E$66),AND(D153>=Inputs!$F$65,D153<=Inputs!$F$66),AND(D153>=Inputs!$G$65,D153<=Inputs!$G$66),AND(D153>=Inputs!$H$65,D153<=Inputs!$H$66),IFERROR(AND(D153>=0,D153<=Inputs!$H$66-168),FALSE)) -> FALSE | H153: =OR(AND(D153>=Inputs!$I$75,D153<=Inputs!$I$76),AND(D153>=Inputs!$C$75,D153<=Inputs!$C$76),AND(D153>=Inputs!$D$75,D153<=Inputs!$D$76),AND(D153>=Inputs!$E$75,D153<=Inputs!$E$76),AND(D153>=Inputs!$F$75,D153<=Inputs!$F$76),AND(D153>=Inputs!$G$75,D153<=Inputs!$G$76),AND(D153>=Inputs!$H$75,D153<=Inputs!$H$76),IFERROR(AND(D153>=0,D153<=Inputs!$H$76-168),FALSE)) -> FALSE | I153: 0 | J153: 0
B154: Tuesday | C154: 20:00:00 | D154: 68 | E154: =OR(AND(D154>=Inputs!$I$45,D154<=Inputs!$I$46),AND(D154>=Inputs!$C$45,D154<=Inputs!$C$46),AND(D154>=Inputs!$D$45,D154<=Inputs!$D$46),AND(D154>=Inputs!$E$45,D154<=Inputs!$E$46),AND(D154>=Inputs!$F$45,D154<=Inputs!$F$46),AND(D154>=Inputs!$G$45,D154<=Inputs!$G$46),AND(D154>=Inputs!$H$45,D154<=Inputs!$H$46),IFERROR(AND(D154>=0,D154<=Inputs!$H$46-168),FALSE)) -> FALSE | F154: =OR(AND(D154>=Inputs!$I$55,D154<=Inputs!$I$56),AND(D154>=Inputs!$C$55,D154<=Inputs!$C$56),AND(D154>=Inputs!$D$55,D154<=Inputs!$D$56),AND(D154>=Inputs!$E$55,D154<=Inputs!$E$56),AND(D154>=Inputs!$F$55,D154<=Inputs!$F$56),AND(D154>=Inputs!$G$55,D154<=Inputs!$G$56),AND(D154>=Inputs!$H$55,D154<=Inputs!$H$56),IFERROR(AND(D154>=0,D154<=Inputs!$H$56-168),FALSE)) -> FALSE | G154: =OR(AND(D154>=Inputs!$I$65,D154<=Inputs!$I$66),AND(D154>=Inputs!$C$65,D154<=Inputs!$C$66),AND(D154>=Inputs!$D$65,D154<=Inputs!$D$66),AND(D154>=Inputs!$E$65,D154<=Inputs!$E$66),AND(D154>=Inputs!$F$65,D154<=Inputs!$F$66),AND(D154>=Inputs!$G$65,D154<=Inputs!$G$66),AND(D154>=Inputs!$H$65,D154<=Inputs!$H$66),IFERROR(AND(D154>=0,D154<=Inputs!$H$66-168),FALSE)) -> FALSE | H154: =OR(AND(D154>=Inputs!$I$75,D154<=Inputs!$I$76),AND(D154>=Inputs!$C$75,D154<=Inputs!$C$76),AND(D154>=Inputs!$D$75,D154<=Inputs!$D$76),AND(D154>=Inputs!$E$75,D154<=Inputs!$E$76),AND(D154>=Inputs!$F$75,D154<=Inputs!$F$76),AND(D154>=Inputs!$G$75,D154<=Inputs!$G$76),AND(D154>=Inputs!$H$75,D154<=Inputs!$H$76),IFERROR(AND(D154>=0,D154<=Inputs!$H$76-168),FALSE)) -> FALSE | I154: 0 | J154: 0
B155: Tuesday | C155: 21:00:00 | D155: 69 | E155: =OR(AND(D155>=Inputs!$I$45,D155<=Inputs!$I$46),AND(D155>=Inputs!$C$45,D155<=Inputs!$C$46),AND(D155>=Inputs!$D$45,D155<=Inputs!$D$46),AND(D155>=Inputs!$E$45,D155<=Inputs!$E$46),AND(D155>=Inputs!$F$45,D155<=Inputs!$F$46),AND(D155>=Inputs!$G$45,D155<=Inputs!$G$46),AND(D155>=Inputs!$H$45,D155<=Inputs!$H$46),IFERROR(AND(D155>=0,D155<=Inputs!$H$46-168),FALSE)) -> FALSE | F155: =OR(AND(D155>=Inputs!$I$55,D155<=Inputs!$I$56),AND(D155>=Inputs!$C$55,D155<=Inputs!$C$56),AND(D155>=Inputs!$D$55,D155<=Inputs!$D$56),AND(D155>=Inputs!$E$55,D155<=Inputs!$E$56),AND(D155>=Inputs!$F$55,D155<=Inputs!$F$56),AND(D155>=Inputs!$G$55,D155<=Inputs!$G$56),AND(D155>=Inputs!$H$55,D155<=Inputs!$H$56),IFERROR(AND(D155>=0,D155<=Inputs!$H$56-168),FALSE)) -> FALSE | G155: =OR(AND(D155>=Inputs!$I$65,D155<=Inputs!$I$66),AND(D155>=Inputs!$C$65,D155<=Inputs!$C$66),AND(D155>=Inputs!$D$65,D155<=Inputs!$D$66),AND(D155>=Inputs!$E$65,D155<=Inputs!$E$66),AND(D155>=Inputs!$F$65,D155<=Inputs!$F$66),AND(D155>=Inputs!$G$65,D155<=Inputs!$G$66),AND(D155>=Inputs!$H$65,D155<=Inputs!$H$66),IFERROR(AND(D155>=0,D155<=Inputs!$H$66-168),FALSE)) -> FALSE | H155: =OR(AND(D155>=Inputs!$I$75,D155<=Inputs!$I$76),AND(D155>=Inputs!$C$75,D155<=Inputs!$C$76),AND(D155>=Inputs!$D$75,D155<=Inputs!$D$76),AND(D155>=Inputs!$E$75,D155<=Inputs!$E$76),AND(D155>=Inputs!$F$75,D155<=Inputs!$F$76),AND(D155>=Inputs!$G$75,D155<=Inputs!$G$76),AND(D155>=Inputs!$H$75,D155<=Inputs!$H$76),IFERROR(AND(D155>=0,D155<=Inputs!$H$76-168),FALSE)) -> FALSE | I155: 0 | J155: 0
B156: Tuesday | C156: 22:00:00 | D156: 70 | E156: =OR(AND(D156>=Inputs!$I$45,D156<=Inputs!$I$46),AND(D156>=Inputs!$C$45,D156<=Inputs!$C$46),AND(D156>=Inputs!$D$45,D156<=Inputs!$D$46),AND(D156>=Inputs!$E$45,D156<=Inputs!$E$46),AND(D156>=Inputs!$F$45,D156<=Inputs!$F$46),AND(D156>=Inputs!$G$45,D156<=Inputs!$G$46),AND(D156>=Inputs!$H$45,D156<=Inputs!$H$46),IFERROR(AND(D156>=0,D156<=Inputs!$H$46-168),FALSE)) -> FALSE | F156: =OR(AND(D156>=Inputs!$I$55,D156<=Inputs!$I$56),AND(D156>=Inputs!$C$55,D156<=Inputs!$C$56),AND(D156>=Inputs!$D$55,D156<=Inputs!$D$56),AND(D156>=Inputs!$E$55,D156<=Inputs!$E$56),AND(D156>=Inputs!$F$55,D156<=Inputs!$F$56),AND(D156>=Inputs!$G$55,D156<=Inputs!$G$56),AND(D156>=Inputs!$H$55,D156<=Inputs!$H$56),IFERROR(AND(D156>=0,D156<=Inputs!$H$56-168),FALSE)) -> FALSE | G156: =OR(AND(D156>=Inputs!$I$65,D156<=Inputs!$I$66),AND(D156>=Inputs!$C$65,D156<=Inputs!$C$66),AND(D156>=Inputs!$D$65,D156<=Inputs!$D$66),AND(D156>=Inputs!$E$65,D156<=Inputs!$E$66),AND(D156>=Inputs!$F$65,D156<=Inputs!$F$66),AND(D156>=Inputs!$G$65,D156<=Inputs!$G$66),AND(D156>=Inputs!$H$65,D156<=Inputs!$H$66),IFERROR(AND(D156>=0,D156<=Inputs!$H$66-168),FALSE)) -> FALSE | H156: =OR(AND(D156>=Inputs!$I$75,D156<=Inputs!$I$76),AND(D156>=Inputs!$C$75,D156<=Inputs!$C$76),AND(D156>=Inputs!$D$75,D156<=Inputs!$D$76),AND(D156>=Inputs!$E$75,D156<=Inputs!$E$76),AND(D156>=Inputs!$F$75,D156<=Inputs!$F$76),AND(D156>=Inputs!$G$75,D156<=Inputs!$G$76),AND(D156>=Inputs!$H$75,D156<=Inputs!$H$76),IFERROR(AND(D156>=0,D156<=Inputs!$H$76-168),FALSE)) -> FALSE | I156: 0 | J156: 0
B157: Tuesday | C157: 23:00:00 | D157: 71 | E157: =OR(AND(D157>=Inputs!$I$45,D157<=Inputs!$I$46),AND(D157>=Inputs!$C$45,D157<=Inputs!$C$46),AND(D157>=Inputs!$D$45,D157<=Inputs!$D$46),AND(D157>=Inputs!$E$45,D157<=Inputs!$E$46),AND(D157>=Inputs!$F$45,D157<=Inputs!$F$46),AND(D157>=Inputs!$G$45,D157<=Inputs!$G$46),AND(D157>=Inputs!$H$45,D157<=Inputs!$H$46),IFERROR(AND(D157>=0,D157<=Inputs!$H$46-168),FALSE)) -> FALSE | F157: =OR(AND(D157>=Inputs!$I$55,D157<=Inputs!$I$56),AND(D157>=Inputs!$C$55,D157<=Inputs!$C$56),AND(D157>=Inputs!$D$55,D157<=Inputs!$D$56),AND(D157>=Inputs!$E$55,D157<=Inputs!$E$56),AND(D157>=Inputs!$F$55,D157<=Inputs!$F$56),AND(D157>=Inputs!$G$55,D157<=Inputs!$G$56),AND(D157>=Inputs!$H$55,D157<=Inputs!$H$56),IFERROR(AND(D157>=0,D157<=Inputs!$H$56-168),FALSE)) -> FALSE | G157: =OR(AND(D157>=Inputs!$I$65,D157<=Inputs!$I$66),AND(D157>=Inputs!$C$65,D157<=Inputs!$C$66),AND(D157>=Inputs!$D$65,D157<=Inputs!$D$66),AND(D157>=Inputs!$E$65,D157<=Inputs!$E$66),AND(D157>=Inputs!$F$65,D157<=Inputs!$F$66),AND(D157>=Inputs!$G$65,D157<=Inputs!$G$66),AND(D157>=Inputs!$H$65,D157<=Inputs!$H$66),IFERROR(AND(D157>=0,D157<=Inputs!$H$66-168),FALSE)) -> FALSE | H157: =OR(AND(D157>=Inputs!$I$75,D157<=Inputs!$I$76),AND(D157>=Inputs!$C$75,D157<=Inputs!$C$76),AND(D157>=Inputs!$D$75,D157<=Inputs!$D$76),AND(D157>=Inputs!$E$75,D157<=Inputs!$E$76),AND(D157>=Inputs!$F$75,D157<=Inputs!$F$76),AND(D157>=Inputs!$G$75,D157<=Inputs!$G$76),AND(D157>=Inputs!$H$75,D157<=Inputs!$H$76),IFERROR(AND(D157>=0,D157<=Inputs!$H$76-168),FALSE)) -> FALSE | I157: 0 | J157: 0
B158: Wednesday | C158: 00:00:00 | D158: 72 | E158: =OR(AND(D158>=Inputs!$I$45,D158<=Inputs!$I$46),AND(D158>=Inputs!$C$45,D158<=Inputs!$C$46),AND(D158>=Inputs!$D$45,D158<=Inputs!$D$46),AND(D158>=Inputs!$E$45,D158<=Inputs!$E$46),AND(D158>=Inputs!$F$45,D158<=Inputs!$F$46),AND(D158>=Inputs!$G$45,D158<=Inputs!$G$46),AND(D158>=Inputs!$H$45,D158<=Inputs!$H$46),IFERROR(AND(D158>=0,D158<=Inputs!$H$46-168),FALSE)) -> FALSE | F158: =OR(AND(D158>=Inputs!$I$55,D158<=Inputs!$I$56),AND(D158>=Inputs!$C$55,D158<=Inputs!$C$56),AND(D158>=Inputs!$D$55,D158<=Inputs!$D$56),AND(D158>=Inputs!$E$55,D158<=Inputs!$E$56),AND(D158>=Inputs!$F$55,D158<=Inputs!$F$56),AND(D158>=Inputs!$G$55,D158<=Inputs!$G$56),AND(D158>=Inputs!$H$55,D158<=Inputs!$H$56),IFERROR(AND(D158>=0,D158<=Inputs!$H$56-168),FALSE)) -> FALSE | G158: =OR(AND(D158>=Inputs!$I$65,D158<=Inputs!$I$66),AND(D158>=Inputs!$C$65,D158<=Inputs!$C$66),AND(D158>=Inputs!$D$65,D158<=Inputs!$D$66),AND(D158>=Inputs!$E$65,D158<=Inputs!$E$66),AND(D158>=Inputs!$F$65,D158<=Inputs!$F$66),AND(D158>=Inputs!$G$65,D158<=Inputs!$G$66),AND(D158>=Inputs!$H$65,D158<=Inputs!$H$66),IFERROR(AND(D158>=0,D158<=Inputs!$H$66-168),FALSE)) -> FALSE | H158: =OR(AND(D158>=Inputs!$I$75,D158<=Inputs!$I$76),AND(D158>=Inputs!$C$75,D158<=Inputs!$C$76),AND(D158>=Inputs!$D$75,D158<=Inputs!$D$76),AND(D158>=Inputs!$E$75,D158<=Inputs!$E$76),AND(D158>=Inputs!$F$75,D158<=Inputs!$F$76),AND(D158>=Inputs!$G$75,D158<=Inputs!$G$76),AND(D158>=Inputs!$H$75,D158<=Inputs!$H$76),IFERROR(AND(D158>=0,D158<=Inputs!$H$76-168),FALSE)) -> FALSE | I158: 0 | J158: 0
B159: Wednesday | C159: 01:00:00 | D159: 73 | E159: =OR(AND(D159>=Inputs!$I$45,D159<=Inputs!$I$46),AND(D159>=Inputs!$C$45,D159<=Inputs!$C$46),AND(D159>=Inputs!$D$45,D159<=Inputs!$D$46),AND(D159>=Inputs!$E$45,D159<=Inputs!$E$46),AND(D159>=Inputs!$F$45,D159<=Inputs!$F$46),AND(D159>=Inputs!$G$45,D159<=Inputs!$G$46),AND(D159>=Inputs!$H$45,D159<=Inputs!$H$46),IFERROR(AND(D159>=0,D159<=Inputs!$H$46-168),FALSE)) -> FALSE | F159: =OR(AND(D159>=Inputs!$I$55,D159<=Inputs!$I$56),AND(D159>=Inputs!$C$55,D159<=Inputs!$C$56),AND(D159>=Inputs!$D$55,D159<=Inputs!$D$56),AND(D159>=Inputs!$E$55,D159<=Inputs!$E$56),AND(D159>=Inputs!$F$55,D159<=Inputs!$F$56),AND(D159>=Inputs!$G$55,D159<=Inputs!$G$56),AND(D159>=Inputs!$H$55,D159<=Inputs!$H$56),IFERROR(AND(D159>=0,D159<=Inputs!$H$56-168),FALSE)) -> FALSE | G159: =OR(AND(D159>=Inputs!$I$65,D159<=Inputs!$I$66),AND(D159>=Inputs!$C$65,D159<=Inputs!$C$66),AND(D159>=Inputs!$D$65,D159<=Inputs!$D$66),AND(D159>=Inputs!$E$65,D159<=Inputs!$E$66),AND(D159>=Inputs!$F$65,D159<=Inputs!$F$66),AND(D159>=Inputs!$G$65,D159<=Inputs!$G$66),AND(D159>=Inputs!$H$65,D159<=Inputs!$H$66),IFERROR(AND(D159>=0,D159<=Inputs!$H$66-168),FALSE)) -> FALSE | H159: =OR(AND(D159>=Inputs!$I$75,D159<=Inputs!$I$76),AND(D159>=Inputs!$C$75,D159<=Inputs!$C$76),AND(D159>=Inputs!$D$75,D159<=Inputs!$D$76),AND(D159>=Inputs!$E$75,D159<=Inputs!$E$76),AND(D159>=Inputs!$F$75,D159<=Inputs!$F$76),AND(D159>=Inputs!$G$75,D159<=Inputs!$G$76),AND(D159>=Inputs!$H$75,D159<=Inputs!$H$76),IFERROR(AND(D159>=0,D159<=Inputs!$H$76-168),FALSE)) -> FALSE | I159: 0 | J159: 0
B160: Wednesday | C160: 02:00:00 | D160: 74 | E160: =OR(AND(D160>=Inputs!$I$45,D160<=Inputs!$I$46),AND(D160>=Inputs!$C$45,D160<=Inputs!$C$46),AND(D160>=Inputs!$D$45,D160<=Inputs!$D$46),AND(D160>=Inputs!$E$45,D160<=Inputs!$E$46),AND(D160>=Inputs!$F$45,D160<=Inputs!$F$46),AND(D160>=Inputs!$G$45,D160<=Inputs!$G$46),AND(D160>=Inputs!$H$45,D160<=Inputs!$H$46),IFERROR(AND(D160>=0,D160<=Inputs!$H$46-168),FALSE)) -> FALSE | F160: =OR(AND(D160>=Inputs!$I$55,D160<=Inputs!$I$56),AND(D160>=Inputs!$C$55,D160<=Inputs!$C$56),AND(D160>=Inputs!$D$55,D160<=Inputs!$D$56),AND(D160>=Inputs!$E$55,D160<=Inputs!$E$56),AND(D160>=Inputs!$F$55,D160<=Inputs!$F$56),AND(D160>=Inputs!$G$55,D160<=Inputs!$G$56),AND(D160>=Inputs!$H$55,D160<=Inputs!$H$56),IFERROR(AND(D160>=0,D160<=Inputs!$H$56-168),FALSE)) -> FALSE | G160: =OR(AND(D160>=Inputs!$I$65,D160<=Inputs!$I$66),AND(D160>=Inputs!$C$65,D160<=Inputs!$C$66),AND(D160>=Inputs!$D$65,D160<=Inputs!$D$66),AND(D160>=Inputs!$E$65,D160<=Inputs!$E$66),AND(D160>=Inputs!$F$65,D160<=Inputs!$F$66),AND(D160>=Inputs!$G$65,D160<=Inputs!$G$66),AND(D160>=Inputs!$H$65,D160<=Inputs!$H$66),IFERROR(AND(D160>=0,D160<=Inputs!$H$66-168),FALSE)) -> FALSE | H160: =OR(AND(D160>=Inputs!$I$75,D160<=Inputs!$I$76),AND(D160>=Inputs!$C$75,D160<=Inputs!$C$76),AND(D160>=Inputs!$D$75,D160<=Inputs!$D$76),AND(D160>=Inputs!$E$75,D160<=Inputs!$E$76),AND(D160>=Inputs!$F$75,D160<=Inputs!$F$76),AND(D160>=Inputs!$G$75,D160<=Inputs!$G$76),AND(D160>=Inputs!$H$75,D160<=Inputs!$H$76),IFERROR(AND(D160>=0,D160<=Inputs!$H$76-168),FALSE)) -> FALSE | I160: 0 | J160: 0
B161: Wednesday | C161: 03:00:00 | D161: 75 | E161: =OR(AND(D161>=Inputs!$I$45,D161<=Inputs!$I$46),AND(D161>=Inputs!$C$45,D161<=Inputs!$C$46),AND(D161>=Inputs!$D$45,D161<=Inputs!$D$46),AND(D161>=Inputs!$E$45,D161<=Inputs!$E$46),AND(D161>=Inputs!$F$45,D161<=Inputs!$F$46),AND(D161>=Inputs!$G$45,D161<=Inputs!$G$46),AND(D161>=Inputs!$H$45,D161<=Inputs!$H$46),IFERROR(AND(D161>=0,D161<=Inputs!$H$46-168),FALSE)) -> FALSE | F161: =OR(AND(D161>=Inputs!$I$55,D161<=Inputs!$I$56),AND(D161>=Inputs!$C$55,D161<=Inputs!$C$56),AND(D161>=Inputs!$D$55,D161<=Inputs!$D$56),AND(D161>=Inputs!$E$55,D161<=Inputs!$E$56),AND(D161>=Inputs!$F$55,D161<=Inputs!$F$56),AND(D161>=Inputs!$G$55,D161<=Inputs!$G$56),AND(D161>=Inputs!$H$55,D161<=Inputs!$H$56),IFERROR(AND(D161>=0,D161<=Inputs!$H$56-168),FALSE)) -> FALSE | G161: =OR(AND(D161>=Inputs!$I$65,D161<=Inputs!$I$66),AND(D161>=Inputs!$C$65,D161<=Inputs!$C$66),AND(D161>=Inputs!$D$65,D161<=Inputs!$D$66),AND(D161>=Inputs!$E$65,D161<=Inputs!$E$66),AND(D161>=Inputs!$F$65,D161<=Inputs!$F$66),AND(D161>=Inputs!$G$65,D161<=Inputs!$G$66),AND(D161>=Inputs!$H$65,D161<=Inputs!$H$66),IFERROR(AND(D161>=0,D161<=Inputs!$H$66-168),FALSE)) -> FALSE | H161: =OR(AND(D161>=Inputs!$I$75,D161<=Inputs!$I$76),AND(D161>=Inputs!$C$75,D161<=Inputs!$C$76),AND(D161>=Inputs!$D$75,D161<=Inputs!$D$76),AND(D161>=Inputs!$E$75,D161<=Inputs!$E$76),AND(D161>=Inputs!$F$75,D161<=Inputs!$F$76),AND(D161>=Inputs!$G$75,D161<=Inputs!$G$76),AND(D161>=Inputs!$H$75,D161<=Inputs!$H$76),IFERROR(AND(D161>=0,D161<=Inputs!$H$76-168),FALSE)) -> FALSE | I161: 0 | J161: 0
B162: Wednesday | C162: 04:00:00 | D162: 76 | E162: =OR(AND(D162>=Inputs!$I$45,D162<=Inputs!$I$46),AND(D162>=Inputs!$C$45,D162<=Inputs!$C$46),AND(D162>=Inputs!$D$45,D162<=Inputs!$D$46),AND(D162>=Inputs!$E$45,D162<=Inputs!$E$46),AND(D162>=Inputs!$F$45,D162<=Inputs!$F$46),AND(D162>=Inputs!$G$45,D162<=Inputs!$G$46),AND(D162>=Inputs!$H$45,D162<=Inputs!$H$46),IFERROR(AND(D162>=0,D162<=Inputs!$H$46-168),FALSE)) -> FALSE | F162: =OR(AND(D162>=Inputs!$I$55,D162<=Inputs!$I$56),AND(D162>=Inputs!$C$55,D162<=Inputs!$C$56),AND(D162>=Inputs!$D$55,D162<=Inputs!$D$56),AND(D162>=Inputs!$E$55,D162<=Inputs!$E$56),AND(D162>=Inputs!$F$55,D162<=Inputs!$F$56),AND(D162>=Inputs!$G$55,D162<=Inputs!$G$56),AND(D162>=Inputs!$H$55,D162<=Inputs!$H$56),IFERROR(AND(D162>=0,D162<=Inputs!$H$56-168),FALSE)) -> FALSE | G162: =OR(AND(D162>=Inputs!$I$65,D162<=Inputs!$I$66),AND(D162>=Inputs!$C$65,D162<=Inputs!$C$66),AND(D162>=Inputs!$D$65,D162<=Inputs!$D$66),AND(D162>=Inputs!$E$65,D162<=Inputs!$E$66),AND(D162>=Inputs!$F$65,D162<=Inputs!$F$66),AND(D162>=Inputs!$G$65,D162<=Inputs!$G$66),AND(D162>=Inputs!$H$65,D162<=Inputs!$H$66),IFERROR(AND(D162>=0,D162<=Inputs!$H$66-168),FALSE)) -> FALSE | H162: =OR(AND(D162>=Inputs!$I$75,D162<=Inputs!$I$76),AND(D162>=Inputs!$C$75,D162<=Inputs!$C$76),AND(D162>=Inputs!$D$75,D162<=Inputs!$D$76),AND(D162>=Inputs!$E$75,D162<=Inputs!$E$76),AND(D162>=Inputs!$F$75,D162<=Inputs!$F$76),AND(D162>=Inputs!$G$75,D162<=Inputs!$G$76),AND(D162>=Inputs!$H$75,D162<=Inputs!$H$76),IFERROR(AND(D162>=0,D162<=Inputs!$H$76-168),FALSE)) -> FALSE | I162: 0 | J162: 0
B163: Wednesday | C163: 05:00:00 | D163: 77 | E163: =OR(AND(D163>=Inputs!$I$45,D163<=Inputs!$I$46),AND(D163>=Inputs!$C$45,D163<=Inputs!$C$46),AND(D163>=Inputs!$D$45,D163<=Inputs!$D$46),AND(D163>=Inputs!$E$45,D163<=Inputs!$E$46),AND(D163>=Inputs!$F$45,D163<=Inputs!$F$46),AND(D163>=Inputs!$G$45,D163<=Inputs!$G$46),AND(D163>=Inputs!$H$45,D163<=Inputs!$H$46),IFERROR(AND(D163>=0,D163<=Inputs!$H$46-168),FALSE)) -> FALSE | F163: =OR(AND(D163>=Inputs!$I$55,D163<=Inputs!$I$56),AND(D163>=Inputs!$C$55,D163<=Inputs!$C$56),AND(D163>=Inputs!$D$55,D163<=Inputs!$D$56),AND(D163>=Inputs!$E$55,D163<=Inputs!$E$56),AND(D163>=Inputs!$F$55,D163<=Inputs!$F$56),AND(D163>=Inputs!$G$55,D163<=Inputs!$G$56),AND(D163>=Inputs!$H$55,D163<=Inputs!$H$56),IFERROR(AND(D163>=0,D163<=Inputs!$H$56-168),FALSE)) -> FALSE | G163: =OR(AND(D163>=Inputs!$I$65,D163<=Inputs!$I$66),AND(D163>=Inputs!$C$65,D163<=Inputs!$C$66),AND(D163>=Inputs!$D$65,D163<=Inputs!$D$66),AND(D163>=Inputs!$E$65,D163<=Inputs!$E$66),AND(D163>=Inputs!$F$65,D163<=Inputs!$F$66),AND(D163>=Inputs!$G$65,D163<=Inputs!$G$66),AND(D163>=Inputs!$H$65,D163<=Inputs!$H$66),IFERROR(AND(D163>=0,D163<=Inputs!$H$66-168),FALSE)) -> FALSE | H163: =OR(AND(D163>=Inputs!$I$75,D163<=Inputs!$I$76),AND(D163>=Inputs!$C$75,D163<=Inputs!$C$76),AND(D163>=Inputs!$D$75,D163<=Inputs!$D$76),AND(D163>=Inputs!$E$75,D163<=Inputs!$E$76),AND(D163>=Inputs!$F$75,D163<=Inputs!$F$76),AND(D163>=Inputs!$G$75,D163<=Inputs!$G$76),AND(D163>=Inputs!$H$75,D163<=Inputs!$H$76),IFERROR(AND(D163>=0,D163<=Inputs!$H$76-168),FALSE)) -> FALSE | I163: 0 | J163: 0
B164: Wednesday | C164: 06:00:00 | D164: 78 | E164: =OR(AND(D164>=Inputs!$I$45,D164<=Inputs!$I$46),AND(D164>=Inputs!$C$45,D164<=Inputs!$C$46),AND(D164>=Inputs!$D$45,D164<=Inputs!$D$46),AND(D164>=Inputs!$E$45,D164<=Inputs!$E$46),AND(D164>=Inputs!$F$45,D164<=Inputs!$F$46),AND(D164>=Inputs!$G$45,D164<=Inputs!$G$46),AND(D164>=Inputs!$H$45,D164<=Inputs!$H$46),IFERROR(AND(D164>=0,D164<=Inputs!$H$46-168),FALSE)) -> FALSE | F164: =OR(AND(D164>=Inputs!$I$55,D164<=Inputs!$I$56),AND(D164>=Inputs!$C$55,D164<=Inputs!$C$56),AND(D164>=Inputs!$D$55,D164<=Inputs!$D$56),AND(D164>=Inputs!$E$55,D164<=Inputs!$E$56),AND(D164>=Inputs!$F$55,D164<=Inputs!$F$56),AND(D164>=Inputs!$G$55,D164<=Inputs!$G$56),AND(D164>=Inputs!$H$55,D164<=Inputs!$H$56),IFERROR(AND(D164>=0,D164<=Inputs!$H$56-168),FALSE)) -> FALSE | G164: =OR(AND(D164>=Inputs!$I$65,D164<=Inputs!$I$66),AND(D164>=Inputs!$C$65,D164<=Inputs!$C$66),AND(D164>=Inputs!$D$65,D164<=Inputs!$D$66),AND(D164>=Inputs!$E$65,D164<=Inputs!$E$66),AND(D164>=Inputs!$F$65,D164<=Inputs!$F$66),AND(D164>=Inputs!$G$65,D164<=Inputs!$G$66),AND(D164>=Inputs!$H$65,D164<=Inputs!$H$66),IFERROR(AND(D164>=0,D164<=Inputs!$H$66-168),FALSE)) -> FALSE | H164: =OR(AND(D164>=Inputs!$I$75,D164<=Inputs!$I$76),AND(D164>=Inputs!$C$75,D164<=Inputs!$C$76),AND(D164>=Inputs!$D$75,D164<=Inputs!$D$76),AND(D164>=Inputs!$E$75,D164<=Inputs!$E$76),AND(D164>=Inputs!$F$75,D164<=Inputs!$F$76),AND(D164>=Inputs!$G$75,D164<=Inputs!$G$76),AND(D164>=Inputs!$H$75,D164<=Inputs!$H$76),IFERROR(AND(D164>=0,D164<=Inputs!$H$76-168),FALSE)) -> FALSE | I164: 0 | J164: 0
B165: Wednesday | C165: 07:00:00 | D165: 79 | E165: =OR(AND(D165>=Inputs!$I$45,D165<=Inputs!$I$46),AND(D165>=Inputs!$C$45,D165<=Inputs!$C$46),AND(D165>=Inputs!$D$45,D165<=Inputs!$D$46),AND(D165>=Inputs!$E$45,D165<=Inputs!$E$46),AND(D165>=Inputs!$F$45,D165<=Inputs!$F$46),AND(D165>=Inputs!$G$45,D165<=Inputs!$G$46),AND(D165>=Inputs!$H$45,D165<=Inputs!$H$46),IFERROR(AND(D165>=0,D165<=Inputs!$H$46-168),FALSE)) -> FALSE | F165: =OR(AND(D165>=Inputs!$I$55,D165<=Inputs!$I$56),AND(D165>=Inputs!$C$55,D165<=Inputs!$C$56),AND(D165>=Inputs!$D$55,D165<=Inputs!$D$56),AND(D165>=Inputs!$E$55,D165<=Inputs!$E$56),AND(D165>=Inputs!$F$55,D165<=Inputs!$F$56),AND(D165>=Inputs!$G$55,D165<=Inputs!$G$56),AND(D165>=Inputs!$H$55,D165<=Inputs!$H$56),IFERROR(AND(D165>=0,D165<=Inputs!$H$56-168),FALSE)) -> FALSE | G165: =OR(AND(D165>=Inputs!$I$65,D165<=Inputs!$I$66),AND(D165>=Inputs!$C$65,D165<=Inputs!$C$66),AND(D165>=Inputs!$D$65,D165<=Inputs!$D$66),AND(D165>=Inputs!$E$65,D165<=Inputs!$E$66),AND(D165>=Inputs!$F$65,D165<=Inputs!$F$66),AND(D165>=Inputs!$G$65,D165<=Inputs!$G$66),AND(D165>=Inputs!$H$65,D165<=Inputs!$H$66),IFERROR(AND(D165>=0,D165<=Inputs!$H$66-168),FALSE)) -> FALSE | H165: =OR(AND(D165>=Inputs!$I$75,D165<=Inputs!$I$76),AND(D165>=Inputs!$C$75,D165<=Inputs!$C$76),AND(D165>=Inputs!$D$75,D165<=Inputs!$D$76),AND(D165>=Inputs!$E$75,D165<=Inputs!$E$76),AND(D165>=Inputs!$F$75,D165<=Inputs!$F$76),AND(D165>=Inputs!$G$75,D165<=Inputs!$G$76),AND(D165>=Inputs!$H$75,D165<=Inputs!$H$76),IFERROR(AND(D165>=0,D165<=Inputs!$H$76-168),FALSE)) -> FALSE | I165: 0 | J165: 0
B166: Wednesday | C166: 08:00:00 | D166: 80 | E166: =OR(AND(D166>=Inputs!$I$45,D166<=Inputs!$I$46),AND(D166>=Inputs!$C$45,D166<=Inputs!$C$46),AND(D166>=Inputs!$D$45,D166<=Inputs!$D$46),AND(D166>=Inputs!$E$45,D166<=Inputs!$E$46),AND(D166>=Inputs!$F$45,D166<=Inputs!$F$46),AND(D166>=Inputs!$G$45,D166<=Inputs!$G$46),AND(D166>=Inputs!$H$45,D166<=Inputs!$H$46),IFERROR(AND(D166>=0,D166<=Inputs!$H$46-168),FALSE)) -> FALSE | F166: =OR(AND(D166>=Inputs!$I$55,D166<=Inputs!$I$56),AND(D166>=Inputs!$C$55,D166<=Inputs!$C$56),AND(D166>=Inputs!$D$55,D166<=Inputs!$D$56),AND(D166>=Inputs!$E$55,D166<=Inputs!$E$56),AND(D166>=Inputs!$F$55,D166<=Inputs!$F$56),AND(D166>=Inputs!$G$55,D166<=Inputs!$G$56),AND(D166>=Inputs!$H$55,D166<=Inputs!$H$56),IFERROR(AND(D166>=0,D166<=Inputs!$H$56-168),FALSE)) -> FALSE | G166: =OR(AND(D166>=Inputs!$I$65,D166<=Inputs!$I$66),AND(D166>=Inputs!$C$65,D166<=Inputs!$C$66),AND(D166>=Inputs!$D$65,D166<=Inputs!$D$66),AND(D166>=Inputs!$E$65,D166<=Inputs!$E$66),AND(D166>=Inputs!$F$65,D166<=Inputs!$F$66),AND(D166>=Inputs!$G$65,D166<=Inputs!$G$66),AND(D166>=Inputs!$H$65,D166<=Inputs!$H$66),IFERROR(AND(D166>=0,D166<=Inputs!$H$66-168),FALSE)) -> FALSE | H166: =OR(AND(D166>=Inputs!$I$75,D166<=Inputs!$I$76),AND(D166>=Inputs!$C$75,D166<=Inputs!$C$76),AND(D166>=Inputs!$D$75,D166<=Inputs!$D$76),AND(D166>=Inputs!$E$75,D166<=Inputs!$E$76),AND(D166>=Inputs!$F$75,D166<=Inputs!$F$76),AND(D166>=Inputs!$G$75,D166<=Inputs!$G$76),AND(D166>=Inputs!$H$75,D166<=Inputs!$H$76),IFERROR(AND(D166>=0,D166<=Inputs!$H$76-168),FALSE)) -> FALSE | I166: 0 | J166: 0
B167: Wednesday | C167: 09:00:00 | D167: 81 | E167: =OR(AND(D167>=Inputs!$I$45,D167<=Inputs!$I$46),AND(D167>=Inputs!$C$45,D167<=Inputs!$C$46),AND(D167>=Inputs!$D$45,D167<=Inputs!$D$46),AND(D167>=Inputs!$E$45,D167<=Inputs!$E$46),AND(D167>=Inputs!$F$45,D167<=Inputs!$F$46),AND(D167>=Inputs!$G$45,D167<=Inputs!$G$46),AND(D167>=Inputs!$H$45,D167<=Inputs!$H$46),IFERROR(AND(D167>=0,D167<=Inputs!$H$46-168),FALSE)) -> TRUE | F167: =OR(AND(D167>=Inputs!$I$55,D167<=Inputs!$I$56),AND(D167>=Inputs!$C$55,D167<=Inputs!$C$56),AND(D167>=Inputs!$D$55,D167<=Inputs!$D$56),AND(D167>=Inputs!$E$55,D167<=Inputs!$E$56),AND(D167>=Inputs!$F$55,D167<=Inputs!$F$56),AND(D167>=Inputs!$G$55,D167<=Inputs!$G$56),AND(D167>=Inputs!$H$55,D167<=Inputs!$H$56),IFERROR(AND(D167>=0,D167<=Inputs!$H$56-168),FALSE)) -> FALSE | G167: =OR(AND(D167>=Inputs!$I$65,D167<=Inputs!$I$66),AND(D167>=Inputs!$C$65,D167<=Inputs!$C$66),AND(D167>=Inputs!$D$65,D167<=Inputs!$D$66),AND(D167>=Inputs!$E$65,D167<=Inputs!$E$66),AND(D167>=Inputs!$F$65,D167<=Inputs!$F$66),AND(D167>=Inputs!$G$65,D167<=Inputs!$G$66),AND(D167>=Inputs!$H$65,D167<=Inputs!$H$66),IFERROR(AND(D167>=0,D167<=Inputs!$H$66-168),FALSE)) -> FALSE | H167: =OR(AND(D167>=Inputs!$I$75,D167<=Inputs!$I$76),AND(D167>=Inputs!$C$75,D167<=Inputs!$C$76),AND(D167>=Inputs!$D$75,D167<=Inputs!$D$76),AND(D167>=Inputs!$E$75,D167<=Inputs!$E$76),AND(D167>=Inputs!$F$75,D167<=Inputs!$F$76),AND(D167>=Inputs!$G$75,D167<=Inputs!$G$76),AND(D167>=Inputs!$H$75,D167<=Inputs!$H$76),IFERROR(AND(D167>=0,D167<=Inputs!$H$76-168),FALSE)) -> FALSE | I167: 1 | J167: 0
B168: Wednesday | C168: 10:00:00 | D168: 82 | E168: =OR(AND(D168>=Inputs!$I$45,D168<=Inputs!$I$46),AND(D168>=Inputs!$C$45,D168<=Inputs!$C$46),AND(D168>=Inputs!$D$45,D168<=Inputs!$D$46),AND(D168>=Inputs!$E$45,D168<=Inputs!$E$46),AND(D168>=Inputs!$F$45,D168<=Inputs!$F$46),AND(D168>=Inputs!$G$45,D168<=Inputs!$G$46),AND(D168>=Inputs!$H$45,D168<=Inputs!$H$46),IFERROR(AND(D168>=0,D168<=Inputs!$H$46-168),FALSE)) -> TRUE | F168: =OR(AND(D168>=Inputs!$I$55,D168<=Inputs!$I$56),AND(D168>=Inputs!$C$55,D168<=Inputs!$C$56),AND(D168>=Inputs!$D$55,D168<=Inputs!$D$56),AND(D168>=Inputs!$E$55,D168<=Inputs!$E$56),AND(D168>=Inputs!$F$55,D168<=Inputs!$F$56),AND(D168>=Inputs!$G$55,D168<=Inputs!$G$56),AND(D168>=Inputs!$H$55,D168<=Inputs!$H$56),IFERROR(AND(D168>=0,D168<=Inputs!$H$56-168),FALSE)) -> FALSE | G168: =OR(AND(D168>=Inputs!$I$65,D168<=Inputs!$I$66),AND(D168>=Inputs!$C$65,D168<=Inputs!$C$66),AND(D168>=Inputs!$D$65,D168<=Inputs!$D$66),AND(D168>=Inputs!$E$65,D168<=Inputs!$E$66),AND(D168>=Inputs!$F$65,D168<=Inputs!$F$66),AND(D168>=Inputs!$G$65,D168<=Inputs!$G$66),AND(D168>=Inputs!$H$65,D168<=Inputs!$H$66),IFERROR(AND(D168>=0,D168<=Inputs!$H$66-168),FALSE)) -> FALSE | H168: =OR(AND(D168>=Inputs!$I$75,D168<=Inputs!$I$76),AND(D168>=Inputs!$C$75,D168<=Inputs!$C$76),AND(D168>=Inputs!$D$75,D168<=Inputs!$D$76),AND(D168>=Inputs!$E$75,D168<=Inputs!$E$76),AND(D168>=Inputs!$F$75,D168<=Inputs!$F$76),AND(D168>=Inputs!$G$75,D168<=Inputs!$G$76),AND(D168>=Inputs!$H$75,D168<=Inputs!$H$76),IFERROR(AND(D168>=0,D168<=Inputs!$H$76-168),FALSE)) -> FALSE | I168: 1 | J168: 0
B169: Wednesday | C169: 11:00:00 | D169: 83 | E169: =OR(AND(D169>=Inputs!$I$45,D169<=Inputs!$I$46),AND(D169>=Inputs!$C$45,D169<=Inputs!$C$46),AND(D169>=Inputs!$D$45,D169<=Inputs!$D$46),AND(D169>=Inputs!$E$45,D169<=Inputs!$E$46),AND(D169>=Inputs!$F$45,D169<=Inputs!$F$46),AND(D169>=Inputs!$G$45,D169<=Inputs!$G$46),AND(D169>=Inputs!$H$45,D169<=Inputs!$H$46),IFERROR(AND(D169>=0,D169<=Inputs!$H$46-168),FALSE)) -> TRUE | F169: =OR(AND(D169>=Inputs!$I$55,D169<=Inputs!$I$56),AND(D169>=Inputs!$C$55,D169<=Inputs!$C$56),AND(D169>=Inputs!$D$55,D169<=Inputs!$D$56),AND(D169>=Inputs!$E$55,D169<=Inputs!$E$56),AND(D169>=Inputs!$F$55,D169<=Inputs!$F$56),AND(D169>=Inputs!$G$55,D169<=Inputs!$G$56),AND(D169>=Inputs!$H$55,D169<=Inputs!$H$56),IFERROR(AND(D169>=0,D169<=Inputs!$H$56-168),FALSE)) -> FALSE | G169: =OR(AND(D169>=Inputs!$I$65,D169<=Inputs!$I$66),AND(D169>=Inputs!$C$65,D169<=Inputs!$C$66),AND(D169>=Inputs!$D$65,D169<=Inputs!$D$66),AND(D169>=Inputs!$E$65,D169<=Inputs!$E$66),AND(D169>=Inputs!$F$65,D169<=Inputs!$F$66),AND(D169>=Inputs!$G$65,D169<=Inputs!$G$66),AND(D169>=Inputs!$H$65,D169<=Inputs!$H$66),IFERROR(AND(D169>=0,D169<=Inputs!$H$66-168),FALSE)) -> FALSE | H169: =OR(AND(D169>=Inputs!$I$75,D169<=Inputs!$I$76),AND(D169>=Inputs!$C$75,D169<=Inputs!$C$76),AND(D169>=Inputs!$D$75,D169<=Inputs!$D$76),AND(D169>=Inputs!$E$75,D169<=Inputs!$E$76),AND(D169>=Inputs!$F$75,D169<=Inputs!$F$76),AND(D169>=Inputs!$G$75,D169<=Inputs!$G$76),AND(D169>=Inputs!$H$75,D169<=Inputs!$H$76),IFERROR(AND(D169>=0,D169<=Inputs!$H$76-168),FALSE)) -> FALSE | I169: 1 | J169: 0
B170: Wednesday | C170: 12:00:00 | D170: 84 | E170: =OR(AND(D170>=Inputs!$I$45,D170<=Inputs!$I$46),AND(D170>=Inputs!$C$45,D170<=Inputs!$C$46),AND(D170>=Inputs!$D$45,D170<=Inputs!$D$46),AND(D170>=Inputs!$E$45,D170<=Inputs!$E$46),AND(D170>=Inputs!$F$45,D170<=Inputs!$F$46),AND(D170>=Inputs!$G$45,D170<=Inputs!$G$46),AND(D170>=Inputs!$H$45,D170<=Inputs!$H$46),IFERROR(AND(D170>=0,D170<=Inputs!$H$46-168),FALSE)) -> TRUE | F170: =OR(AND(D170>=Inputs!$I$55,D170<=Inputs!$I$56),AND(D170>=Inputs!$C$55,D170<=Inputs!$C$56),AND(D170>=Inputs!$D$55,D170<=Inputs!$D$56),AND(D170>=Inputs!$E$55,D170<=Inputs!$E$56),AND(D170>=Inputs!$F$55,D170<=Inputs!$F$56),AND(D170>=Inputs!$G$55,D170<=Inputs!$G$56),AND(D170>=Inputs!$H$55,D170<=Inputs!$H$56),IFERROR(AND(D170>=0,D170<=Inputs!$H$56-168),FALSE)) -> FALSE | G170: =OR(AND(D170>=Inputs!$I$65,D170<=Inputs!$I$66),AND(D170>=Inputs!$C$65,D170<=Inputs!$C$66),AND(D170>=Inputs!$D$65,D170<=Inputs!$D$66),AND(D170>=Inputs!$E$65,D170<=Inputs!$E$66),AND(D170>=Inputs!$F$65,D170<=Inputs!$F$66),AND(D170>=Inputs!$G$65,D170<=Inputs!$G$66),AND(D170>=Inputs!$H$65,D170<=Inputs!$H$66),IFERROR(AND(D170>=0,D170<=Inputs!$H$66-168),FALSE)) -> FALSE | H170: =OR(AND(D170>=Inputs!$I$75,D170<=Inputs!$I$76),AND(D170>=Inputs!$C$75,D170<=Inputs!$C$76),AND(D170>=Inputs!$D$75,D170<=Inputs!$D$76),AND(D170>=Inputs!$E$75,D170<=Inputs!$E$76),AND(D170>=Inputs!$F$75,D170<=Inputs!$F$76),AND(D170>=Inputs!$G$75,D170<=Inputs!$G$76),AND(D170>=Inputs!$H$75,D170<=Inputs!$H$76),IFERROR(AND(D170>=0,D170<=Inputs!$H$76-168),FALSE)) -> FALSE | I170: 1 | J170: 0
B171: Wednesday | C171: 13:00:00 | D171: 85 | E171: =OR(AND(D171>=Inputs!$I$45,D171<=Inputs!$I$46),AND(D171>=Inputs!$C$45,D171<=Inputs!$C$46),AND(D171>=Inputs!$D$45,D171<=Inputs!$D$46),AND(D171>=Inputs!$E$45,D171<=Inputs!$E$46),AND(D171>=Inputs!$F$45,D171<=Inputs!$F$46),AND(D171>=Inputs!$G$45,D171<=Inputs!$G$46),AND(D171>=Inputs!$H$45,D171<=Inputs!$H$46),IFERROR(AND(D171>=0,D171<=Inputs!$H$46-168),FALSE)) -> TRUE | F171: =OR(AND(D171>=Inputs!$I$55,D171<=Inputs!$I$56),AND(D171>=Inputs!$C$55,D171<=Inputs!$C$56),AND(D171>=Inputs!$D$55,D171<=Inputs!$D$56),AND(D171>=Inputs!$E$55,D171<=Inputs!$E$56),AND(D171>=Inputs!$F$55,D171<=Inputs!$F$56),AND(D171>=Inputs!$G$55,D171<=Inputs!$G$56),AND(D171>=Inputs!$H$55,D171<=Inputs!$H$56),IFERROR(AND(D171>=0,D171<=Inputs!$H$56-168),FALSE)) -> FALSE | G171: =OR(AND(D171>=Inputs!$I$65,D171<=Inputs!$I$66),AND(D171>=Inputs!$C$65,D171<=Inputs!$C$66),AND(D171>=Inputs!$D$65,D171<=Inputs!$D$66),AND(D171>=Inputs!$E$65,D171<=Inputs!$E$66),AND(D171>=Inputs!$F$65,D171<=Inputs!$F$66),AND(D171>=Inputs!$G$65,D171<=Inputs!$G$66),AND(D171>=Inputs!$H$65,D171<=Inputs!$H$66),IFERROR(AND(D171>=0,D171<=Inputs!$H$66-168),FALSE)) -> FALSE | H171: =OR(AND(D171>=Inputs!$I$75,D171<=Inputs!$I$76),AND(D171>=Inputs!$C$75,D171<=Inputs!$C$76),AND(D171>=Inputs!$D$75,D171<=Inputs!$D$76),AND(D171>=Inputs!$E$75,D171<=Inputs!$E$76),AND(D171>=Inputs!$F$75,D171<=Inputs!$F$76),AND(D171>=Inputs!$G$75,D171<=Inputs!$G$76),AND(D171>=Inputs!$H$75,D171<=Inputs!$H$76),IFERROR(AND(D171>=0,D171<=Inputs!$H$76-168),FALSE)) -> FALSE | I171: 1 | J171: 0
B172: Wednesday | C172: 14:00:00 | D172: 86 | E172: =OR(AND(D172>=Inputs!$I$45,D172<=Inputs!$I$46),AND(D172>=Inputs!$C$45,D172<=Inputs!$C$46),AND(D172>=Inputs!$D$45,D172<=Inputs!$D$46),AND(D172>=Inputs!$E$45,D172<=Inputs!$E$46),AND(D172>=Inputs!$F$45,D172<=Inputs!$F$46),AND(D172>=Inputs!$G$45,D172<=Inputs!$G$46),AND(D172>=Inputs!$H$45,D172<=Inputs!$H$46),IFERROR(AND(D172>=0,D172<=Inputs!$H$46-168),FALSE)) -> FALSE | F172: =OR(AND(D172>=Inputs!$I$55,D172<=Inputs!$I$56),AND(D172>=Inputs!$C$55,D172<=Inputs!$C$56),AND(D172>=Inputs!$D$55,D172<=Inputs!$D$56),AND(D172>=Inputs!$E$55,D172<=Inputs!$E$56),AND(D172>=Inputs!$F$55,D172<=Inputs!$F$56),AND(D172>=Inputs!$G$55,D172<=Inputs!$G$56),AND(D172>=Inputs!$H$55,D172<=Inputs!$H$56),IFERROR(AND(D172>=0,D172<=Inputs!$H$56-168),FALSE)) -> FALSE | G172: =OR(AND(D172>=Inputs!$I$65,D172<=Inputs!$I$66),AND(D172>=Inputs!$C$65,D172<=Inputs!$C$66),AND(D172>=Inputs!$D$65,D172<=Inputs!$D$66),AND(D172>=Inputs!$E$65,D172<=Inputs!$E$66),AND(D172>=Inputs!$F$65,D172<=Inputs!$F$66),AND(D172>=Inputs!$G$65,D172<=Inputs!$G$66),AND(D172>=Inputs!$H$65,D172<=Inputs!$H$66),IFERROR(AND(D172>=0,D172<=Inputs!$H$66-168),FALSE)) -> FALSE | H172: =OR(AND(D172>=Inputs!$I$75,D172<=Inputs!$I$76),AND(D172>=Inputs!$C$75,D172<=Inputs!$C$76),AND(D172>=Inputs!$D$75,D172<=Inputs!$D$76),AND(D172>=Inputs!$E$75,D172<=Inputs!$E$76),AND(D172>=Inputs!$F$75,D172<=Inputs!$F$76),AND(D172>=Inputs!$G$75,D172<=Inputs!$G$76),AND(D172>=Inputs!$H$75,D172<=Inputs!$H$76),IFERROR(AND(D172>=0,D172<=Inputs!$H$76-168),FALSE)) -> FALSE | I172: 0 | J172: 0
B173: Wednesday | C173: 15:00:00 | D173: 87 | E173: =OR(AND(D173>=Inputs!$I$45,D173<=Inputs!$I$46),AND(D173>=Inputs!$C$45,D173<=Inputs!$C$46),AND(D173>=Inputs!$D$45,D173<=Inputs!$D$46),AND(D173>=Inputs!$E$45,D173<=Inputs!$E$46),AND(D173>=Inputs!$F$45,D173<=Inputs!$F$46),AND(D173>=Inputs!$G$45,D173<=Inputs!$G$46),AND(D173>=Inputs!$H$45,D173<=Inputs!$H$46),IFERROR(AND(D173>=0,D173<=Inputs!$H$46-168),FALSE)) -> FALSE | F173: =OR(AND(D173>=Inputs!$I$55,D173<=Inputs!$I$56),AND(D173>=Inputs!$C$55,D173<=Inputs!$C$56),AND(D173>=Inputs!$D$55,D173<=Inputs!$D$56),AND(D173>=Inputs!$E$55,D173<=Inputs!$E$56),AND(D173>=Inputs!$F$55,D173<=Inputs!$F$56),AND(D173>=Inputs!$G$55,D173<=Inputs!$G$56),AND(D173>=Inputs!$H$55,D173<=Inputs!$H$56),IFERROR(AND(D173>=0,D173<=Inputs!$H$56-168),FALSE)) -> FALSE | G173: =OR(AND(D173>=Inputs!$I$65,D173<=Inputs!$I$66),AND(D173>=Inputs!$C$65,D173<=Inputs!$C$66),AND(D173>=Inputs!$D$65,D173<=Inputs!$D$66),AND(D173>=Inputs!$E$65,D173<=Inputs!$E$66),AND(D173>=Inputs!$F$65,D173<=Inputs!$F$66),AND(D173>=Inputs!$G$65,D173<=Inputs!$G$66),AND(D173>=Inputs!$H$65,D173<=Inputs!$H$66),IFERROR(AND(D173>=0,D173<=Inputs!$H$66-168),FALSE)) -> FALSE | H173: =OR(AND(D173>=Inputs!$I$75,D173<=Inputs!$I$76),AND(D173>=Inputs!$C$75,D173<=Inputs!$C$76),AND(D173>=Inputs!$D$75,D173<=Inputs!$D$76),AND(D173>=Inputs!$E$75,D173<=Inputs!$E$76),AND(D173>=Inputs!$F$75,D173<=Inputs!$F$76),AND(D173>=Inputs!$G$75,D173<=Inputs!$G$76),AND(D173>=Inputs!$H$75,D173<=Inputs!$H$76),IFERROR(AND(D173>=0,D173<=Inputs!$H$76-168),FALSE)) -> FALSE | I173: 0 | J173: 0
B174: Wednesday | C174: 16:00:00 | D174: 88 | E174: =OR(AND(D174>=Inputs!$I$45,D174<=Inputs!$I$46),AND(D174>=Inputs!$C$45,D174<=Inputs!$C$46),AND(D174>=Inputs!$D$45,D174<=Inputs!$D$46),AND(D174>=Inputs!$E$45,D174<=Inputs!$E$46),AND(D174>=Inputs!$F$45,D174<=Inputs!$F$46),AND(D174>=Inputs!$G$45,D174<=Inputs!$G$46),AND(D174>=Inputs!$H$45,D174<=Inputs!$H$46),IFERROR(AND(D174>=0,D174<=Inputs!$H$46-168),FALSE)) -> FALSE | F174: =OR(AND(D174>=Inputs!$I$55,D174<=Inputs!$I$56),AND(D174>=Inputs!$C$55,D174<=Inputs!$C$56),AND(D174>=Inputs!$D$55,D174<=Inputs!$D$56),AND(D174>=Inputs!$E$55,D174<=Inputs!$E$56),AND(D174>=Inputs!$F$55,D174<=Inputs!$F$56),AND(D174>=Inputs!$G$55,D174<=Inputs!$G$56),AND(D174>=Inputs!$H$55,D174<=Inputs!$H$56),IFERROR(AND(D174>=0,D174<=Inputs!$H$56-168),FALSE)) -> FALSE | G174: =OR(AND(D174>=Inputs!$I$65,D174<=Inputs!$I$66),AND(D174>=Inputs!$C$65,D174<=Inputs!$C$66),AND(D174>=Inputs!$D$65,D174<=Inputs!$D$66),AND(D174>=Inputs!$E$65,D174<=Inputs!$E$66),AND(D174>=Inputs!$F$65,D174<=Inputs!$F$66),AND(D174>=Inputs!$G$65,D174<=Inputs!$G$66),AND(D174>=Inputs!$H$65,D174<=Inputs!$H$66),IFERROR(AND(D174>=0,D174<=Inputs!$H$66-168),FALSE)) -> FALSE | H174: =OR(AND(D174>=Inputs!$I$75,D174<=Inputs!$I$76),AND(D174>=Inputs!$C$75,D174<=Inputs!$C$76),AND(D174>=Inputs!$D$75,D174<=Inputs!$D$76),AND(D174>=Inputs!$E$75,D174<=Inputs!$E$76),AND(D174>=Inputs!$F$75,D174<=Inputs!$F$76),AND(D174>=Inputs!$G$75,D174<=Inputs!$G$76),AND(D174>=Inputs!$H$75,D174<=Inputs!$H$76),IFERROR(AND(D174>=0,D174<=Inputs!$H$76-168),FALSE)) -> FALSE | I174: 0 | J174: 0
B175: Wednesday | C175: 17:00:00 | D175: 89 | E175: =OR(AND(D175>=Inputs!$I$45,D175<=Inputs!$I$46),AND(D175>=Inputs!$C$45,D175<=Inputs!$C$46),AND(D175>=Inputs!$D$45,D175<=Inputs!$D$46),AND(D175>=Inputs!$E$45,D175<=Inputs!$E$46),AND(D175>=Inputs!$F$45,D175<=Inputs!$F$46),AND(D175>=Inputs!$G$45,D175<=Inputs!$G$46),AND(D175>=Inputs!$H$45,D175<=Inputs!$H$46),IFERROR(AND(D175>=0,D175<=Inputs!$H$46-168),FALSE)) -> FALSE | F175: =OR(AND(D175>=Inputs!$I$55,D175<=Inputs!$I$56),AND(D175>=Inputs!$C$55,D175<=Inputs!$C$56),AND(D175>=Inputs!$D$55,D175<=Inputs!$D$56),AND(D175>=Inputs!$E$55,D175<=Inputs!$E$56),AND(D175>=Inputs!$F$55,D175<=Inputs!$F$56),AND(D175>=Inputs!$G$55,D175<=Inputs!$G$56),AND(D175>=Inputs!$H$55,D175<=Inputs!$H$56),IFERROR(AND(D175>=0,D175<=Inputs!$H$56-168),FALSE)) -> FALSE | G175: =OR(AND(D175>=Inputs!$I$65,D175<=Inputs!$I$66),AND(D175>=Inputs!$C$65,D175<=Inputs!$C$66),AND(D175>=Inputs!$D$65,D175<=Inputs!$D$66),AND(D175>=Inputs!$E$65,D175<=Inputs!$E$66),AND(D175>=Inputs!$F$65,D175<=Inputs!$F$66),AND(D175>=Inputs!$G$65,D175<=Inputs!$G$66),AND(D175>=Inputs!$H$65,D175<=Inputs!$H$66),IFERROR(AND(D175>=0,D175<=Inputs!$H$66-168),FALSE)) -> FALSE | H175: =OR(AND(D175>=Inputs!$I$75,D175<=Inputs!$I$76),AND(D175>=Inputs!$C$75,D175<=Inputs!$C$76),AND(D175>=Inputs!$D$75,D175<=Inputs!$D$76),AND(D175>=Inputs!$E$75,D175<=Inputs!$E$76),AND(D175>=Inputs!$F$75,D175<=Inputs!$F$76),AND(D175>=Inputs!$G$75,D175<=Inputs!$G$76),AND(D175>=Inputs!$H$75,D175<=Inputs!$H$76),IFERROR(AND(D175>=0,D175<=Inputs!$H$76-168),FALSE)) -> FALSE | I175: 0 | J175: 0
B176: Wednesday | C176: 18:00:00 | D176: 90 | E176: =OR(AND(D176>=Inputs!$I$45,D176<=Inputs!$I$46),AND(D176>=Inputs!$C$45,D176<=Inputs!$C$46),AND(D176>=Inputs!$D$45,D176<=Inputs!$D$46),AND(D176>=Inputs!$E$45,D176<=Inputs!$E$46),AND(D176>=Inputs!$F$45,D176<=Inputs!$F$46),AND(D176>=Inputs!$G$45,D176<=Inputs!$G$46),AND(D176>=Inputs!$H$45,D176<=Inputs!$H$46),IFERROR(AND(D176>=0,D176<=Inputs!$H$46-168),FALSE)) -> FALSE | F176: =OR(AND(D176>=Inputs!$I$55,D176<=Inputs!$I$56),AND(D176>=Inputs!$C$55,D176<=Inputs!$C$56),AND(D176>=Inputs!$D$55,D176<=Inputs!$D$56),AND(D176>=Inputs!$E$55,D176<=Inputs!$E$56),AND(D176>=Inputs!$F$55,D176<=Inputs!$F$56),AND(D176>=Inputs!$G$55,D176<=Inputs!$G$56),AND(D176>=Inputs!$H$55,D176<=Inputs!$H$56),IFERROR(AND(D176>=0,D176<=Inputs!$H$56-168),FALSE)) -> FALSE | G176: =OR(AND(D176>=Inputs!$I$65,D176<=Inputs!$I$66),AND(D176>=Inputs!$C$65,D176<=Inputs!$C$66),AND(D176>=Inputs!$D$65,D176<=Inputs!$D$66),AND(D176>=Inputs!$E$65,D176<=Inputs!$E$66),AND(D176>=Inputs!$F$65,D176<=Inputs!$F$66),AND(D176>=Inputs!$G$65,D176<=Inputs!$G$66),AND(D176>=Inputs!$H$65,D176<=Inputs!$H$66),IFERROR(AND(D176>=0,D176<=Inputs!$H$66-168),FALSE)) -> FALSE | H176: =OR(AND(D176>=Inputs!$I$75,D176<=Inputs!$I$76),AND(D176>=Inputs!$C$75,D176<=Inputs!$C$76),AND(D176>=Inputs!$D$75,D176<=Inputs!$D$76),AND(D176>=Inputs!$E$75,D176<=Inputs!$E$76),AND(D176>=Inputs!$F$75,D176<=Inputs!$F$76),AND(D176>=Inputs!$G$75,D176<=Inputs!$G$76),AND(D176>=Inputs!$H$75,D176<=Inputs!$H$76),IFERROR(AND(D176>=0,D176<=Inputs!$H$76-168),FALSE)) -> FALSE | I176: 0 | J176: 0
B177: Wednesday | C177: 19:00:00 | D177: 91 | E177: =OR(AND(D177>=Inputs!$I$45,D177<=Inputs!$I$46),AND(D177>=Inputs!$C$45,D177<=Inputs!$C$46),AND(D177>=Inputs!$D$45,D177<=Inputs!$D$46),AND(D177>=Inputs!$E$45,D177<=Inputs!$E$46),AND(D177>=Inputs!$F$45,D177<=Inputs!$F$46),AND(D177>=Inputs!$G$45,D177<=Inputs!$G$46),AND(D177>=Inputs!$H$45,D177<=Inputs!$H$46),IFERROR(AND(D177>=0,D177<=Inputs!$H$46-168),FALSE)) -> FALSE | F177: =OR(AND(D177>=Inputs!$I$55,D177<=Inputs!$I$56),AND(D177>=Inputs!$C$55,D177<=Inputs!$C$56),AND(D177>=Inputs!$D$55,D177<=Inputs!$D$56),AND(D177>=Inputs!$E$55,D177<=Inputs!$E$56),AND(D177>=Inputs!$F$55,D177<=Inputs!$F$56),AND(D177>=Inputs!$G$55,D177<=Inputs!$G$56),AND(D177>=Inputs!$H$55,D177<=Inputs!$H$56),IFERROR(AND(D177>=0,D177<=Inputs!$H$56-168),FALSE)) -> FALSE | G177: =OR(AND(D177>=Inputs!$I$65,D177<=Inputs!$I$66),AND(D177>=Inputs!$C$65,D177<=Inputs!$C$66),AND(D177>=Inputs!$D$65,D177<=Inputs!$D$66),AND(D177>=Inputs!$E$65,D177<=Inputs!$E$66),AND(D177>=Inputs!$F$65,D177<=Inputs!$F$66),AND(D177>=Inputs!$G$65,D177<=Inputs!$G$66),AND(D177>=Inputs!$H$65,D177<=Inputs!$H$66),IFERROR(AND(D177>=0,D177<=Inputs!$H$66-168),FALSE)) -> FALSE | H177: =OR(AND(D177>=Inputs!$I$75,D177<=Inputs!$I$76),AND(D177>=Inputs!$C$75,D177<=Inputs!$C$76),AND(D177>=Inputs!$D$75,D177<=Inputs!$D$76),AND(D177>=Inputs!$E$75,D177<=Inputs!$E$76),AND(D177>=Inputs!$F$75,D177<=Inputs!$F$76),AND(D177>=Inputs!$G$75,D177<=Inputs!$G$76),AND(D177>=Inputs!$H$75,D177<=Inputs!$H$76),IFERROR(AND(D177>=0,D177<=Inputs!$H$76-168),FALSE)) -> FALSE | I177: 0 | J177: 0
B178: Wednesday | C178: 20:00:00 | D178: 92 | E178: =OR(AND(D178>=Inputs!$I$45,D178<=Inputs!$I$46),AND(D178>=Inputs!$C$45,D178<=Inputs!$C$46),AND(D178>=Inputs!$D$45,D178<=Inputs!$D$46),AND(D178>=Inputs!$E$45,D178<=Inputs!$E$46),AND(D178>=Inputs!$F$45,D178<=Inputs!$F$46),AND(D178>=Inputs!$G$45,D178<=Inputs!$G$46),AND(D178>=Inputs!$H$45,D178<=Inputs!$H$46),IFERROR(AND(D178>=0,D178<=Inputs!$H$46-168),FALSE)) -> FALSE | F178: =OR(AND(D178>=Inputs!$I$55,D178<=Inputs!$I$56),AND(D178>=Inputs!$C$55,D178<=Inputs!$C$56),AND(D178>=Inputs!$D$55,D178<=Inputs!$D$56),AND(D178>=Inputs!$E$55,D178<=Inputs!$E$56),AND(D178>=Inputs!$F$55,D178<=Inputs!$F$56),AND(D178>=Inputs!$G$55,D178<=Inputs!$G$56),AND(D178>=Inputs!$H$55,D178<=Inputs!$H$56),IFERROR(AND(D178>=0,D178<=Inputs!$H$56-168),FALSE)) -> FALSE | G178: =OR(AND(D178>=Inputs!$I$65,D178<=Inputs!$I$66),AND(D178>=Inputs!$C$65,D178<=Inputs!$C$66),AND(D178>=Inputs!$D$65,D178<=Inputs!$D$66),AND(D178>=Inputs!$E$65,D178<=Inputs!$E$66),AND(D178>=Inputs!$F$65,D178<=Inputs!$F$66),AND(D178>=Inputs!$G$65,D178<=Inputs!$G$66),AND(D178>=Inputs!$H$65,D178<=Inputs!$H$66),IFERROR(AND(D178>=0,D178<=Inputs!$H$66-168),FALSE)) -> FALSE | H178: =OR(AND(D178>=Inputs!$I$75,D178<=Inputs!$I$76),AND(D178>=Inputs!$C$75,D178<=Inputs!$C$76),AND(D178>=Inputs!$D$75,D178<=Inputs!$D$76),AND(D178>=Inputs!$E$75,D178<=Inputs!$E$76),AND(D178>=Inputs!$F$75,D178<=Inputs!$F$76),AND(D178>=Inputs!$G$75,D178<=Inputs!$G$76),AND(D178>=Inputs!$H$75,D178<=Inputs!$H$76),IFERROR(AND(D178>=0,D178<=Inputs!$H$76-168),FALSE)) -> FALSE | I178: 0 | J178: 0
B179: Wednesday | C179: 21:00:00 | D179: 93 | E179: =OR(AND(D179>=Inputs!$I$45,D179<=Inputs!$I$46),AND(D179>=Inputs!$C$45,D179<=Inputs!$C$46),AND(D179>=Inputs!$D$45,D179<=Inputs!$D$46),AND(D179>=Inputs!$E$45,D179<=Inputs!$E$46),AND(D179>=Inputs!$F$45,D179<=Inputs!$F$46),AND(D179>=Inputs!$G$45,D179<=Inputs!$G$46),AND(D179>=Inputs!$H$45,D179<=Inputs!$H$46),IFERROR(AND(D179>=0,D179<=Inputs!$H$46-168),FALSE)) -> FALSE | F179: =OR(AND(D179>=Inputs!$I$55,D179<=Inputs!$I$56),AND(D179>=Inputs!$C$55,D179<=Inputs!$C$56),AND(D179>=Inputs!$D$55,D179<=Inputs!$D$56),AND(D179>=Inputs!$E$55,D179<=Inputs!$E$56),AND(D179>=Inputs!$F$55,D179<=Inputs!$F$56),AND(D179>=Inputs!$G$55,D179<=Inputs!$G$56),AND(D179>=Inputs!$H$55,D179<=Inputs!$H$56),IFERROR(AND(D179>=0,D179<=Inputs!$H$56-168),FALSE)) -> FALSE | G179: =OR(AND(D179>=Inputs!$I$65,D179<=Inputs!$I$66),AND(D179>=Inputs!$C$65,D179<=Inputs!$C$66),AND(D179>=Inputs!$D$65,D179<=Inputs!$D$66),AND(D179>=Inputs!$E$65,D179<=Inputs!$E$66),AND(D179>=Inputs!$F$65,D179<=Inputs!$F$66),AND(D179>=Inputs!$G$65,D179<=Inputs!$G$66),AND(D179>=Inputs!$H$65,D179<=Inputs!$H$66),IFERROR(AND(D179>=0,D179<=Inputs!$H$66-168),FALSE)) -> FALSE | H179: =OR(AND(D179>=Inputs!$I$75,D179<=Inputs!$I$76),AND(D179>=Inputs!$C$75,D179<=Inputs!$C$76),AND(D179>=Inputs!$D$75,D179<=Inputs!$D$76),AND(D179>=Inputs!$E$75,D179<=Inputs!$E$76),AND(D179>=Inputs!$F$75,D179<=Inputs!$F$76),AND(D179>=Inputs!$G$75,D179<=Inputs!$G$76),AND(D179>=Inputs!$H$75,D179<=Inputs!$H$76),IFERROR(AND(D179>=0,D179<=Inputs!$H$76-168),FALSE)) -> FALSE | I179: 0 | J179: 0
B180: Wednesday | C180: 22:00:00 | D180: 94 | E180: =OR(AND(D180>=Inputs!$I$45,D180<=Inputs!$I$46),AND(D180>=Inputs!$C$45,D180<=Inputs!$C$46),AND(D180>=Inputs!$D$45,D180<=Inputs!$D$46),AND(D180>=Inputs!$E$45,D180<=Inputs!$E$46),AND(D180>=Inputs!$F$45,D180<=Inputs!$F$46),AND(D180>=Inputs!$G$45,D180<=Inputs!$G$46),AND(D180>=Inputs!$H$45,D180<=Inputs!$H$46),IFERROR(AND(D180>=0,D180<=Inputs!$H$46-168),FALSE)) -> FALSE | F180: =OR(AND(D180>=Inputs!$I$55,D180<=Inputs!$I$56),AND(D180>=Inputs!$C$55,D180<=Inputs!$C$56),AND(D180>=Inputs!$D$55,D180<=Inputs!$D$56),AND(D180>=Inputs!$E$55,D180<=Inputs!$E$56),AND(D180>=Inputs!$F$55,D180<=Inputs!$F$56),AND(D180>=Inputs!$G$55,D180<=Inputs!$G$56),AND(D180>=Inputs!$H$55,D180<=Inputs!$H$56),IFERROR(AND(D180>=0,D180<=Inputs!$H$56-168),FALSE)) -> FALSE | G180: =OR(AND(D180>=Inputs!$I$65,D180<=Inputs!$I$66),AND(D180>=Inputs!$C$65,D180<=Inputs!$C$66),AND(D180>=Inputs!$D$65,D180<=Inputs!$D$66),AND(D180>=Inputs!$E$65,D180<=Inputs!$E$66),AND(D180>=Inputs!$F$65,D180<=Inputs!$F$66),AND(D180>=Inputs!$G$65,D180<=Inputs!$G$66),AND(D180>=Inputs!$H$65,D180<=Inputs!$H$66),IFERROR(AND(D180>=0,D180<=Inputs!$H$66-168),FALSE)) -> FALSE | H180: =OR(AND(D180>=Inputs!$I$75,D180<=Inputs!$I$76),AND(D180>=Inputs!$C$75,D180<=Inputs!$C$76),AND(D180>=Inputs!$D$75,D180<=Inputs!$D$76),AND(D180>=Inputs!$E$75,D180<=Inputs!$E$76),AND(D180>=Inputs!$F$75,D180<=Inputs!$F$76),AND(D180>=Inputs!$G$75,D180<=Inputs!$G$76),AND(D180>=Inputs!$H$75,D180<=Inputs!$H$76),IFERROR(AND(D180>=0,D180<=Inputs!$H$76-168),FALSE)) -> FALSE | I180: 0 | J180: 0
B181: Wednesday | C181: 23:00:00 | D181: 95 | E181: =OR(AND(D181>=Inputs!$I$45,D181<=Inputs!$I$46),AND(D181>=Inputs!$C$45,D181<=Inputs!$C$46),AND(D181>=Inputs!$D$45,D181<=Inputs!$D$46),AND(D181>=Inputs!$E$45,D181<=Inputs!$E$46),AND(D181>=Inputs!$F$45,D181<=Inputs!$F$46),AND(D181>=Inputs!$G$45,D181<=Inputs!$G$46),AND(D181>=Inputs!$H$45,D181<=Inputs!$H$46),IFERROR(AND(D181>=0,D181<=Inputs!$H$46-168),FALSE)) -> FALSE | F181: =OR(AND(D181>=Inputs!$I$55,D181<=Inputs!$I$56),AND(D181>=Inputs!$C$55,D181<=Inputs!$C$56),AND(D181>=Inputs!$D$55,D181<=Inputs!$D$56),AND(D181>=Inputs!$E$55,D181<=Inputs!$E$56),AND(D181>=Inputs!$F$55,D181<=Inputs!$F$56),AND(D181>=Inputs!$G$55,D181<=Inputs!$G$56),AND(D181>=Inputs!$H$55,D181<=Inputs!$H$56),IFERROR(AND(D181>=0,D181<=Inputs!$H$56-168),FALSE)) -> FALSE | G181: =OR(AND(D181>=Inputs!$I$65,D181<=Inputs!$I$66),AND(D181>=Inputs!$C$65,D181<=Inputs!$C$66),AND(D181>=Inputs!$D$65,D181<=Inputs!$D$66),AND(D181>=Inputs!$E$65,D181<=Inputs!$E$66),AND(D181>=Inputs!$F$65,D181<=Inputs!$F$66),AND(D181>=Inputs!$G$65,D181<=Inputs!$G$66),AND(D181>=Inputs!$H$65,D181<=Inputs!$H$66),IFERROR(AND(D181>=0,D181<=Inputs!$H$66-168),FALSE)) -> FALSE | H181: =OR(AND(D181>=Inputs!$I$75,D181<=Inputs!$I$76),AND(D181>=Inputs!$C$75,D181<=Inputs!$C$76),AND(D181>=Inputs!$D$75,D181<=Inputs!$D$76),AND(D181>=Inputs!$E$75,D181<=Inputs!$E$76),AND(D181>=Inputs!$F$75,D181<=Inputs!$F$76),AND(D181>=Inputs!$G$75,D181<=Inputs!$G$76),AND(D181>=Inputs!$H$75,D181<=Inputs!$H$76),IFERROR(AND(D181>=0,D181<=Inputs!$H$76-168),FALSE)) -> FALSE | I181: 0 | J181: 0
B182: Thursday | C182: 00:00:00 | D182: 96 | E182: =OR(AND(D182>=Inputs!$I$45,D182<=Inputs!$I$46),AND(D182>=Inputs!$C$45,D182<=Inputs!$C$46),AND(D182>=Inputs!$D$45,D182<=Inputs!$D$46),AND(D182>=Inputs!$E$45,D182<=Inputs!$E$46),AND(D182>=Inputs!$F$45,D182<=Inputs!$F$46),AND(D182>=Inputs!$G$45,D182<=Inputs!$G$46),AND(D182>=Inputs!$H$45,D182<=Inputs!$H$46),IFERROR(AND(D182>=0,D182<=Inputs!$H$46-168),FALSE)) -> FALSE | F182: =OR(AND(D182>=Inputs!$I$55,D182<=Inputs!$I$56),AND(D182>=Inputs!$C$55,D182<=Inputs!$C$56),AND(D182>=Inputs!$D$55,D182<=Inputs!$D$56),AND(D182>=Inputs!$E$55,D182<=Inputs!$E$56),AND(D182>=Inputs!$F$55,D182<=Inputs!$F$56),AND(D182>=Inputs!$G$55,D182<=Inputs!$G$56),AND(D182>=Inputs!$H$55,D182<=Inputs!$H$56),IFERROR(AND(D182>=0,D182<=Inputs!$H$56-168),FALSE)) -> FALSE | G182: =OR(AND(D182>=Inputs!$I$65,D182<=Inputs!$I$66),AND(D182>=Inputs!$C$65,D182<=Inputs!$C$66),AND(D182>=Inputs!$D$65,D182<=Inputs!$D$66),AND(D182>=Inputs!$E$65,D182<=Inputs!$E$66),AND(D182>=Inputs!$F$65,D182<=Inputs!$F$66),AND(D182>=Inputs!$G$65,D182<=Inputs!$G$66),AND(D182>=Inputs!$H$65,D182<=Inputs!$H$66),IFERROR(AND(D182>=0,D182<=Inputs!$H$66-168),FALSE)) -> FALSE | H182: =OR(AND(D182>=Inputs!$I$75,D182<=Inputs!$I$76),AND(D182>=Inputs!$C$75,D182<=Inputs!$C$76),AND(D182>=Inputs!$D$75,D182<=Inputs!$D$76),AND(D182>=Inputs!$E$75,D182<=Inputs!$E$76),AND(D182>=Inputs!$F$75,D182<=Inputs!$F$76),AND(D182>=Inputs!$G$75,D182<=Inputs!$G$76),AND(D182>=Inputs!$H$75,D182<=Inputs!$H$76),IFERROR(AND(D182>=0,D182<=Inputs!$H$76-168),FALSE)) -> FALSE | I182: 0 | J182: 0
B183: Thursday | C183: 01:00:00 | D183: 97 | E183: =OR(AND(D183>=Inputs!$I$45,D183<=Inputs!$I$46),AND(D183>=Inputs!$C$45,D183<=Inputs!$C$46),AND(D183>=Inputs!$D$45,D183<=Inputs!$D$46),AND(D183>=Inputs!$E$45,D183<=Inputs!$E$46),AND(D183>=Inputs!$F$45,D183<=Inputs!$F$46),AND(D183>=Inputs!$G$45,D183<=Inputs!$G$46),AND(D183>=Inputs!$H$45,D183<=Inputs!$H$46),IFERROR(AND(D183>=0,D183<=Inputs!$H$46-168),FALSE)) -> FALSE | F183: =OR(AND(D183>=Inputs!$I$55,D183<=Inputs!$I$56),AND(D183>=Inputs!$C$55,D183<=Inputs!$C$56),AND(D183>=Inputs!$D$55,D183<=Inputs!$D$56),AND(D183>=Inputs!$E$55,D183<=Inputs!$E$56),AND(D183>=Inputs!$F$55,D183<=Inputs!$F$56),AND(D183>=Inputs!$G$55,D183<=Inputs!$G$56),AND(D183>=Inputs!$H$55,D183<=Inputs!$H$56),IFERROR(AND(D183>=0,D183<=Inputs!$H$56-168),FALSE)) -> FALSE | G183: =OR(AND(D183>=Inputs!$I$65,D183<=Inputs!$I$66),AND(D183>=Inputs!$C$65,D183<=Inputs!$C$66),AND(D183>=Inputs!$D$65,D183<=Inputs!$D$66),AND(D183>=Inputs!$E$65,D183<=Inputs!$E$66),AND(D183>=Inputs!$F$65,D183<=Inputs!$F$66),AND(D183>=Inputs!$G$65,D183<=Inputs!$G$66),AND(D183>=Inputs!$H$65,D183<=Inputs!$H$66),IFERROR(AND(D183>=0,D183<=Inputs!$H$66-168),FALSE)) -> FALSE | H183: =OR(AND(D183>=Inputs!$I$75,D183<=Inputs!$I$76),AND(D183>=Inputs!$C$75,D183<=Inputs!$C$76),AND(D183>=Inputs!$D$75,D183<=Inputs!$D$76),AND(D183>=Inputs!$E$75,D183<=Inputs!$E$76),AND(D183>=Inputs!$F$75,D183<=Inputs!$F$76),AND(D183>=Inputs!$G$75,D183<=Inputs!$G$76),AND(D183>=Inputs!$H$75,D183<=Inputs!$H$76),IFERROR(AND(D183>=0,D183<=Inputs!$H$76-168),FALSE)) -> FALSE | I183: 0 | J183: 0
B184: Thursday | C184: 02:00:00 | D184: 98 | E184: =OR(AND(D184>=Inputs!$I$45,D184<=Inputs!$I$46),AND(D184>=Inputs!$C$45,D184<=Inputs!$C$46),AND(D184>=Inputs!$D$45,D184<=Inputs!$D$46),AND(D184>=Inputs!$E$45,D184<=Inputs!$E$46),AND(D184>=Inputs!$F$45,D184<=Inputs!$F$46),AND(D184>=Inputs!$G$45,D184<=Inputs!$G$46),AND(D184>=Inputs!$H$45,D184<=Inputs!$H$46),IFERROR(AND(D184>=0,D184<=Inputs!$H$46-168),FALSE)) -> FALSE | F184: =OR(AND(D184>=Inputs!$I$55,D184<=Inputs!$I$56),AND(D184>=Inputs!$C$55,D184<=Inputs!$C$56),AND(D184>=Inputs!$D$55,D184<=Inputs!$D$56),AND(D184>=Inputs!$E$55,D184<=Inputs!$E$56),AND(D184>=Inputs!$F$55,D184<=Inputs!$F$56),AND(D184>=Inputs!$G$55,D184<=Inputs!$G$56),AND(D184>=Inputs!$H$55,D184<=Inputs!$H$56),IFERROR(AND(D184>=0,D184<=Inputs!$H$56-168),FALSE)) -> FALSE | G184: =OR(AND(D184>=Inputs!$I$65,D184<=Inputs!$I$66),AND(D184>=Inputs!$C$65,D184<=Inputs!$C$66),AND(D184>=Inputs!$D$65,D184<=Inputs!$D$66),AND(D184>=Inputs!$E$65,D184<=Inputs!$E$66),AND(D184>=Inputs!$F$65,D184<=Inputs!$F$66),AND(D184>=Inputs!$G$65,D184<=Inputs!$G$66),AND(D184>=Inputs!$H$65,D184<=Inputs!$H$66),IFERROR(AND(D184>=0,D184<=Inputs!$H$66-168),FALSE)) -> FALSE | H184: =OR(AND(D184>=Inputs!$I$75,D184<=Inputs!$I$76),AND(D184>=Inputs!$C$75,D184<=Inputs!$C$76),AND(D184>=Inputs!$D$75,D184<=Inputs!$D$76),AND(D184>=Inputs!$E$75,D184<=Inputs!$E$76),AND(D184>=Inputs!$F$75,D184<=Inputs!$F$76),AND(D184>=Inputs!$G$75,D184<=Inputs!$G$76),AND(D184>=Inputs!$H$75,D184<=Inputs!$H$76),IFERROR(AND(D184>=0,D184<=Inputs!$H$76-168),FALSE)) -> FALSE | I184: 0 | J184: 0
B185: Thursday | C185: 03:00:00 | D185: 99 | E185: =OR(AND(D185>=Inputs!$I$45,D185<=Inputs!$I$46),AND(D185>=Inputs!$C$45,D185<=Inputs!$C$46),AND(D185>=Inputs!$D$45,D185<=Inputs!$D$46),AND(D185>=Inputs!$E$45,D185<=Inputs!$E$46),AND(D185>=Inputs!$F$45,D185<=Inputs!$F$46),AND(D185>=Inputs!$G$45,D185<=Inputs!$G$46),AND(D185>=Inputs!$H$45,D185<=Inputs!$H$46),IFERROR(AND(D185>=0,D185<=Inputs!$H$46-168),FALSE)) -> FALSE | F185: =OR(AND(D185>=Inputs!$I$55,D185<=Inputs!$I$56),AND(D185>=Inputs!$C$55,D185<=Inputs!$C$56),AND(D185>=Inputs!$D$55,D185<=Inputs!$D$56),AND(D185>=Inputs!$E$55,D185<=Inputs!$E$56),AND(D185>=Inputs!$F$55,D185<=Inputs!$F$56),AND(D185>=Inputs!$G$55,D185<=Inputs!$G$56),AND(D185>=Inputs!$H$55,D185<=Inputs!$H$56),IFERROR(AND(D185>=0,D185<=Inputs!$H$56-168),FALSE)) -> FALSE | G185: =OR(AND(D185>=Inputs!$I$65,D185<=Inputs!$I$66),AND(D185>=Inputs!$C$65,D185<=Inputs!$C$66),AND(D185>=Inputs!$D$65,D185<=Inputs!$D$66),AND(D185>=Inputs!$E$65,D185<=Inputs!$E$66),AND(D185>=Inputs!$F$65,D185<=Inputs!$F$66),AND(D185>=Inputs!$G$65,D185<=Inputs!$G$66),AND(D185>=Inputs!$H$65,D185<=Inputs!$H$66),IFERROR(AND(D185>=0,D185<=Inputs!$H$66-168),FALSE)) -> FALSE | H185: =OR(AND(D185>=Inputs!$I$75,D185<=Inputs!$I$76),AND(D185>=Inputs!$C$75,D185<=Inputs!$C$76),AND(D185>=Inputs!$D$75,D185<=Inputs!$D$76),AND(D185>=Inputs!$E$75,D185<=Inputs!$E$76),AND(D185>=Inputs!$F$75,D185<=Inputs!$F$76),AND(D185>=Inputs!$G$75,D185<=Inputs!$G$76),AND(D185>=Inputs!$H$75,D185<=Inputs!$H$76),IFERROR(AND(D185>=0,D185<=Inputs!$H$76-168),FALSE)) -> FALSE | I185: 0 | J185: 0
B186: Thursday | C186: 04:00:00 | D186: 100 | E186: =OR(AND(D186>=Inputs!$I$45,D186<=Inputs!$I$46),AND(D186>=Inputs!$C$45,D186<=Inputs!$C$46),AND(D186>=Inputs!$D$45,D186<=Inputs!$D$46),AND(D186>=Inputs!$E$45,D186<=Inputs!$E$46),AND(D186>=Inputs!$F$45,D186<=Inputs!$F$46),AND(D186>=Inputs!$G$45,D186<=Inputs!$G$46),AND(D186>=Inputs!$H$45,D186<=Inputs!$H$46),IFERROR(AND(D186>=0,D186<=Inputs!$H$46-168),FALSE)) -> FALSE | F186: =OR(AND(D186>=Inputs!$I$55,D186<=Inputs!$I$56),AND(D186>=Inputs!$C$55,D186<=Inputs!$C$56),AND(D186>=Inputs!$D$55,D186<=Inputs!$D$56),AND(D186>=Inputs!$E$55,D186<=Inputs!$E$56),AND(D186>=Inputs!$F$55,D186<=Inputs!$F$56),AND(D186>=Inputs!$G$55,D186<=Inputs!$G$56),AND(D186>=Inputs!$H$55,D186<=Inputs!$H$56),IFERROR(AND(D186>=0,D186<=Inputs!$H$56-168),FALSE)) -> FALSE | G186: =OR(AND(D186>=Inputs!$I$65,D186<=Inputs!$I$66),AND(D186>=Inputs!$C$65,D186<=Inputs!$C$66),AND(D186>=Inputs!$D$65,D186<=Inputs!$D$66),AND(D186>=Inputs!$E$65,D186<=Inputs!$E$66),AND(D186>=Inputs!$F$65,D186<=Inputs!$F$66),AND(D186>=Inputs!$G$65,D186<=Inputs!$G$66),AND(D186>=Inputs!$H$65,D186<=Inputs!$H$66),IFERROR(AND(D186>=0,D186<=Inputs!$H$66-168),FALSE)) -> FALSE | H186: =OR(AND(D186>=Inputs!$I$75,D186<=Inputs!$I$76),AND(D186>=Inputs!$C$75,D186<=Inputs!$C$76),AND(D186>=Inputs!$D$75,D186<=Inputs!$D$76),AND(D186>=Inputs!$E$75,D186<=Inputs!$E$76),AND(D186>=Inputs!$F$75,D186<=Inputs!$F$76),AND(D186>=Inputs!$G$75,D186<=Inputs!$G$76),AND(D186>=Inputs!$H$75,D186<=Inputs!$H$76),IFERROR(AND(D186>=0,D186<=Inputs!$H$76-168),FALSE)) -> FALSE | I186: 0 | J186: 0
B187: Thursday | C187: 05:00:00 | D187: 101 | E187: =OR(AND(D187>=Inputs!$I$45,D187<=Inputs!$I$46),AND(D187>=Inputs!$C$45,D187<=Inputs!$C$46),AND(D187>=Inputs!$D$45,D187<=Inputs!$D$46),AND(D187>=Inputs!$E$45,D187<=Inputs!$E$46),AND(D187>=Inputs!$F$45,D187<=Inputs!$F$46),AND(D187>=Inputs!$G$45,D187<=Inputs!$G$46),AND(D187>=Inputs!$H$45,D187<=Inputs!$H$46),IFERROR(AND(D187>=0,D187<=Inputs!$H$46-168),FALSE)) -> FALSE | F187: =OR(AND(D187>=Inputs!$I$55,D187<=Inputs!$I$56),AND(D187>=Inputs!$C$55,D187<=Inputs!$C$56),AND(D187>=Inputs!$D$55,D187<=Inputs!$D$56),AND(D187>=Inputs!$E$55,D187<=Inputs!$E$56),AND(D187>=Inputs!$F$55,D187<=Inputs!$F$56),AND(D187>=Inputs!$G$55,D187<=Inputs!$G$56),AND(D187>=Inputs!$H$55,D187<=Inputs!$H$56),IFERROR(AND(D187>=0,D187<=Inputs!$H$56-168),FALSE)) -> FALSE | G187: =OR(AND(D187>=Inputs!$I$65,D187<=Inputs!$I$66),AND(D187>=Inputs!$C$65,D187<=Inputs!$C$66),AND(D187>=Inputs!$D$65,D187<=Inputs!$D$66),AND(D187>=Inputs!$E$65,D187<=Inputs!$E$66),AND(D187>=Inputs!$F$65,D187<=Inputs!$F$66),AND(D187>=Inputs!$G$65,D187<=Inputs!$G$66),AND(D187>=Inputs!$H$65,D187<=Inputs!$H$66),IFERROR(AND(D187>=0,D187<=Inputs!$H$66-168),FALSE)) -> FALSE | H187: =OR(AND(D187>=Inputs!$I$75,D187<=Inputs!$I$76),AND(D187>=Inputs!$C$75,D187<=Inputs!$C$76),AND(D187>=Inputs!$D$75,D187<=Inputs!$D$76),AND(D187>=Inputs!$E$75,D187<=Inputs!$E$76),AND(D187>=Inputs!$F$75,D187<=Inputs!$F$76),AND(D187>=Inputs!$G$75,D187<=Inputs!$G$76),AND(D187>=Inputs!$H$75,D187<=Inputs!$H$76),IFERROR(AND(D187>=0,D187<=Inputs!$H$76-168),FALSE)) -> FALSE | I187: 0 | J187: 0
B188: Thursday | C188: 06:00:00 | D188: 102 | E188: =OR(AND(D188>=Inputs!$I$45,D188<=Inputs!$I$46),AND(D188>=Inputs!$C$45,D188<=Inputs!$C$46),AND(D188>=Inputs!$D$45,D188<=Inputs!$D$46),AND(D188>=Inputs!$E$45,D188<=Inputs!$E$46),AND(D188>=Inputs!$F$45,D188<=Inputs!$F$46),AND(D188>=Inputs!$G$45,D188<=Inputs!$G$46),AND(D188>=Inputs!$H$45,D188<=Inputs!$H$46),IFERROR(AND(D188>=0,D188<=Inputs!$H$46-168),FALSE)) -> FALSE | F188: =OR(AND(D188>=Inputs!$I$55,D188<=Inputs!$I$56),AND(D188>=Inputs!$C$55,D188<=Inputs!$C$56),AND(D188>=Inputs!$D$55,D188<=Inputs!$D$56),AND(D188>=Inputs!$E$55,D188<=Inputs!$E$56),AND(D188>=Inputs!$F$55,D188<=Inputs!$F$56),AND(D188>=Inputs!$G$55,D188<=Inputs!$G$56),AND(D188>=Inputs!$H$55,D188<=Inputs!$H$56),IFERROR(AND(D188>=0,D188<=Inputs!$H$56-168),FALSE)) -> FALSE | G188: =OR(AND(D188>=Inputs!$I$65,D188<=Inputs!$I$66),AND(D188>=Inputs!$C$65,D188<=Inputs!$C$66),AND(D188>=Inputs!$D$65,D188<=Inputs!$D$66),AND(D188>=Inputs!$E$65,D188<=Inputs!$E$66),AND(D188>=Inputs!$F$65,D188<=Inputs!$F$66),AND(D188>=Inputs!$G$65,D188<=Inputs!$G$66),AND(D188>=Inputs!$H$65,D188<=Inputs!$H$66),IFERROR(AND(D188>=0,D188<=Inputs!$H$66-168),FALSE)) -> FALSE | H188: =OR(AND(D188>=Inputs!$I$75,D188<=Inputs!$I$76),AND(D188>=Inputs!$C$75,D188<=Inputs!$C$76),AND(D188>=Inputs!$D$75,D188<=Inputs!$D$76),AND(D188>=Inputs!$E$75,D188<=Inputs!$E$76),AND(D188>=Inputs!$F$75,D188<=Inputs!$F$76),AND(D188>=Inputs!$G$75,D188<=Inputs!$G$76),AND(D188>=Inputs!$H$75,D188<=Inputs!$H$76),IFERROR(AND(D188>=0,D188<=Inputs!$H$76-168),FALSE)) -> FALSE | I188: 0 | J188: 0
B189: Thursday | C189: 07:00:00 | D189: 103 | E189: =OR(AND(D189>=Inputs!$I$45,D189<=Inputs!$I$46),AND(D189>=Inputs!$C$45,D189<=Inputs!$C$46),AND(D189>=Inputs!$D$45,D189<=Inputs!$D$46),AND(D189>=Inputs!$E$45,D189<=Inputs!$E$46),AND(D189>=Inputs!$F$45,D189<=Inputs!$F$46),AND(D189>=Inputs!$G$45,D189<=Inputs!$G$46),AND(D189>=Inputs!$H$45,D189<=Inputs!$H$46),IFERROR(AND(D189>=0,D189<=Inputs!$H$46-168),FALSE)) -> FALSE | F189: =OR(AND(D189>=Inputs!$I$55,D189<=Inputs!$I$56),AND(D189>=Inputs!$C$55,D189<=Inputs!$C$56),AND(D189>=Inputs!$D$55,D189<=Inputs!$D$56),AND(D189>=Inputs!$E$55,D189<=Inputs!$E$56),AND(D189>=Inputs!$F$55,D189<=Inputs!$F$56),AND(D189>=Inputs!$G$55,D189<=Inputs!$G$56),AND(D189>=Inputs!$H$55,D189<=Inputs!$H$56),IFERROR(AND(D189>=0,D189<=Inputs!$H$56-168),FALSE)) -> FALSE | G189: =OR(AND(D189>=Inputs!$I$65,D189<=Inputs!$I$66),AND(D189>=Inputs!$C$65,D189<=Inputs!$C$66),AND(D189>=Inputs!$D$65,D189<=Inputs!$D$66),AND(D189>=Inputs!$E$65,D189<=Inputs!$E$66),AND(D189>=Inputs!$F$65,D189<=Inputs!$F$66),AND(D189>=Inputs!$G$65,D189<=Inputs!$G$66),AND(D189>=Inputs!$H$65,D189<=Inputs!$H$66),IFERROR(AND(D189>=0,D189<=Inputs!$H$66-168),FALSE)) -> FALSE | H189: =OR(AND(D189>=Inputs!$I$75,D189<=Inputs!$I$76),AND(D189>=Inputs!$C$75,D189<=Inputs!$C$76),AND(D189>=Inputs!$D$75,D189<=Inputs!$D$76),AND(D189>=Inputs!$E$75,D189<=Inputs!$E$76),AND(D189>=Inputs!$F$75,D189<=Inputs!$F$76),AND(D189>=Inputs!$G$75,D189<=Inputs!$G$76),AND(D189>=Inputs!$H$75,D189<=Inputs!$H$76),IFERROR(AND(D189>=0,D189<=Inputs!$H$76-168),FALSE)) -> FALSE | I189: 0 | J189: 0
B190: Thursday | C190: 08:00:00 | D190: 104 | E190: =OR(AND(D190>=Inputs!$I$45,D190<=Inputs!$I$46),AND(D190>=Inputs!$C$45,D190<=Inputs!$C$46),AND(D190>=Inputs!$D$45,D190<=Inputs!$D$46),AND(D190>=Inputs!$E$45,D190<=Inputs!$E$46),AND(D190>=Inputs!$F$45,D190<=Inputs!$F$46),AND(D190>=Inputs!$G$45,D190<=Inputs!$G$46),AND(D190>=Inputs!$H$45,D190<=Inputs!$H$46),IFERROR(AND(D190>=0,D190<=Inputs!$H$46-168),FALSE)) -> FALSE | F190: =OR(AND(D190>=Inputs!$I$55,D190<=Inputs!$I$56),AND(D190>=Inputs!$C$55,D190<=Inputs!$C$56),AND(D190>=Inputs!$D$55,D190<=Inputs!$D$56),AND(D190>=Inputs!$E$55,D190<=Inputs!$E$56),AND(D190>=Inputs!$F$55,D190<=Inputs!$F$56),AND(D190>=Inputs!$G$55,D190<=Inputs!$G$56),AND(D190>=Inputs!$H$55,D190<=Inputs!$H$56),IFERROR(AND(D190>=0,D190<=Inputs!$H$56-168),FALSE)) -> FALSE | G190: =OR(AND(D190>=Inputs!$I$65,D190<=Inputs!$I$66),AND(D190>=Inputs!$C$65,D190<=Inputs!$C$66),AND(D190>=Inputs!$D$65,D190<=Inputs!$D$66),AND(D190>=Inputs!$E$65,D190<=Inputs!$E$66),AND(D190>=Inputs!$F$65,D190<=Inputs!$F$66),AND(D190>=Inputs!$G$65,D190<=Inputs!$G$66),AND(D190>=Inputs!$H$65,D190<=Inputs!$H$66),IFERROR(AND(D190>=0,D190<=Inputs!$H$66-168),FALSE)) -> FALSE | H190: =OR(AND(D190>=Inputs!$I$75,D190<=Inputs!$I$76),AND(D190>=Inputs!$C$75,D190<=Inputs!$C$76),AND(D190>=Inputs!$D$75,D190<=Inputs!$D$76),AND(D190>=Inputs!$E$75,D190<=Inputs!$E$76),AND(D190>=Inputs!$F$75,D190<=Inputs!$F$76),AND(D190>=Inputs!$G$75,D190<=Inputs!$G$76),AND(D190>=Inputs!$H$75,D190<=Inputs!$H$76),IFERROR(AND(D190>=0,D190<=Inputs!$H$76-168),FALSE)) -> FALSE | I190: 0 | J190: 0
B191: Thursday | C191: 09:00:00 | D191: 105 | E191: =OR(AND(D191>=Inputs!$I$45,D191<=Inputs!$I$46),AND(D191>=Inputs!$C$45,D191<=Inputs!$C$46),AND(D191>=Inputs!$D$45,D191<=Inputs!$D$46),AND(D191>=Inputs!$E$45,D191<=Inputs!$E$46),AND(D191>=Inputs!$F$45,D191<=Inputs!$F$46),AND(D191>=Inputs!$G$45,D191<=Inputs!$G$46),AND(D191>=Inputs!$H$45,D191<=Inputs!$H$46),IFERROR(AND(D191>=0,D191<=Inputs!$H$46-168),FALSE)) -> TRUE | F191: =OR(AND(D191>=Inputs!$I$55,D191<=Inputs!$I$56),AND(D191>=Inputs!$C$55,D191<=Inputs!$C$56),AND(D191>=Inputs!$D$55,D191<=Inputs!$D$56),AND(D191>=Inputs!$E$55,D191<=Inputs!$E$56),AND(D191>=Inputs!$F$55,D191<=Inputs!$F$56),AND(D191>=Inputs!$G$55,D191<=Inputs!$G$56),AND(D191>=Inputs!$H$55,D191<=Inputs!$H$56),IFERROR(AND(D191>=0,D191<=Inputs!$H$56-168),FALSE)) -> FALSE | G191: =OR(AND(D191>=Inputs!$I$65,D191<=Inputs!$I$66),AND(D191>=Inputs!$C$65,D191<=Inputs!$C$66),AND(D191>=Inputs!$D$65,D191<=Inputs!$D$66),AND(D191>=Inputs!$E$65,D191<=Inputs!$E$66),AND(D191>=Inputs!$F$65,D191<=Inputs!$F$66),AND(D191>=Inputs!$G$65,D191<=Inputs!$G$66),AND(D191>=Inputs!$H$65,D191<=Inputs!$H$66),IFERROR(AND(D191>=0,D191<=Inputs!$H$66-168),FALSE)) -> FALSE | H191: =OR(AND(D191>=Inputs!$I$75,D191<=Inputs!$I$76),AND(D191>=Inputs!$C$75,D191<=Inputs!$C$76),AND(D191>=Inputs!$D$75,D191<=Inputs!$D$76),AND(D191>=Inputs!$E$75,D191<=Inputs!$E$76),AND(D191>=Inputs!$F$75,D191<=Inputs!$F$76),AND(D191>=Inputs!$G$75,D191<=Inputs!$G$76),AND(D191>=Inputs!$H$75,D191<=Inputs!$H$76),IFERROR(AND(D191>=0,D191<=Inputs!$H$76-168),FALSE)) -> FALSE | I191: 1 | J191: 0
B192: Thursday | C192: 10:00:00 | D192: 106 | E192: =OR(AND(D192>=Inputs!$I$45,D192<=Inputs!$I$46),AND(D192>=Inputs!$C$45,D192<=Inputs!$C$46),AND(D192>=Inputs!$D$45,D192<=Inputs!$D$46),AND(D192>=Inputs!$E$45,D192<=Inputs!$E$46),AND(D192>=Inputs!$F$45,D192<=Inputs!$F$46),AND(D192>=Inputs!$G$45,D192<=Inputs!$G$46),AND(D192>=Inputs!$H$45,D192<=Inputs!$H$46),IFERROR(AND(D192>=0,D192<=Inputs!$H$46-168),FALSE)) -> TRUE | F192: =OR(AND(D192>=Inputs!$I$55,D192<=Inputs!$I$56),AND(D192>=Inputs!$C$55,D192<=Inputs!$C$56),AND(D192>=Inputs!$D$55,D192<=Inputs!$D$56),AND(D192>=Inputs!$E$55,D192<=Inputs!$E$56),AND(D192>=Inputs!$F$55,D192<=Inputs!$F$56),AND(D192>=Inputs!$G$55,D192<=Inputs!$G$56),AND(D192>=Inputs!$H$55,D192<=Inputs!$H$56),IFERROR(AND(D192>=0,D192<=Inputs!$H$56-168),FALSE)) -> FALSE | G192: =OR(AND(D192>=Inputs!$I$65,D192<=Inputs!$I$66),AND(D192>=Inputs!$C$65,D192<=Inputs!$C$66),AND(D192>=Inputs!$D$65,D192<=Inputs!$D$66),AND(D192>=Inputs!$E$65,D192<=Inputs!$E$66),AND(D192>=Inputs!$F$65,D192<=Inputs!$F$66),AND(D192>=Inputs!$G$65,D192<=Inputs!$G$66),AND(D192>=Inputs!$H$65,D192<=Inputs!$H$66),IFERROR(AND(D192>=0,D192<=Inputs!$H$66-168),FALSE)) -> FALSE | H192: =OR(AND(D192>=Inputs!$I$75,D192<=Inputs!$I$76),AND(D192>=Inputs!$C$75,D192<=Inputs!$C$76),AND(D192>=Inputs!$D$75,D192<=Inputs!$D$76),AND(D192>=Inputs!$E$75,D192<=Inputs!$E$76),AND(D192>=Inputs!$F$75,D192<=Inputs!$F$76),AND(D192>=Inputs!$G$75,D192<=Inputs!$G$76),AND(D192>=Inputs!$H$75,D192<=Inputs!$H$76),IFERROR(AND(D192>=0,D192<=Inputs!$H$76-168),FALSE)) -> FALSE | I192: 1 | J192: 0
B193: Thursday | C193: 11:00:00 | D193: 107 | E193: =OR(AND(D193>=Inputs!$I$45,D193<=Inputs!$I$46),AND(D193>=Inputs!$C$45,D193<=Inputs!$C$46),AND(D193>=Inputs!$D$45,D193<=Inputs!$D$46),AND(D193>=Inputs!$E$45,D193<=Inputs!$E$46),AND(D193>=Inputs!$F$45,D193<=Inputs!$F$46),AND(D193>=Inputs!$G$45,D193<=Inputs!$G$46),AND(D193>=Inputs!$H$45,D193<=Inputs!$H$46),IFERROR(AND(D193>=0,D193<=Inputs!$H$46-168),FALSE)) -> TRUE | F193: =OR(AND(D193>=Inputs!$I$55,D193<=Inputs!$I$56),AND(D193>=Inputs!$C$55,D193<=Inputs!$C$56),AND(D193>=Inputs!$D$55,D193<=Inputs!$D$56),AND(D193>=Inputs!$E$55,D193<=Inputs!$E$56),AND(D193>=Inputs!$F$55,D193<=Inputs!$F$56),AND(D193>=Inputs!$G$55,D193<=Inputs!$G$56),AND(D193>=Inputs!$H$55,D193<=Inputs!$H$56),IFERROR(AND(D193>=0,D193<=Inputs!$H$56-168),FALSE)) -> FALSE | G193: =OR(AND(D193>=Inputs!$I$65,D193<=Inputs!$I$66),AND(D193>=Inputs!$C$65,D193<=Inputs!$C$66),AND(D193>=Inputs!$D$65,D193<=Inputs!$D$66),AND(D193>=Inputs!$E$65,D193<=Inputs!$E$66),AND(D193>=Inputs!$F$65,D193<=Inputs!$F$66),AND(D193>=Inputs!$G$65,D193<=Inputs!$G$66),AND(D193>=Inputs!$H$65,D193<=Inputs!$H$66),IFERROR(AND(D193>=0,D193<=Inputs!$H$66-168),FALSE)) -> FALSE | H193: =OR(AND(D193>=Inputs!$I$75,D193<=Inputs!$I$76),AND(D193>=Inputs!$C$75,D193<=Inputs!$C$76),AND(D193>=Inputs!$D$75,D193<=Inputs!$D$76),AND(D193>=Inputs!$E$75,D193<=Inputs!$E$76),AND(D193>=Inputs!$F$75,D193<=Inputs!$F$76),AND(D193>=Inputs!$G$75,D193<=Inputs!$G$76),AND(D193>=Inputs!$H$75,D193<=Inputs!$H$76),IFERROR(AND(D193>=0,D193<=Inputs!$H$76-168),FALSE)) -> FALSE | I193: 1 | J193: 0
B194: Thursday | C194: 12:00:00 | D194: 108 | E194: =OR(AND(D194>=Inputs!$I$45,D194<=Inputs!$I$46),AND(D194>=Inputs!$C$45,D194<=Inputs!$C$46),AND(D194>=Inputs!$D$45,D194<=Inputs!$D$46),AND(D194>=Inputs!$E$45,D194<=Inputs!$E$46),AND(D194>=Inputs!$F$45,D194<=Inputs!$F$46),AND(D194>=Inputs!$G$45,D194<=Inputs!$G$46),AND(D194>=Inputs!$H$45,D194<=Inputs!$H$46),IFERROR(AND(D194>=0,D194<=Inputs!$H$46-168),FALSE)) -> TRUE | F194: =OR(AND(D194>=Inputs!$I$55,D194<=Inputs!$I$56),AND(D194>=Inputs!$C$55,D194<=Inputs!$C$56),AND(D194>=Inputs!$D$55,D194<=Inputs!$D$56),AND(D194>=Inputs!$E$55,D194<=Inputs!$E$56),AND(D194>=Inputs!$F$55,D194<=Inputs!$F$56),AND(D194>=Inputs!$G$55,D194<=Inputs!$G$56),AND(D194>=Inputs!$H$55,D194<=Inputs!$H$56),IFERROR(AND(D194>=0,D194<=Inputs!$H$56-168),FALSE)) -> FALSE | G194: =OR(AND(D194>=Inputs!$I$65,D194<=Inputs!$I$66),AND(D194>=Inputs!$C$65,D194<=Inputs!$C$66),AND(D194>=Inputs!$D$65,D194<=Inputs!$D$66),AND(D194>=Inputs!$E$65,D194<=Inputs!$E$66),AND(D194>=Inputs!$F$65,D194<=Inputs!$F$66),AND(D194>=Inputs!$G$65,D194<=Inputs!$G$66),AND(D194>=Inputs!$H$65,D194<=Inputs!$H$66),IFERROR(AND(D194>=0,D194<=Inputs!$H$66-168),FALSE)) -> FALSE | H194: =OR(AND(D194>=Inputs!$I$75,D194<=Inputs!$I$76),AND(D194>=Inputs!$C$75,D194<=Inputs!$C$76),AND(D194>=Inputs!$D$75,D194<=Inputs!$D$76),AND(D194>=Inputs!$E$75,D194<=Inputs!$E$76),AND(D194>=Inputs!$F$75,D194<=Inputs!$F$76),AND(D194>=Inputs!$G$75,D194<=Inputs!$G$76),AND(D194>=Inputs!$H$75,D194<=Inputs!$H$76),IFERROR(AND(D194>=0,D194<=Inputs!$H$76-168),FALSE)) -> FALSE | I194: 1 | J194: 0
B195: Thursday | C195: 13:00:00 | D195: 109 | E195: =OR(AND(D195>=Inputs!$I$45,D195<=Inputs!$I$46),AND(D195>=Inputs!$C$45,D195<=Inputs!$C$46),AND(D195>=Inputs!$D$45,D195<=Inputs!$D$46),AND(D195>=Inputs!$E$45,D195<=Inputs!$E$46),AND(D195>=Inputs!$F$45,D195<=Inputs!$F$46),AND(D195>=Inputs!$G$45,D195<=Inputs!$G$46),AND(D195>=Inputs!$H$45,D195<=Inputs!$H$46),IFERROR(AND(D195>=0,D195<=Inputs!$H$46-168),FALSE)) -> TRUE | F195: =OR(AND(D195>=Inputs!$I$55,D195<=Inputs!$I$56),AND(D195>=Inputs!$C$55,D195<=Inputs!$C$56),AND(D195>=Inputs!$D$55,D195<=Inputs!$D$56),AND(D195>=Inputs!$E$55,D195<=Inputs!$E$56),AND(D195>=Inputs!$F$55,D195<=Inputs!$F$56),AND(D195>=Inputs!$G$55,D195<=Inputs!$G$56),AND(D195>=Inputs!$H$55,D195<=Inputs!$H$56),IFERROR(AND(D195>=0,D195<=Inputs!$H$56-168),FALSE)) -> FALSE | G195: =OR(AND(D195>=Inputs!$I$65,D195<=Inputs!$I$66),AND(D195>=Inputs!$C$65,D195<=Inputs!$C$66),AND(D195>=Inputs!$D$65,D195<=Inputs!$D$66),AND(D195>=Inputs!$E$65,D195<=Inputs!$E$66),AND(D195>=Inputs!$F$65,D195<=Inputs!$F$66),AND(D195>=Inputs!$G$65,D195<=Inputs!$G$66),AND(D195>=Inputs!$H$65,D195<=Inputs!$H$66),IFERROR(AND(D195>=0,D195<=Inputs!$H$66-168),FALSE)) -> FALSE | H195: =OR(AND(D195>=Inputs!$I$75,D195<=Inputs!$I$76),AND(D195>=Inputs!$C$75,D195<=Inputs!$C$76),AND(D195>=Inputs!$D$75,D195<=Inputs!$D$76),AND(D195>=Inputs!$E$75,D195<=Inputs!$E$76),AND(D195>=Inputs!$F$75,D195<=Inputs!$F$76),AND(D195>=Inputs!$G$75,D195<=Inputs!$G$76),AND(D195>=Inputs!$H$75,D195<=Inputs!$H$76),IFERROR(AND(D195>=0,D195<=Inputs!$H$76-168),FALSE)) -> FALSE | I195: 1 | J195: 0
B196: Thursday | C196: 14:00:00 | D196: 110 | E196: =OR(AND(D196>=Inputs!$I$45,D196<=Inputs!$I$46),AND(D196>=Inputs!$C$45,D196<=Inputs!$C$46),AND(D196>=Inputs!$D$45,D196<=Inputs!$D$46),AND(D196>=Inputs!$E$45,D196<=Inputs!$E$46),AND(D196>=Inputs!$F$45,D196<=Inputs!$F$46),AND(D196>=Inputs!$G$45,D196<=Inputs!$G$46),AND(D196>=Inputs!$H$45,D196<=Inputs!$H$46),IFERROR(AND(D196>=0,D196<=Inputs!$H$46-168),FALSE)) -> FALSE | F196: =OR(AND(D196>=Inputs!$I$55,D196<=Inputs!$I$56),AND(D196>=Inputs!$C$55,D196<=Inputs!$C$56),AND(D196>=Inputs!$D$55,D196<=Inputs!$D$56),AND(D196>=Inputs!$E$55,D196<=Inputs!$E$56),AND(D196>=Inputs!$F$55,D196<=Inputs!$F$56),AND(D196>=Inputs!$G$55,D196<=Inputs!$G$56),AND(D196>=Inputs!$H$55,D196<=Inputs!$H$56),IFERROR(AND(D196>=0,D196<=Inputs!$H$56-168),FALSE)) -> FALSE | G196: =OR(AND(D196>=Inputs!$I$65,D196<=Inputs!$I$66),AND(D196>=Inputs!$C$65,D196<=Inputs!$C$66),AND(D196>=Inputs!$D$65,D196<=Inputs!$D$66),AND(D196>=Inputs!$E$65,D196<=Inputs!$E$66),AND(D196>=Inputs!$F$65,D196<=Inputs!$F$66),AND(D196>=Inputs!$G$65,D196<=Inputs!$G$66),AND(D196>=Inputs!$H$65,D196<=Inputs!$H$66),IFERROR(AND(D196>=0,D196<=Inputs!$H$66-168),FALSE)) -> FALSE | H196: =OR(AND(D196>=Inputs!$I$75,D196<=Inputs!$I$76),AND(D196>=Inputs!$C$75,D196<=Inputs!$C$76),AND(D196>=Inputs!$D$75,D196<=Inputs!$D$76),AND(D196>=Inputs!$E$75,D196<=Inputs!$E$76),AND(D196>=Inputs!$F$75,D196<=Inputs!$F$76),AND(D196>=Inputs!$G$75,D196<=Inputs!$G$76),AND(D196>=Inputs!$H$75,D196<=Inputs!$H$76),IFERROR(AND(D196>=0,D196<=Inputs!$H$76-168),FALSE)) -> FALSE | I196: 0 | J196: 0
B197: Thursday | C197: 15:00:00 | D197: 111 | E197: =OR(AND(D197>=Inputs!$I$45,D197<=Inputs!$I$46),AND(D197>=Inputs!$C$45,D197<=Inputs!$C$46),AND(D197>=Inputs!$D$45,D197<=Inputs!$D$46),AND(D197>=Inputs!$E$45,D197<=Inputs!$E$46),AND(D197>=Inputs!$F$45,D197<=Inputs!$F$46),AND(D197>=Inputs!$G$45,D197<=Inputs!$G$46),AND(D197>=Inputs!$H$45,D197<=Inputs!$H$46),IFERROR(AND(D197>=0,D197<=Inputs!$H$46-168),FALSE)) -> FALSE | F197: =OR(AND(D197>=Inputs!$I$55,D197<=Inputs!$I$56),AND(D197>=Inputs!$C$55,D197<=Inputs!$C$56),AND(D197>=Inputs!$D$55,D197<=Inputs!$D$56),AND(D197>=Inputs!$E$55,D197<=Inputs!$E$56),AND(D197>=Inputs!$F$55,D197<=Inputs!$F$56),AND(D197>=Inputs!$G$55,D197<=Inputs!$G$56),AND(D197>=Inputs!$H$55,D197<=Inputs!$H$56),IFERROR(AND(D197>=0,D197<=Inputs!$H$56-168),FALSE)) -> FALSE | G197: =OR(AND(D197>=Inputs!$I$65,D197<=Inputs!$I$66),AND(D197>=Inputs!$C$65,D197<=Inputs!$C$66),AND(D197>=Inputs!$D$65,D197<=Inputs!$D$66),AND(D197>=Inputs!$E$65,D197<=Inputs!$E$66),AND(D197>=Inputs!$F$65,D197<=Inputs!$F$66),AND(D197>=Inputs!$G$65,D197<=Inputs!$G$66),AND(D197>=Inputs!$H$65,D197<=Inputs!$H$66),IFERROR(AND(D197>=0,D197<=Inputs!$H$66-168),FALSE)) -> FALSE | H197: =OR(AND(D197>=Inputs!$I$75,D197<=Inputs!$I$76),AND(D197>=Inputs!$C$75,D197<=Inputs!$C$76),AND(D197>=Inputs!$D$75,D197<=Inputs!$D$76),AND(D197>=Inputs!$E$75,D197<=Inputs!$E$76),AND(D197>=Inputs!$F$75,D197<=Inputs!$F$76),AND(D197>=Inputs!$G$75,D197<=Inputs!$G$76),AND(D197>=Inputs!$H$75,D197<=Inputs!$H$76),IFERROR(AND(D197>=0,D197<=Inputs!$H$76-168),FALSE)) -> FALSE | I197: 0 | J197: 0
B198: Thursday | C198: 16:00:00 | D198: 112 | E198: =OR(AND(D198>=Inputs!$I$45,D198<=Inputs!$I$46),AND(D198>=Inputs!$C$45,D198<=Inputs!$C$46),AND(D198>=Inputs!$D$45,D198<=Inputs!$D$46),AND(D198>=Inputs!$E$45,D198<=Inputs!$E$46),AND(D198>=Inputs!$F$45,D198<=Inputs!$F$46),AND(D198>=Inputs!$G$45,D198<=Inputs!$G$46),AND(D198>=Inputs!$H$45,D198<=Inputs!$H$46),IFERROR(AND(D198>=0,D198<=Inputs!$H$46-168),FALSE)) -> FALSE | F198: =OR(AND(D198>=Inputs!$I$55,D198<=Inputs!$I$56),AND(D198>=Inputs!$C$55,D198<=Inputs!$C$56),AND(D198>=Inputs!$D$55,D198<=Inputs!$D$56),AND(D198>=Inputs!$E$55,D198<=Inputs!$E$56),AND(D198>=Inputs!$F$55,D198<=Inputs!$F$56),AND(D198>=Inputs!$G$55,D198<=Inputs!$G$56),AND(D198>=Inputs!$H$55,D198<=Inputs!$H$56),IFERROR(AND(D198>=0,D198<=Inputs!$H$56-168),FALSE)) -> FALSE | G198: =OR(AND(D198>=Inputs!$I$65,D198<=Inputs!$I$66),AND(D198>=Inputs!$C$65,D198<=Inputs!$C$66),AND(D198>=Inputs!$D$65,D198<=Inputs!$D$66),AND(D198>=Inputs!$E$65,D198<=Inputs!$E$66),AND(D198>=Inputs!$F$65,D198<=Inputs!$F$66),AND(D198>=Inputs!$G$65,D198<=Inputs!$G$66),AND(D198>=Inputs!$H$65,D198<=Inputs!$H$66),IFERROR(AND(D198>=0,D198<=Inputs!$H$66-168),FALSE)) -> FALSE | H198: =OR(AND(D198>=Inputs!$I$75,D198<=Inputs!$I$76),AND(D198>=Inputs!$C$75,D198<=Inputs!$C$76),AND(D198>=Inputs!$D$75,D198<=Inputs!$D$76),AND(D198>=Inputs!$E$75,D198<=Inputs!$E$76),AND(D198>=Inputs!$F$75,D198<=Inputs!$F$76),AND(D198>=Inputs!$G$75,D198<=Inputs!$G$76),AND(D198>=Inputs!$H$75,D198<=Inputs!$H$76),IFERROR(AND(D198>=0,D198<=Inputs!$H$76-168),FALSE)) -> FALSE | I198: 0 | J198: 0
B199: Thursday | C199: 17:00:00 | D199: 113 | E199: =OR(AND(D199>=Inputs!$I$45,D199<=Inputs!$I$46),AND(D199>=Inputs!$C$45,D199<=Inputs!$C$46),AND(D199>=Inputs!$D$45,D199<=Inputs!$D$46),AND(D199>=Inputs!$E$45,D199<=Inputs!$E$46),AND(D199>=Inputs!$F$45,D199<=Inputs!$F$46),AND(D199>=Inputs!$G$45,D199<=Inputs!$G$46),AND(D199>=Inputs!$H$45,D199<=Inputs!$H$46),IFERROR(AND(D199>=0,D199<=Inputs!$H$46-168),FALSE)) -> FALSE | F199: =OR(AND(D199>=Inputs!$I$55,D199<=Inputs!$I$56),AND(D199>=Inputs!$C$55,D199<=Inputs!$C$56),AND(D199>=Inputs!$D$55,D199<=Inputs!$D$56),AND(D199>=Inputs!$E$55,D199<=Inputs!$E$56),AND(D199>=Inputs!$F$55,D199<=Inputs!$F$56),AND(D199>=Inputs!$G$55,D199<=Inputs!$G$56),AND(D199>=Inputs!$H$55,D199<=Inputs!$H$56),IFERROR(AND(D199>=0,D199<=Inputs!$H$56-168),FALSE)) -> FALSE | G199: =OR(AND(D199>=Inputs!$I$65,D199<=Inputs!$I$66),AND(D199>=Inputs!$C$65,D199<=Inputs!$C$66),AND(D199>=Inputs!$D$65,D199<=Inputs!$D$66),AND(D199>=Inputs!$E$65,D199<=Inputs!$E$66),AND(D199>=Inputs!$F$65,D199<=Inputs!$F$66),AND(D199>=Inputs!$G$65,D199<=Inputs!$G$66),AND(D199>=Inputs!$H$65,D199<=Inputs!$H$66),IFERROR(AND(D199>=0,D199<=Inputs!$H$66-168),FALSE)) -> FALSE | H199: =OR(AND(D199>=Inputs!$I$75,D199<=Inputs!$I$76),AND(D199>=Inputs!$C$75,D199<=Inputs!$C$76),AND(D199>=Inputs!$D$75,D199<=Inputs!$D$76),AND(D199>=Inputs!$E$75,D199<=Inputs!$E$76),AND(D199>=Inputs!$F$75,D199<=Inputs!$F$76),AND(D199>=Inputs!$G$75,D199<=Inputs!$G$76),AND(D199>=Inputs!$H$75,D199<=Inputs!$H$76),IFERROR(AND(D199>=0,D199<=Inputs!$H$76-168),FALSE)) -> FALSE | I199: 0 | J199: 0
B200: Thursday | C200: 18:00:00 | D200: 114 | E200: =OR(AND(D200>=Inputs!$I$45,D200<=Inputs!$I$46),AND(D200>=Inputs!$C$45,D200<=Inputs!$C$46),AND(D200>=Inputs!$D$45,D200<=Inputs!$D$46),AND(D200>=Inputs!$E$45,D200<=Inputs!$E$46),AND(D200>=Inputs!$F$45,D200<=Inputs!$F$46),AND(D200>=Inputs!$G$45,D200<=Inputs!$G$46),AND(D200>=Inputs!$H$45,D200<=Inputs!$H$46),IFERROR(AND(D200>=0,D200<=Inputs!$H$46-168),FALSE)) -> FALSE | F200: =OR(AND(D200>=Inputs!$I$55,D200<=Inputs!$I$56),AND(D200>=Inputs!$C$55,D200<=Inputs!$C$56),AND(D200>=Inputs!$D$55,D200<=Inputs!$D$56),AND(D200>=Inputs!$E$55,D200<=Inputs!$E$56),AND(D200>=Inputs!$F$55,D200<=Inputs!$F$56),AND(D200>=Inputs!$G$55,D200<=Inputs!$G$56),AND(D200>=Inputs!$H$55,D200<=Inputs!$H$56),IFERROR(AND(D200>=0,D200<=Inputs!$H$56-168),FALSE)) -> FALSE | G200: =OR(AND(D200>=Inputs!$I$65,D200<=Inputs!$I$66),AND(D200>=Inputs!$C$65,D200<=Inputs!$C$66),AND(D200>=Inputs!$D$65,D200<=Inputs!$D$66),AND(D200>=Inputs!$E$65,D200<=Inputs!$E$66),AND(D200>=Inputs!$F$65,D200<=Inputs!$F$66),AND(D200>=Inputs!$G$65,D200<=Inputs!$G$66),AND(D200>=Inputs!$H$65,D200<=Inputs!$H$66),IFERROR(AND(D200>=0,D200<=Inputs!$H$66-168),FALSE)) -> FALSE | H200: =OR(AND(D200>=Inputs!$I$75,D200<=Inputs!$I$76),AND(D200>=Inputs!$C$75,D200<=Inputs!$C$76),AND(D200>=Inputs!$D$75,D200<=Inputs!$D$76),AND(D200>=Inputs!$E$75,D200<=Inputs!$E$76),AND(D200>=Inputs!$F$75,D200<=Inputs!$F$76),AND(D200>=Inputs!$G$75,D200<=Inputs!$G$76),AND(D200>=Inputs!$H$75,D200<=Inputs!$H$76),IFERROR(AND(D200>=0,D200<=Inputs!$H$76-168),FALSE)) -> FALSE | I200: 0 | J200: 0
B201: Thursday | C201: 19:00:00 | D201: 115 | E201: =OR(AND(D201>=Inputs!$I$45,D201<=Inputs!$I$46),AND(D201>=Inputs!$C$45,D201<=Inputs!$C$46),AND(D201>=Inputs!$D$45,D201<=Inputs!$D$46),AND(D201>=Inputs!$E$45,D201<=Inputs!$E$46),AND(D201>=Inputs!$F$45,D201<=Inputs!$F$46),AND(D201>=Inputs!$G$45,D201<=Inputs!$G$46),AND(D201>=Inputs!$H$45,D201<=Inputs!$H$46),IFERROR(AND(D201>=0,D201<=Inputs!$H$46-168),FALSE)) -> FALSE | F201: =OR(AND(D201>=Inputs!$I$55,D201<=Inputs!$I$56),AND(D201>=Inputs!$C$55,D201<=Inputs!$C$56),AND(D201>=Inputs!$D$55,D201<=Inputs!$D$56),AND(D201>=Inputs!$E$55,D201<=Inputs!$E$56),AND(D201>=Inputs!$F$55,D201<=Inputs!$F$56),AND(D201>=Inputs!$G$55,D201<=Inputs!$G$56),AND(D201>=Inputs!$H$55,D201<=Inputs!$H$56),IFERROR(AND(D201>=0,D201<=Inputs!$H$56-168),FALSE)) -> FALSE | G201: =OR(AND(D201>=Inputs!$I$65,D201<=Inputs!$I$66),AND(D201>=Inputs!$C$65,D201<=Inputs!$C$66),AND(D201>=Inputs!$D$65,D201<=Inputs!$D$66),AND(D201>=Inputs!$E$65,D201<=Inputs!$E$66),AND(D201>=Inputs!$F$65,D201<=Inputs!$F$66),AND(D201>=Inputs!$G$65,D201<=Inputs!$G$66),AND(D201>=Inputs!$H$65,D201<=Inputs!$H$66),IFERROR(AND(D201>=0,D201<=Inputs!$H$66-168),FALSE)) -> FALSE | H201: =OR(AND(D201>=Inputs!$I$75,D201<=Inputs!$I$76),AND(D201>=Inputs!$C$75,D201<=Inputs!$C$76),AND(D201>=Inputs!$D$75,D201<=Inputs!$D$76),AND(D201>=Inputs!$E$75,D201<=Inputs!$E$76),AND(D201>=Inputs!$F$75,D201<=Inputs!$F$76),AND(D201>=Inputs!$G$75,D201<=Inputs!$G$76),AND(D201>=Inputs!$H$75,D201<=Inputs!$H$76),IFERROR(AND(D201>=0,D201<=Inputs!$H$76-168),FALSE)) -> FALSE | I201: 0 | J201: 0
B202: Thursday | C202: 20:00:00 | D202: 116 | E202: =OR(AND(D202>=Inputs!$I$45,D202<=Inputs!$I$46),AND(D202>=Inputs!$C$45,D202<=Inputs!$C$46),AND(D202>=Inputs!$D$45,D202<=Inputs!$D$46),AND(D202>=Inputs!$E$45,D202<=Inputs!$E$46),AND(D202>=Inputs!$F$45,D202<=Inputs!$F$46),AND(D202>=Inputs!$G$45,D202<=Inputs!$G$46),AND(D202>=Inputs!$H$45,D202<=Inputs!$H$46),IFERROR(AND(D202>=0,D202<=Inputs!$H$46-168),FALSE)) -> FALSE | F202: =OR(AND(D202>=Inputs!$I$55,D202<=Inputs!$I$56),AND(D202>=Inputs!$C$55,D202<=Inputs!$C$56),AND(D202>=Inputs!$D$55,D202<=Inputs!$D$56),AND(D202>=Inputs!$E$55,D202<=Inputs!$E$56),AND(D202>=Inputs!$F$55,D202<=Inputs!$F$56),AND(D202>=Inputs!$G$55,D202<=Inputs!$G$56),AND(D202>=Inputs!$H$55,D202<=Inputs!$H$56),IFERROR(AND(D202>=0,D202<=Inputs!$H$56-168),FALSE)) -> FALSE | G202: =OR(AND(D202>=Inputs!$I$65,D202<=Inputs!$I$66),AND(D202>=Inputs!$C$65,D202<=Inputs!$C$66),AND(D202>=Inputs!$D$65,D202<=Inputs!$D$66),AND(D202>=Inputs!$E$65,D202<=Inputs!$E$66),AND(D202>=Inputs!$F$65,D202<=Inputs!$F$66),AND(D202>=Inputs!$G$65,D202<=Inputs!$G$66),AND(D202>=Inputs!$H$65,D202<=Inputs!$H$66),IFERROR(AND(D202>=0,D202<=Inputs!$H$66-168),FALSE)) -> FALSE | H202: =OR(AND(D202>=Inputs!$I$75,D202<=Inputs!$I$76),AND(D202>=Inputs!$C$75,D202<=Inputs!$C$76),AND(D202>=Inputs!$D$75,D202<=Inputs!$D$76),AND(D202>=Inputs!$E$75,D202<=Inputs!$E$76),AND(D202>=Inputs!$F$75,D202<=Inputs!$F$76),AND(D202>=Inputs!$G$75,D202<=Inputs!$G$76),AND(D202>=Inputs!$H$75,D202<=Inputs!$H$76),IFERROR(AND(D202>=0,D202<=Inputs!$H$76-168),FALSE)) -> FALSE | I202: 0 | J202: 0
B203: Thursday | C203: 21:00:00 | D203: 117 | E203: =OR(AND(D203>=Inputs!$I$45,D203<=Inputs!$I$46),AND(D203>=Inputs!$C$45,D203<=Inputs!$C$46),AND(D203>=Inputs!$D$45,D203<=Inputs!$D$46),AND(D203>=Inputs!$E$45,D203<=Inputs!$E$46),AND(D203>=Inputs!$F$45,D203<=Inputs!$F$46),AND(D203>=Inputs!$G$45,D203<=Inputs!$G$46),AND(D203>=Inputs!$H$45,D203<=Inputs!$H$46),IFERROR(AND(D203>=0,D203<=Inputs!$H$46-168),FALSE)) -> FALSE | F203: =OR(AND(D203>=Inputs!$I$55,D203<=Inputs!$I$56),AND(D203>=Inputs!$C$55,D203<=Inputs!$C$56),AND(D203>=Inputs!$D$55,D203<=Inputs!$D$56),AND(D203>=Inputs!$E$55,D203<=Inputs!$E$56),AND(D203>=Inputs!$F$55,D203<=Inputs!$F$56),AND(D203>=Inputs!$G$55,D203<=Inputs!$G$56),AND(D203>=Inputs!$H$55,D203<=Inputs!$H$56),IFERROR(AND(D203>=0,D203<=Inputs!$H$56-168),FALSE)) -> FALSE | G203: =OR(AND(D203>=Inputs!$I$65,D203<=Inputs!$I$66),AND(D203>=Inputs!$C$65,D203<=Inputs!$C$66),AND(D203>=Inputs!$D$65,D203<=Inputs!$D$66),AND(D203>=Inputs!$E$65,D203<=Inputs!$E$66),AND(D203>=Inputs!$F$65,D203<=Inputs!$F$66),AND(D203>=Inputs!$G$65,D203<=Inputs!$G$66),AND(D203>=Inputs!$H$65,D203<=Inputs!$H$66),IFERROR(AND(D203>=0,D203<=Inputs!$H$66-168),FALSE)) -> FALSE | H203: =OR(AND(D203>=Inputs!$I$75,D203<=Inputs!$I$76),AND(D203>=Inputs!$C$75,D203<=Inputs!$C$76),AND(D203>=Inputs!$D$75,D203<=Inputs!$D$76),AND(D203>=Inputs!$E$75,D203<=Inputs!$E$76),AND(D203>=Inputs!$F$75,D203<=Inputs!$F$76),AND(D203>=Inputs!$G$75,D203<=Inputs!$G$76),AND(D203>=Inputs!$H$75,D203<=Inputs!$H$76),IFERROR(AND(D203>=0,D203<=Inputs!$H$76-168),FALSE)) -> FALSE | I203: 0 | J203: 0
B204: Thursday | C204: 22:00:00 | D204: 118 | E204: =OR(AND(D204>=Inputs!$I$45,D204<=Inputs!$I$46),AND(D204>=Inputs!$C$45,D204<=Inputs!$C$46),AND(D204>=Inputs!$D$45,D204<=Inputs!$D$46),AND(D204>=Inputs!$E$45,D204<=Inputs!$E$46),AND(D204>=Inputs!$F$45,D204<=Inputs!$F$46),AND(D204>=Inputs!$G$45,D204<=Inputs!$G$46),AND(D204>=Inputs!$H$45,D204<=Inputs!$H$46),IFERROR(AND(D204>=0,D204<=Inputs!$H$46-168),FALSE)) -> FALSE | F204: =OR(AND(D204>=Inputs!$I$55,D204<=Inputs!$I$56),AND(D204>=Inputs!$C$55,D204<=Inputs!$C$56),AND(D204>=Inputs!$D$55,D204<=Inputs!$D$56),AND(D204>=Inputs!$E$55,D204<=Inputs!$E$56),AND(D204>=Inputs!$F$55,D204<=Inputs!$F$56),AND(D204>=Inputs!$G$55,D204<=Inputs!$G$56),AND(D204>=Inputs!$H$55,D204<=Inputs!$H$56),IFERROR(AND(D204>=0,D204<=Inputs!$H$56-168),FALSE)) -> FALSE | G204: =OR(AND(D204>=Inputs!$I$65,D204<=Inputs!$I$66),AND(D204>=Inputs!$C$65,D204<=Inputs!$C$66),AND(D204>=Inputs!$D$65,D204<=Inputs!$D$66),AND(D204>=Inputs!$E$65,D204<=Inputs!$E$66),AND(D204>=Inputs!$F$65,D204<=Inputs!$F$66),AND(D204>=Inputs!$G$65,D204<=Inputs!$G$66),AND(D204>=Inputs!$H$65,D204<=Inputs!$H$66),IFERROR(AND(D204>=0,D204<=Inputs!$H$66-168),FALSE)) -> FALSE | H204: =OR(AND(D204>=Inputs!$I$75,D204<=Inputs!$I$76),AND(D204>=Inputs!$C$75,D204<=Inputs!$C$76),AND(D204>=Inputs!$D$75,D204<=Inputs!$D$76),AND(D204>=Inputs!$E$75,D204<=Inputs!$E$76),AND(D204>=Inputs!$F$75,D204<=Inputs!$F$76),AND(D204>=Inputs!$G$75,D204<=Inputs!$G$76),AND(D204>=Inputs!$H$75,D204<=Inputs!$H$76),IFERROR(AND(D204>=0,D204<=Inputs!$H$76-168),FALSE)) -> FALSE | I204: 0 | J204: 0
B205: Thursday | C205: 23:00:00 | D205: 119 | E205: =OR(AND(D205>=Inputs!$I$45,D205<=Inputs!$I$46),AND(D205>=Inputs!$C$45,D205<=Inputs!$C$46),AND(D205>=Inputs!$D$45,D205<=Inputs!$D$46),AND(D205>=Inputs!$E$45,D205<=Inputs!$E$46),AND(D205>=Inputs!$F$45,D205<=Inputs!$F$46),AND(D205>=Inputs!$G$45,D205<=Inputs!$G$46),AND(D205>=Inputs!$H$45,D205<=Inputs!$H$46),IFERROR(AND(D205>=0,D205<=Inputs!$H$46-168),FALSE)) -> FALSE | F205: =OR(AND(D205>=Inputs!$I$55,D205<=Inputs!$I$56),AND(D205>=Inputs!$C$55,D205<=Inputs!$C$56),AND(D205>=Inputs!$D$55,D205<=Inputs!$D$56),AND(D205>=Inputs!$E$55,D205<=Inputs!$E$56),AND(D205>=Inputs!$F$55,D205<=Inputs!$F$56),AND(D205>=Inputs!$G$55,D205<=Inputs!$G$56),AND(D205>=Inputs!$H$55,D205<=Inputs!$H$56),IFERROR(AND(D205>=0,D205<=Inputs!$H$56-168),FALSE)) -> FALSE | G205: =OR(AND(D205>=Inputs!$I$65,D205<=Inputs!$I$66),AND(D205>=Inputs!$C$65,D205<=Inputs!$C$66),AND(D205>=Inputs!$D$65,D205<=Inputs!$D$66),AND(D205>=Inputs!$E$65,D205<=Inputs!$E$66),AND(D205>=Inputs!$F$65,D205<=Inputs!$F$66),AND(D205>=Inputs!$G$65,D205<=Inputs!$G$66),AND(D205>=Inputs!$H$65,D205<=Inputs!$H$66),IFERROR(AND(D205>=0,D205<=Inputs!$H$66-168),FALSE)) -> FALSE | H205: =OR(AND(D205>=Inputs!$I$75,D205<=Inputs!$I$76),AND(D205>=Inputs!$C$75,D205<=Inputs!$C$76),AND(D205>=Inputs!$D$75,D205<=Inputs!$D$76),AND(D205>=Inputs!$E$75,D205<=Inputs!$E$76),AND(D205>=Inputs!$F$75,D205<=Inputs!$F$76),AND(D205>=Inputs!$G$75,D205<=Inputs!$G$76),AND(D205>=Inputs!$H$75,D205<=Inputs!$H$76),IFERROR(AND(D205>=0,D205<=Inputs!$H$76-168),FALSE)) -> FALSE | I205: 0 | J205: 0
B206: Friday | C206: 00:00:00 | D206: 120 | E206: =OR(AND(D206>=Inputs!$I$45,D206<=Inputs!$I$46),AND(D206>=Inputs!$C$45,D206<=Inputs!$C$46),AND(D206>=Inputs!$D$45,D206<=Inputs!$D$46),AND(D206>=Inputs!$E$45,D206<=Inputs!$E$46),AND(D206>=Inputs!$F$45,D206<=Inputs!$F$46),AND(D206>=Inputs!$G$45,D206<=Inputs!$G$46),AND(D206>=Inputs!$H$45,D206<=Inputs!$H$46),IFERROR(AND(D206>=0,D206<=Inputs!$H$46-168),FALSE)) -> FALSE | F206: =OR(AND(D206>=Inputs!$I$55,D206<=Inputs!$I$56),AND(D206>=Inputs!$C$55,D206<=Inputs!$C$56),AND(D206>=Inputs!$D$55,D206<=Inputs!$D$56),AND(D206>=Inputs!$E$55,D206<=Inputs!$E$56),AND(D206>=Inputs!$F$55,D206<=Inputs!$F$56),AND(D206>=Inputs!$G$55,D206<=Inputs!$G$56),AND(D206>=Inputs!$H$55,D206<=Inputs!$H$56),IFERROR(AND(D206>=0,D206<=Inputs!$H$56-168),FALSE)) -> FALSE | G206: =OR(AND(D206>=Inputs!$I$65,D206<=Inputs!$I$66),AND(D206>=Inputs!$C$65,D206<=Inputs!$C$66),AND(D206>=Inputs!$D$65,D206<=Inputs!$D$66),AND(D206>=Inputs!$E$65,D206<=Inputs!$E$66),AND(D206>=Inputs!$F$65,D206<=Inputs!$F$66),AND(D206>=Inputs!$G$65,D206<=Inputs!$G$66),AND(D206>=Inputs!$H$65,D206<=Inputs!$H$66),IFERROR(AND(D206>=0,D206<=Inputs!$H$66-168),FALSE)) -> FALSE | H206: =OR(AND(D206>=Inputs!$I$75,D206<=Inputs!$I$76),AND(D206>=Inputs!$C$75,D206<=Inputs!$C$76),AND(D206>=Inputs!$D$75,D206<=Inputs!$D$76),AND(D206>=Inputs!$E$75,D206<=Inputs!$E$76),AND(D206>=Inputs!$F$75,D206<=Inputs!$F$76),AND(D206>=Inputs!$G$75,D206<=Inputs!$G$76),AND(D206>=Inputs!$H$75,D206<=Inputs!$H$76),IFERROR(AND(D206>=0,D206<=Inputs!$H$76-168),FALSE)) -> FALSE | I206: 0 | J206: 0
B207: Friday | C207: 01:00:00 | D207: 121 | E207: =OR(AND(D207>=Inputs!$I$45,D207<=Inputs!$I$46),AND(D207>=Inputs!$C$45,D207<=Inputs!$C$46),AND(D207>=Inputs!$D$45,D207<=Inputs!$D$46),AND(D207>=Inputs!$E$45,D207<=Inputs!$E$46),AND(D207>=Inputs!$F$45,D207<=Inputs!$F$46),AND(D207>=Inputs!$G$45,D207<=Inputs!$G$46),AND(D207>=Inputs!$H$45,D207<=Inputs!$H$46),IFERROR(AND(D207>=0,D207<=Inputs!$H$46-168),FALSE)) -> FALSE | F207: =OR(AND(D207>=Inputs!$I$55,D207<=Inputs!$I$56),AND(D207>=Inputs!$C$55,D207<=Inputs!$C$56),AND(D207>=Inputs!$D$55,D207<=Inputs!$D$56),AND(D207>=Inputs!$E$55,D207<=Inputs!$E$56),AND(D207>=Inputs!$F$55,D207<=Inputs!$F$56),AND(D207>=Inputs!$G$55,D207<=Inputs!$G$56),AND(D207>=Inputs!$H$55,D207<=Inputs!$H$56),IFERROR(AND(D207>=0,D207<=Inputs!$H$56-168),FALSE)) -> FALSE | G207: =OR(AND(D207>=Inputs!$I$65,D207<=Inputs!$I$66),AND(D207>=Inputs!$C$65,D207<=Inputs!$C$66),AND(D207>=Inputs!$D$65,D207<=Inputs!$D$66),AND(D207>=Inputs!$E$65,D207<=Inputs!$E$66),AND(D207>=Inputs!$F$65,D207<=Inputs!$F$66),AND(D207>=Inputs!$G$65,D207<=Inputs!$G$66),AND(D207>=Inputs!$H$65,D207<=Inputs!$H$66),IFERROR(AND(D207>=0,D207<=Inputs!$H$66-168),FALSE)) -> FALSE | H207: =OR(AND(D207>=Inputs!$I$75,D207<=Inputs!$I$76),AND(D207>=Inputs!$C$75,D207<=Inputs!$C$76),AND(D207>=Inputs!$D$75,D207<=Inputs!$D$76),AND(D207>=Inputs!$E$75,D207<=Inputs!$E$76),AND(D207>=Inputs!$F$75,D207<=Inputs!$F$76),AND(D207>=Inputs!$G$75,D207<=Inputs!$G$76),AND(D207>=Inputs!$H$75,D207<=Inputs!$H$76),IFERROR(AND(D207>=0,D207<=Inputs!$H$76-168),FALSE)) -> FALSE | I207: 0 | J207: 0
B208: Friday | C208: 02:00:00 | D208: 122 | E208: =OR(AND(D208>=Inputs!$I$45,D208<=Inputs!$I$46),AND(D208>=Inputs!$C$45,D208<=Inputs!$C$46),AND(D208>=Inputs!$D$45,D208<=Inputs!$D$46),AND(D208>=Inputs!$E$45,D208<=Inputs!$E$46),AND(D208>=Inputs!$F$45,D208<=Inputs!$F$46),AND(D208>=Inputs!$G$45,D208<=Inputs!$G$46),AND(D208>=Inputs!$H$45,D208<=Inputs!$H$46),IFERROR(AND(D208>=0,D208<=Inputs!$H$46-168),FALSE)) -> FALSE | F208: =OR(AND(D208>=Inputs!$I$55,D208<=Inputs!$I$56),AND(D208>=Inputs!$C$55,D208<=Inputs!$C$56),AND(D208>=Inputs!$D$55,D208<=Inputs!$D$56),AND(D208>=Inputs!$E$55,D208<=Inputs!$E$56),AND(D208>=Inputs!$F$55,D208<=Inputs!$F$56),AND(D208>=Inputs!$G$55,D208<=Inputs!$G$56),AND(D208>=Inputs!$H$55,D208<=Inputs!$H$56),IFERROR(AND(D208>=0,D208<=Inputs!$H$56-168),FALSE)) -> FALSE | G208: =OR(AND(D208>=Inputs!$I$65,D208<=Inputs!$I$66),AND(D208>=Inputs!$C$65,D208<=Inputs!$C$66),AND(D208>=Inputs!$D$65,D208<=Inputs!$D$66),AND(D208>=Inputs!$E$65,D208<=Inputs!$E$66),AND(D208>=Inputs!$F$65,D208<=Inputs!$F$66),AND(D208>=Inputs!$G$65,D208<=Inputs!$G$66),AND(D208>=Inputs!$H$65,D208<=Inputs!$H$66),IFERROR(AND(D208>=0,D208<=Inputs!$H$66-168),FALSE)) -> FALSE | H208: =OR(AND(D208>=Inputs!$I$75,D208<=Inputs!$I$76),AND(D208>=Inputs!$C$75,D208<=Inputs!$C$76),AND(D208>=Inputs!$D$75,D208<=Inputs!$D$76),AND(D208>=Inputs!$E$75,D208<=Inputs!$E$76),AND(D208>=Inputs!$F$75,D208<=Inputs!$F$76),AND(D208>=Inputs!$G$75,D208<=Inputs!$G$76),AND(D208>=Inputs!$H$75,D208<=Inputs!$H$76),IFERROR(AND(D208>=0,D208<=Inputs!$H$76-168),FALSE)) -> FALSE | I208: 0 | J208: 0
B209: Friday | C209: 03:00:00 | D209: 123 | E209: =OR(AND(D209>=Inputs!$I$45,D209<=Inputs!$I$46),AND(D209>=Inputs!$C$45,D209<=Inputs!$C$46),AND(D209>=Inputs!$D$45,D209<=Inputs!$D$46),AND(D209>=Inputs!$E$45,D209<=Inputs!$E$46),AND(D209>=Inputs!$F$45,D209<=Inputs!$F$46),AND(D209>=Inputs!$G$45,D209<=Inputs!$G$46),AND(D209>=Inputs!$H$45,D209<=Inputs!$H$46),IFERROR(AND(D209>=0,D209<=Inputs!$H$46-168),FALSE)) -> FALSE | F209: =OR(AND(D209>=Inputs!$I$55,D209<=Inputs!$I$56),AND(D209>=Inputs!$C$55,D209<=Inputs!$C$56),AND(D209>=Inputs!$D$55,D209<=Inputs!$D$56),AND(D209>=Inputs!$E$55,D209<=Inputs!$E$56),AND(D209>=Inputs!$F$55,D209<=Inputs!$F$56),AND(D209>=Inputs!$G$55,D209<=Inputs!$G$56),AND(D209>=Inputs!$H$55,D209<=Inputs!$H$56),IFERROR(AND(D209>=0,D209<=Inputs!$H$56-168),FALSE)) -> FALSE | G209: =OR(AND(D209>=Inputs!$I$65,D209<=Inputs!$I$66),AND(D209>=Inputs!$C$65,D209<=Inputs!$C$66),AND(D209>=Inputs!$D$65,D209<=Inputs!$D$66),AND(D209>=Inputs!$E$65,D209<=Inputs!$E$66),AND(D209>=Inputs!$F$65,D209<=Inputs!$F$66),AND(D209>=Inputs!$G$65,D209<=Inputs!$G$66),AND(D209>=Inputs!$H$65,D209<=Inputs!$H$66),IFERROR(AND(D209>=0,D209<=Inputs!$H$66-168),FALSE)) -> FALSE | H209: =OR(AND(D209>=Inputs!$I$75,D209<=Inputs!$I$76),AND(D209>=Inputs!$C$75,D209<=Inputs!$C$76),AND(D209>=Inputs!$D$75,D209<=Inputs!$D$76),AND(D209>=Inputs!$E$75,D209<=Inputs!$E$76),AND(D209>=Inputs!$F$75,D209<=Inputs!$F$76),AND(D209>=Inputs!$G$75,D209<=Inputs!$G$76),AND(D209>=Inputs!$H$75,D209<=Inputs!$H$76),IFERROR(AND(D209>=0,D209<=Inputs!$H$76-168),FALSE)) -> FALSE | I209: 0 | J209: 0
B210: Friday | C210: 04:00:00 | D210: 124 | E210: =OR(AND(D210>=Inputs!$I$45,D210<=Inputs!$I$46),AND(D210>=Inputs!$C$45,D210<=Inputs!$C$46),AND(D210>=Inputs!$D$45,D210<=Inputs!$D$46),AND(D210>=Inputs!$E$45,D210<=Inputs!$E$46),AND(D210>=Inputs!$F$45,D210<=Inputs!$F$46),AND(D210>=Inputs!$G$45,D210<=Inputs!$G$46),AND(D210>=Inputs!$H$45,D210<=Inputs!$H$46),IFERROR(AND(D210>=0,D210<=Inputs!$H$46-168),FALSE)) -> FALSE | F210: =OR(AND(D210>=Inputs!$I$55,D210<=Inputs!$I$56),AND(D210>=Inputs!$C$55,D210<=Inputs!$C$56),AND(D210>=Inputs!$D$55,D210<=Inputs!$D$56),AND(D210>=Inputs!$E$55,D210<=Inputs!$E$56),AND(D210>=Inputs!$F$55,D210<=Inputs!$F$56),AND(D210>=Inputs!$G$55,D210<=Inputs!$G$56),AND(D210>=Inputs!$H$55,D210<=Inputs!$H$56),IFERROR(AND(D210>=0,D210<=Inputs!$H$56-168),FALSE)) -> FALSE | G210: =OR(AND(D210>=Inputs!$I$65,D210<=Inputs!$I$66),AND(D210>=Inputs!$C$65,D210<=Inputs!$C$66),AND(D210>=Inputs!$D$65,D210<=Inputs!$D$66),AND(D210>=Inputs!$E$65,D210<=Inputs!$E$66),AND(D210>=Inputs!$F$65,D210<=Inputs!$F$66),AND(D210>=Inputs!$G$65,D210<=Inputs!$G$66),AND(D210>=Inputs!$H$65,D210<=Inputs!$H$66),IFERROR(AND(D210>=0,D210<=Inputs!$H$66-168),FALSE)) -> FALSE | H210: =OR(AND(D210>=Inputs!$I$75,D210<=Inputs!$I$76),AND(D210>=Inputs!$C$75,D210<=Inputs!$C$76),AND(D210>=Inputs!$D$75,D210<=Inputs!$D$76),AND(D210>=Inputs!$E$75,D210<=Inputs!$E$76),AND(D210>=Inputs!$F$75,D210<=Inputs!$F$76),AND(D210>=Inputs!$G$75,D210<=Inputs!$G$76),AND(D210>=Inputs!$H$75,D210<=Inputs!$H$76),IFERROR(AND(D210>=0,D210<=Inputs!$H$76-168),FALSE)) -> FALSE | I210: 0 | J210: 0
B211: Friday | C211: 05:00:00 | D211: 125 | E211: =OR(AND(D211>=Inputs!$I$45,D211<=Inputs!$I$46),AND(D211>=Inputs!$C$45,D211<=Inputs!$C$46),AND(D211>=Inputs!$D$45,D211<=Inputs!$D$46),AND(D211>=Inputs!$E$45,D211<=Inputs!$E$46),AND(D211>=Inputs!$F$45,D211<=Inputs!$F$46),AND(D211>=Inputs!$G$45,D211<=Inputs!$G$46),AND(D211>=Inputs!$H$45,D211<=Inputs!$H$46),IFERROR(AND(D211>=0,D211<=Inputs!$H$46-168),FALSE)) -> FALSE | F211: =OR(AND(D211>=Inputs!$I$55,D211<=Inputs!$I$56),AND(D211>=Inputs!$C$55,D211<=Inputs!$C$56),AND(D211>=Inputs!$D$55,D211<=Inputs!$D$56),AND(D211>=Inputs!$E$55,D211<=Inputs!$E$56),AND(D211>=Inputs!$F$55,D211<=Inputs!$F$56),AND(D211>=Inputs!$G$55,D211<=Inputs!$G$56),AND(D211>=Inputs!$H$55,D211<=Inputs!$H$56),IFERROR(AND(D211>=0,D211<=Inputs!$H$56-168),FALSE)) -> FALSE | G211: =OR(AND(D211>=Inputs!$I$65,D211<=Inputs!$I$66),AND(D211>=Inputs!$C$65,D211<=Inputs!$C$66),AND(D211>=Inputs!$D$65,D211<=Inputs!$D$66),AND(D211>=Inputs!$E$65,D211<=Inputs!$E$66),AND(D211>=Inputs!$F$65,D211<=Inputs!$F$66),AND(D211>=Inputs!$G$65,D211<=Inputs!$G$66),AND(D211>=Inputs!$H$65,D211<=Inputs!$H$66),IFERROR(AND(D211>=0,D211<=Inputs!$H$66-168),FALSE)) -> FALSE | H211: =OR(AND(D211>=Inputs!$I$75,D211<=Inputs!$I$76),AND(D211>=Inputs!$C$75,D211<=Inputs!$C$76),AND(D211>=Inputs!$D$75,D211<=Inputs!$D$76),AND(D211>=Inputs!$E$75,D211<=Inputs!$E$76),AND(D211>=Inputs!$F$75,D211<=Inputs!$F$76),AND(D211>=Inputs!$G$75,D211<=Inputs!$G$76),AND(D211>=Inputs!$H$75,D211<=Inputs!$H$76),IFERROR(AND(D211>=0,D211<=Inputs!$H$76-168),FALSE)) -> FALSE | I211: 0 | J211: 0
B212: Friday | C212: 06:00:00 | D212: 126 | E212: =OR(AND(D212>=Inputs!$I$45,D212<=Inputs!$I$46),AND(D212>=Inputs!$C$45,D212<=Inputs!$C$46),AND(D212>=Inputs!$D$45,D212<=Inputs!$D$46),AND(D212>=Inputs!$E$45,D212<=Inputs!$E$46),AND(D212>=Inputs!$F$45,D212<=Inputs!$F$46),AND(D212>=Inputs!$G$45,D212<=Inputs!$G$46),AND(D212>=Inputs!$H$45,D212<=Inputs!$H$46),IFERROR(AND(D212>=0,D212<=Inputs!$H$46-168),FALSE)) -> FALSE | F212: =OR(AND(D212>=Inputs!$I$55,D212<=Inputs!$I$56),AND(D212>=Inputs!$C$55,D212<=Inputs!$C$56),AND(D212>=Inputs!$D$55,D212<=Inputs!$D$56),AND(D212>=Inputs!$E$55,D212<=Inputs!$E$56),AND(D212>=Inputs!$F$55,D212<=Inputs!$F$56),AND(D212>=Inputs!$G$55,D212<=Inputs!$G$56),AND(D212>=Inputs!$H$55,D212<=Inputs!$H$56),IFERROR(AND(D212>=0,D212<=Inputs!$H$56-168),FALSE)) -> FALSE | G212: =OR(AND(D212>=Inputs!$I$65,D212<=Inputs!$I$66),AND(D212>=Inputs!$C$65,D212<=Inputs!$C$66),AND(D212>=Inputs!$D$65,D212<=Inputs!$D$66),AND(D212>=Inputs!$E$65,D212<=Inputs!$E$66),AND(D212>=Inputs!$F$65,D212<=Inputs!$F$66),AND(D212>=Inputs!$G$65,D212<=Inputs!$G$66),AND(D212>=Inputs!$H$65,D212<=Inputs!$H$66),IFERROR(AND(D212>=0,D212<=Inputs!$H$66-168),FALSE)) -> FALSE | H212: =OR(AND(D212>=Inputs!$I$75,D212<=Inputs!$I$76),AND(D212>=Inputs!$C$75,D212<=Inputs!$C$76),AND(D212>=Inputs!$D$75,D212<=Inputs!$D$76),AND(D212>=Inputs!$E$75,D212<=Inputs!$E$76),AND(D212>=Inputs!$F$75,D212<=Inputs!$F$76),AND(D212>=Inputs!$G$75,D212<=Inputs!$G$76),AND(D212>=Inputs!$H$75,D212<=Inputs!$H$76),IFERROR(AND(D212>=0,D212<=Inputs!$H$76-168),FALSE)) -> FALSE | I212: 0 | J212: 0
B213: Friday | C213: 07:00:00 | D213: 127 | E213: =OR(AND(D213>=Inputs!$I$45,D213<=Inputs!$I$46),AND(D213>=Inputs!$C$45,D213<=Inputs!$C$46),AND(D213>=Inputs!$D$45,D213<=Inputs!$D$46),AND(D213>=Inputs!$E$45,D213<=Inputs!$E$46),AND(D213>=Inputs!$F$45,D213<=Inputs!$F$46),AND(D213>=Inputs!$G$45,D213<=Inputs!$G$46),AND(D213>=Inputs!$H$45,D213<=Inputs!$H$46),IFERROR(AND(D213>=0,D213<=Inputs!$H$46-168),FALSE)) -> FALSE | F213: =OR(AND(D213>=Inputs!$I$55,D213<=Inputs!$I$56),AND(D213>=Inputs!$C$55,D213<=Inputs!$C$56),AND(D213>=Inputs!$D$55,D213<=Inputs!$D$56),AND(D213>=Inputs!$E$55,D213<=Inputs!$E$56),AND(D213>=Inputs!$F$55,D213<=Inputs!$F$56),AND(D213>=Inputs!$G$55,D213<=Inputs!$G$56),AND(D213>=Inputs!$H$55,D213<=Inputs!$H$56),IFERROR(AND(D213>=0,D213<=Inputs!$H$56-168),FALSE)) -> FALSE | G213: =OR(AND(D213>=Inputs!$I$65,D213<=Inputs!$I$66),AND(D213>=Inputs!$C$65,D213<=Inputs!$C$66),AND(D213>=Inputs!$D$65,D213<=Inputs!$D$66),AND(D213>=Inputs!$E$65,D213<=Inputs!$E$66),AND(D213>=Inputs!$F$65,D213<=Inputs!$F$66),AND(D213>=Inputs!$G$65,D213<=Inputs!$G$66),AND(D213>=Inputs!$H$65,D213<=Inputs!$H$66),IFERROR(AND(D213>=0,D213<=Inputs!$H$66-168),FALSE)) -> FALSE | H213: =OR(AND(D213>=Inputs!$I$75,D213<=Inputs!$I$76),AND(D213>=Inputs!$C$75,D213<=Inputs!$C$76),AND(D213>=Inputs!$D$75,D213<=Inputs!$D$76),AND(D213>=Inputs!$E$75,D213<=Inputs!$E$76),AND(D213>=Inputs!$F$75,D213<=Inputs!$F$76),AND(D213>=Inputs!$G$75,D213<=Inputs!$G$76),AND(D213>=Inputs!$H$75,D213<=Inputs!$H$76),IFERROR(AND(D213>=0,D213<=Inputs!$H$76-168),FALSE)) -> FALSE | I213: 0 | J213: 0
B214: Friday | C214: 08:00:00 | D214: 128 | E214: =OR(AND(D214>=Inputs!$I$45,D214<=Inputs!$I$46),AND(D214>=Inputs!$C$45,D214<=Inputs!$C$46),AND(D214>=Inputs!$D$45,D214<=Inputs!$D$46),AND(D214>=Inputs!$E$45,D214<=Inputs!$E$46),AND(D214>=Inputs!$F$45,D214<=Inputs!$F$46),AND(D214>=Inputs!$G$45,D214<=Inputs!$G$46),AND(D214>=Inputs!$H$45,D214<=Inputs!$H$46),IFERROR(AND(D214>=0,D214<=Inputs!$H$46-168),FALSE)) -> FALSE | F214: =OR(AND(D214>=Inputs!$I$55,D214<=Inputs!$I$56),AND(D214>=Inputs!$C$55,D214<=Inputs!$C$56),AND(D214>=Inputs!$D$55,D214<=Inputs!$D$56),AND(D214>=Inputs!$E$55,D214<=Inputs!$E$56),AND(D214>=Inputs!$F$55,D214<=Inputs!$F$56),AND(D214>=Inputs!$G$55,D214<=Inputs!$G$56),AND(D214>=Inputs!$H$55,D214<=Inputs!$H$56),IFERROR(AND(D214>=0,D214<=Inputs!$H$56-168),FALSE)) -> FALSE | G214: =OR(AND(D214>=Inputs!$I$65,D214<=Inputs!$I$66),AND(D214>=Inputs!$C$65,D214<=Inputs!$C$66),AND(D214>=Inputs!$D$65,D214<=Inputs!$D$66),AND(D214>=Inputs!$E$65,D214<=Inputs!$E$66),AND(D214>=Inputs!$F$65,D214<=Inputs!$F$66),AND(D214>=Inputs!$G$65,D214<=Inputs!$G$66),AND(D214>=Inputs!$H$65,D214<=Inputs!$H$66),IFERROR(AND(D214>=0,D214<=Inputs!$H$66-168),FALSE)) -> FALSE | H214: =OR(AND(D214>=Inputs!$I$75,D214<=Inputs!$I$76),AND(D214>=Inputs!$C$75,D214<=Inputs!$C$76),AND(D214>=Inputs!$D$75,D214<=Inputs!$D$76),AND(D214>=Inputs!$E$75,D214<=Inputs!$E$76),AND(D214>=Inputs!$F$75,D214<=Inputs!$F$76),AND(D214>=Inputs!$G$75,D214<=Inputs!$G$76),AND(D214>=Inputs!$H$75,D214<=Inputs!$H$76),IFERROR(AND(D214>=0,D214<=Inputs!$H$76-168),FALSE)) -> FALSE | I214: 0 | J214: 0
B215: Friday | C215: 09:00:00 | D215: 129 | E215: =OR(AND(D215>=Inputs!$I$45,D215<=Inputs!$I$46),AND(D215>=Inputs!$C$45,D215<=Inputs!$C$46),AND(D215>=Inputs!$D$45,D215<=Inputs!$D$46),AND(D215>=Inputs!$E$45,D215<=Inputs!$E$46),AND(D215>=Inputs!$F$45,D215<=Inputs!$F$46),AND(D215>=Inputs!$G$45,D215<=Inputs!$G$46),AND(D215>=Inputs!$H$45,D215<=Inputs!$H$46),IFERROR(AND(D215>=0,D215<=Inputs!$H$46-168),FALSE)) -> TRUE | F215: =OR(AND(D215>=Inputs!$I$55,D215<=Inputs!$I$56),AND(D215>=Inputs!$C$55,D215<=Inputs!$C$56),AND(D215>=Inputs!$D$55,D215<=Inputs!$D$56),AND(D215>=Inputs!$E$55,D215<=Inputs!$E$56),AND(D215>=Inputs!$F$55,D215<=Inputs!$F$56),AND(D215>=Inputs!$G$55,D215<=Inputs!$G$56),AND(D215>=Inputs!$H$55,D215<=Inputs!$H$56),IFERROR(AND(D215>=0,D215<=Inputs!$H$56-168),FALSE)) -> FALSE | G215: =OR(AND(D215>=Inputs!$I$65,D215<=Inputs!$I$66),AND(D215>=Inputs!$C$65,D215<=Inputs!$C$66),AND(D215>=Inputs!$D$65,D215<=Inputs!$D$66),AND(D215>=Inputs!$E$65,D215<=Inputs!$E$66),AND(D215>=Inputs!$F$65,D215<=Inputs!$F$66),AND(D215>=Inputs!$G$65,D215<=Inputs!$G$66),AND(D215>=Inputs!$H$65,D215<=Inputs!$H$66),IFERROR(AND(D215>=0,D215<=Inputs!$H$66-168),FALSE)) -> FALSE | H215: =OR(AND(D215>=Inputs!$I$75,D215<=Inputs!$I$76),AND(D215>=Inputs!$C$75,D215<=Inputs!$C$76),AND(D215>=Inputs!$D$75,D215<=Inputs!$D$76),AND(D215>=Inputs!$E$75,D215<=Inputs!$E$76),AND(D215>=Inputs!$F$75,D215<=Inputs!$F$76),AND(D215>=Inputs!$G$75,D215<=Inputs!$G$76),AND(D215>=Inputs!$H$75,D215<=Inputs!$H$76),IFERROR(AND(D215>=0,D215<=Inputs!$H$76-168),FALSE)) -> FALSE | I215: =COUNTIF(E215:H215,"TRUE") -> 1 | J215: =COUNTIF(F215:H215,"TRUE") -> 0
B216: Friday | C216: 10:00:00 | D216: 130 | E216: =OR(AND(D216>=Inputs!$I$45,D216<=Inputs!$I$46),AND(D216>=Inputs!$C$45,D216<=Inputs!$C$46),AND(D216>=Inputs!$D$45,D216<=Inputs!$D$46),AND(D216>=Inputs!$E$45,D216<=Inputs!$E$46),AND(D216>=Inputs!$F$45,D216<=Inputs!$F$46),AND(D216>=Inputs!$G$45,D216<=Inputs!$G$46),AND(D216>=Inputs!$H$45,D216<=Inputs!$H$46),IFERROR(AND(D216>=0,D216<=Inputs!$H$46-168),FALSE)) -> TRUE | F216: =OR(AND(D216>=Inputs!$I$55,D216<=Inputs!$I$56),AND(D216>=Inputs!$C$55,D216<=Inputs!$C$56),AND(D216>=Inputs!$D$55,D216<=Inputs!$D$56),AND(D216>=Inputs!$E$55,D216<=Inputs!$E$56),AND(D216>=Inputs!$F$55,D216<=Inputs!$F$56),AND(D216>=Inputs!$G$55,D216<=Inputs!$G$56),AND(D216>=Inputs!$H$55,D216<=Inputs!$H$56),IFERROR(AND(D216>=0,D216<=Inputs!$H$56-168),FALSE)) -> FALSE | G216: =OR(AND(D216>=Inputs!$I$65,D216<=Inputs!$I$66),AND(D216>=Inputs!$C$65,D216<=Inputs!$C$66),AND(D216>=Inputs!$D$65,D216<=Inputs!$D$66),AND(D216>=Inputs!$E$65,D216<=Inputs!$E$66),AND(D216>=Inputs!$F$65,D216<=Inputs!$F$66),AND(D216>=Inputs!$G$65,D216<=Inputs!$G$66),AND(D216>=Inputs!$H$65,D216<=Inputs!$H$66),IFERROR(AND(D216>=0,D216<=Inputs!$H$66-168),FALSE)) -> FALSE | H216: =OR(AND(D216>=Inputs!$I$75,D216<=Inputs!$I$76),AND(D216>=Inputs!$C$75,D216<=Inputs!$C$76),AND(D216>=Inputs!$D$75,D216<=Inputs!$D$76),AND(D216>=Inputs!$E$75,D216<=Inputs!$E$76),AND(D216>=Inputs!$F$75,D216<=Inputs!$F$76),AND(D216>=Inputs!$G$75,D216<=Inputs!$G$76),AND(D216>=Inputs!$H$75,D216<=Inputs!$H$76),IFERROR(AND(D216>=0,D216<=Inputs!$H$76-168),FALSE)) -> FALSE | I216: 1 | J216: 0
B217: Friday | C217: 11:00:00 | D217: 131 | E217: =OR(AND(D217>=Inputs!$I$45,D217<=Inputs!$I$46),AND(D217>=Inputs!$C$45,D217<=Inputs!$C$46),AND(D217>=Inputs!$D$45,D217<=Inputs!$D$46),AND(D217>=Inputs!$E$45,D217<=Inputs!$E$46),AND(D217>=Inputs!$F$45,D217<=Inputs!$F$46),AND(D217>=Inputs!$G$45,D217<=Inputs!$G$46),AND(D217>=Inputs!$H$45,D217<=Inputs!$H$46),IFERROR(AND(D217>=0,D217<=Inputs!$H$46-168),FALSE)) -> TRUE | F217: =OR(AND(D217>=Inputs!$I$55,D217<=Inputs!$I$56),AND(D217>=Inputs!$C$55,D217<=Inputs!$C$56),AND(D217>=Inputs!$D$55,D217<=Inputs!$D$56),AND(D217>=Inputs!$E$55,D217<=Inputs!$E$56),AND(D217>=Inputs!$F$55,D217<=Inputs!$F$56),AND(D217>=Inputs!$G$55,D217<=Inputs!$G$56),AND(D217>=Inputs!$H$55,D217<=Inputs!$H$56),IFERROR(AND(D217>=0,D217<=Inputs!$H$56-168),FALSE)) -> FALSE | G217: =OR(AND(D217>=Inputs!$I$65,D217<=Inputs!$I$66),AND(D217>=Inputs!$C$65,D217<=Inputs!$C$66),AND(D217>=Inputs!$D$65,D217<=Inputs!$D$66),AND(D217>=Inputs!$E$65,D217<=Inputs!$E$66),AND(D217>=Inputs!$F$65,D217<=Inputs!$F$66),AND(D217>=Inputs!$G$65,D217<=Inputs!$G$66),AND(D217>=Inputs!$H$65,D217<=Inputs!$H$66),IFERROR(AND(D217>=0,D217<=Inputs!$H$66-168),FALSE)) -> FALSE | H217: =OR(AND(D217>=Inputs!$I$75,D217<=Inputs!$I$76),AND(D217>=Inputs!$C$75,D217<=Inputs!$C$76),AND(D217>=Inputs!$D$75,D217<=Inputs!$D$76),AND(D217>=Inputs!$E$75,D217<=Inputs!$E$76),AND(D217>=Inputs!$F$75,D217<=Inputs!$F$76),AND(D217>=Inputs!$G$75,D217<=Inputs!$G$76),AND(D217>=Inputs!$H$75,D217<=Inputs!$H$76),IFERROR(AND(D217>=0,D217<=Inputs!$H$76-168),FALSE)) -> FALSE | I217: 1 | J217: 0
... 36 more rows

Sheet Volume Import
A1: Date | B1: Hour | C1: PDir | D1: PDirHV | E1: NDir | F1: NDirHV | J1: Truck Percentage Inputs | K1: Sunday | L1: Monday | M1: Tuesday | N1: Wednesday | O1: Thursday | P1: Friday | Q1: Saturday | W1: Sun | X1: Sun | Y1: Mon | Z1: Mon | AA1: Tue | AB1: Tue | AC1: Wed | AD1: Wed | AE1: Thu | AF1: Thu | AG1: Fri | AH1: Fri | AI1: Sat | AJ1: Sat
A2: =I9 -> 2019-08-01 | B2: 0 | C2: =MROUND(INDEX($W$3:$AJ$26,MATCH(B2,$V$3:$V$26,0),MATCH(CHOOSE(WEEKDAY(A2),"Sun","Mon","Tue","Wed","Thu","Fri","Sat")&C$1,$W$27:$AJ$27,0)),1) -> 618 | D2: 0 | E2: =MROUND(INDEX($W$3:$AJ$26,MATCH(B2,$V$3:$V$26,0),MATCH(CHOOSE(WEEKDAY(A2),"Sun","Mon","Tue","Wed","Thu","Fri","Sat")&E$1,$W$27:$AJ$27,0)),1) -> 609 | F2: 0 | J2: AM Truck % (6 AM - 9 AM) | K2: 0.1 | L2: 0.1 | M2: 0.1 | N2: 0.1 | O2: 0.1 | P2: 0.1 | Q2: 0.1 | R2: AM | W2: PDir | X2: NDir | Y2: PDir | Z2: NDir | AA2: PDir | AB2: NDir | AC2: PDir | AD2: NDir | AE2: PDir | AF2: NDir | AG2: PDir | AH2: NDir | AI2: PDir | AJ2: NDir
A3: =A2 -> 2019-08-01 | B3: 1 | C3: 488 | D3: 0 | E3: 420 | F3: 0 | J3: MD Truck % (9 AM - 3 PM) | K3: 0.1 | L3: 0.1 | M3: 0.1 | N3: 0.1 | O3: 0.1 | P3: 0.1 | Q3: 0.1 | R3: MD | V3: 0 | W3: 931 | X3: 1132.75 | Y3: 657.5 | Z3: 468 | AA3: 564.5 | AB3: 590.25 | AC3: 619 | AD3: 649 | AE3: 617.6 | AF3: 608.8 | AG3: 665 | AH3: 740.4 | AI3: 1040.6 | AJ3: 1030
A4: 2019-08-01 | B4: 2 | C4: 412 | D4: 0 | E4: 402 | F4: 0 | J4: PM Truck % (3 PM - 6 PM) | K4: 0.1 | L4: 0.1 | M4: 0.1 | N4: 0.1 | O4: 0.1 | P4: 0.1 | Q4: 0.1 | R4: PM | V4: 1 | W4: 477.5 | X4: 615 | Y4: 419.5 | Z4: 310.5 | AA4: 443.75 | AB4: 392.25 | AC4: 446.5 | AD4: 409.25 | AE4: 488 | AF4: 420.2 | AG4: 532 | AH4: 485.2 | AI4: 574.4 | AJ4: 554
A5: 2019-08-01 | B5: 3 | C5: 535 | D5: 0 | E5: 534 | F5: 0 | J5: NT Truck % (6 PM - 6 AM) | K5: 0.1 | L5: 0.1 | M5: 0.1 | N5: 0.1 | O5: 0.1 | P5: 0.1 | Q5: 0.1 | R5: NT | V5: 2 | W5: 352 | X5: 438.5 | Y5: 351.25 | Z5: 291.5 | AA5: 385.25 | AB5: 357 | AC5: 388.25 | AD5: 393.75 | AE5: 411.6 | AF5: 401.8 | AG5: 424 | AH5: 437.4 | AI5: 426.8 | AJ5: 438
A6: 2019-08-01 | B6: 4 | C6: 1343 | D6: 0 | E6: 964 | F6: 0 | V6: 3 | W6: 273.75 | X6: 393.25 | Y6: 534.75 | Z6: 463.25 | AA6: 561.25 | AB6: 492.25 | AC6: 547.25 | AD6: 506 | AE6: 535.4 | AF6: 533.6 | AG6: 558.8 | AH6: 544.6 | AI6: 425.6 | AJ6: 445.6
A7: 2019-08-01 | B7: 5 | C7: 3771 | D7: 0 | E7: 2170 | F7: 0 | V7: 4 | W7: 337.75 | X7: 445 | Y7: 1291 | Z7: 1020.5 | AA7: 1318.25 | AB7: 1001.25 | AC7: 1319.5 | AD7: 948.5 | AE7: 1342.8 | AF7: 964.2 | AG7: 1248.6 | AH7: 958.8 | AI7: 597.2 | AJ7: 564.4
A8: 2019-08-01 | B8: 6 | C8: 6470 | D8: 0 | E8: 3592 | F8: 0 | K8: 0.1 | V8: 5 | W8: 601.5 | X8: 599.75 | Y8: 3674.5 | Z8: 2211.25 | AA8: 3813.25 | AB8: 2183.75 | AC8: 3860 | AD8: 2184.75 | AE8: 3771.2 | AF8: 2169.8 | AG8: 3477.2 | AH8: 1968.4 | AI8: 1223 | AJ8: 914.6
A9: 2019-08-01 | B9: 7 | C9: 6752 | D9: 0 | E9: 4528 | F9: 0 | H9: Date: | I9: 2019-08-01 | V9: 6 | W9: 1125.75 | X9: 921.25 | Y9: 6136.75 | Z9: 3585.75 | AA9: 6480.25 | AB9: 3693 | AC9: 6481.5 | AD9: 3619.5 | AE9: 6470.2 | AF9: 3592.4 | AG9: 5982 | AH9: 3307 | AI9: 2055.6 | AJ9: 1448.8
A10: 2019-08-01 | B10: 8 | C10: 5885 | D10: 0 | E10: 4292 | F10: 0 | H10: Counter ID: | I10: 400007 | V10: 7 | W10: 1477.5 | X10: 1514.5 | Y10: 6695.5 | Z10: 4526.75 | AA10: 7067.75 | AB10: 4721 | AC10: 6623.75 | AD10: 4705.5 | AE10: 6752.4 | AF10: 4527.6 | AG10: 6937.6 | AH10: 4300.2 | AI10: 2712 | AJ10: 2118.2
A11: 2019-08-01 | B11: 9 | C11: 5039 | D11: 0 | E11: 3952 | F11: 0 | H11: Location: | I11: I-894 - AT CLEVELAND AVE WEST ALLIS | L11: The purpose of this tab is to enable users to import volume data from a Jackalope SQL Excel output or WisTransPortal Excel output. | V11: 8 | W11: 2413 | X11: 2185.25 | Y11: 5707.5 | Z11: 3863 | AA11: 5955.75 | AB11: 4324.75 | AC11: 5517.25 | AD11: 4317.25 | AE11: 5885.4 | AF11: 4291.8 | AG11: 5542.8 | AH11: 4022 | AI11: 3781 | AJ11: 2877.8 | AN11: The purpose of this tab is to enable users to import volume data from a Jackalope SQL Excel output or WisTransPortal Excel output.
A12: 2019-08-01 | B12: 10 | C12: 4996 | D12: 0 | E12: 3938 | F12: 0 | V12: 9 | W12: 3405 | X12: 3153 | Y12: 4667.5 | Z12: 3661.75 | AA12: 4957.75 | AB12: 3765.5 | AC12: 4949.25 | AD12: 3827 | AE12: 5039.2 | AF12: 3952.2 | AG12: 5136.8 | AH12: 3960.4 | AI12: 4645.4 | AJ12: 3716
A13: 2019-08-01 | B13: 11 | C13: 4672 | D13: 0 | E13: 3553 | F13: 0 | H13: =LEFT(Inputs!$C$10,2) -> NB | I13: =RIGHT(Inputs!$C$10,2) -> SB | V13: 10 | W13: 4576 | X13: 4174.5 | Y13: 4540.25 | Z13: 3780 | AA13: 4628 | AB13: 3746.5 | AC13: 4849.5 | AD13: 3870.25 | AE13: 4995.6 | AF13: 3938 | AG13: 5202 | AH13: 4158.8 | AI13: 5155.8 | AJ13: 4379.6
A14: 2019-08-01 | B14: 12 | C14: 4779 | D14: 0 | E14: 3621 | F14: 0 | H14: 1 | I14: 1 | J14: Location Adjustment Factor | L14: Click the Jackalope SQL button to import data from a Jackalope SQL Excel output and a window will open to select the file to import. | V14: 11 | W14: 4875.25 | X14: 4779.75 | Y14: 4400 | Z14: 4116.5 | AA14: 4455 | AB14: 4012.25 | AC14: 4616.5 | AD14: 4066.5 | AE14: 4672.2 | AF14: 3553.2 | AG14: 5217.4 | AH14: 4454.6 | AI14: 5198.6 | AJ14: 4677.2 | AK14: Location Adjustment Factor | AN14: Click the Jackalope SQL button to import data from a Jackalope SQL Excel output and a window will open to select the file to import.
A15: 2019-08-01 | B15: 13 | C15: 4768 | D15: 0 | E15: 3982 | F15: 0 | H15: 0 | I15: 0 | J15: Growth % | V15: 12 | W15: 4915.5 | X15: 5207.75 | Y15: 4377.25 | Z15: 4419.25 | AA15: 4476.5 | AB15: 4338.75 | AC15: 4610.75 | AD15: 4487.5 | AE15: 4778.6 | AF15: 3621.4 | AG15: 5253 | AH15: 5005.8 | AI15: 5116.6 | AJ15: 4956 | AK15: Growth %
A16: 2019-08-01 | B16: 14 | C16: 5330 | D16: 0 | E16: 5542 | F16: 0 | H16: 0 | I16: 0 | J16: Diversion % | L16: Example volume-only file | V16: 13 | W16: 4633.5 | X16: 5263.75 | Y16: 4351.5 | Z16: 4536 | AA16: 4473.25 | AB16: 4603.5 | AC16: 4489.25 | AD16: 4809.75 | AE16: 4768.4 | AF16: 3982 | AG16: 5383.6 | AH16: 5288.6 | AI16: 4780.4 | AJ16: 4901.8 | AK16: Diversion % | AN16: Example volume-only file
A17: 2019-08-01 | B17: 15 | C17: 5481 | D17: 0 | E17: 6961 | F17: 0 | L17: Example volume+length file | V17: 14 | W17: 4526.25 | X17: 5510.25 | Y17: 4794 | Z17: 5738.75 | AA17: 5079.5 | AB17: 5841.75 | AC17: 5045.75 | AD17: 5910.25 | AE17: 5330 | AF17: 5542 | AG17: 5656.2 | AH17: 6340.4 | AI17: 4907 | AJ17: 5023.2 | AN17: Example volume+length file
A18: 2019-08-01 | B18: 16 | C18: 5031 | D18: 0 | E18: 6811 | F18: 0 | L18: Example volume+axle file | V18: 15 | W18: 4306.25 | X18: 5553 | Y18: 4995.5 | Z18: 6677.5 | AA18: 5224.25 | AB18: 6887.5 | AC18: 5270.5 | AD18: 7085.5 | AE18: 5480.8 | AF18: 6960.8 | AG18: 5672 | AH18: 6920.8 | AI18: 4841 | AJ18: 4964 | AN18: Example volume+axle file
A19: 2019-08-01 | B19: 17 | C19: 4965 | D19: 0 | E19: 6584 | F19: 0 | L19: Example volume-only monthly averages file | V19: 16 | W19: 4439.25 | X19: 5646.75 | Y19: 5052.25 | Z19: 6859.5 | AA19: 5267.5 | AB19: 7299.5 | AC19: 5107.75 | AD19: 6916 | AE19: 5031.2 | AF19: 6810.6 | AG19: 5284.8 | AH19: 5353.6 | AI19: 4655.8 | AJ19: 4670 | AN19: Example volume-only monthly averages file
A20: 2019-08-01 | B20: 18 | C20: 4233 | D20: 0 | E20: 4865 | F20: 0 | L20: Imported Jackalope SQL files must be in exact format as one of the four example files above. "Monthly Averages" file contains weekday averages for a single month. | V20: 17 | W20: 4207.75 | X20: 5080 | Y20: 4769.25 | Z20: 6632.5 | AA20: 5039 | AB20: 6742.25 | AC20: 4962.25 | AD20: 6791 | AE20: 4965.2 | AF20: 6583.6 | AG20: 4990.8 | AH20: 5180.4 | AI20: 4165.6 | AJ20: 4254.6 | AN20: Imported Jackalope SQL files must be in exact format as one of the four example files above. "Monthly Averages" file contains weekday averages for a single month.
A21: 2019-08-01 | B21: 19 | C21: 3177 | D21: 0 | E21: 3681 | F21: 0 | V21: 18 | W21: 3779.25 | X21: 4244.75 | Y21: 3829.5 | Z21: 4579.75 | AA21: 3963.5 | AB21: 4899.25 | AC21: 4130.75 | AD21: 4842.5 | AE21: 4232.8 | AF21: 4865 | AG21: 4666.2 | AH21: 4238.6 | AI21: 3647.4 | AJ21: 3634.8
A22: 2019-08-01 | B22: 20 | C22: 2740 | D22: 0 | E22: 3127 | F22: 0 | V22: 19 | W22: 3103 | X22: 3537.75 | Y22: 2701.5 | Z22: 3337.75 | AA22: 2791.25 | AB22: 3510.5 | AC22: 2988.25 | AD22: 3673 | AE22: 3177 | AF22: 3681.2 | AG22: 3610 | AH22: 3591.4 | AI22: 3026 | AJ22: 3359.6
A23: 2019-08-01 | B23: 21 | C23: 2331 | D23: 0 | E23: 2517 | F23: 0 | L23: Click the WisTransPortal button to import data from a WisTransPortal Excel output and a window will open to select the file to import. | V23: 20 | W23: 2632.75 | X23: 2822.25 | Y23: 2251.5 | Z23: 2707.25 | AA23: 2434.25 | AB23: 2962.75 | AC23: 2598.25 | AD23: 2952.25 | AE23: 2740 | AF23: 3127.4 | AG23: 2883.2 | AH23: 3067.4 | AI23: 2809 | AJ23: 3137.4 | AN23: Click the WisTransPortal button to import data from a WisTransPortal Excel output and a window will open to select the file to import.
A24: 2019-08-01 | B24: 22 | C24: 1585 | D24: 0 | E24: 1992 | F24: 0 | V24: 21 | W24: 2044.5 | X24: 2085.5 | Y24: 1882.5 | Z24: 2107.5 | AA24: 2017.75 | AB24: 2445.25 | AC24: 2128.25 | AD24: 2378.5 | AE24: 2331.2 | AF24: 2516.8 | AG24: 2513.6 | AH24: 2801.6 | AI24: 2442 | AJ24: 2810.4
A25: 2019-08-01 | B25: 23 | C25: 1051 | D25: 0 | E25: 1443 | F25: 0 | L25: Example continuous count file | V25: 22 | W25: 1350.75 | X25: 1376.25 | Y25: 1243.25 | Z25: 1468 | AA25: 1329 | AB25: 1838.25 | AC25: 1413.5 | AD25: 1675 | AE25: 1584.8 | AF25: 1992.4 | AG25: 1923.4 | AH25: 2444 | AI25: 1856.2 | AJ25: 2285.6 | AN25: Example continuous count file
A26: =A2+1 -> 2019-08-02 | B26: =B2 -> 0 | C26: 665 | D26: 0 | E26: 740 | F26: 0 | L26: Example short-term count file | V26: 23 | W26: 926.75 | X26: 893.75 | Y26: 839 | Z26: 1006.75 | AA26: 914.5 | AB26: 1301 | AC26: 898 | AD26: 1134.75 | AE26: 1051.2 | AF26: 1442.6 | AG26: 1433.4 | AH26: 1836.2 | AI26: 1335.2 | AJ26: 1673.6 | AN26: Example short-term count file
A27: =A3+1 -> 2019-08-02 | B27: =B3 -> 1 | C27: 532 | D27: 0 | E27: 485 | F27: 0 | L27: Imported WisTransPortal files must be in exact format as one of the two example files above. The continuous count file contains monthly averages for each weekday for a single month. The short-term count file contains 48 hours of data. | W27: =W1&W2 -> SunPDir | X27: =X1&X2 -> SunNDir | Y27: MonPDir | Z27: MonNDir | AA27: TuePDir | AB27: TueNDir | AC27: WedPDir | AD27: WedNDir | AE27: ThuPDir | AF27: ThuNDir | AG27: FriPDir | AH27: FriNDir | AI27: SatPDir | AJ27: SatNDir | AN27: Imported WisTransPortal files must be in exact format as one of the two example files above. The continuous count file contains monthly averages for each weekday for a single month. The short-term count file contains 48 hours of data.
A28: 2019-08-02 | B28: 2 | C28: 424 | D28: 0 | E28: 437 | F28: 0 | V28: Cells from WisTransPortal CT Report to Import
A29: 2019-08-02 | B29: 3 | C29: 559 | D29: 0 | E29: 545 | F29: 0 | V29: 0 | W29: B12 | X29: C12 | Y29: E12 | Z29: F12 | AA29: H12 | AB29: I12 | AC29: K12 | AD29: L12 | AE29: N12 | AF29: O12 | AG29: Q12 | AH29: R12 | AI29: T12 | AJ29: U12
A30: 2019-08-02 | B30: 4 | C30: 1249 | D30: 0 | E30: 959 | F30: 0 | V30: 1 | W30: B13 | X30: C13 | Y30: E13 | Z30: F13 | AA30: H13 | AB30: I13 | AC30: K13 | AD30: L13 | AE30: N13 | AF30: O13 | AG30: Q13 | AH30: R13 | AI30: T13 | AJ30: U13
A31: 2019-08-02 | B31: 5 | C31: 3477 | D31: 0 | E31: 1968 | F31: 0 | L31: If user imports WisTransPortal file of volume-only Jackalope SQL file, "PDirHV" and "NDirHV" columns will show zero and a truck percentage table will show where user can input truck percentages for each period of each day. "Copy Truck% For All" button can be clicked to copy same truck percentage for each period of each day. | V31: 2 | W31: B14 | X31: C14 | Y31: E14 | Z31: F14 | AA31: H14 | AB31: I14 | AC31: K14 | AD31: L14 | AE31: N14 | AF31: O14 | AG31: Q14 | AH31: R14 | AI31: T14 | AJ31: U14 | AN31: If user imports WisTransPortal file of volume-only Jackalope SQL file, "PDirHV" and "NDirHV" columns will show zero and a truck percentage table will show where user can input truck percentages for each period of each day. "Copy Truck% For All" button can be clicked to copy same truck percentage for each period of each day.
A32: 2019-08-02 | B32: 6 | C32: 5982 | D32: 0 | E32: 3307 | F32: 0 | V32: 3 | W32: B15 | X32: C15 | Y32: E15 | Z32: F15 | AA32: H15 | AB32: I15 | AC32: K15 | AD32: L15 | AE32: N15 | AF32: O15 | AG32: Q15 | AH32: R15 | AI32: T15 | AJ32: U15
A33: 2019-08-02 | B33: 7 | C33: 6938 | D33: 0 | E33: 4300 | F33: 0 | V33: 4 | W33: B16 | X33: C16 | Y33: E16 | Z33: F16 | AA33: H16 | AB33: I16 | AC33: K16 | AD33: L16 | AE33: N16 | AF33: O16 | AG33: Q16 | AH33: R16 | AI33: T16 | AJ33: U16
A34: 2019-08-02 | B34: 8 | C34: =MROUND(INDEX($W$3:$AJ$26,MATCH(B34,$V$3:$V$26,0),MATCH(CHOOSE(WEEKDAY(A34),"Sun","Mon","Tue","Wed","Thu","Fri","Sat")&C$1,$W$27:$AJ$27,0)),1) -> 5543 | D34: 0 | E34: =MROUND(INDEX($W$3:$AJ$26,MATCH(B34,$V$3:$V$26,0),MATCH(CHOOSE(WEEKDAY(A34),"Sun","Mon","Tue","Wed","Thu","Fri","Sat")&E$1,$W$27:$AJ$27,0)),1) -> 4022 | F34: 0 | V34: 5 | W34: B17 | X34: C17 | Y34: E17 | Z34: F17 | AA34: H17 | AB34: I17 | AC34: K17 | AD34: L17 | AE34: N17 | AF34: O17 | AG34: Q17 | AH34: R17 | AI34: T17 | AJ34: U17
A35: 2019-08-02 | B35: 9 | C35: 5137 | D35: 0 | E35: 3960 | F35: 0 | V35: 6 | W35: B18 | X35: C18 | Y35: E18 | Z35: F18 | AA35: H18 | AB35: I18 | AC35: K18 | AD35: L18 | AE35: N18 | AF35: O18 | AG35: Q18 | AH35: R18 | AI35: T18 | AJ35: U18
A36: 2019-08-02 | B36: 10 | C36: 5202 | D36: 0 | E36: 4159 | F36: 0 | L36: "Location Adjustment Factor" is used to adjust raw volumes if count site not in same location as closure. See example below using AADT volumes. | V36: 7 | W36: B19 | X36: C19 | Y36: E19 | Z36: F19 | AA36: H19 | AB36: I19 | AC36: K19 | AD36: L19 | AE36: N19 | AF36: O19 | AG36: Q19 | AH36: R19 | AI36: T19 | AJ36: U19 | AN36: "Location Adjustment Factor" is used to adjust raw volumes if count site not in same location as closure. See example below using AADT volumes.
A37: 2019-08-02 | B37: 11 | C37: 5217 | D37: 0 | E37: 4455 | F37: 0 | V37: 8 | W37: B20 | X37: C20 | Y37: E20 | Z37: F20 | AA37: H20 | AB37: I20 | AC37: K20 | AD37: L20 | AE37: N20 | AF37: O20 | AG37: Q20 | AH37: R20 | AI37: T20 | AJ37: U20
A38: 2019-08-02 | B38: 12 | C38: 5253 | D38: 0 | E38: 5006 | F38: 0 | V38: 9 | W38: B21 | X38: C21 | Y38: E21 | Z38: F21 | AA38: H21 | AB38: I21 | AC38: K21 | AD38: L21 | AE38: N21 | AF38: O21 | AG38: Q21 | AH38: R21 | AI38: T21 | AJ38: U21
A39: 2019-08-02 | B39: 13 | C39: 5384 | D39: 0 | E39: 5289 | F39: 0 | V39: 10 | W39: B22 | X39: C22 | Y39: E22 | Z39: F22 | AA39: H22 | AB39: I22 | AC39: K22 | AD39: L22 | AE39: N22 | AF39: O22 | AG39: Q22 | AH39: R22 | AI39: T22 | AJ39: U22
A40: 2019-08-02 | B40: 14 | C40: 5656 | D40: 0 | E40: 6340 | F40: 0 | V40: 11 | W40: B23 | X40: C23 | Y40: E23 | Z40: F23 | AA40: H23 | AB40: I23 | AC40: K23 | AD40: L23 | AE40: N23 | AF40: O23 | AG40: Q23 | AH40: R23 | AI40: T23 | AJ40: U23
A41: 2019-08-02 | B41: 15 | C41: 5672 | D41: 0 | E41: 6921 | F41: 0 | V41: 12 | W41: B24 | X41: C24 | Y41: E24 | Z41: F24 | AA41: H24 | AB41: I24 | AC41: K24 | AD41: L24 | AE41: N24 | AF41: O24 | AG41: Q24 | AH41: R24 | AI41: T24 | AJ41: U24
A42: 2019-08-02 | B42: 16 | C42: 5285 | D42: 0 | E42: 5354 | F42: 0 | V42: 13 | W42: B25 | X42: C25 | Y42: E25 | Z42: F25 | AA42: H25 | AB42: I25 | AC42: K25 | AD42: L25 | AE42: N25 | AF42: O25 | AG42: Q25 | AH42: R25 | AI42: T25 | AJ42: U25
A43: 2019-08-02 | B43: 17 | C43: 4991 | D43: 0 | E43: 5180 | F43: 0 | V43: 14 | W43: B26 | X43: C26 | Y43: E26 | Z43: F26 | AA43: H26 | AB43: I26 | AC43: K26 | AD43: L26 | AE43: N26 | AF43: O26 | AG43: Q26 | AH43: R26 | AI43: T26 | AJ43: U26
A44: 2019-08-02 | B44: 18 | C44: 4666 | D44: 0 | E44: 4239 | F44: 0 | V44: 15 | W44: B27 | X44: C27 | Y44: E27 | Z44: F27 | AA44: H27 | AB44: I27 | AC44: K27 | AD44: L27 | AE44: N27 | AF44: O27 | AG44: Q27 | AH44: R27 | AI44: T27 | AJ44: U27
A45: 2019-08-02 | B45: 19 | C45: 3610 | D45: 0 | E45: 3591 | F45: 0 | V45: 16 | W45: B28 | X45: C28 | Y45: E28 | Z45: F28 | AA45: H28 | AB45: I28 | AC45: K28 | AD45: L28 | AE45: N28 | AF45: O28 | AG45: Q28 | AH45: R28 | AI45: T28 | AJ45: U28
A46: 2019-08-02 | B46: 20 | C46: 2883 | D46: 0 | E46: 3067 | F46: 0 | L46: Imported volumes from a nearby "Continuous Count Location" can be factored based on a short-duration count that is closer to the work zone closure. The factor is applied to every hour of every day. For example, in the picture above, to adjust the continuous count based on the nearby short duration count, a factor of 1.11 (128,000/115,000) can be applied to the continous count data to estimate continuous data at the site of the short-duration count closer to the closure. | V46: 17 | W46: B29 | X46: C29 | Y46: E29 | Z46: F29 | AA46: H29 | AB46: I29 | AC46: K29 | AD46: L29 | AE46: N29 | AF46: O29 | AG46: Q29 | AH46: R29 | AI46: T29 | AJ46: U29 | AN46: Imported volumes from a nearby "Continuous Count Location" can be factored based on a short-duration count that is closer to the work zone closure. The factor is applied to every hour of every day. For example, in the picture above, to adjust the continuous count based on the nearby short duration count, a factor of 1.11 (128,000/115,000) can be applied to the continous count data to estimate continuous data at the site of the short-duration count closer to the closure.
A47: 2019-08-02 | B47: 21 | C47: 2514 | D47: 0 | E47: 2802 | F47: 0 | V47: 18 | W47: B30 | X47: C30 | Y47: E30 | Z47: F30 | AA47: H30 | AB47: I30 | AC47: K30 | AD47: L30 | AE47: N30 | AF47: O30 | AG47: Q30 | AH47: R30 | AI47: T30 | AJ47: U30
A48: 2019-08-02 | B48: 22 | C48: 1923 | D48: 0 | E48: 2444 | F48: 0 | V48: 19 | W48: B31 | X48: C31 | Y48: E31 | Z48: F31 | AA48: H31 | AB48: I31 | AC48: K31 | AD48: L31 | AE48: N31 | AF48: O31 | AG48: Q31 | AH48: R31 | AI48: T31 | AJ48: U31
A49: 2019-08-02 | B49: 23 | C49: 1433 | D49: 0 | E49: 1836 | F49: 0 | V49: 20 | W49: B32 | X49: C32 | Y49: E32 | Z49: F32 | AA49: H32 | AB49: I32 | AC49: K32 | AD49: L32 | AE49: N32 | AF49: O32 | AG49: Q32 | AH49: R32 | AI49: T32 | AJ49: U32
A50: 2019-08-03 | B50: 0 | C50: 1041 | D50: 0 | E50: 1030 | F50: 0 | V50: 21 | W50: B33 | X50: C33 | Y50: E33 | Z50: F33 | AA50: H33 | AB50: I33 | AC50: K33 | AD50: L33 | AE50: N33 | AF50: O33 | AG50: Q33 | AH50: R33 | AI50: T33 | AJ50: U33
A51: 2019-08-03 | B51: 1 | C51: 574 | D51: 0 | E51: 554 | F51: 0 | V51: 22 | W51: B34 | X51: C34 | Y51: E34 | Z51: F34 | AA51: H34 | AB51: I34 | AC51: K34 | AD51: L34 | AE51: N34 | AF51: O34 | AG51: Q34 | AH51: R34 | AI51: T34 | AJ51: U34
A52: 2019-08-03 | B52: 2 | C52: 427 | D52: 0 | E52: 438 | F52: 0 | V52: 23 | W52: B35 | X52: C35 | Y52: E35 | Z52: F35 | AA52: H35 | AB52: I35 | AC52: K35 | AD52: L35 | AE52: N35 | AF52: O35 | AG52: Q35 | AH52: R35 | AI52: T35 | AJ52: U35
A53: 2019-08-03 | B53: 3 | C53: 426 | D53: 0 | E53: 446 | F53: 0 | L53: "Growth %" is applied to the volumes to add growth (i.e. [raw volume]x[1+growth %]). For example, to test the impact if traffic volumes were 20% higher. It is important to note, this is NOT a growth rate to expand volumes through years (e.g., 3% per year). | AN53: "Growth %" is applied to the volumes to add growth (i.e. [raw volume]x[1+growth %]). For example, to test the impact if traffic volumes were 20% higher. It is important to note, this is NOT a growth rate to expand volumes through years (e.g., 3% per year).
A54: 2019-08-03 | B54: 4 | C54: 597 | D54: 0 | E54: 564 | F54: 0
A55: 2019-08-03 | B55: 5 | C55: 1223 | D55: 0 | E55: 915 | F55: 0
A56: 2019-08-03 | B56: 6 | C56: 2056 | D56: 0 | E56: 1449 | F56: 0
A57: 2019-08-03 | B57: 7 | C57: 2712 | D57: 0 | E57: 2118 | F57: 0 | L57: "Diversion %" is the percent of volume user expects to divert to alternative route(s) due to closure. | AN57: "Diversion %" is the percent of volume user expects to divert to alternative route(s) due to closure.
A58: 2019-08-03 | B58: 8 | C58: 3781 | D58: 0 | E58: 2878 | F58: 0
A59: 2019-08-03 | B59: 9 | C59: 4645 | D59: 0 | E59: 3716 | F59: 0
A60: 2019-08-03 | B60: 10 | C60: 5156 | D60: 0 | E60: 4380 | F60: 0 | L60: Growth/diversion updates will be reflected on every tab throughout tool. | AN60: Growth/diversion updates will be reflected on every tab throughout tool.
A61: 2019-08-03 | B61: 11 | C61: 5199 | D61: 0 | E61: 4677 | F61: 0
A62: 2019-08-03 | B62: 12 | C62: 5117 | D62: 0 | E62: 4956 | F62: 0 | L62: Volumes in columns C&E of this tab will always show the raw volumes. Adjusted volumes will be shown on "Calculations" tabs in columns M&P. | AN62: Volumes in columns C&E of this tab will always show the raw volumes. Adjusted volumes will be shown on "Calculations" tabs in columns M&P.
A63: 2019-08-03 | B63: 13 | C63: 4780 | D63: 0 | E63: 4902 | F63: 0
A64: 2019-08-03 | B64: 14 | C64: 4907 | D64: 0 | E64: 5023 | F64: 0
A65: 2019-08-03 | B65: 15 | C65: 4841 | D65: 0 | E65: 4964 | F65: 0
A66: 2019-08-03 | B66: 16 | C66: =MROUND(INDEX($W$3:$AJ$26,MATCH(B66,$V$3:$V$26,0),MATCH(CHOOSE(WEEKDAY(A66),"Sun","Mon","Tue","Wed","Thu","Fri","Sat")&C$1,$W$27:$AJ$27,0)),1) -> 4656 | D66: 0 | E66: =MROUND(INDEX($W$3:$AJ$26,MATCH(B66,$V$3:$V$26,0),MATCH(CHOOSE(WEEKDAY(A66),"Sun","Mon","Tue","Wed","Thu","Fri","Sat")&E$1,$W$27:$AJ$27,0)),1) -> 4670 | F66: 0
A67: 2019-08-03 | B67: 17 | C67: 4166 | D67: 0 | E67: 4255 | F67: 0
A68: 2019-08-03 | B68: 18 | C68: 3647 | D68: 0 | E68: 3635 | F68: 0
A69: 2019-08-03 | B69: 19 | C69: 3026 | D69: 0 | E69: 3360 | F69: 0
A70: 2019-08-03 | B70: 20 | C70: 2809 | D70: 0 | E70: 3137 | F70: 0
A71: 2019-08-03 | B71: 21 | C71: 2442 | D71: 0 | E71: 2810 | F71: 0
A72: 2019-08-03 | B72: 22 | C72: 1856 | D72: 0 | E72: 2286 | F72: 0
A73: 2019-08-03 | B73: 23 | C73: 1335 | D73: 0 | E73: 1674 | F73: 0
A74: 2019-08-04 | B74: 0 | C74: 931 | D74: 0 | E74: 1133 | F74: 0
A75: 2019-08-04 | B75: 1 | C75: 478 | D75: 0 | E75: 615 | F75: 0
A76: 2019-08-04 | B76: 2 | C76: 352 | D76: 0 | E76: 439 | F76: 0
A77: 2019-08-04 | B77: 3 | C77: 274 | D77: 0 | E77: 393 | F77: 0
A78: 2019-08-04 | B78: 4 | C78: 338 | D78: 0 | E78: 445 | F78: 0
A79: 2019-08-04 | B79: 5 | C79: 602 | D79: 0 | E79: 600 | F79: 0
A80: 2019-08-04 | B80: 6 | C80: 1126 | D80: 0 | E80: 921 | F80: 0
A81: 2019-08-04 | B81: 7 | C81: 1478 | D81: 0 | E81: 1515 | F81: 0
A82: 2019-08-04 | B82: 8 | C82: 2413 | D82: 0 | E82: 2185 | F82: 0
A83: 2019-08-04 | B83: 9 | C83: 3405 | D83: 0 | E83: 3153 | F83: 0
A84: 2019-08-04 | B84: 10 | C84: 4576 | D84: 0 | E84: 4175 | F84: 0
A85: 2019-08-04 | B85: 11 | C85: 4875 | D85: 0 | E85: 4780 | F85: 0
A86: 2019-08-04 | B86: 12 | C86: 4916 | D86: 0 | E86: 5208 | F86: 0
A87: 2019-08-04 | B87: 13 | C87: 4634 | D87: 0 | E87: 5264 | F87: 0
A88: 2019-08-04 | B88: 14 | C88: 4526 | D88: 0 | E88: 5510 | F88: 0
A89: 2019-08-04 | B89: 15 | C89: 4306 | D89: 0 | E89: 5553 | F89: 0
A90: 2019-08-04 | B90: 16 | C90: 4439 | D90: 0 | E90: 5647 | F90: 0
A91: =A67+1 -> 2019-08-04 | B91: =B67 -> 17 | C91: 4208 | D91: 0 | E91: 5080 | F91: 0
A92: 2019-08-04 | B92: 18 | C92: 3779 | D92: 0 | E92: 4245 | F92: 0
A93: 2019-08-04 | B93: 19 | C93: 3103 | D93: 0 | E93: 3538 | F93: 0
A94: 2019-08-04 | B94: 20 | C94: 2633 | D94: 0 | E94: 2822 | F94: 0
A95: 2019-08-04 | B95: 21 | C95: 2045 | D95: 0 | E95: 2086 | F95: 0
A96: 2019-08-04 | B96: 22 | C96: 1351 | D96: 0 | E96: 1376 | F96: 0
A97: 2019-08-04 | B97: 23 | C97: 927 | D97: 0 | E97: 894 | F97: 0
A98: 2019-08-05 | B98: 0 | C98: =MROUND(INDEX($W$3:$AJ$26,MATCH(B98,$V$3:$V$26,0),MATCH(CHOOSE(WEEKDAY(A98),"Sun","Mon","Tue","Wed","Thu","Fri","Sat")&C$1,$W$27:$AJ$27,0)),1) -> 658 | D98: 0 | E98: =MROUND(INDEX($W$3:$AJ$26,MATCH(B98,$V$3:$V$26,0),MATCH(CHOOSE(WEEKDAY(A98),"Sun","Mon","Tue","Wed","Thu","Fri","Sat")&E$1,$W$27:$AJ$27,0)),1) -> 468 | F98: 0
A99: 2019-08-05 | B99: 1 | C99: 420 | D99: 0 | E99: 311 | F99: 0
A100: 2019-08-05 | B100: 2 | C100: 351 | D100: 0 | E100: 292 | F100: 0
A101: 2019-08-05 | B101: 3 | C101: 535 | D101: 0 | E101: 463 | F101: 0
A102: 2019-08-05 | B102: 4 | C102: 1291 | D102: 0 | E102: 1021 | F102: 0
A103: 2019-08-05 | B103: 5 | C103: 3675 | D103: 0 | E103: 2211 | F103: 0
A104: 2019-08-05 | B104: 6 | C104: 6137 | D104: 0 | E104: 3586 | F104: 0
A105: 2019-08-05 | B105: 7 | C105: 6696 | D105: 0 | E105: 4527 | F105: 0
A106: 2019-08-05 | B106: 8 | C106: 5708 | D106: 0 | E106: 3863 | F106: 0
A107: 2019-08-05 | B107: 9 | C107: 4668 | D107: 0 | E107: 3662 | F107: 0
A108: 2019-08-05 | B108: 10 | C108: 4540 | D108: 0 | E108: 3780 | F108: 0
A109: 2019-08-05 | B109: 11 | C109: 4400 | D109: 0 | E109: 4117 | F109: 0
A110: 2019-08-05 | B110: 12 | C110: 4377 | D110: 0 | E110: 4419 | F110: 0
A111: 2019-08-05 | B111: 13 | C111: 4352 | D111: 0 | E111: 4536 | F111: 0
A112: 2019-08-05 | B112: 14 | C112: 4794 | D112: 0 | E112: 5739 | F112: 0
A113: 2019-08-05 | B113: 15 | C113: 4996 | D113: 0 | E113: 6678 | F113: 0
A114: 2019-08-05 | B114: 16 | C114: 5052 | D114: 0 | E114: 6860 | F114: 0
A115: 2019-08-05 | B115: 17 | C115: 4769 | D115: 0 | E115: 6633 | F115: 0
A116: 2019-08-05 | B116: 18 | C116: 3830 | D116: 0 | E116: 4580 | F116: 0
A117: 2019-08-05 | B117: 19 | C117: 2702 | D117: 0 | E117: 3338 | F117: 0
A118: 2019-08-05 | B118: 20 | C118: 2252 | D118: 0 | E118: 2707 | F118: 0
A119: 2019-08-05 | B119: 21 | C119: 1883 | D119: 0 | E119: 2108 | F119: 0
A120: 2019-08-05 | B120: 22 | C120: 1243 | D120: 0 | E120: 1468 | F120: 0
A121: 2019-08-05 | B121: 23 | C121: 839 | D121: 0 | E121: 1007 | F121: 0
A122: 2019-08-06 | B122: 0 | C122: 565 | D122: 0 | E122: 590 | F122: 0
A123: 2019-08-06 | B123: 1 | C123: 444 | D123: 0 | E123: 392 | F123: 0
A124: 2019-08-06 | B124: 2 | C124: 385 | D124: 0 | E124: 357 | F124: 0
A125: 2019-08-06 | B125: 3 | C125: 561 | D125: 0 | E125: 492 | F125: 0
A126: 2019-08-06 | B126: 4 | C126: 1318 | D126: 0 | E126: 1001 | F126: 0
A127: 2019-08-06 | B127: 5 | C127: 3813 | D127: 0 | E127: 2184 | F127: 0
A128: 2019-08-06 | B128: 6 | C128: 6480 | D128: 0 | E128: 3693 | F128: 0
A129: 2019-08-06 | B129: 7 | C129: 7068 | D129: 0 | E129: 4721 | F129: 0
A130: 2019-08-06 | B130: 8 | C130: =MROUND(INDEX($W$3:$AJ$26,MATCH(B130,$V$3:$V$26,0),MATCH(CHOOSE(WEEKDAY(A130),"Sun","Mon","Tue","Wed","Thu","Fri","Sat")&C$1,$W$27:$AJ$27,0)),1) -> 5956 | D130: 0 | E130: =MROUND(INDEX($W$3:$AJ$26,MATCH(B130,$V$3:$V$26,0),MATCH(CHOOSE(WEEKDAY(A130),"Sun","Mon","Tue","Wed","Thu","Fri","Sat")&E$1,$W$27:$AJ$27,0)),1) -> 4325 | F130: 0
A131: 2019-08-06 | B131: 9 | C131: 4958 | D131: 0 | E131: 3766 | F131: 0
A132: 2019-08-06 | B132: 10 | C132: 4628 | D132: 0 | E132: 3747 | F132: 0
A133: 2019-08-06 | B133: 11 | C133: 4455 | D133: 0 | E133: 4012 | F133: 0
A134: 2019-08-06 | B134: 12 | C134: 4477 | D134: 0 | E134: 4339 | F134: 0
A135: 2019-08-06 | B135: 13 | C135: 4473 | D135: 0 | E135: 4604 | F135: 0
A136: 2019-08-06 | B136: 14 | C136: 5080 | D136: 0 | E136: 5842 | F136: 0
A137: 2019-08-06 | B137: 15 | C137: 5224 | D137: 0 | E137: 6888 | F137: 0
A138: 2019-08-06 | B138: 16 | C138: 5268 | D138: 0 | E138: 7300 | F138: 0
A139: 2019-08-06 | B139: 17 | C139: 5039 | D139: 0 | E139: 6742 | F139: 0
A140: 2019-08-06 | B140: 18 | C140: 3964 | D140: 0 | E140: 4899 | F140: 0
A141: 2019-08-06 | B141: 19 | C141: 2791 | D141: 0 | E141: 3511 | F141: 0
A142: 2019-08-06 | B142: 20 | C142: 2434 | D142: 0 | E142: 2963 | F142: 0
A143: 2019-08-06 | B143: 21 | C143: 2018 | D143: 0 | E143: 2445 | F143: 0
A144: 2019-08-06 | B144: 22 | C144: 1329 | D144: 0 | E144: 1838 | F144: 0
A145: 2019-08-06 | B145: 23 | C145: 915 | D145: 0 | E145: 1301 | F145: 0
A146: 2019-08-07 | B146: 0 | C146: 619 | D146: 0 | E146: 649 | F146: 0
A147: 2019-08-07 | B147: 1 | C147: 447 | D147: 0 | E147: 409 | F147: 0
A148: 2019-08-07 | B148: 2 | C148: 388 | D148: 0 | E148: 394 | F148: 0
A149: 2019-08-07 | B149: 3 | C149: 547 | D149: 0 | E149: 506 | F149: 0
A150: 2019-08-07 | B150: 4 | C150: 1320 | D150: 0 | E150: 949 | F150: 0
A151: 2019-08-07 | B151: 5 | C151: 3860 | D151: 0 | E151: 2185 | F151: 0
A152: 2019-08-07 | B152: 6 | C152: 6482 | D152: 0 | E152: 3620 | F152: 0
A153: 2019-08-07 | B153: 7 | C153: 6624 | D153: 0 | E153: 4706 | F153: 0
A154: 2019-08-07 | B154: 8 | C154: 5517 | D154: 0 | E154: 4317 | F154: 0
A155: =A131+1 -> 2019-08-07 | B155: =B131 -> 9 | C155: 4949 | D155: 0 | E155: 3827 | F155: 0
A156: 2019-08-07 | B156: 10 | C156: 4850 | D156: 0 | E156: 3870 | F156: 0
A157: 2019-08-07 | B157: 11 | C157: 4617 | D157: 0 | E157: 4067 | F157: 0
A158: 2019-08-07 | B158: 12 | C158: 4611 | D158: 0 | E158: 4488 | F158: 0
A159: 2019-08-07 | B159: 13 | C159: 4489 | D159: 0 | E159: 4810 | F159: 0
A160: 2019-08-07 | B160: 14 | C160: 5046 | D160: 0 | E160: 5910 | F160: 0
A161: 2019-08-07 | B161: 15 | C161: 5271 | D161: 0 | E161: 7086 | F161: 0
A162: 2019-08-07 | B162: 16 | C162: =MROUND(INDEX($W$3:$AJ$26,MATCH(B162,$V$3:$V$26,0),MATCH(CHOOSE(WEEKDAY(A162),"Sun","Mon","Tue","Wed","Thu","Fri","Sat")&C$1,$W$27:$AJ$27,0)),1) -> 5108 | D162: 0 | E162: =MROUND(INDEX($W$3:$AJ$26,MATCH(B162,$V$3:$V$26,0),MATCH(CHOOSE(WEEKDAY(A162),"Sun","Mon","Tue","Wed","Thu","Fri","Sat")&E$1,$W$27:$AJ$27,0)),1) -> 6916 | F162: 0
A163: 2019-08-07 | B163: 17 | C163: 4962 | D163: 0 | E163: 6791 | F163: 0
A164: 2019-08-07 | B164: 18 | C164: 4131 | D164: 0 | E164: 4843 | F164: 0
A165: 2019-08-07 | B165: 19 | C165: 2988 | D165: 0 | E165: 3673 | F165: 0
A166: 2019-08-07 | B166: 20 | C166: 2598 | D166: 0 | E166: 2952 | F166: 0
A167: 2019-08-07 | B167: 21 | C167: 2128 | D167: 0 | E167: 2379 | F167: 0
A168: 2019-08-07 | B168: 22 | C168: 1414 | D168: 0 | E168: 1675 | F168: 0
A169: 2019-08-07 | B169: 23 | C169: 898 | D169: 0 | E169: 1135 | F169: 0

Sheet Calculations
A1: Queue Information Calculations | I1: ="Factors For "&I8 -> Factors For NB | L1: ="Factors For "&L8 -> Factors For SB | P1: =Q8&" Queue Calculations" -> NB Queue Calculations | AF1: =AG8&" Queue Calculations" -> SB Queue Calculations
A2: =Inputs!B6&": " -> Region: | C2: =Inputs!C6 -> Southeast | I2: Growth | J2: 0 | L2: Growth | M2: 0 | P2: Closure 1 | Q2: Closure 2 | R2: Closure 3 | S2: Closure 4 | AF2: Closure 1 | AG2: Closure 2 | AH2: Closure 3 | AI2: Closure 4
A3: =Inputs!B7&": " -> County: | C3: =Inputs!C7 -> Milwaukee | I3: Diversion | J3: 0 | L3: Diversion | M3: 0 | P3: =RIGHT(Inputs!C18,1) -> 3 | Q3: =RIGHT(Inputs!D18,1) ->  | R3: =RIGHT(Inputs!E18,1) ->  | S3: =RIGHT(Inputs!F18,1) ->  | T3: Open Lanes | AF3: =RIGHT(Inputs!C18,1) -> 3 | AG3: =RIGHT(Inputs!D18,1) ->  | AH3: =RIGHT(Inputs!E18,1) ->  | AI3: =RIGHT(Inputs!F18,1) ->  | AJ3: Open Lanes
A4: =Inputs!B8&": " -> Construction ID: | C4: =Inputs!C8 -> 0000-00-00 | P4: =IFERROR(LEFT(Inputs!C18,1)-RIGHT(Inputs!C18,1),"") -> 1 | Q4: =IFERROR(LEFT(Inputs!D18,1)-RIGHT(Inputs!D18,1),"") ->  | R4: =IFERROR(LEFT(Inputs!E18,1)-RIGHT(Inputs!E18,1),"") ->  | S4: =IFERROR(LEFT(Inputs!F18,1)-RIGHT(Inputs!F18,1),"") ->  | T4: Closed Lanes | AF4: =IFERROR(LEFT(Inputs!C18,1)-RIGHT(Inputs!C18,1),"") -> 1 | AG4: =IFERROR(LEFT(Inputs!D18,1)-RIGHT(Inputs!D18,1),"") ->  | AH4: =IFERROR(LEFT(Inputs!E18,1)-RIGHT(Inputs!E18,1),"") ->  | AI4: =IFERROR(LEFT(Inputs!F18,1)-RIGHT(Inputs!F18,1),"") ->  | AJ4: Closed Lanes
A5: =Inputs!B9&": " -> Highway: | C5: =Inputs!C9 -> I-894 | I5: Diversion Delay Time (min) | J5: 10 | L5: Diversion Delay Time (min) | M5: 10
A6: This tab contains the caculations for the work zone capacity estimates, queues, and costs. The growth %, diversion %, and diversion delay time inputs are the only editable cells. Growth/diversion updates will be reflected on every tab throughout tool.
P7: Free Flow | AF7: Free Flow
I8: =LEFT(Inputs!$C$10,2) -> NB | J8: =I8 -> NB | L8: =RIGHT(Inputs!$C$10,2) -> SB | M8: =L8 -> SB | O8: Average | P8: Capacity or | Q8: =I8 -> NB | R8: =Q8 -> NB | S8: =Q8 -> NB | T8: =Q8 -> NB | U8: =Q8 -> NB | V8: =Q8 -> NB | W8: =Q8 -> NB | AB8: Max | AF8: Capacity or | AG8: =L8 -> SB | AH8: =AG8 -> SB | AI8: =AG8 -> SB | AJ8: =AG8 -> SB | AK8: =AG8 -> SB | AL8: =AG8 -> SB | AM8: =AG8 -> SB | AR8: Max
I9: Vol | J9: HV% | L9: Vol | M9: HV% | O9: PCE Headway | P9: WZ QDR | Q9: # Over | R9: Total | S9: Queue | T9: Queue | U9: Queue | V9: Diversion | W9: Total | Z9: Cell | AA9: Cell | AB9: Q in | AC9: Start | AD9: End | AF9: WZ QDR | AG9: # Over | AH9: Total | AI9: Queue | AJ9: Queue | AK9: Queue | AL9: Diversion | AM9: Total | AP9: Cell | AQ9: Cell | AR9: Q in | AS9: Start | AT9: End
A10: Date | B10: Day # | C10: Day | D10: Hour | E10: T.O.D. | F10: Week Hour | G10: Closure? | I10: PDir | J10: PDir | L10: NDir | M10: NDir | O10: (ft/PCE) | P10: (veh/hr) | Q10: Under | R10: Queue | S10: Miles | T10: Minutes | U10: Costs | V10: Costs | W10: Costs | Y10: Date & Time | Z10: Start | AA10: End | AB10: Range | AC10: Time | AD10: Time | AF10: (veh/hr) | AG10: Under | AH10: Queue | AI10: Miles | AJ10: Minutes | AK10: Costs | AL10: Costs | AM10: Costs | AO10: Date & Time | AP10: Start | AQ10: End | AR10: Range | AS10: Time | AT10: Time
A11: ='Volume Import'!A2 -> 2019-08-01 | B11: =WEEKDAY(A11) -> 5 | C11: =CHOOSE(WEEKDAY(A11),"Sunday","Monday","Tuesday","Wednesday","Thursday","Friday","Saturday") -> Thursday | D11: 00:00:00 | E11: =INDEX(Lists!$M$3:$M$26,MATCH(Calculations!D11,Lists!$L$3:$L$26,0)) -> NT | F11: =HOUR(D11)+(B11*24-24) -> 96 | G11: =IF(INDEX(Inputs!$H$86:$H$253,MATCH(F11,Inputs!$D$86:$D$253,0)),"TRUE 4", IF(INDEX(Inputs!$G$86:$G$253,MATCH(F11,Inputs!$D$86:$D$253,0)),"TRUE 3", IF(INDEX(Inputs!$F$86:$F$253,MATCH(F11,Inputs!$D$86:$D$253,0)),"TRUE 2", IF(INDEX(Inputs!$E$86:$E$253,MATCH(F11,Inputs!$D$86:$D$253,0)),"TRUE 1", FALSE)))) -> FALSE | I11: ='Volume Import'!C2*'Volume Import'!$H$14*(1+'Volume Import'!$H$15)*(1-'Volume Import'!$H$16) -> 618 | J11: =IF(AND('Volume Import'!D2=0,'Volume Import'!C2=0),0, IF('Volume Import'!D2=0,INDEX('Volume Import'!$K$2:$Q$5,MATCH(E11,'Volume Import'!$R$2:$R$5,0),MATCH(C11,'Volume Import'!$K$1:$Q$1,0)), 'Volume Import'!D2/'Volume Import'!C2)) -> 0.1 | L11: ='Volume Import'!E2*'Volume Import'!$I$14*(1+'Volume Import'!$I$15)*(1-'Volume Import'!$I$16) -> 609 | M11: =IF('Volume Import'!F2=0,J11,'Volume Import'!F2/'Volume Import'!E2) -> 0.1 | O11: =IF(G11="TRUE 1",IF(E11="NT",Inputs!$C$35,Inputs!$C$34), IF(G11="TRUE 2",IF(E11="NT",Inputs!$D$35,Inputs!$D$34), IF(G11="TRUE 3",IF(E11="NT",Inputs!$E$35,Inputs!$E$34), IF(G11="TRUE 4",IF(E11="NT",Inputs!$F$35,Inputs!$F$34), 0)))) -> 0 | P11: =IF(G11="TRUE 1",IF(E11="NT",MROUND(Inputs!$C$32*$P$3*(1/(1+J11*(2-1))),1),MROUND(Inputs!$C$30*$P$3*(1/(1+J11*(2-1))),1)), IF(G11="TRUE 2",IF(E11="NT",MROUND(Inputs!$D$32*$Q$3*(1/(1+J11*(2-1))),1),MROUND(Inputs!$D$30*$Q$3*(1/(1+J11*(2-1))),1)), IF(G11="TRUE 3",IF(E11="NT",MROUND(Inputs!$E$32*$R$3*(1/(1+J11*(2-1))),1),MROUND(Inputs!$E$30*$R$3*(1/(1+J11*(2-1))),1)), IF(G11="TRUE 4",IF(E11="NT",MROUND(Inputs!$F$32*$S$3*(1/(1+J11*(2-1))),1),MROUND(Inputs!$F$30*$S$3*(1/(1+J11*(2-1))),1)), MROUND(Inputs!$C$15*(1/(1+J11*(2-1)))*($P$3+$P$4),1))))) -> 8727 | Q11: =I11-P11 -> -8109 | R11: =IF(Q11<0,0,Q11) -> 0 | S11: =(R11/(1/(1+J11*(2-1))))*O11/LEFT(Inputs!$C$18,1)/5280 -> 0 | T11: =R11/P11*60 -> 0 | U11: =(T11/60)*((Inputs!$C$13*Calculations!R11*(1-Calculations!J11))+(Inputs!$C$14*Calculations!R11*Calculations!J11)) -> 0 | V11: =IF(R11>0,($J$5/60)*(((I11*$J$3/(1-$J$3))*(1-J11)*Inputs!$C$13)+((I11*$J$3/(1-$J$3))*J11*Inputs!$C$14)),0) -> 0 | W11: =U11+V11 -> 0 | Y11: =A11 -> 2019-08-01 | Z11: =IF(AND(AC11="",AD11=""),"",IF(ISNUMBER(AC11),SUBSTITUTE(ADDRESS(1,COLUMN($S$10),4),"1","")&ROW(Z11),"")) ->  | AA11: =IF(ISNUMBER(AD11),SUBSTITUTE(ADDRESS(1,COLUMN($S$10),4),"1","")&ROW(AA11),"") ->  | AB11: =IF(AND(Z11<>"",AA11<>""),MAX(INDIRECT(Z11):INDIRECT(AA11)),"") ->  | AC11: =IF(S11>0,$Y11,"") ->  | AD11: =IF(AND(S11>0,S12=0),$Y11,IF(AND(S11>0,S12>0),"Q","")) ->  | AF11: =IF(G11="TRUE 1",IF(E11="NT",MROUND(Inputs!$C$32*$AF$3*(1/(1+M11*(2-1))),1),MROUND(Inputs!$C$30*$AF$3*(1/(1+M11*(2-1))),1)), IF(G11="TRUE 2",IF(E11="NT",MROUND(Inputs!$D$32*$AG$3*(1/(1+M11*(2-1))),1),MROUND(Inputs!$D$30*$AG$3*(1/(1+M11*(2-1))),1)), IF(G11="TRUE 3",IF(E11="NT",MROUND(Inputs!$E$32*$AH$3*(1/(1+M11*(2-1))),1),MROUND(Inputs!$E$30*$AH$3*(1/(1+M11*(2-1))),1)), IF(G11="TRUE 4",IF(E11="NT",MROUND(Inputs!$F$32*$AI$3*(1/(1+M11*(2-1))),1),MROUND(Inputs!$F$30*$AI$3*(1/(1+M11*(2-1))),1)), MROUND(Inputs!$C$15*(1/(1+M11*(2-1)))*($AF$3+$AF$4),1))))) -> 8727 | AG11: =L11-AF11 -> -8118 | AH11: =IF(AG11<0,0,AG11) -> 0 | AI11: =(AH11/(1/(1+M11*(2-1))))*O11/LEFT(Inputs!$C$18,1)/5280 -> 0 | AJ11: =AH11/AF11*60 -> 0 | AK11: =(AJ11/60)*((Inputs!$C$13*Calculations!AH11*(1-Calculations!M11))+(Inputs!$C$14*Calculations!AH11*Calculations!M11)) -> 0 | AL11: =IF(AH11>0,($M$5/60)*(((L11*$M$3/(1-$M$3))*(1-M11)*Inputs!$C$13)+((L11*$M$3/(1-$M$3))*M11*Inputs!$C$14)),0) -> 0 | AM11: =AK11+AL11 -> 0 | AO11: =A11 -> 2019-08-01 | AP11: =IF(AND(AS11="",AT11=""),"",IF(ISNUMBER(AS11),SUBSTITUTE(ADDRESS(1,COLUMN($AI$10),4),"1","")&ROW(AP11),"")) ->  | AQ11: =IF(ISNUMBER(AT11),SUBSTITUTE(ADDRESS(1,COLUMN($AI$10),4),"1","")&ROW(AQ11),"") ->  | AR11: =IF(AND(AP11<>"",AQ11<>""),MAX(INDIRECT(AP11):INDIRECT(AQ11)),"") ->  | AS11: =IF(AI11>0,$Y11,"") ->  | AT11: =IF(AND(AI11>0,AI12=0),$Y11,IF(AND(AI11>0,AI12>0),"Q","")) -> 
A12: =A$11 -> 2019-08-01 | B12: =WEEKDAY(A12) -> 5 | C12: =CHOOSE(WEEKDAY(A12),"Sunday","Monday","Tuesday","Wednesday","Thursday","Friday","Saturday") -> Thursday | D12: 01:00:00 | E12: =INDEX(Lists!$M$3:$M$26,MATCH(Calculations!D12,Lists!$L$3:$L$26,0)) -> NT | F12: =HOUR(D12)+(B12*24-24) -> 97 | G12: =IF(INDEX(Inputs!$H$86:$H$253,MATCH(F12,Inputs!$D$86:$D$253,0)),"TRUE 4", IF(INDEX(Inputs!$G$86:$G$253,MATCH(F12,Inputs!$D$86:$D$253,0)),"TRUE 3", IF(INDEX(Inputs!$F$86:$F$253,MATCH(F12,Inputs!$D$86:$D$253,0)),"TRUE 2", IF(INDEX(Inputs!$E$86:$E$253,MATCH(F12,Inputs!$D$86:$D$253,0)),"TRUE 1", FALSE)))) -> FALSE | I12: ='Volume Import'!C3*'Volume Import'!$H$14*(1+'Volume Import'!$H$15)*(1-'Volume Import'!$H$16) -> 488 | J12: =IF(AND('Volume Import'!D3=0,'Volume Import'!C3=0),0, IF('Volume Import'!D3=0,INDEX('Volume Import'!$K$2:$Q$5,MATCH(E12,'Volume Import'!$R$2:$R$5,0),MATCH(C12,'Volume Import'!$K$1:$Q$1,0)), 'Volume Import'!D3/'Volume Import'!C3)) -> 0.1 | L12: ='Volume Import'!E3*'Volume Import'!$I$14*(1+'Volume Import'!$I$15)*(1-'Volume Import'!$I$16) -> 420 | M12: =IF('Volume Import'!F3=0,J12,'Volume Import'!F3/'Volume Import'!E3) -> 0.1 | O12: =IF(G12="TRUE 1",IF(E12="NT",Inputs!$C$35,Inputs!$C$34), IF(G12="TRUE 2",IF(E12="NT",Inputs!$D$35,Inputs!$D$34), IF(G12="TRUE 3",IF(E12="NT",Inputs!$E$35,Inputs!$E$34), IF(G12="TRUE 4",IF(E12="NT",Inputs!$F$35,Inputs!$F$34), O11)))) -> 0 | P12: =IF(G12="TRUE 1",IF(E12="NT",MROUND(Inputs!$C$32*$P$3*(1/(1+J12*(2-1))),1),MROUND(Inputs!$C$30*$P$3*(1/(1+J12*(2-1))),1)), IF(G12="TRUE 2",IF(E12="NT",MROUND(Inputs!$D$32*$Q$3*(1/(1+J12*(2-1))),1),MROUND(Inputs!$D$30*$Q$3*(1/(1+J12*(2-1))),1)), IF(G12="TRUE 3",IF(E12="NT",MROUND(Inputs!$E$32*$R$3*(1/(1+J12*(2-1))),1),MROUND(Inputs!$E$30*$R$3*(1/(1+J12*(2-1))),1)), IF(G12="TRUE 4",IF(E12="NT",MROUND(Inputs!$F$32*$S$3*(1/(1+J12*(2-1))),1),MROUND(Inputs!$F$30*$S$3*(1/(1+J12*(2-1))),1)), MROUND(Inputs!$C$15*(1/(1+J12*(2-1)))*($P$3+$P$4),1))))) -> 8727 | Q12: =I12-P12 -> -8239 | R12: =IF(R11+Q12<0,0,R11+Q12) -> 0 | S12: =(R12/(1/(1+J12*(2-1))))*O12/LEFT(Inputs!$C$18,1)/5280 -> 0 | T12: =R12/P12*60 -> 0 | U12: =(T12/60)*((Inputs!$C$13*Calculations!R12*(1-Calculations!J12))+(Inputs!$C$14*Calculations!R12*Calculations!J12)) -> 0 | V12: =IF(R12>0,($J$5/60)*(((I12*$J$3/(1-$J$3))*(1-J12)*Inputs!$C$13)+((I12*$J$3/(1-$J$3))*J12*Inputs!$C$14)),0) -> 0 | W12: =U12+V12 -> 0 | Y12: =Y11+1/24 -> 2019-08-01T01:00:00 | Z12: =IF(AND(AC12="",AD12=""),"",IF(ISNUMBER(AC12),SUBSTITUTE(ADDRESS(1,COLUMN($S$10),4),"1","")&ROW(Z12),Z11)) ->  | AA12: =IF(ISNUMBER(AD12),SUBSTITUTE(ADDRESS(1,COLUMN($S$10),4),"1","")&ROW(AA12),"") ->  | AB12: =IF(AND(Z12<>"",AA12<>""),MAX(INDIRECT(Z12):INDIRECT(AA12)),"") ->  | AC12: =IF(AND(S12>0,S11=0),$Y12,IF(AND(S12>0,S11>0),"Q","")) ->  | AF12: =IF(G12="TRUE 1",IF(E12="NT",MROUND(Inputs!$C$32*$AF$3*(1/(1+M12*(2-1))),1),MROUND(Inputs!$C$30*$AF$3*(1/(1+M12*(2-1))),1)), IF(G12="TRUE 2",IF(E12="NT",MROUND(Inputs!$D$32*$AG$3*(1/(1+M12*(2-1))),1),MROUND(Inputs!$D$30*$AG$3*(1/(1+M12*(2-1))),1)), IF(G12="TRUE 3",IF(E12="NT",MROUND(Inputs!$E$32*$AH$3*(1/(1+M12*(2-1))),1),MROUND(Inputs!$E$30*$AH$3*(1/(1+M12*(2-1))),1)), IF(G12="TRUE 4",IF(E12="NT",MROUND(Inputs!$F$32*$AI$3*(1/(1+M12*(2-1))),1),MROUND(Inputs!$F$30*$AI$3*(1/(1+M12*(2-1))),1)), MROUND(Inputs!$C$15*(1/(1+M12*(2-1)))*($AF$3+$AF$4),1))))) -> 8727 | AG12: =L12-AF12 -> -8307 | AH12: =IF(AH11+AG12<0,0,AH11+AG12) -> 0 | AI12: =(AH12/(1/(1+M12*(2-1))))*O12/LEFT(Inputs!$C$18,1)/5280 -> 0 | AJ12: =AH12/AF12*60 -> 0 | AK12: =(AJ12/60)*((Inputs!$C$13*Calculations!AH12*(1-Calculations!M12))+(Inputs!$C$14*Calculations!AH12*Calculations!M12)) -> 0 | AL12: =IF(AH12>0,($M$5/60)*(((L12*$M$3/(1-$M$3))*(1-M12)*Inputs!$C$13)+((L12*$M$3/(1-$M$3))*M12*Inputs!$C$14)),0) -> 0 | AM12: =AK12+AL12 -> 0 | AO12: =AO11+1/24 -> 2019-08-01T01:00:00 | AP12: =IF(AND(AS12="",AT12=""),"",IF(ISNUMBER(AS12),SUBSTITUTE(ADDRESS(1,COLUMN($AI$10),4),"1","")&ROW(AP12),AP11)) ->  | AQ12: =IF(ISNUMBER(AT12),SUBSTITUTE(ADDRESS(1,COLUMN($AI$10),4),"1","")&ROW(AQ12),"") ->  | AR12: =IF(AND(AP12<>"",AQ12<>""),MAX(INDIRECT(AP12):INDIRECT(AQ12)),"") ->  | AS12: =IF(AND(AI12>0,AI11=0),$Y12,IF(AND(AI12>0,AI11>0),"Q","")) ->  | AT12: =IF(AND(AI12>0,AI13=0),$Y12,IF(AND(AI12>0,AI13>0),"Q","")) -> 
A13: =A$11 -> 2019-08-01 | B13: =WEEKDAY(A13) -> 5 | C13: Thursday | D13: 02:00:00 | E13: =INDEX(Lists!$M$3:$M$26,MATCH(Calculations!D13,Lists!$L$3:$L$26,0)) -> NT | F13: 98 | G13: =IF(INDEX(Inputs!$H$86:$H$253,MATCH(F13,Inputs!$D$86:$D$253,0)),"TRUE 4", IF(INDEX(Inputs!$G$86:$G$253,MATCH(F13,Inputs!$D$86:$D$253,0)),"TRUE 3", IF(INDEX(Inputs!$F$86:$F$253,MATCH(F13,Inputs!$D$86:$D$253,0)),"TRUE 2", IF(INDEX(Inputs!$E$86:$E$253,MATCH(F13,Inputs!$D$86:$D$253,0)),"TRUE 1", FALSE)))) -> FALSE | I13: ='Volume Import'!C4*'Volume Import'!$H$14*(1+'Volume Import'!$H$15)*(1-'Volume Import'!$H$16) -> 412 | J13: =IF(AND('Volume Import'!D4=0,'Volume Import'!C4=0),0, IF('Volume Import'!D4=0,INDEX('Volume Import'!$K$2:$Q$5,MATCH(E13,'Volume Import'!$R$2:$R$5,0),MATCH(C13,'Volume Import'!$K$1:$Q$1,0)), 'Volume Import'!D4/'Volume Import'!C4)) -> 0.1 | L13: ='Volume Import'!E4*'Volume Import'!$I$14*(1+'Volume Import'!$I$15)*(1-'Volume Import'!$I$16) -> 402 | M13: =IF('Volume Import'!F4=0,J13,'Volume Import'!F4/'Volume Import'!E4) -> 0.1 | O13: =IF(G13="TRUE 1",IF(E13="NT",Inputs!$C$35,Inputs!$C$34), IF(G13="TRUE 2",IF(E13="NT",Inputs!$D$35,Inputs!$D$34), IF(G13="TRUE 3",IF(E13="NT",Inputs!$E$35,Inputs!$E$34), IF(G13="TRUE 4",IF(E13="NT",Inputs!$F$35,Inputs!$F$34), O12)))) -> 0 | P13: =IF(G13="TRUE 1",IF(E13="NT",MROUND(Inputs!$C$32*$P$3*(1/(1+J13*(2-1))),1),MROUND(Inputs!$C$30*$P$3*(1/(1+J13*(2-1))),1)), IF(G13="TRUE 2",IF(E13="NT",MROUND(Inputs!$D$32*$Q$3*(1/(1+J13*(2-1))),1),MROUND(Inputs!$D$30*$Q$3*(1/(1+J13*(2-1))),1)), IF(G13="TRUE 3",IF(E13="NT",MROUND(Inputs!$E$32*$R$3*(1/(1+J13*(2-1))),1),MROUND(Inputs!$E$30*$R$3*(1/(1+J13*(2-1))),1)), IF(G13="TRUE 4",IF(E13="NT",MROUND(Inputs!$F$32*$S$3*(1/(1+J13*(2-1))),1),MROUND(Inputs!$F$30*$S$3*(1/(1+J13*(2-1))),1)), MROUND(Inputs!$C$15*(1/(1+J13*(2-1)))*($P$3+$P$4),1))))) -> 8727 | Q13: -8315 | R13: =IF(R12+Q13<0,0,R12+Q13) -> 0 | S13: =(R13/(1/(1+J13*(2-1))))*O13/LEFT(Inputs!$C$18,1)/5280 -> 0 | T13: 0 | U13: =(T13/60)*((Inputs!$C$13*Calculations!R13*(1-Calculations!J13))+(Inputs!$C$14*Calculations!R13*Calculations!J13)) -> 0 | V13: =IF(R13>0,($J$5/60)*(((I13*$J$3/(1-$J$3))*(1-J13)*Inputs!$C$13)+((I13*$J$3/(1-$J$3))*J13*Inputs!$C$14)),0) -> 0 | W13: 0 | Y13: =Y12+1/24 -> 2019-08-01T02:00:00 | AB13: =IF(AND(Z13<>"",AA13<>""),MAX(INDIRECT(Z13):INDIRECT(AA13)),"") ->  | AF13: =IF(G13="TRUE 1",IF(E13="NT",MROUND(Inputs!$C$32*$AF$3*(1/(1+M13*(2-1))),1),MROUND(Inputs!$C$30*$AF$3*(1/(1+M13*(2-1))),1)), IF(G13="TRUE 2",IF(E13="NT",MROUND(Inputs!$D$32*$AG$3*(1/(1+M13*(2-1))),1),MROUND(Inputs!$D$30*$AG$3*(1/(1+M13*(2-1))),1)), IF(G13="TRUE 3",IF(E13="NT",MROUND(Inputs!$E$32*$AH$3*(1/(1+M13*(2-1))),1),MROUND(Inputs!$E$30*$AH$3*(1/(1+M13*(2-1))),1)), IF(G13="TRUE 4",IF(E13="NT",MROUND(Inputs!$F$32*$AI$3*(1/(1+M13*(2-1))),1),MROUND(Inputs!$F$30*$AI$3*(1/(1+M13*(2-1))),1)), MROUND(Inputs!$C$15*(1/(1+M13*(2-1)))*($AF$3+$AF$4),1))))) -> 8727 | AG13: -8325 | AH13: =IF(AH12+AG13<0,0,AH12+AG13) -> 0 | AI13: =(AH13/(1/(1+M13*(2-1))))*O13/LEFT(Inputs!$C$18,1)/5280 -> 0 | AJ13: 0 | AK13: =(AJ13/60)*((Inputs!$C$13*Calculations!AH13*(1-Calculations!M13))+(Inputs!$C$14*Calculations!AH13*Calculations!M13)) -> 0 | AL13: =IF(AH13>0,($M$5/60)*(((L13*$M$3/(1-$M$3))*(1-M13)*Inputs!$C$13)+((L13*$M$3/(1-$M$3))*M13*Inputs!$C$14)),0) -> 0 | AM13: 0 | AO13: =AO12+1/24 -> 2019-08-01T02:00:00 | AP13: =IF(AND(AS13="",AT13=""),"",IF(ISNUMBER(AS13),SUBSTITUTE(ADDRESS(1,COLUMN($AI$10),4),"1","")&ROW(AP13),AP12)) ->  | AR13: =IF(AND(AP13<>"",AQ13<>""),MAX(INDIRECT(AP13):INDIRECT(AQ13)),"") -> 
A14: 2019-08-01 | B14: 5 | C14: Thursday | D14: 03:00:00 | E14: =INDEX(Lists!$M$3:$M$26,MATCH(Calculations!D14,Lists!$L$3:$L$26,0)) -> NT | F14: 99 | G14: =IF(INDEX(Inputs!$H$86:$H$253,MATCH(F14,Inputs!$D$86:$D$253,0)),"TRUE 4", IF(INDEX(Inputs!$G$86:$G$253,MATCH(F14,Inputs!$D$86:$D$253,0)),"TRUE 3", IF(INDEX(Inputs!$F$86:$F$253,MATCH(F14,Inputs!$D$86:$D$253,0)),"TRUE 2", IF(INDEX(Inputs!$E$86:$E$253,MATCH(F14,Inputs!$D$86:$D$253,0)),"TRUE 1", FALSE)))) -> FALSE | I14: ='Volume Import'!C5*'Volume Import'!$H$14*(1+'Volume Import'!$H$15)*(1-'Volume Import'!$H$16) -> 535 | J14: =IF(AND('Volume Import'!D5=0,'Volume Import'!C5=0),0, IF('Volume Import'!D5=0,INDEX('Volume Import'!$K$2:$Q$5,MATCH(E14,'Volume Import'!$R$2:$R$5,0),MATCH(C14,'Volume Import'!$K$1:$Q$1,0)), 'Volume Import'!D5/'Volume Import'!C5)) -> 0.1 | L14: ='Volume Import'!E5*'Volume Import'!$I$14*(1+'Volume Import'!$I$15)*(1-'Volume Import'!$I$16) -> 534 | M14: =IF('Volume Import'!F5=0,J14,'Volume Import'!F5/'Volume Import'!E5) -> 0.1 | O14: =IF(G14="TRUE 1",IF(E14="NT",Inputs!$C$35,Inputs!$C$34), IF(G14="TRUE 2",IF(E14="NT",Inputs!$D$35,Inputs!$D$34), IF(G14="TRUE 3",IF(E14="NT",Inputs!$E$35,Inputs!$E$34), IF(G14="TRUE 4",IF(E14="NT",Inputs!$F$35,Inputs!$F$34), O13)))) -> 0 | P14: =IF(G14="TRUE 1",IF(E14="NT",MROUND(Inputs!$C$32*$P$3*(1/(1+J14*(2-1))),1),MROUND(Inputs!$C$30*$P$3*(1/(1+J14*(2-1))),1)), IF(G14="TRUE 2",IF(E14="NT",MROUND(Inputs!$D$32*$Q$3*(1/(1+J14*(2-1))),1),MROUND(Inputs!$D$30*$Q$3*(1/(1+J14*(2-1))),1)), IF(G14="TRUE 3",IF(E14="NT",MROUND(Inputs!$E$32*$R$3*(1/(1+J14*(2-1))),1),MROUND(Inputs!$E$30*$R$3*(1/(1+J14*(2-1))),1)), IF(G14="TRUE 4",IF(E14="NT",MROUND(Inputs!$F$32*$S$3*(1/(1+J14*(2-1))),1),MROUND(Inputs!$F$30*$S$3*(1/(1+J14*(2-1))),1)), MROUND(Inputs!$C$15*(1/(1+J14*(2-1)))*($P$3+$P$4),1))))) -> 8727 | Q14: -8192 | R14: 0 | S14: =(R14/(1/(1+J14*(2-1))))*O14/LEFT(Inputs!$C$18,1)/5280 -> 0 | T14: 0 | U14: =(T14/60)*((Inputs!$C$13*Calculations!R14*(1-Calculations!J14))+(Inputs!$C$14*Calculations!R14*Calculations!J14)) -> 0 | V14: =IF(R14>0,($J$5/60)*(((I14*$J$3/(1-$J$3))*(1-J14)*Inputs!$C$13)+((I14*$J$3/(1-$J$3))*J14*Inputs!$C$14)),0) -> 0 | W14: 0 | Y14: 2019-08-01T03:00:00 | AB14: =IF(AND(Z14<>"",AA14<>""),MAX(INDIRECT(Z14):INDIRECT(AA14)),"") ->  | AF14: =IF(G14="TRUE 1",IF(E14="NT",MROUND(Inputs!$C$32*$AF$3*(1/(1+M14*(2-1))),1),MROUND(Inputs!$C$30*$AF$3*(1/(1+M14*(2-1))),1)), IF(G14="TRUE 2",IF(E14="NT",MROUND(Inputs!$D$32*$AG$3*(1/(1+M14*(2-1))),1),MROUND(Inputs!$D$30*$AG$3*(1/(1+M14*(2-1))),1)), IF(G14="TRUE 3",IF(E14="NT",MROUND(Inputs!$E$32*$AH$3*(1/(1+M14*(2-1))),1),MROUND(Inputs!$E$30*$AH$3*(1/(1+M14*(2-1))),1)), IF(G14="TRUE 4",IF(E14="NT",MROUND(Inputs!$F$32*$AI$3*(1/(1+M14*(2-1))),1),MROUND(Inputs!$F$30*$AI$3*(1/(1+M14*(2-1))),1)), MROUND(Inputs!$C$15*(1/(1+M14*(2-1)))*($AF$3+$AF$4),1))))) -> 8727 | AG14: -8193 | AH14: =IF(AH13+AG14<0,0,AH13+AG14) -> 0 | AI14: =(AH14/(1/(1+M14*(2-1))))*O14/LEFT(Inputs!$C$18,1)/5280 -> 0 | AJ14: 0 | AK14: =(AJ14/60)*((Inputs!$C$13*Calculations!AH14*(1-Calculations!M14))+(Inputs!$C$14*Calculations!AH14*Calculations!M14)) -> 0 | AL14: =IF(AH14>0,($M$5/60)*(((L14*$M$3/(1-$M$3))*(1-M14)*Inputs!$C$13)+((L14*$M$3/(1-$M$3))*M14*Inputs!$C$14)),0) -> 0 | AM14: 0 | AO14: 2019-08-01T03:00:00 | AR14: =IF(AND(AP14<>"",AQ14<>""),MAX(INDIRECT(AP14):INDIRECT(AQ14)),"") -> 
A15: 2019-08-01 | B15: 5 | C15: Thursday | D15: 04:00:00 | E15: =INDEX(Lists!$M$3:$M$26,MATCH(Calculations!D15,Lists!$L$3:$L$26,0)) -> NT | F15: 100 | G15: =IF(INDEX(Inputs!$H$86:$H$253,MATCH(F15,Inputs!$D$86:$D$253,0)),"TRUE 4", IF(INDEX(Inputs!$G$86:$G$253,MATCH(F15,Inputs!$D$86:$D$253,0)),"TRUE 3", IF(INDEX(Inputs!$F$86:$F$253,MATCH(F15,Inputs!$D$86:$D$253,0)),"TRUE 2", IF(INDEX(Inputs!$E$86:$E$253,MATCH(F15,Inputs!$D$86:$D$253,0)),"TRUE 1", FALSE)))) -> FALSE | I15: ='Volume Import'!C6*'Volume Import'!$H$14*(1+'Volume Import'!$H$15)*(1-'Volume Import'!$H$16) -> 1343 | J15: =IF(AND('Volume Import'!D6=0,'Volume Import'!C6=0),0, IF('Volume Import'!D6=0,INDEX('Volume Import'!$K$2:$Q$5,MATCH(E15,'Volume Import'!$R$2:$R$5,0),MATCH(C15,'Volume Import'!$K$1:$Q$1,0)), 'Volume Import'!D6/'Volume Import'!C6)) -> 0.1 | L15: ='Volume Import'!E6*'Volume Import'!$I$14*(1+'Volume Import'!$I$15)*(1-'Volume Import'!$I$16) -> 964 | M15: =IF('Volume Import'!F6=0,J15,'Volume Import'!F6/'Volume Import'!E6) -> 0.1 | O15: =IF(G15="TRUE 1",IF(E15="NT",Inputs!$C$35,Inputs!$C$34), IF(G15="TRUE 2",IF(E15="NT",Inputs!$D$35,Inputs!$D$34), IF(G15="TRUE 3",IF(E15="NT",Inputs!$E$35,Inputs!$E$34), IF(G15="TRUE 4",IF(E15="NT",Inputs!$F$35,Inputs!$F$34), O14)))) -> 0 | P15: =IF(G15="TRUE 1",IF(E15="NT",MROUND(Inputs!$C$32*$P$3*(1/(1+J15*(2-1))),1),MROUND(Inputs!$C$30*$P$3*(1/(1+J15*(2-1))),1)), IF(G15="TRUE 2",IF(E15="NT",MROUND(Inputs!$D$32*$Q$3*(1/(1+J15*(2-1))),1),MROUND(Inputs!$D$30*$Q$3*(1/(1+J15*(2-1))),1)), IF(G15="TRUE 3",IF(E15="NT",MROUND(Inputs!$E$32*$R$3*(1/(1+J15*(2-1))),1),MROUND(Inputs!$E$30*$R$3*(1/(1+J15*(2-1))),1)), IF(G15="TRUE 4",IF(E15="NT",MROUND(Inputs!$F$32*$S$3*(1/(1+J15*(2-1))),1),MROUND(Inputs!$F$30*$S$3*(1/(1+J15*(2-1))),1)), MROUND(Inputs!$C$15*(1/(1+J15*(2-1)))*($P$3+$P$4),1))))) -> 8727 | Q15: -7384 | R15: 0 | S15: =(R15/(1/(1+J15*(2-1))))*O15/LEFT(Inputs!$C$18,1)/5280 -> 0 | T15: 0 | U15: =(T15/60)*((Inputs!$C$13*Calculations!R15*(1-Calculations!J15))+(Inputs!$C$14*Calculations!R15*Calculations!J15)) -> 0 | V15: =IF(R15>0,($J$5/60)*(((I15*$J$3/(1-$J$3))*(1-J15)*Inputs!$C$13)+((I15*$J$3/(1-$J$3))*J15*Inputs!$C$14)),0) -> 0 | W15: 0 | Y15: 2019-08-01T04:00:00 | AB15: =IF(AND(Z15<>"",AA15<>""),MAX(INDIRECT(Z15):INDIRECT(AA15)),"") ->  | AF15: =IF(G15="TRUE 1",IF(E15="NT",MROUND(Inputs!$C$32*$AF$3*(1/(1+M15*(2-1))),1),MROUND(Inputs!$C$30*$AF$3*(1/(1+M15*(2-1))),1)), IF(G15="TRUE 2",IF(E15="NT",MROUND(Inputs!$D$32*$AG$3*(1/(1+M15*(2-1))),1),MROUND(Inputs!$D$30*$AG$3*(1/(1+M15*(2-1))),1)), IF(G15="TRUE 3",IF(E15="NT",MROUND(Inputs!$E$32*$AH$3*(1/(1+M15*(2-1))),1),MROUND(Inputs!$E$30*$AH$3*(1/(1+M15*(2-1))),1)), IF(G15="TRUE 4",IF(E15="NT",MROUND(Inputs!$F$32*$AI$3*(1/(1+M15*(2-1))),1),MROUND(Inputs!$F$30*$AI$3*(1/(1+M15*(2-1))),1)), MROUND(Inputs!$C$15*(1/(1+M15*(2-1)))*($AF$3+$AF$4),1))))) -> 8727 | AG15: -7763 | AH15: =IF(AH14+AG15<0,0,AH14+AG15) -> 0 | AI15: =(AH15/(1/(1+M15*(2-1))))*O15/LEFT(Inputs!$C$18,1)/5280 -> 0 | AJ15: 0 | AK15: =(AJ15/60)*((Inputs!$C$13*Calculations!AH15*(1-Calculations!M15))+(Inputs!$C$14*Calculations!AH15*Calculations!M15)) -> 0 | AL15: =IF(AH15>0,($M$5/60)*(((L15*$M$3/(1-$M$3))*(1-M15)*Inputs!$C$13)+((L15*$M$3/(1-$M$3))*M15*Inputs!$C$14)),0) -> 0 | AM15: 0 | AO15: 2019-08-01T04:00:00 | AR15: =IF(AND(AP15<>"",AQ15<>""),MAX(INDIRECT(AP15):INDIRECT(AQ15)),"") -> 
A16: 2019-08-01 | B16: 5 | C16: Thursday | D16: 05:00:00 | E16: =INDEX(Lists!$M$3:$M$26,MATCH(Calculations!D16,Lists!$L$3:$L$26,0)) -> NT | F16: 101 | G16: =IF(INDEX(Inputs!$H$86:$H$253,MATCH(F16,Inputs!$D$86:$D$253,0)),"TRUE 4", IF(INDEX(Inputs!$G$86:$G$253,MATCH(F16,Inputs!$D$86:$D$253,0)),"TRUE 3", IF(INDEX(Inputs!$F$86:$F$253,MATCH(F16,Inputs!$D$86:$D$253,0)),"TRUE 2", IF(INDEX(Inputs!$E$86:$E$253,MATCH(F16,Inputs!$D$86:$D$253,0)),"TRUE 1", FALSE)))) -> FALSE | I16: ='Volume Import'!C7*'Volume Import'!$H$14*(1+'Volume Import'!$H$15)*(1-'Volume Import'!$H$16) -> 3771 | J16: =IF(AND('Volume Import'!D7=0,'Volume Import'!C7=0),0, IF('Volume Import'!D7=0,INDEX('Volume Import'!$K$2:$Q$5,MATCH(E16,'Volume Import'!$R$2:$R$5,0),MATCH(C16,'Volume Import'!$K$1:$Q$1,0)), 'Volume Import'!D7/'Volume Import'!C7)) -> 0.1 | L16: ='Volume Import'!E7*'Volume Import'!$I$14*(1+'Volume Import'!$I$15)*(1-'Volume Import'!$I$16) -> 2170 | M16: =IF('Volume Import'!F7=0,J16,'Volume Import'!F7/'Volume Import'!E7) -> 0.1 | O16: =IF(G16="TRUE 1",IF(E16="NT",Inputs!$C$35,Inputs!$C$34), IF(G16="TRUE 2",IF(E16="NT",Inputs!$D$35,Inputs!$D$34), IF(G16="TRUE 3",IF(E16="NT",Inputs!$E$35,Inputs!$E$34), IF(G16="TRUE 4",IF(E16="NT",Inputs!$F$35,Inputs!$F$34), O15)))) -> 0 | P16: =IF(G16="TRUE 1",IF(E16="NT",MROUND(Inputs!$C$32*$P$3*(1/(1+J16*(2-1))),1),MROUND(Inputs!$C$30*$P$3*(1/(1+J16*(2-1))),1)), IF(G16="TRUE 2",IF(E16="NT",MROUND(Inputs!$D$32*$Q$3*(1/(1+J16*(2-1))),1),MROUND(Inputs!$D$30*$Q$3*(1/(1+J16*(2-1))),1)), IF(G16="TRUE 3",IF(E16="NT",MROUND(Inputs!$E$32*$R$3*(1/(1+J16*(2-1))),1),MROUND(Inputs!$E$30*$R$3*(1/(1+J16*(2-1))),1)), IF(G16="TRUE 4",IF(E16="NT",MROUND(Inputs!$F$32*$S$3*(1/(1+J16*(2-1))),1),MROUND(Inputs!$F$30*$S$3*(1/(1+J16*(2-1))),1)), MROUND(Inputs!$C$15*(1/(1+J16*(2-1)))*($P$3+$P$4),1))))) -> 8727 | Q16: -4956 | R16: 0 | S16: =(R16/(1/(1+J16*(2-1))))*O16/LEFT(Inputs!$C$18,1)/5280 -> 0 | T16: 0 | U16: =(T16/60)*((Inputs!$C$13*Calculations!R16*(1-Calculations!J16))+(Inputs!$C$14*Calculations!R16*Calculations!J16)) -> 0 | V16: =IF(R16>0,($J$5/60)*(((I16*$J$3/(1-$J$3))*(1-J16)*Inputs!$C$13)+((I16*$J$3/(1-$J$3))*J16*Inputs!$C$14)),0) -> 0 | W16: 0 | Y16: 2019-08-01T05:00:00 | AB16: =IF(AND(Z16<>"",AA16<>""),MAX(INDIRECT(Z16):INDIRECT(AA16)),"") ->  | AF16: =IF(G16="TRUE 1",IF(E16="NT",MROUND(Inputs!$C$32*$AF$3*(1/(1+M16*(2-1))),1),MROUND(Inputs!$C$30*$AF$3*(1/(1+M16*(2-1))),1)), IF(G16="TRUE 2",IF(E16="NT",MROUND(Inputs!$D$32*$AG$3*(1/(1+M16*(2-1))),1),MROUND(Inputs!$D$30*$AG$3*(1/(1+M16*(2-1))),1)), IF(G16="TRUE 3",IF(E16="NT",MROUND(Inputs!$E$32*$AH$3*(1/(1+M16*(2-1))),1),MROUND(Inputs!$E$30*$AH$3*(1/(1+M16*(2-1))),1)), IF(G16="TRUE 4",IF(E16="NT",MROUND(Inputs!$F$32*$AI$3*(1/(1+M16*(2-1))),1),MROUND(Inputs!$F$30*$AI$3*(1/(1+M16*(2-1))),1)), MROUND(Inputs!$C$15*(1/(1+M16*(2-1)))*($AF$3+$AF$4),1))))) -> 8727 | AG16: -6557 | AH16: 0 | AI16: =(AH16/(1/(1+M16*(2-1))))*O16/LEFT(Inputs!$C$18,1)/5280 -> 0 | AJ16: 0 | AK16: =(AJ16/60)*((Inputs!$C$13*Calculations!AH16*(1-Calculations!M16))+(Inputs!$C$14*Calculations!AH16*Calculations!M16)) -> 0 | AL16: =IF(AH16>0,($M$5/60)*(((L16*$M$3/(1-$M$3))*(1-M16)*Inputs!$C$13)+((L16*$M$3/(1-$M$3))*M16*Inputs!$C$14)),0) -> 0 | AM16: 0 | AO16: 2019-08-01T05:00:00 | AR16: =IF(AND(AP16<>"",AQ16<>""),MAX(INDIRECT(AP16):INDIRECT(AQ16)),"") -> 
A17: 2019-08-01 | B17: 5 | C17: Thursday | D17: 06:00:00 | E17: =INDEX(Lists!$M$3:$M$26,MATCH(Calculations!D17,Lists!$L$3:$L$26,0)) -> AM | F17: 102 | G17: =IF(INDEX(Inputs!$H$86:$H$253,MATCH(F17,Inputs!$D$86:$D$253,0)),"TRUE 4", IF(INDEX(Inputs!$G$86:$G$253,MATCH(F17,Inputs!$D$86:$D$253,0)),"TRUE 3", IF(INDEX(Inputs!$F$86:$F$253,MATCH(F17,Inputs!$D$86:$D$253,0)),"TRUE 2", IF(INDEX(Inputs!$E$86:$E$253,MATCH(F17,Inputs!$D$86:$D$253,0)),"TRUE 1", FALSE)))) -> FALSE | I17: ='Volume Import'!C8*'Volume Import'!$H$14*(1+'Volume Import'!$H$15)*(1-'Volume Import'!$H$16) -> 6470 | J17: =IF(AND('Volume Import'!D8=0,'Volume Import'!C8=0),0, IF('Volume Import'!D8=0,INDEX('Volume Import'!$K$2:$Q$5,MATCH(E17,'Volume Import'!$R$2:$R$5,0),MATCH(C17,'Volume Import'!$K$1:$Q$1,0)), 'Volume Import'!D8/'Volume Import'!C8)) -> 0.1 | L17: ='Volume Import'!E8*'Volume Import'!$I$14*(1+'Volume Import'!$I$15)*(1-'Volume Import'!$I$16) -> 3592 | M17: =IF('Volume Import'!F8=0,J17,'Volume Import'!F8/'Volume Import'!E8) -> 0.1 | O17: =IF(G17="TRUE 1",IF(E17="NT",Inputs!$C$35,Inputs!$C$34), IF(G17="TRUE 2",IF(E17="NT",Inputs!$D$35,Inputs!$D$34), IF(G17="TRUE 3",IF(E17="NT",Inputs!$E$35,Inputs!$E$34), IF(G17="TRUE 4",IF(E17="NT",Inputs!$F$35,Inputs!$F$34), O16)))) -> 0 | P17: =IF(G17="TRUE 1",IF(E17="NT",MROUND(Inputs!$C$32*$P$3*(1/(1+J17*(2-1))),1),MROUND(Inputs!$C$30*$P$3*(1/(1+J17*(2-1))),1)), IF(G17="TRUE 2",IF(E17="NT",MROUND(Inputs!$D$32*$Q$3*(1/(1+J17*(2-1))),1),MROUND(Inputs!$D$30*$Q$3*(1/(1+J17*(2-1))),1)), IF(G17="TRUE 3",IF(E17="NT",MROUND(Inputs!$E$32*$R$3*(1/(1+J17*(2-1))),1),MROUND(Inputs!$E$30*$R$3*(1/(1+J17*(2-1))),1)), IF(G17="TRUE 4",IF(E17="NT",MROUND(Inputs!$F$32*$S$3*(1/(1+J17*(2-1))),1),MROUND(Inputs!$F$30*$S$3*(1/(1+J17*(2-1))),1)), MROUND(Inputs!$C$15*(1/(1+J17*(2-1)))*($P$3+$P$4),1))))) -> 8727 | Q17: -2257 | R17: 0 | S17: =(R17/(1/(1+J17*(2-1))))*O17/LEFT(Inputs!$C$18,1)/5280 -> 0 | T17: 0 | U17: =(T17/60)*((Inputs!$C$13*Calculations!R17*(1-Calculations!J17))+(Inputs!$C$14*Calculations!R17*Calculations!J17)) -> 0 | V17: =IF(R17>0,($J$5/60)*(((I17*$J$3/(1-$J$3))*(1-J17)*Inputs!$C$13)+((I17*$J$3/(1-$J$3))*J17*Inputs!$C$14)),0) -> 0 | W17: 0 | Y17: 2019-08-01T06:00:00 | AB17: =IF(AND(Z17<>"",AA17<>""),MAX(INDIRECT(Z17):INDIRECT(AA17)),"") ->  | AF17: =IF(G17="TRUE 1",IF(E17="NT",MROUND(Inputs!$C$32*$AF$3*(1/(1+M17*(2-1))),1),MROUND(Inputs!$C$30*$AF$3*(1/(1+M17*(2-1))),1)), IF(G17="TRUE 2",IF(E17="NT",MROUND(Inputs!$D$32*$AG$3*(1/(1+M17*(2-1))),1),MROUND(Inputs!$D$30*$AG$3*(1/(1+M17*(2-1))),1)), IF(G17="TRUE 3",IF(E17="NT",MROUND(Inputs!$E$32*$AH$3*(1/(1+M17*(2-1))),1),MROUND(Inputs!$E$30*$AH$3*(1/(1+M17*(2-1))),1)), IF(G17="TRUE 4",IF(E17="NT",MROUND(Inputs!$F$32*$AI$3*(1/(1+M17*(2-1))),1),MROUND(Inputs!$F$30*$AI$3*(1/(1+M17*(2-1))),1)), MROUND(Inputs!$C$15*(1/(1+M17*(2-1)))*($AF$3+$AF$4),1))))) -> 8727 | AG17: -5135 | AH17: 0 | AI17: =(AH17/(1/(1+M17*(2-1))))*O17/LEFT(Inputs!$C$18,1)/5280 -> 0 | AJ17: 0 | AK17: =(AJ17/60)*((Inputs!$C$13*Calculations!AH17*(1-Calculations!M17))+(Inputs!$C$14*Calculations!AH17*Calculations!M17)) -> 0 | AL17: =IF(AH17>0,($M$5/60)*(((L17*$M$3/(1-$M$3))*(1-M17)*Inputs!$C$13)+((L17*$M$3/(1-$M$3))*M17*Inputs!$C$14)),0) -> 0 | AM17: 0 | AO17: 2019-08-01T06:00:00 | AR17: =IF(AND(AP17<>"",AQ17<>""),MAX(INDIRECT(AP17):INDIRECT(AQ17)),"") -> 
A18: 2019-08-01 | B18: 5 | C18: Thursday | D18: 07:00:00 | E18: =INDEX(Lists!$M$3:$M$26,MATCH(Calculations!D18,Lists!$L$3:$L$26,0)) -> AM | F18: 103 | G18: =IF(INDEX(Inputs!$H$86:$H$253,MATCH(F18,Inputs!$D$86:$D$253,0)),"TRUE 4", IF(INDEX(Inputs!$G$86:$G$253,MATCH(F18,Inputs!$D$86:$D$253,0)),"TRUE 3", IF(INDEX(Inputs!$F$86:$F$253,MATCH(F18,Inputs!$D$86:$D$253,0)),"TRUE 2", IF(INDEX(Inputs!$E$86:$E$253,MATCH(F18,Inputs!$D$86:$D$253,0)),"TRUE 1", FALSE)))) -> FALSE | I18: ='Volume Import'!C9*'Volume Import'!$H$14*(1+'Volume Import'!$H$15)*(1-'Volume Import'!$H$16) -> 6752 | J18: =IF(AND('Volume Import'!D9=0,'Volume Import'!C9=0),0, IF('Volume Import'!D9=0,INDEX('Volume Import'!$K$2:$Q$5,MATCH(E18,'Volume Import'!$R$2:$R$5,0),MATCH(C18,'Volume Import'!$K$1:$Q$1,0)), 'Volume Import'!D9/'Volume Import'!C9)) -> 0.1 | L18: ='Volume Import'!E9*'Volume Import'!$I$14*(1+'Volume Import'!$I$15)*(1-'Volume Import'!$I$16) -> 4528 | M18: =IF('Volume Import'!F9=0,J18,'Volume Import'!F9/'Volume Import'!E9) -> 0.1 | O18: =IF(G18="TRUE 1",IF(E18="NT",Inputs!$C$35,Inputs!$C$34), IF(G18="TRUE 2",IF(E18="NT",Inputs!$D$35,Inputs!$D$34), IF(G18="TRUE 3",IF(E18="NT",Inputs!$E$35,Inputs!$E$34), IF(G18="TRUE 4",IF(E18="NT",Inputs!$F$35,Inputs!$F$34), O17)))) -> 0 | P18: =IF(G18="TRUE 1",IF(E18="NT",MROUND(Inputs!$C$32*$P$3*(1/(1+J18*(2-1))),1),MROUND(Inputs!$C$30*$P$3*(1/(1+J18*(2-1))),1)), IF(G18="TRUE 2",IF(E18="NT",MROUND(Inputs!$D$32*$Q$3*(1/(1+J18*(2-1))),1),MROUND(Inputs!$D$30*$Q$3*(1/(1+J18*(2-1))),1)), IF(G18="TRUE 3",IF(E18="NT",MROUND(Inputs!$E$32*$R$3*(1/(1+J18*(2-1))),1),MROUND(Inputs!$E$30*$R$3*(1/(1+J18*(2-1))),1)), IF(G18="TRUE 4",IF(E18="NT",MROUND(Inputs!$F$32*$S$3*(1/(1+J18*(2-1))),1),MROUND(Inputs!$F$30*$S$3*(1/(1+J18*(2-1))),1)), MROUND(Inputs!$C$15*(1/(1+J18*(2-1)))*($P$3+$P$4),1))))) -> 8727 | Q18: -1975 | R18: 0 | S18: =(R18/(1/(1+J18*(2-1))))*O18/LEFT(Inputs!$C$18,1)/5280 -> 0 | T18: 0 | U18: =(T18/60)*((Inputs!$C$13*Calculations!R18*(1-Calculations!J18))+(Inputs!$C$14*Calculations!R18*Calculations!J18)) -> 0 | V18: =IF(R18>0,($J$5/60)*(((I18*$J$3/(1-$J$3))*(1-J18)*Inputs!$C$13)+((I18*$J$3/(1-$J$3))*J18*Inputs!$C$14)),0) -> 0 | W18: 0 | Y18: 2019-08-01T07:00:00 | AB18: =IF(AND(Z18<>"",AA18<>""),MAX(INDIRECT(Z18):INDIRECT(AA18)),"") ->  | AF18: =IF(G18="TRUE 1",IF(E18="NT",MROUND(Inputs!$C$32*$AF$3*(1/(1+M18*(2-1))),1),MROUND(Inputs!$C$30*$AF$3*(1/(1+M18*(2-1))),1)), IF(G18="TRUE 2",IF(E18="NT",MROUND(Inputs!$D$32*$AG$3*(1/(1+M18*(2-1))),1),MROUND(Inputs!$D$30*$AG$3*(1/(1+M18*(2-1))),1)), IF(G18="TRUE 3",IF(E18="NT",MROUND(Inputs!$E$32*$AH$3*(1/(1+M18*(2-1))),1),MROUND(Inputs!$E$30*$AH$3*(1/(1+M18*(2-1))),1)), IF(G18="TRUE 4",IF(E18="NT",MROUND(Inputs!$F$32*$AI$3*(1/(1+M18*(2-1))),1),MROUND(Inputs!$F$30*$AI$3*(1/(1+M18*(2-1))),1)), MROUND(Inputs!$C$15*(1/(1+M18*(2-1)))*($AF$3+$AF$4),1))))) -> 8727 | AG18: -4199 | AH18: 0 | AI18: =(AH18/(1/(1+M18*(2-1))))*O18/LEFT(Inputs!$C$18,1)/5280 -> 0 | AJ18: 0 | AK18: =(AJ18/60)*((Inputs!$C$13*Calculations!AH18*(1-Calculations!M18))+(Inputs!$C$14*Calculations!AH18*Calculations!M18)) -> 0 | AL18: =IF(AH18>0,($M$5/60)*(((L18*$M$3/(1-$M$3))*(1-M18)*Inputs!$C$13)+((L18*$M$3/(1-$M$3))*M18*Inputs!$C$14)),0) -> 0 | AM18: 0 | AO18: 2019-08-01T07:00:00 | AR18: =IF(AND(AP18<>"",AQ18<>""),MAX(INDIRECT(AP18):INDIRECT(AQ18)),"") -> 
A19: 2019-08-01 | B19: =WEEKDAY(A19) -> 5 | C19: Thursday | D19: 08:00:00 | E19: =INDEX(Lists!$M$3:$M$26,MATCH(Calculations!D19,Lists!$L$3:$L$26,0)) -> AM | F19: 104 | G19: =IF(INDEX(Inputs!$H$86:$H$253,MATCH(F19,Inputs!$D$86:$D$253,0)),"TRUE 4", IF(INDEX(Inputs!$G$86:$G$253,MATCH(F19,Inputs!$D$86:$D$253,0)),"TRUE 3", IF(INDEX(Inputs!$F$86:$F$253,MATCH(F19,Inputs!$D$86:$D$253,0)),"TRUE 2", IF(INDEX(Inputs!$E$86:$E$253,MATCH(F19,Inputs!$D$86:$D$253,0)),"TRUE 1", FALSE)))) -> FALSE | I19: ='Volume Import'!C10*'Volume Import'!$H$14*(1+'Volume Import'!$H$15)*(1-'Volume Import'!$H$16) -> 5885 | J19: =IF(AND('Volume Import'!D10=0,'Volume Import'!C10=0),0, IF('Volume Import'!D10=0,INDEX('Volume Import'!$K$2:$Q$5,MATCH(E19,'Volume Import'!$R$2:$R$5,0),MATCH(C19,'Volume Import'!$K$1:$Q$1,0)), 'Volume Import'!D10/'Volume Import'!C10)) -> 0.1 | L19: ='Volume Import'!E10*'Volume Import'!$I$14*(1+'Volume Import'!$I$15)*(1-'Volume Import'!$I$16) -> 4292 | M19: =IF('Volume Import'!F10=0,J19,'Volume Import'!F10/'Volume Import'!E10) -> 0.1 | O19: =IF(G19="TRUE 1",IF(E19="NT",Inputs!$C$35,Inputs!$C$34), IF(G19="TRUE 2",IF(E19="NT",Inputs!$D$35,Inputs!$D$34), IF(G19="TRUE 3",IF(E19="NT",Inputs!$E$35,Inputs!$E$34), IF(G19="TRUE 4",IF(E19="NT",Inputs!$F$35,Inputs!$F$34), O18)))) -> 0 | P19: =IF(G19="TRUE 1",IF(E19="NT",MROUND(Inputs!$C$32*$P$3*(1/(1+J19*(2-1))),1),MROUND(Inputs!$C$30*$P$3*(1/(1+J19*(2-1))),1)), IF(G19="TRUE 2",IF(E19="NT",MROUND(Inputs!$D$32*$Q$3*(1/(1+J19*(2-1))),1),MROUND(Inputs!$D$30*$Q$3*(1/(1+J19*(2-1))),1)), IF(G19="TRUE 3",IF(E19="NT",MROUND(Inputs!$E$32*$R$3*(1/(1+J19*(2-1))),1),MROUND(Inputs!$E$30*$R$3*(1/(1+J19*(2-1))),1)), IF(G19="TRUE 4",IF(E19="NT",MROUND(Inputs!$F$32*$S$3*(1/(1+J19*(2-1))),1),MROUND(Inputs!$F$30*$S$3*(1/(1+J19*(2-1))),1)), MROUND(Inputs!$C$15*(1/(1+J19*(2-1)))*($P$3+$P$4),1))))) -> 8727 | Q19: -2842 | R19: 0 | S19: =(R19/(1/(1+J19*(2-1))))*O19/LEFT(Inputs!$C$18,1)/5280 -> 0 | T19: 0 | U19: =(T19/60)*((Inputs!$C$13*Calculations!R19*(1-Calculations!J19))+(Inputs!$C$14*Calculations!R19*Calculations!J19)) -> 0 | V19: =IF(R19>0,($J$5/60)*(((I19*$J$3/(1-$J$3))*(1-J19)*Inputs!$C$13)+((I19*$J$3/(1-$J$3))*J19*Inputs!$C$14)),0) -> 0 | W19: 0 | Y19: 2019-08-01T08:00:00 | AB19: =IF(AND(Z19<>"",AA19<>""),MAX(INDIRECT(Z19):INDIRECT(AA19)),"") ->  | AF19: =IF(G19="TRUE 1",IF(E19="NT",MROUND(Inputs!$C$32*$AF$3*(1/(1+M19*(2-1))),1),MROUND(Inputs!$C$30*$AF$3*(1/(1+M19*(2-1))),1)), IF(G19="TRUE 2",IF(E19="NT",MROUND(Inputs!$D$32*$AG$3*(1/(1+M19*(2-1))),1),MROUND(Inputs!$D$30*$AG$3*(1/(1+M19*(2-1))),1)), IF(G19="TRUE 3",IF(E19="NT",MROUND(Inputs!$E$32*$AH$3*(1/(1+M19*(2-1))),1),MROUND(Inputs!$E$30*$AH$3*(1/(1+M19*(2-1))),1)), IF(G19="TRUE 4",IF(E19="NT",MROUND(Inputs!$F$32*$AI$3*(1/(1+M19*(2-1))),1),MROUND(Inputs!$F$30*$AI$3*(1/(1+M19*(2-1))),1)), MROUND(Inputs!$C$15*(1/(1+M19*(2-1)))*($AF$3+$AF$4),1))))) -> 8727 | AG19: -4435 | AH19: 0 | AI19: =(AH19/(1/(1+M19*(2-1))))*O19/LEFT(Inputs!$C$18,1)/5280 -> 0 | AJ19: 0 | AK19: =(AJ19/60)*((Inputs!$C$13*Calculations!AH19*(1-Calculations!M19))+(Inputs!$C$14*Calculations!AH19*Calculations!M19)) -> 0 | AL19: =IF(AH19>0,($M$5/60)*(((L19*$M$3/(1-$M$3))*(1-M19)*Inputs!$C$13)+((L19*$M$3/(1-$M$3))*M19*Inputs!$C$14)),0) -> 0 | AM19: 0 | AO19: 2019-08-01T08:00:00 | AR19: =IF(AND(AP19<>"",AQ19<>""),MAX(INDIRECT(AP19):INDIRECT(AQ19)),"") -> 
A20: 2019-08-01 | B20: 5 | C20: Thursday | D20: 09:00:00 | E20: =INDEX(Lists!$M$3:$M$26,MATCH(Calculations!D20,Lists!$L$3:$L$26,0)) -> MD | F20: 105 | G20: =IF(INDEX(Inputs!$H$86:$H$253,MATCH(F20,Inputs!$D$86:$D$253,0)),"TRUE 4", IF(INDEX(Inputs!$G$86:$G$253,MATCH(F20,Inputs!$D$86:$D$253,0)),"TRUE 3", IF(INDEX(Inputs!$F$86:$F$253,MATCH(F20,Inputs!$D$86:$D$253,0)),"TRUE 2", IF(INDEX(Inputs!$E$86:$E$253,MATCH(F20,Inputs!$D$86:$D$253,0)),"TRUE 1", FALSE)))) -> TRUE 1 | I20: ='Volume Import'!C11*'Volume Import'!$H$14*(1+'Volume Import'!$H$15)*(1-'Volume Import'!$H$16) -> 5039 | J20: =IF(AND('Volume Import'!D11=0,'Volume Import'!C11=0),0, IF('Volume Import'!D11=0,INDEX('Volume Import'!$K$2:$Q$5,MATCH(E20,'Volume Import'!$R$2:$R$5,0),MATCH(C20,'Volume Import'!$K$1:$Q$1,0)), 'Volume Import'!D11/'Volume Import'!C11)) -> 0.1 | L20: ='Volume Import'!E11*'Volume Import'!$I$14*(1+'Volume Import'!$I$15)*(1-'Volume Import'!$I$16) -> 3952 | M20: =IF('Volume Import'!F11=0,J20,'Volume Import'!F11/'Volume Import'!E11) -> 0.1 | O20: =IF(G20="TRUE 1",IF(E20="NT",Inputs!$C$35,Inputs!$C$34), IF(G20="TRUE 2",IF(E20="NT",Inputs!$D$35,Inputs!$D$34), IF(G20="TRUE 3",IF(E20="NT",Inputs!$E$35,Inputs!$E$34), IF(G20="TRUE 4",IF(E20="NT",Inputs!$F$35,Inputs!$F$34), O19)))) -> 65.4766879 | P20: =IF(G20="TRUE 1",IF(E20="NT",MROUND(Inputs!$C$32*$P$3*(1/(1+J20*(2-1))),1),MROUND(Inputs!$C$30*$P$3*(1/(1+J20*(2-1))),1)), IF(G20="TRUE 2",IF(E20="NT",MROUND(Inputs!$D$32*$Q$3*(1/(1+J20*(2-1))),1),MROUND(Inputs!$D$30*$Q$3*(1/(1+J20*(2-1))),1)), IF(G20="TRUE 3",IF(E20="NT",MROUND(Inputs!$E$32*$R$3*(1/(1+J20*(2-1))),1),MROUND(Inputs!$E$30*$R$3*(1/(1+J20*(2-1))),1)), IF(G20="TRUE 4",IF(E20="NT",MROUND(Inputs!$F$32*$S$3*(1/(1+J20*(2-1))),1),MROUND(Inputs!$F$30*$S$3*(1/(1+J20*(2-1))),1)), MROUND(Inputs!$C$15*(1/(1+J20*(2-1)))*($P$3+$P$4),1))))) -> 4681 | Q20: 358 | R20: 358 | S20: =(R20/(1/(1+J20*(2-1))))*O20/LEFT(Inputs!$C$18,1)/5280 -> 1.22086741 | T20: 4.588763085 | U20: =(T20/60)*((Inputs!$C$13*Calculations!R20*(1-Calculations!J20))+(Inputs!$C$14*Calculations!R20*Calculations!J20)) -> 629.950291 | V20: =IF(R20>0,($J$5/60)*(((I20*$J$3/(1-$J$3))*(1-J20)*Inputs!$C$13)+((I20*$J$3/(1-$J$3))*J20*Inputs!$C$14)),0) -> 0 | W20: 629.950291 | Y20: 2019-08-01T09:00:00 | Z20: S20 | AB20: =IF(AND(Z20<>"",AA20<>""),MAX(INDIRECT(Z20):INDIRECT(AA20)),"") ->  | AC20: 2019-08-01T09:00:00 | AD20: Q | AF20: =IF(G20="TRUE 1",IF(E20="NT",MROUND(Inputs!$C$32*$AF$3*(1/(1+M20*(2-1))),1),MROUND(Inputs!$C$30*$AF$3*(1/(1+M20*(2-1))),1)), IF(G20="TRUE 2",IF(E20="NT",MROUND(Inputs!$D$32*$AG$3*(1/(1+M20*(2-1))),1),MROUND(Inputs!$D$30*$AG$3*(1/(1+M20*(2-1))),1)), IF(G20="TRUE 3",IF(E20="NT",MROUND(Inputs!$E$32*$AH$3*(1/(1+M20*(2-1))),1),MROUND(Inputs!$E$30*$AH$3*(1/(1+M20*(2-1))),1)), IF(G20="TRUE 4",IF(E20="NT",MROUND(Inputs!$F$32*$AI$3*(1/(1+M20*(2-1))),1),MROUND(Inputs!$F$30*$AI$3*(1/(1+M20*(2-1))),1)), MROUND(Inputs!$C$15*(1/(1+M20*(2-1)))*($AF$3+$AF$4),1))))) -> 4681 | AG20: -729 | AH20: 0 | AI20: =(AH20/(1/(1+M20*(2-1))))*O20/LEFT(Inputs!$C$18,1)/5280 -> 0 | AJ20: 0 | AK20: =(AJ20/60)*((Inputs!$C$13*Calculations!AH20*(1-Calculations!M20))+(Inputs!$C$14*Calculations!AH20*Calculations!M20)) -> 0 | AL20: =IF(AH20>0,($M$5/60)*(((L20*$M$3/(1-$M$3))*(1-M20)*Inputs!$C$13)+((L20*$M$3/(1-$M$3))*M20*Inputs!$C$14)),0) -> 0 | AM20: 0 | AO20: 2019-08-01T09:00:00 | AR20: =IF(AND(AP20<>"",AQ20<>""),MAX(INDIRECT(AP20):INDIRECT(AQ20)),"") -> 
A21: =A$11 -> 2019-08-01 | B21: 5 | C21: Thursday | D21: 10:00:00 | E21: =INDEX(Lists!$M$3:$M$26,MATCH(Calculations!D21,Lists!$L$3:$L$26,0)) -> MD | F21: 106 | G21: =IF(INDEX(Inputs!$H$86:$H$253,MATCH(F21,Inputs!$D$86:$D$253,0)),"TRUE 4", IF(INDEX(Inputs!$G$86:$G$253,MATCH(F21,Inputs!$D$86:$D$253,0)),"TRUE 3", IF(INDEX(Inputs!$F$86:$F$253,MATCH(F21,Inputs!$D$86:$D$253,0)),"TRUE 2", IF(INDEX(Inputs!$E$86:$E$253,MATCH(F21,Inputs!$D$86:$D$253,0)),"TRUE 1", FALSE)))) -> TRUE 1 | I21: ='Volume Import'!C12*'Volume Import'!$H$14*(1+'Volume Import'!$H$15)*(1-'Volume Import'!$H$16) -> 4996 | J21: =IF(AND('Volume Import'!D12=0,'Volume Import'!C12=0),0, IF('Volume Import'!D12=0,INDEX('Volume Import'!$K$2:$Q$5,MATCH(E21,'Volume Import'!$R$2:$R$5,0),MATCH(C21,'Volume Import'!$K$1:$Q$1,0)), 'Volume Import'!D12/'Volume Import'!C12)) -> 0.1 | L21: ='Volume Import'!E12*'Volume Import'!$I$14*(1+'Volume Import'!$I$15)*(1-'Volume Import'!$I$16) -> 3938 | M21: =IF('Volume Import'!F12=0,J21,'Volume Import'!F12/'Volume Import'!E12) -> 0.1 | O21: =IF(G21="TRUE 1",IF(E21="NT",Inputs!$C$35,Inputs!$C$34), IF(G21="TRUE 2",IF(E21="NT",Inputs!$D$35,Inputs!$D$34), IF(G21="TRUE 3",IF(E21="NT",Inputs!$E$35,Inputs!$E$34), IF(G21="TRUE 4",IF(E21="NT",Inputs!$F$35,Inputs!$F$34), O20)))) -> 65.4766879 | P21: =IF(G21="TRUE 1",IF(E21="NT",MROUND(Inputs!$C$32*$P$3*(1/(1+J21*(2-1))),1),MROUND(Inputs!$C$30*$P$3*(1/(1+J21*(2-1))),1)), IF(G21="TRUE 2",IF(E21="NT",MROUND(Inputs!$D$32*$Q$3*(1/(1+J21*(2-1))),1),MROUND(Inputs!$D$30*$Q$3*(1/(1+J21*(2-1))),1)), IF(G21="TRUE 3",IF(E21="NT",MROUND(Inputs!$E$32*$R$3*(1/(1+J21*(2-1))),1),MROUND(Inputs!$E$30*$R$3*(1/(1+J21*(2-1))),1)), IF(G21="TRUE 4",IF(E21="NT",MROUND(Inputs!$F$32*$S$3*(1/(1+J21*(2-1))),1),MROUND(Inputs!$F$30*$S$3*(1/(1+J21*(2-1))),1)), MROUND(Inputs!$C$15*(1/(1+J21*(2-1)))*($P$3+$P$4),1))))) -> 4681 | Q21: 315 | R21: 673 | S21: =(R21/(1/(1+J21*(2-1))))*O21/LEFT(Inputs!$C$18,1)/5280 -> 2.295094321 | T21: 8.626361888 | U21: =(T21/60)*((Inputs!$C$13*Calculations!R21*(1-Calculations!J21))+(Inputs!$C$14*Calculations!R21*Calculations!J21)) -> 2226.231667 | V21: =IF(R21>0,($J$5/60)*(((I21*$J$3/(1-$J$3))*(1-J21)*Inputs!$C$13)+((I21*$J$3/(1-$J$3))*J21*Inputs!$C$14)),0) -> 0 | W21: 2226.231667 | Y21: 2019-08-01T10:00:00 | Z21: S20 | AB21: =IF(AND(Z21<>"",AA21<>""),MAX(INDIRECT(Z21):INDIRECT(AA21)),"") ->  | AC21: Q | AD21: Q | AF21: =IF(G21="TRUE 1",IF(E21="NT",MROUND(Inputs!$C$32*$AF$3*(1/(1+M21*(2-1))),1),MROUND(Inputs!$C$30*$AF$3*(1/(1+M21*(2-1))),1)), IF(G21="TRUE 2",IF(E21="NT",MROUND(Inputs!$D$32*$AG$3*(1/(1+M21*(2-1))),1),MROUND(Inputs!$D$30*$AG$3*(1/(1+M21*(2-1))),1)), IF(G21="TRUE 3",IF(E21="NT",MROUND(Inputs!$E$32*$AH$3*(1/(1+M21*(2-1))),1),MROUND(Inputs!$E$30*$AH$3*(1/(1+M21*(2-1))),1)), IF(G21="TRUE 4",IF(E21="NT",MROUND(Inputs!$F$32*$AI$3*(1/(1+M21*(2-1))),1),MROUND(Inputs!$F$30*$AI$3*(1/(1+M21*(2-1))),1)), MROUND(Inputs!$C$15*(1/(1+M21*(2-1)))*($AF$3+$AF$4),1))))) -> 4681 | AG21: -743 | AH21: 0 | AI21: =(AH21/(1/(1+M21*(2-1))))*O21/LEFT(Inputs!$C$18,1)/5280 -> 0 | AJ21: 0 | AK21: =(AJ21/60)*((Inputs!$C$13*Calculations!AH21*(1-Calculations!M21))+(Inputs!$C$14*Calculations!AH21*Calculations!M21)) -> 0 | AL21: =IF(AH21>0,($M$5/60)*(((L21*$M$3/(1-$M$3))*(1-M21)*Inputs!$C$13)+((L21*$M$3/(1-$M$3))*M21*Inputs!$C$14)),0) -> 0 | AM21: 0 | AO21: 2019-08-01T10:00:00 | AR21: =IF(AND(AP21<>"",AQ21<>""),MAX(INDIRECT(AP21):INDIRECT(AQ21)),"") -> 
A22: 2019-08-01 | B22: 5 | C22: Thursday | D22: 11:00:00 | E22: =INDEX(Lists!$M$3:$M$26,MATCH(Calculations!D22,Lists!$L$3:$L$26,0)) -> MD | F22: 107 | G22: =IF(INDEX(Inputs!$H$86:$H$253,MATCH(F22,Inputs!$D$86:$D$253,0)),"TRUE 4", IF(INDEX(Inputs!$G$86:$G$253,MATCH(F22,Inputs!$D$86:$D$253,0)),"TRUE 3", IF(INDEX(Inputs!$F$86:$F$253,MATCH(F22,Inputs!$D$86:$D$253,0)),"TRUE 2", IF(INDEX(Inputs!$E$86:$E$253,MATCH(F22,Inputs!$D$86:$D$253,0)),"TRUE 1", FALSE)))) -> TRUE 1 | I22: ='Volume Import'!C13*'Volume Import'!$H$14*(1+'Volume Import'!$H$15)*(1-'Volume Import'!$H$16) -> 4672 | J22: =IF(AND('Volume Import'!D13=0,'Volume Import'!C13=0),0, IF('Volume Import'!D13=0,INDEX('Volume Import'!$K$2:$Q$5,MATCH(E22,'Volume Import'!$R$2:$R$5,0),MATCH(C22,'Volume Import'!$K$1:$Q$1,0)), 'Volume Import'!D13/'Volume Import'!C13)) -> 0.1 | L22: ='Volume Import'!E13*'Volume Import'!$I$14*(1+'Volume Import'!$I$15)*(1-'Volume Import'!$I$16) -> 3553 | M22: =IF('Volume Import'!F13=0,J22,'Volume Import'!F13/'Volume Import'!E13) -> 0.1 | O22: =IF(G22="TRUE 1",IF(E22="NT",Inputs!$C$35,Inputs!$C$34), IF(G22="TRUE 2",IF(E22="NT",Inputs!$D$35,Inputs!$D$34), IF(G22="TRUE 3",IF(E22="NT",Inputs!$E$35,Inputs!$E$34), IF(G22="TRUE 4",IF(E22="NT",Inputs!$F$35,Inputs!$F$34), O21)))) -> 65.4766879 | P22: =IF(G22="TRUE 1",IF(E22="NT",MROUND(Inputs!$C$32*$P$3*(1/(1+J22*(2-1))),1),MROUND(Inputs!$C$30*$P$3*(1/(1+J22*(2-1))),1)), IF(G22="TRUE 2",IF(E22="NT",MROUND(Inputs!$D$32*$Q$3*(1/(1+J22*(2-1))),1),MROUND(Inputs!$D$30*$Q$3*(1/(1+J22*(2-1))),1)), IF(G22="TRUE 3",IF(E22="NT",MROUND(Inputs!$E$32*$R$3*(1/(1+J22*(2-1))),1),MROUND(Inputs!$E$30*$R$3*(1/(1+J22*(2-1))),1)), IF(G22="TRUE 4",IF(E22="NT",MROUND(Inputs!$F$32*$S$3*(1/(1+J22*(2-1))),1),MROUND(Inputs!$F$30*$S$3*(1/(1+J22*(2-1))),1)), MROUND(Inputs!$C$15*(1/(1+J22*(2-1)))*($P$3+$P$4),1))))) -> 4681 | Q22: -9 | R22: 664 | S22: =(R22/(1/(1+J22*(2-1))))*O22/LEFT(Inputs!$C$18,1)/5280 -> 2.264402123 | T22: 8.511001923 | U22: =(T22/60)*((Inputs!$C$13*Calculations!R22*(1-Calculations!J22))+(Inputs!$C$14*Calculations!R22*Calculations!J22)) -> 2167.087197 | V22: =IF(R22>0,($J$5/60)*(((I22*$J$3/(1-$J$3))*(1-J22)*Inputs!$C$13)+((I22*$J$3/(1-$J$3))*J22*Inputs!$C$14)),0) -> 0 | W22: 2167.087197 | Y22: 2019-08-01T11:00:00 | Z22: S20 | AB22: =IF(AND(Z22<>"",AA22<>""),MAX(INDIRECT(Z22):INDIRECT(AA22)),"") ->  | AC22: Q | AD22: Q | AF22: =IF(G22="TRUE 1",IF(E22="NT",MROUND(Inputs!$C$32*$AF$3*(1/(1+M22*(2-1))),1),MROUND(Inputs!$C$30*$AF$3*(1/(1+M22*(2-1))),1)), IF(G22="TRUE 2",IF(E22="NT",MROUND(Inputs!$D$32*$AG$3*(1/(1+M22*(2-1))),1),MROUND(Inputs!$D$30*$AG$3*(1/(1+M22*(2-1))),1)), IF(G22="TRUE 3",IF(E22="NT",MROUND(Inputs!$E$32*$AH$3*(1/(1+M22*(2-1))),1),MROUND(Inputs!$E$30*$AH$3*(1/(1+M22*(2-1))),1)), IF(G22="TRUE 4",IF(E22="NT",MROUND(Inputs!$F$32*$AI$3*(1/(1+M22*(2-1))),1),MROUND(Inputs!$F$30*$AI$3*(1/(1+M22*(2-1))),1)), MROUND(Inputs!$C$15*(1/(1+M22*(2-1)))*($AF$3+$AF$4),1))))) -> 4681 | AG22: -1128 | AH22: 0 | AI22: =(AH22/(1/(1+M22*(2-1))))*O22/LEFT(Inputs!$C$18,1)/5280 -> 0 | AJ22: 0 | AK22: =(AJ22/60)*((Inputs!$C$13*Calculations!AH22*(1-Calculations!M22))+(Inputs!$C$14*Calculations!AH22*Calculations!M22)) -> 0 | AL22: =IF(AH22>0,($M$5/60)*(((L22*$M$3/(1-$M$3))*(1-M22)*Inputs!$C$13)+((L22*$M$3/(1-$M$3))*M22*Inputs!$C$14)),0) -> 0 | AM22: 0 | AO22: 2019-08-01T11:00:00 | AR22: =IF(AND(AP22<>"",AQ22<>""),MAX(INDIRECT(AP22):INDIRECT(AQ22)),"") -> 
